Workbook

Sheet Equalizer 44.1 kHz
B16: LPF | C16: HPF | D16: Hi Shelf | E16: Lo Shelf | F16: PeakingEQ
H17: Select Slider, then
H18: Page up/Down : Big Jump
H19: Up/Down arrows : Fine tune
H22: References :
H23: Cookbook | J23: http://www.musicdsp.org/files/Audio-EQ-Cookbook.txt
H24: Freq Response | J24: http://groups.google.com/group/comp.dsp/browse_frm/thread/8c0fa8d396aeb444/a1bc5b63ac56b686
H26: Usenet thread | J26: http://www.dsprelated.com/showmessage/50960/1.php
A34: F0 | B34: =10^(B48/333333)*20 -> 2000 | C34: =10^(C48/333333)*20 -> 99.99739687 | D34: =10^(D48/333333)*20 -> 10000.01599 | E34: =10^(E48/333333)*20 -> 49.99774228 | F34: =10^(F48/333333)*20 -> 274.9983791
A35: Q | B35: =B49/1000000*10+0.002 -> 0.81527 | C35: =C49/1000000*10+0.002 -> 0.78515 | D35: =D49/1000000*10+0.002 -> 1.05623 | E35: =E49/1000000*10+0.002 -> 0.81527 | F35: =F49/1000000*30+0.002 -> 30.002
A36: dBgain | B36: =(B50-500000)/500000*30 -> -29.99994 | C36: =(C50-500000)/500000*30 -> -29.99994 | D36: =(D50-500000)/500000*30 -> 14.4579 | E36: =(E50-500000)/500000*30 -> 19.9956 | F36: =(F50-500000)/500000*30 -> -29.99994
A37: IdBoffset | B37: =((B51-500000)/500000*20) -> 0 | C37: =((C51-500000)/500000*20) -> 0 | D37: =((D51-500000)/500000*20) -> 0 | E37: =((E51-500000)/500000*20) -> 0 | F37: =((F51-500000)/500000*20) -> 0
A48: S1 | B48: 666666 | C48: 232986 | D48: 899656 | E48: 132640 | F48: 379433 | I48: Master dB | J48: 500000
A49: S2 | B49: 81327 | C49: 78315 | D49: 105423 | E49: 81327 | F49: 1000000 | I49: Normal dB | J49: =(J48-500000)/500000*20 -> 0
A50: S3 | B50: 1 | C50: 1 | D50: 740965 | E50: 833260 | F50: 1 | J50: =10^(J49/20) -> 1
A51: S4 | B51: 500000 | C51: 500000 | D51: 500000 | E51: 500000 | F51: 500000 | J51: =J50 -> 1
B56: 44100 | C56: Hz
B59: LPF | C59: HPF | D59: Hi Shelf | E59: Lo Shelf | F59: Peaking EQ
A60: A | B60: =SQRT( 10^((B36)/20) ) -> 0.1778285552 | C60: =SQRT( 10^((C36)/20) ) -> 0.1778285552 | D60: =10^((D36)/40) -> 2.298515835 | E60: =10^((E36)/40) -> 3.161476806 | F60: =10^((F36)/40) -> 0.1778285552
A61: wo | B61: =2*PI()*B34/B56 -> 0.2849517146 | C61: =2*PI()*C34/B56 -> 0.01424721485 | D61: =2*PI()*D34/B56 -> 1.424760852 | E61: =2*PI()*E34/B56 -> 0.007123471195 | F61: =2*PI()*F34/B56 -> 0.03918062982
A62: cos(wo) | B62: =COS(B61) -> 0.9596752273 | C62: =COS(C61) -> 0.9998985102 | D62: =COS(D61) -> 0.1455169606 | E62: =COS(E61) -> 0.9999746282 | F62: =COS(F61) -> 0.9992325373
A63: sin(wo) | B63: =SIN(B61) -> 0.2811111133 | C63: =SIN(C61) -> 0.01424673286 | D63: =SIN(D61) -> 0.9893557571 | E63: =SIN(E61) -> 0.007123410949 | F63: =SIN(F61) -> 0.03917060608
A64: Alpha | B64: =B63/(2*B35) -> 0.1724036904 | C64: =C63/(2*C35) -> 0.00907261852 | D64: =D63/(2*D35) -> 0.4683429543 | E64: =E63/(2*E35) -> 0.004368743453 | F64: =F63/(2*F35) -> 0.0006527999147
A65: Lingain | B65: =10^(B37/20) -> 1 | C65: =10^(C37/20) -> 1 | D65: =10^(D37/20) -> 1 | E65: =10^(E37/20) -> 1 | F65: =10^(F37/20) -> 1
K66: Coefficients
K67: B0 | L67: B1 | M67: B2 | N67: -A1 | O67: -A2
A68: B0 | B68: =B65*J51*(1 - B62)/2 -> 0.02016238633 | C68: =C65*J51*(1 + C62)/2 -> 0.9999492551 | D68: =D65*J51*(D60*( (D60+1) + (D60-1)*D62 + 2*SQRT(D60)*D64 )) -> 11.2801228 | E68: =E65*J51*(E60*( (E60+1) - (E60-1)*E62 + 2*SQRT(E60)*E64 )) -> 6.372242825 | F68: =F65*$J$51*(1+(F64*F60)) -> 1.000116086 | J68: BQ0 | K68: =(B68/B71) -> 0.01719747771 | L68: =(B69/B71) -> 0.03439495542 | M68: =(B70/B71) -> 0.01719747771 | N68: =(-B72/B71) -> 1.637107142 | O68: =(-B73/B71) -> -0.7058970527
A69: B1 | B69: =B65*J51*(1 - B62) -> 0.04032477266 | C69: =C65*J51*-(1 + C62) -> -1.99989851 | D69: =D65*J51*(-2*D60*( (D60-1) + (D60+1)*D62 )) -> -8.175847641 | E69: =E65*J51*(2*E60*( (E60-1) - (E60+1)*E62 )) -> -12.64523962 | F69: =F65*$J$51*(-2*F62) -> -1.998465075 | J69: BQ1 | K69: =(C68/C71) -> 0.9909586651 | L69: =(C69/C71) -> -1.98191733 | M69: =(C70/C71) -> 0.9909586651 | N69: =(-C72/C71) -> 1.981816753 | O69: =(-C73/C71) -> -0.9820179076
A70: B2 | B70: =B65*J51*((1 - B62)/2) -> 0.02016238633 | C70: =C65*J51*(1 +C62)/2 -> 0.9999492551 | D70: =D65*J51*(D60*( (D60+1) + (D60-1)*D62 - 2*SQRT(D60)*D64 )) -> 4.751896026 | E70: =E65*J51*(E60*( (E60+1) - (E60-1)*E62 - 2*SQRT(E60)*E64 )) -> 6.274011154 | F70: =F65*$J$51*(1-(F60*F64)) -> 0.9998839135 | J70: BQ2 | K70: =(D68/D71) -> 2.490282516 | L70: =(D69/D71) -> -1.804959998 | M70: =(D70/D71) -> 1.049063366 | N70: =(-D72/D71) -> -0.3614075155 | O70: =(-D73/D71) -> -0.3729783677
A71: A0 | B71: =1+B64 -> 1.17240369 | C71: =1+C64 -> 1.009072619 | D71: =(D60+1) - (D60-1)*D62 + 2*SQRT(D60)*D64 -> 4.529655864 | E71: =(E60+1) + (E60-1)*E62 + 2*SQRT(E60)*E64 -> 6.338434497 | F71: =1 + (F64/F60) -> 1.003670951 | J71: BQ3 | K71: =(E68/E71) -> 1.005333861 | L71: =(E69/E71) -> -1.995009908 | M71: =(E70/E71) -> 0.9898360797 | N71: =(-E72/E71) -> 1.995081918 | O71: =(-E73/E71) -> -0.9950979298
A72: A1 | B72: =-2*B62 -> -1.919350455 | C72: =-2*C62 -> -1.99979702 | D72: =2*((D60-1)-(D60+1)*D62) -> 1.637051672 | E72: =-2*((E60-1)+(E60+1)*E62) -> -12.64569606 | F72: =-2*F62 -> -1.998465075 | J72: BQ4 | K72: =(F68/F71) -> 0.9964581375 | L72: =(F69/F71) -> -1.99115564 | M72: =(F70/F71) -> 0.9962268137 | N72: =(-F72/F71) -> 1.99115564 | O72: =(-F73/F71) -> -0.9926849512
A73: A2 | B73: =1-B64 -> 0.8275963096 | C73: =1-C64 -> 0.9909273815 | D73: =(D60+1) - (D60-1)*D62 - 2*SQRT(D60)*D64 -> 1.689463651 | E73: =(E60+1) +(E60-1)*E62 - 2*SQRT(E60)*E64 -> 6.307363046 | F73: =1-(F64/F60) -> 0.996329049
B109: Fo | C109: 563154 | D109: =10^(C109/333333)*20 -> 978.348729 | E109: =LOG(C109) -> 5.750627173
B110: Q | C110: 912551 | D110: =C110/1000000*7 -> 6.387857
B111: dBgain | C111: 361479 | D111: =(C111-500000)/500000*20 -> -5.54084
B112: Master dbgain | C112: 554218 | D112: =(C112-500000)/500000*20 -> 2.16872
C113: 538360 | U113: PRE-EQ | AE113: POST-EQ
U114: LPF | V114: HPF | W114: Hi Shelf | X114: Low Shelf | Y114: Peak EQ | Z114: Total
R115: FREQ | S115: w | T115: Phi | U115: CH1 Pre-EQ1 | V115: CH1 Pre-EQ2 | W115: CH1 Pre-EQ3 | X115: CH1 Pre-EQ4 | Y115: CH1 Pre-EQ5 | Z115: CH1 Pre-EQ | AE115: CH1 Post-EQ1 | AF115: CH1 Post-EQ2 | AG115: CH1 Post-EQ3 | AH115: CH1 Post-EQ4 | AI115: CH1 Post-EQ5 | AJ115: CH1 Post-EQ | AL115: CH1 Pre + Post
C116: pre1 | D116: B0 | E116: 1 | G116: =B68/B71 -> 0.01719747771 | R116: 10 | S116: =2*PI()*R116/B56 -> 0.001424758573 | T116: =4*(SIN(S116/2))^2 -> 2.029936648e-06 | U116: =10*LOG10(($G$116+$G$117+$G$118)^2 + ( $G$116*$G$118*T116 - ($G$117*($G$116+$G$118) + 4*$G$116*$G$118) )*T116 ) - 10*LOG10( (1+$G$119+$G$120)^2 + ( 1*$G$120*T116 - ($G$119*(1+$G$120) + 4*1*$G$120) )*T116) -> 5.306755305e-05 | V116: =10*LOG10(($G$121+$G$122+$G$123)^2 + ( $G$121*$G$123*$T116 - ($G$122*($G$121+$G$123) + 4*$G$121*$G$123) )*$T116 ) - 10*LOG10( (1+$G$124+$G$125)^2 + ( 1*$G$125*$T116 - ($G$124*(1+$G$125) + 4*1*$G$125) )*$T116) -> -39.98383404 | W116: =10*LOG10(($G$126+$G$127+$G$128)^2 + ( $G$126*$G$128*$T116 - ($G$127*($G$126+$G$128) + 4*$G$126*$G$128) )*$T116 ) - 10*LOG10( (1+$G$129+$G$130)^2 + ( 1*$G$130*$T116 - ($G$129*(1+$G$130) + 4*1*$G$130) )*$T116) -> -6.076452911e-06 | X116: =10*LOG10(($G$131+$G$132+$G$133)^2 + ( $G$131*$G$133*$T116 - ($G$132*($G$131+$G$133) + 4*$G$131*$G$133) )*$T116 ) - 10*LOG10( (1+$G$134+$G$135)^2 + ( 1*$G$135*$T116 - ($G$134*(1+$G$135) + 4*1*$G$135) )*$T116) -> 20.1765484 | Y116: =10*LOG10(($G$136+$G$137+$G$138)^2 + ( $G$136*$G$138*$T116 - ($G$137*($G$136+$G$138) + 4*$G$136*$G$138) )*$T116 ) - 10*LOG10( (1+$G$139+$G$140)^2 + ( 1*$G$140*$T116 - ($G$139*(1+$G$140) + 4*1*$G$140) )*$T116) -> -0.000202029151 | Z116: =U116+V116+W116+X116+Y116 -> -19.80744067 | AE116: =10*LOG10(($G$141+$G$142+$G$143)^2 + ( $G$141*$G$143*$T116 - ($G$142*($G$141+$G$143) + 4*$G$141*$G$143) )*$T116 ) - 10*LOG10( (1+$G$144+$G$145)^2 + ( 1*$G$145*$T116 - ($G$144*(1+$G$145) + 4*1*$G$145) )*$T116) -> -1.512252825e-05 | AF116: =10*LOG10(($G$146+$G$147+$G$148)^2 + ( $G$146*$G$148*$T116 - ($G$147*($G$146+$G$148) + 4*$G$146*$G$148) )*$T116 ) - 10*LOG10( (1+$G$149+$G$150)^2 + ( 1*$G$150*$T116 - ($G$149*(1+$G$150) + 4*1*$G$150) )*$T116) -> 0.002321159151 | AG116: =10*LOG10(($G$151+$G$152+$G$153)^2 + ( $G$151*$G$153*$T116 - ($G$152*($G$151+$G$153) + 4*$G$151*$G$153) )*$T116 ) - 10*LOG10( (1+$G$154+$G$155)^2 + ( 1*$G$155*$T116 - ($G$154*(1+$G$155) + 4*1*$G$155) )*$T116) -> -3.925821306 | AH116: =10*LOG10(($G$156+$G$157+$G$158)^2 + ( $G$156*$G$158*$T116 - ($G$157*($G$156+$G$158) + 4*$G$156*$G$158) )*$T116 ) - 10*LOG10( (1+$G$159+$G$160)^2 + ( 1*$G$160*$T116 - ($G$159*(1+$G$160) + 4*1*$G$160) )*$T116) -> 0.05124813008 | AI116: =10*LOG10(($G$161+$G$162+$G$163)^2 + ( $G$161*$G$163*$T116 - ($G$162*($G$161+$G$163) + 4*$G$161*$G$163) )*$T116 ) - 10*LOG10( (1+$G$164+$G$165)^2 + ( 1*$G$165*$T116 - ($G$164*(1+$G$165) + 4*1*$G$165) )*$T116) -> 0.0002472911237 | AJ116: =AE116+AF116+AG116+AH116+AI116 -> -3.872019849 | AL116: =AJ116+Z116 -> -23.67946052
C117: LPF | D117: B1 | E117: 2 | G117: =B69/B71 -> 0.03439495542 | R117: 10.2 | S117: =2*PI()*R117/B56 -> 0.001453253745 | T117: =4*(SIN(S117/2))^2 -> 2.111946074e-06 | U117: =10*LOG10(($G$116+$G$117+$G$118)^2 + ( $G$116*$G$118*T117 - ($G$117*($G$116+$G$118) + 4*$G$116*$G$118) )*T117 ) - 10*LOG10( (1+$G$119+$G$120)^2 + ( 1*$G$120*T117 - ($G$119*(1+$G$120) + 4*1*$G$120) )*T117) -> 5.521138555e-05 | V117: -39.63919754 | W117: -6.321941527e-06 | X117: 20.18102921 | Y117: -0.0002102134166 | Z117: -19.45832966 | AE117: -1.573360905e-05 | AF117: 0.002414928012 | AG117: -3.915991654 | AH117: 0.05125066759 | AI117: 0.0002572933415 | AJ117: -3.862084498 | AL117: -23.32041416
D118: B2 | E118: 3 | G118: =B70/B71 -> 0.01719747771 | R118: 10.404 | S118: =2*PI()*R118/B56 -> 0.001482318819 | T118: 2.19726868e-06 | U118: 5.744182091e-05 | V118: -39.29453703 | W118: -6.577347875e-06 | X118: 20.18544757 | Y118: -0.0002187301677 | Z118: -19.10925732 | AE118: -1.636938828e-05 | AF118: 0.002512484644 | AG118: -3.905799492 | AH118: 0.05125330762 | AI118: 0.0002677006107 | AJ118: -3.851782368 | AL118: -22.96103969
D119: -A1 | E119: 4 | G119: =B72/B71 -> -1.637107142 | R119: 10.61208 | S119: =2*PI()*R119/B56 -> 0.001511965196 | T119: 2.286038318e-06 | U119: 5.976235724e-05 | V119: -38.94985163 | W119: -6.843072634e-06 | X119: 20.18977988 | Y119: -0.0002275929889 | Z119: -18.76024643 | AE119: -1.703086465e-05 | AF119: 0.002613982031 | AG119: -3.895232805 | AH119: 0.05125605432 | AI119: 0.0002785293746 | AJ119: -3.84110127 | AL119: -22.6013477
D120: -A2 | E120: 5 | G120: =B73/B71 -> 0.7058970527 | R120: 10.8243216 | S120: =2*PI()*R120/B56 -> 0.0015422045 | T120: 2.378394248e-06 | U120: 6.217663389e-05 | V120: -38.60514049 | W120: -7.119532665e-06 | X120: 20.19399974 | Y120: -0.0002368160263 | Z120: -18.4113225 | AE120: -1.771907729e-05 | AF120: 0.002719579336 | AG120: -3.884279282 | AH120: 0.05125891198 | AI120: 0.0002897967477 | AJ120: -3.830028713 | AL120: -22.24135122
C121: pre2 | D121: B0 | E121: 6 | G121: =C68/C71 -> 0.9909586651 | R121: 11.04080803 | S121: =2*PI()*R121/B56 -> 0.00157304859 | T121: 2.474481355e-06 | U121: 6.468843722e-05 | V121: -38.26040268 | W121: -7.407161671e-06 | X121: 20.19807775 | Y121: -0.0002464140113 | Z121: -18.06251407 | AE121: -1.843510738e-05 | AF121: 0.002829442148 | AG121: -3.872926321 | AH121: 0.0512618851 | AI121: 0.0003015205427 | AJ121: -3.818551908 | AL121: -21.88106598
C122: HPF | D122: B1 | E122: 7 | G122: =C69/C71 -> -1.98191733 | R122: 11.26162419 | S122: =2*PI()*R122/B56 -> 0.001604509562 | T122: 2.574450381e-06 | U122: 6.730170648e-05 | V122: -37.91563729 | W122: -7.706410881e-06 | X122: 20.20198116 | Y122: -0.000256402285 | Z122: -17.71385294 | AE122: -1.918007987e-05 | AF122: 0.002943742743 | AG122: -3.861161023 | AH122: 0.05126497834 | AI122: 0.0003137192999 | AJ122: -3.806657763 | AL122: -21.5205107
D123: B2 | E123: 8 | G123: =C70/C71 -> 0.9909586651 | R123: 11.48685668 | S123: =2*PI()*R123/B56 -> 0.001636599753 | T123: 2.678458153e-06 | U123: 7.002053996e-05 | V123: -37.57084337 | W123: -8.017749749e-06 | X123: 20.20567363 | Y123: -0.0002667968244 | Z123: -17.36537453 | AE123: -1.995516526e-05 | AF123: 0.003062660351 | AG123: -3.848970204 | AH123: 0.05126819655 | AI123: 0.0003264123168 | AJ123: -3.79433289 | AL123: -21.15970742
D124: -A1 | E124: 9 | G124: =C72/C71 -> -1.981816753 | R124: 11.71659381 | S124: =2*PI()*R124/B56 -> 0.001669331748 | T124: 2.786667837e-06 | U124: 7.284920151e-05 | V124: -37.22601992 | W124: -8.341666696e-06 | X124: 20.20911485 | Y124: -0.0002776142694 | Z124: -17.01711818 | AE124: -2.076158143e-05 | AF124: 0.00318638144 | AG124: -3.836340392 | AH124: 0.05127154479 | AI124: 0.0003396196795 | AJ124: -3.781563608 | AL124: -20.79868179
D125: -A2 | E125: 10 | G125: =C73/C71 -> 0.9820179076 | R125: 11.95092569 | S125: =2*PI()*R125/B56 -> 0.001702718383 | T125: 2.89924919e-06 | U125: 7.579212711e-05 | V125: -36.88116596 | W125: -8.678669877e-06 | X125: 20.2122602 | Y125: -0.0002888719509 | Z125: -16.66912752 | AE125: -2.160059557e-05 | AF125: 0.003315100004 | AG125: -3.823257834 | AH125: 0.0512750283 | AI125: 0.0003533622955 | AJ125: -3.768335944 | AL125: -20.43746346
C126: pre3 | D126: B0 | E126: 11 | G126: =D68/D71 -> 2.490282516 | R126: 12.1899442 | S126: =2*PI()*R126/B56 -> 0.00173677275 | T126: 3.016378828e-06 | U126: 7.88539319e-05 | V126: -36.53628045 | W126: -9.029287973e-06 | X126: 20.21506039 | Y126: -0.0003005879204 | Z126: -16.32145083 | AE126: -2.247352617e-05 | AF126: 0.003449017872 | AG126: -3.809708499 | AH126: 0.05127865255 | AI126: 0.0003676619274 | AJ126: -3.75463564 | AL126: -20.07608647
C127: Hi Shelf | D127: B1 | E127: 12 | G127: =D69/D71 -> -1.804959998 | R127: 12.43374308 | S127: =2*PI()*R127/B56 -> 0.001771508205 | T127: 3.138240501e-06 | U127: 8.203941733e-05 | V127: -36.19136235 | W127: -9.394071027e-06 | X127: 20.21746102 | Y127: -0.0003127809806 | Z127: -15.97414147 | AE127: -2.338174517e-05 | AF127: 0.003588345019 | AG127: -3.795678088 | AH127: 0.05128242323 | AI127: 0.0003825412283 | AJ127: -3.74044816 | AL127: -19.71458963
D128: B2 | E128: 13 | G128: =D70/D71 -> 1.049063366 | R128: 12.68241795 | S128: =2*PI()*R128/B56 -> 0.00180693837 | T128: 3.265025383e-06 | U128: 8.53535788e-05 | V128: -35.84641057 | W128: -9.7735913e-06 | X128: 20.21940217 | Y128: -0.0003254707178 | Z128: -15.62725828 | AE128: -2.432667998e-05 | AF128: 0.003733299897 | AG128: -3.78115204 | AH128: 0.05128634625 | AI128: 0.0003980237793 | AJ128: -3.725758697 | AL128: -19.35301698
D129: -A1 | E129: 14 | G129: =D72/D71 -> 0.3614075155 | R129: 12.9360663 | S129: =2*PI()*R129/B56 -> 0.001843077137 | T129: 3.396932371e-06 | U129: 8.880161334e-05 | V129: -35.50142401 | W129: -1.016844418e-05 | X129: 20.22081795 | Y129: -0.0003386775355 | Z129: -15.2808661 | AE129: -2.530981592e-05 | AF129: 0.003884109777 | AG129: -3.76611554 | AH129: 0.05129042778 | AI129: 0.0004141341271 | AJ129: -3.710552178 | AL129: -18.99141828
D130: -A2 | E130: 15 | G130: =D73/D71 -> 0.3729783677 | R130: 13.19478763 | S130: =2*PI()*R130/B56 -> 0.00187993868 | T130: 3.534168398e-06 | U130: 9.238892787e-05 | V130: -35.15640156 | W130: -1.057924909e-05 | X130: 20.22163597 | Y130: -0.0003524226895 | Z130: -14.9350362 | AE130: -2.633269843e-05 | AF130: 0.004041011105 | AG130: -3.750553531 | AH130: 0.0512946742 | AI130: 0.000430897825 | AJ130: -3.69481328 | AL130: -18.62984948
C131: pre4 | D131: B0 | E131: 16 | G131: =E68/E71 -> 1.005333861 | R131: 13.45868338 | S131: =2*PI()*R131/B56 -> 0.001917537453 | T131: 3.676948758e-06 | U131: 9.61211476e-05 | V131: -34.81134207 | W131: -1.100665051e-05 | X131: 20.22177687 | Y131: -0.0003667283247 | Z131: -14.58984681 | AE131: -2.739693557e-05 | AF131: 0.004204249869 | AG131: -3.734450723 | AH131: 0.0512990922 | AI131: 0.0004483414742 | AJ131: -3.678526437 | AL131: -18.26837325
C132: Lo Shelf | D132: B1 | E132: 17 | G132: =E69/E71 -> -1.995009908 | R132: 13.72785705 | S132: =2*PI()*R132/B56 -> 0.001955888202 | T132: 3.82549744e-06 | U132: 0.0001000041248 | V132: -34.46624437 | W132: -1.145131892e-05 | X132: 20.22115374 | Y132: -0.0003816175138 | Z132: -14.2453837 | AE132: -2.850420054e-05 | AF132: 0.00437408199 | AG132: -3.717791611 | AH132: 0.05130368869 | AI132: 0.0004664927675 | AJ132: -3.661675852 | AL132: -17.90705955
D133: B2 | E133: 18 | G133: =E70/E71 -> 0.9898360797 | R133: 14.00241419 | S133: =2*PI()*R133/B56 -> 0.001995005966 | T133: 3.980047486e-06 | U133: 0.0001040439482 | V133: -34.12110728 | W133: -1.191395191e-05 | X133: 20.21967158 | Y133: -0.0003971142969 | Z133: -13.90174069 | AE133: -2.965623439e-05 | AF133: 0.004550773715 | AG133: -3.700560483 | AH133: 0.0513084709 | AI133: 0.0004853805352 | AJ133: -3.644245514 | AL133: -17.5459862
D134: -A1 | E134: 19 | G134: =E72/E71 -> -1.995081918 | R134: 14.28246248 | S134: =2*PI()*R134/B56 -> 0.002034906086 | T134: 4.140841349e-06 | U134: 0.0001082469522 | V134: -33.77592961 | W134: -1.239527526e-05 | X134: 20.21722672 | Y134: -0.0004132437243 | Z134: -13.55902028 | AE134: -3.085484866e-05 | AF134: 0.004734602041 | AG134: -3.682741443 | AH134: 0.05131344632 | AI134: 0.0005050347921 | AJ134: -3.626219215 | AL134: -17.1852395
D135: -A2 | E135: 20 | G135: =E73/E71 -> 0.9950979298 | R135: 14.56811173 | S135: =2*PI()*R135/B56 -> 0.002075604207 | T135: 4.308131279e-06 | U135: 0.0001126197269 | V135: -33.43071013 | W135: -1.289604404e-05 | X135: 20.2137062 | Y135: -0.0004300319 | Z135: -13.21733424 | AE135: -3.210192838e-05 | AF135: 0.004925855142 | AG135: -3.664318422 | AH135: 0.05131862277 | AI135: 0.0005254867873 | AJ135: -3.60758056 | AL135: -16.8249148
C136: pre5 | D136: B0 | E136: 21 | G136: =F68/F71 -> 0.9964581375 | R136: 14.85947396 | S136: =2*PI()*R136/B56 -> 0.002117116292 | T136: 4.482179718e-06 | U136: 0.0001171691285 | V136: -33.08544761 | W136: -1.341704385e-05 | X136: 20.20898716 | Y136: -0.0004475060281 | Z136: -12.8768042 | AE136: -3.339943497e-05 | AF136: 0.005124832823 | AG136: -3.645275205 | AH136: 0.05132400836 | AI136: 0.0005467690558 | AJ136: -3.588312994 | AL136: -16.4651172
C137: PeakEQ | D137: B1 | E137: 22 | G137: =F69/F71 -> -1.99115564 | R137: 15.15666344 | S137: =2*PI()*R137/B56 -> 0.002159458617 | T137: 4.663259708e-06 | U137: 0.0001219022901 | V137: -32.74014081 | W137: -1.395909202e-05 | X137: 20.20293623 | Y137: -0.0004656944608 | Z137: -12.53756234 | AE137: -3.474940937e-05 | AF137: 0.00533184699 | AG137: -3.625595444 | AH137: 0.05132961154 | AI137: 0.0005689154723 | AJ137: -3.56839982 | AL137: -16.10596216
A138: Master A | B138: =SQRT( 10^((D112)/20) ) -> 1.13296893 | D138: B2 | E138: 23 | G138: =F70/F71 -> 0.9962268137 | R138: 15.45979671 | S138: =2*PI()*R138/B56 -> 0.00220264779 | T138: 4.851655324e-06 | U138: 0.0001268266326 | V138: -32.39478849 | W138: -1.45230389e-05 | X138: 20.19540888 | Y138: -0.000484626749 | Z138: -12.19975192 | AE138: -3.615397527e-05 | AF138: 0.005547222133 | AG138: -3.605262691 | AH138: 0.05133544111 | AI138: 0.0005919613076 | AJ138: -3.54782422 | AL138: -15.74757615
A139: A | B139: =SQRT( 10^((D111)/20) ) -> 0.7269072493 | D139: -A1 | E139: 24 | G139: =F72/F71 -> -1.99115564 | R139: 15.76899264 | S139: =2*PI()*R139/B56 -> 0.002246700746 | T139: 5.047662117e-06 | U139: 0.0001319498764 | V139: -32.04938937 | W139: -1.510976921e-05 | X139: 20.18624887 | Y139: -0.0005043336953 | Z139: -11.86352799 | AE139: -3.761534252e-05 | AF139: 0.005771295839 | AG139: -3.584260413 | AH139: 0.05134150622 | AI139: 0.0006159432871 | AJ139: -3.526569283 | AL139: -15.39009728
A140: wo | B140: =2*PI()*D109/B56 -> 0.1393910739 | D140: -A2 | E140: 25 | G140: =F73/F71 -> 0.9926849512 | R140: 16.08437249 | S140: =2*PI()*R140/B56 -> 0.00229163476 | T140: 5.251587577e-06 | U140: 0.0001372800538 | V140: -31.70394221 | W140: -1.572020338e-05 | X140: 20.1752876 | Y140: -0.0005248474093 | Z140: -11.52905789 | AE140: -3.913581058e-05 | AF140: 0.006004419316 | AG140: -3.562572027 | AH140: 0.05134781639 | AI140: 0.000640899652 | AJ140: -3.504618027 | AL140: -15.03367592
A141: cos(wo) | B141: =COS(B140) -> 0.9903007841 | C141: post1 | D141: B0 | E141: 26 | G141: =B186/B189 -> 0.9930482639 | R141: 16.40605994 | S141: =2*PI()*R141/B56 -> 0.002337467456 | T141: 5.463751618e-06 | U141: 0.0001428255211 | V141: -31.35844575 | W141: -1.635529905e-05 | X141: 20.16234363 | Y141: -0.0005462013654 | Z141: -11.19652185 | AE141: -4.071777221e-05 | AF141: 0.006246957945 | AG141: -3.540180923 | AH141: 0.05135438151 | AI141: 0.0006668702236 | AJ141: -3.481953431 | AL141: -14.67847528
A142: sin(wo) | B142: =SIN(B140) -> 0.1389401205 | D142: B1 | E142: 27 | G142: =B187/B189 -> -1.951406384 | R142: 16.73418114 | S142: =2*PI()*R142/B56 -> 0.002384216805 | T142: 5.684487079e-06 | U142: 0.0001485949719 | V142: -31.01289873 | W142: -1.701605254e-05 | X142: 20.14722212 | Y142: -0.000568430464 | Z142: -10.86611346 | AE142: -4.236371722e-05 | AF142: 0.006499291847 | AG142: -3.517070502 | AH142: 0.05136121189 | AI142: 0.0006938964696 | AJ142: -3.458558466 | AL142: -14.32467193
A143: Alpha | B143: =B142/(2*D110) -> 0.01087533115 | D143: B2 | E143: 28 | G143: =B188/B189 -> 0.9774706086 | R143: 17.06886477 | S143: =2*PI()*R143/B56 -> 0.002431901141 | T143: 5.914140244e-06 | U143: 0.0001545974509 | V143: -30.66729993 | W143: -1.770350042e-05 | X143: 20.12971449 | Y143: -0.0005915710953 | Z143: -10.53804012 | AE143: -4.407623651e-05 | AF143: 0.00676181648 | AG143: -3.493224201 | AH143: 0.05136831824 | AI143: 0.0007220215738 | AJ143: -3.434416121 | AL143: -13.97245624
D144: -A1 | E144: 29 | G144: =B190/B189 -> -1.951406384 | R144: 17.41024206 | S144: =2*PI()*R144/B56 -> 0.002480539164 | T144: 6.153071387e-06 | U144: 0.0001608423674 | V144: -30.32164812 | W144: -1.841872114e-05 | X144: 20.10959803 | Y144: -0.0006156612058 | Z144: -10.21252333 | AE144: -4.585802613e-05 | AF144: 0.007034943257 | AG144: -3.468625535 | AH144: 0.05137571172 | AI144: 0.0007512905092 | AJ144: -3.409509448 | AL144: -13.62203278
D145: -A2 | E145: 30 | G145: =B191/B189 -> 0.9705188725 | R145: 17.7584469 | S145: =2*PI()*R145/B56 -> 0.002530149947 | T145: 6.401655339e-06 | U145: 0.0001673395111 | V145: -29.97594211 | W145: -1.916283672e-05 | X145: 20.08663574 | Y145: -0.0006407403688 | Z145: -9.889798935 | AE145: -4.771189157e-05 | AF145: 0.007319100188 | AG145: -3.443258129 | AH145: 0.05138340394 | AI145: 0.0007817501135 | AJ145: -3.383821587 | AL145: -13.27362052
A146: LPF B0 | B146: =B138^2*(1 - B141)/2 -> 0.006225046965 | C146: post2 | D146: B0 | E146: 31 | G146: =B196 -> 1.145268691 | R146: 18.11361584 | S146: =2*PI()*R146/B56 -> 0.002580752946 | T146: 6.660282071e-06 | U146: 0.000174099066 | V146: -29.63018073 | W146: -1.993701451e-05 | X146: 20.06057625 | Y146: -0.0006668498577 | Z146: -9.570117172 | AE146: -4.964075222e-05 | AF146: 0.007614732547 | AG146: -3.417105762 | AH146: 0.05139140695 | AI146: 0.0008134491686 | AJ146: -3.357335814 | AL146: -12.92745299
A147: LPF B1 | B147: =B138^2*(1 - B141) -> 0.01245009393 | C147: PA EQ | D147: B1 | E147: 32 | G147: =B197 -> -1.95922435 | R147: 18.47588816 | S147: =2*PI()*R147/B56 -> 0.002632368005 | T147: 6.929357311e-06 | U147: 0.0001811316278 | V147: -29.28436286 | W147: -2.074246901e-05 | X147: 20.03115394 | Y147: -0.0006940327234 | Z147: -9.253742562 | AE147: -5.16476461e-05 | AF147: 0.007922303572 | AG147: -3.390152403 | AH147: 0.05139973333 | AI147: 0.0008464384837 | AJ147: -3.330035575 | AL147: -12.58377814
A148: LPF B2 | B148: =B138^2*((1 - B141)/2) -> 0.006225046965 | D148: B2 | E148: 33 | G148: =B198 -> 0.8331447178 | R148: 18.84540592 | S148: =2*PI()*R148/B56 -> 0.002685015365 | T148: 7.209303178e-06 | U148: 0.0001884482193 | V148: -28.93848742 | W148: -2.158046381e-05 | X148: 19.99808929 | Y148: -0.0007223338755 | Z148: -8.9409536 | AE148: -5.373573457e-05 | AF148: 0.008242295181 | AG148: -3.36238226 | AH148: 0.05140839614 | AI148: 0.0008807709816 | AJ148: -3.301904533 | AL148: -12.24285813
A149: LPF A0 | B149: =1+B143 -> 1.010875331 | D149: -A1 | E149: 34 | G149: =B199 -> -1.95922435 | R149: 19.22231404 | S149: =2*PI()*R149/B56 -> 0.002738715672 | T149: 7.500558845e-06 | U149: 0.0001960603083 | V149: -28.5925534 | W149: -2.245231351e-05 | X149: 19.96108938 | Y149: -0.0007518001672 | Z149: -8.632042213 | AE149: -5.590830747e-05 | AF149: 0.008575208731 | AG149: -3.333779821 | AH149: 0.05141740897 | AI149: 0.0009165017891 | AJ149: -3.272926609 | AL149: -11.90496882
A150: LPF A1 | B150: =-2*B141 -> -1.980601568 | D150: -A2 | E150: 35 | G150: =B200 -> 0.978413409 | R150: 19.60676032 | S150: =2*PI()*R150/B56 -> 0.002793489986 | T150: 7.803581225e-06 | U150: 0.0002039798251 | V150: -28.24655985 | W150: -2.335938586e-05 | X150: 19.91984877 | Y150: -0.0007824804848 | Z150: -8.327312941 | AE150: -5.816878835e-05 | AF150: 0.008921565798 | AG150: -3.304329902 | AH150: 0.05142678598 | AI150: 0.000953688332 | AJ150: -3.24308603 | AL150: -11.57039897
A151: LPF A2 | B151: =1-B143 -> 0.9891246688 | C151: post3 | D151: B0 | E151: 36 | G151: 1.029078484 | R151: 19.99889553 | S151: =2*PI()*R151/B56 -> 0.002849359785 | T151: 8.118845693e-06 | U151: 0.0002122191816 | V151: -27.90050589 | W151: -2.430310384e-05 | X151: 19.87405056 | Y151: -0.0008144258419 | Z151: -8.02708184 | AE151: -6.052073991e-05 | AF151: 0.009281908992 | AG151: -3.274017697 | AH151: 0.05143654186 | AI151: 0.0009923904333 | AJ151: -3.212367377 | AL151: -11.23944922
D152: B1 | E152: 37 | G152: -1.081429482 | R152: 20.39887344 | S152: =2*PI()*R152/B56 -> 0.002906346981 | T152: 8.446846828e-06 | U152: 0.0002207912904 | V152: -27.55439076 | W152: -2.528494793e-05 | X152: 19.8233679 | Y152: -0.0008476894779 | Z152: -7.731675048 | AE152: -6.296786971e-05 | AF152: 0.009656802799 | AG152: -3.242828831 | AH152: 0.05144669195 | AI152: 0.001032670417 | AJ152: -3.180755633 | AL152: -10.91243068
D153: B2 | E153: 38 | G153: 0.05741024017 | R153: 20.80685091 | S153: =2*PI()*R153/B56 -> 0.002964473921 | T153: 8.78809919e-06 | U153: 0.0002297095849 | V153: -27.2082138 | W153: -2.630645841e-05 | X153: 19.7674657 | Y153: -0.000882326962 | Z153: -7.441427024 | AE153: -6.551403612e-05 | AF153: 0.01004683447 | AG153: -3.210749404 | AH153: 0.05145725217 | AI153: 0.001074593216 | AJ153: -3.148236238 | AL153: -10.58966326
A154: HPF B0 | B154: =B138^2*(1 + B141)/2 -> 1.277393549 | D154: -A1 | E154: 39 | G154: -1.319993019 | R154: 21.22298792 | S154: =2*PI()*R154/B56 -> 0.003023763399 | T154: 9.143138127e-06 | U154: 0.0002389880406 | V154: -26.86197446 | W154: -2.736923779e-05 | X154: 19.70600283 | Y154: -0.0009183963026 | Z154: -7.156678414 | AE154: -6.816325443e-05 | AF154: 0.01045261492 | AG154: -3.177766056 | AH154: 0.05146823908 | AI154: 0.001118226486 | AJ154: -3.114795139 | AL154: -10.27147355
A155: HPF B1 | B155: =B138^2*-(1 + B141) -> -2.554787097 | D155: -A2 | E155: 40 | G155: 0.3281793594 | R155: 21.64744768 | S155: =2*PI()*R155/B56 -> 0.003084238667 | T155: 9.512520615e-06 | U155: 0.0002486411965 | V155: -26.51567237 | W155: -2.847495334e-05 | X155: 19.63863459 | Y155: -0.0009559580622 | Z155: -6.87777357 | AE155: -7.091970338e-05 | AF155: 0.01087477972 | AG155: -3.143866013 | AH155: 0.05147966995 | AI155: 0.00116364072 | AJ155: -3.080418843 | AL155: -9.958192412
A156: HPF B2 | B156: =B138^2*(1 + B141)/2 -> 1.277393549 | C156: post4 | D156: B0 | E156: 41 | G156: 0.8476543427 | R156: 22.08039664 | S156: =2*PI()*R156/B56 -> 0.00314592344 | T156: 9.89682613e-06 | U156: 0.0002586841783 | V156: -26.16930728 | W156: -2.962533965e-05 | X156: 19.56501561 | Y156: -0.0009950754786 | Z156: -6.605057694 | AE156: -7.378773176e-05 | AF156: 0.01131399002 | AG156: -3.10903715 | AH156: 0.05149156271 | AI156: 0.001210909378 | AJ156: -3.045094476 | AL156: -9.650152169
A157: HPF A0 | B157: =1+B143 -> 1.010875331 | D157: B1 | E157: 42 | G157: -1.398298264 | R157: 22.52200457 | S157: =2*PI()*R157/B56 -> 0.003208841909 | T157: 1.029665756e-05 | U157: 0.0002691327215 | V157: -25.82287917 | W157: -3.082220143e-05 | X157: 19.48480303 | Y157: -0.001035814592 | Z157: -6.338873651 | AE157: -7.677186543e-05 | AF157: 0.01177093365 | AG157: -3.073268042 | AH157: 0.05150393602 | AI157: 0.001260109011 | AJ157: -3.008809835 | AL157: -9.347683486
A158: HPF A1 | B158: =-2*B141 -> -1.980601568 | D158: B2 | E158: 43 | G158: 0.6428365707 | R158: 22.97244466 | S158: =2*PI()*R158/B56 -> 0.003273018747 | T158: 1.071264216e-05 | U158: 0.0002800031965 | V158: -25.4763882 | W158: -3.206741626e-05 | X158: 19.39766004 | Y158: -0.00107824438 | Z158: =U158+V158+W158+X158+Y158 -> -6.079558467
A159: HPF A2 | B159: =1-B143 -> 0.9891246688 | D159: -A1 | E159: 44 | G159: -1.777497292 | R159: 23.43189355 | S159: =2*PI()*R159/B56 -> 0.003338479122 | T159: 1.11454325e-05 | U159: 0.0002913126337 | V159: -25.12983478 | W159: -3.33629376e-05 | X159: 19.3032597 | Y159: -0.001122436899 | Z159: -5.827439566
D160: -A2 | E160: 45 | G160: 0.8691482544 | R160: 23.90053142 | S160: =2*PI()*R160/B56 -> 0.003405248705 | T160: 1.159570754e-05 | U160: 0.0003030787502 | V160: -24.78321959 | W160: -3.471079781e-05 | X160: 19.20128888 | Y160: -0.001168467432 | Z160: -5.582830804
C161: post 5 | D161: B0 | E161: 46 | G161: 1.008439919 | R161: 24.37854205 | S161: =2*PI()*R161/B56 -> 0.003473353679 | T161: 1.206417365e-05 | U161: 0.0003153199775 | V161: -24.43654359 | W161: -3.611311137e-05 | X161: 19.09145241 | Y161: -0.00121641465 | Z161: -5.346028389
A162: HShelf B0 | B162: =B138^2*(B139*( (B139+1) + (B139-1)*B141 + 2*SQRT(B139)*B143 )) -> 1.37628784 | D162: B1 | E162: 47 | G162: -1.994599001 | R162: 24.86611289 | S162: =2*PI()*R162/B56 -> 0.003542820752 | T162: 1.255156576e-05 | U162: 0.0003280554905 | V162: -24.08980811 | W162: -3.757207817e-05 | X162: 18.97347721 | Y162: -0.001266360772 | Z162: -5.117306771
A163: HShelf B1 | B163: =B138^2*(-2*B139*( (B139-1) + (B139+1)*B141 )) -> -2.681768981 | D163: B2 | E163: 48 | G163: 0.9896845436 | R163: 25.36343515 | S163: =2*PI()*R163/B56 -> 0.003613677167 | T163: 1.305864846e-05 | U163: 0.0003413052367 | V163: -23.74301481 | W163: -3.9089987e-05 | X163: 18.84711638 | Y163: -0.001318391748 | Z163: -4.896914604
A164: HShelf B2 | B164: =B138^2*(B139*( (B139+1) + (B139-1)*B141 - 2*SQRT(B139)*B143 )) -> 1.341681395 | D164: -A1 | E164: 49 | G164: -1.994599001 | R164: 25.87070385 | S164: =2*PI()*R164/B56 -> 0.003685950711 | T164: 1.358621726e-05 | U164: 0.000355089968 | V164: -23.3961658 | W164: -4.066921909e-05 | X164: 18.71215306 | Y164: -0.001372597437 | Z164: -4.685070911
A165: HShelf A0 | B165: =(B139+1) - (B139-1)*B141 + 2*SQRT(B139)*B143 -> 2.01589558 | D165: -A2 | E165: 50 | G165: 0.9981244625 | R165: 26.38811793 | S165: =2*PI()*R165/B56 -> 0.003759669725 | T165: 1.413509979e-05 | U165: 0.0003694312726 | V165: -23.04926363 | W165: -4.231225187e-05 | X165: 18.56840404 | Y165: -0.00142907181 | Z165: -4.481961539
A166: HShelf A1 | B166: =2*((B139-1)-(B139+1)*B141) -> -3.966500707 | R166: 26.91588029 | S166: =2*PI()*R166/B56 -> 0.00383486312 | T166: 1.470615712e-05 | U166: 0.000384351609 | V166: -22.70231137 | W166: -4.402166288e-05 | X166: 18.41572292 | Y166: -0.001487913149 | Z166: -4.287736042
A167: HShelf A2 | B167: =(B139+1) - (B139-1)*B141 - 2*SQRT(B139)*B143 -> 1.978806849 | R167: 27.4541979 | S167: =2*PI()*R167/B56 -> 0.003911560382 | T167: 1.530028511e-05 | U167: 0.0003998743406 | V167: -22.35531267 | W167: -4.580013376e-05 | X167: 18.25400275 | Y167: -0.001549224275 | Z167: -4.102505077
R168: 28.00328185 | S168: =2*PI()*R168/B56 -> 0.00398979159 | T168: 1.591841581e-05 | U168: 0.0004160237723 | V168: -22.0082718 | W168: -4.765045451e-05 | X168: 18.08317812 | Y168: -0.001613112773 | Z168: -3.926338419
R169: 28.56334749 | S169: =2*PI()*R169/B56 -> 0.004069587421 | T169: 1.656151892e-05 | U169: 0.0004328251882 | V169: -21.6611937 | W169: -4.957552784e-05 | X169: 17.90322649 | Y169: -0.001679691242 | Z169: -3.759263653
A170: LShelf B0 | B170: =B138^2*(B139*( (B139+1) - (B139-1)*B141 + 2*SQRT(B139)*B143 )) -> 1.88097504 | R170: 29.13461444 | S170: =2*PI()*R170/B56 -> 0.00415097917 | T170: 1.723060333e-05 | U170: 0.0004503048914 | V170: -21.31408412 | W170: -5.157837372e-05 | X170: 17.71416888 | Y170: -0.001749077551 | Z170: -3.60126559
A171: LShelf B1 | B171: =B138^2*(2*B139*( (B139-1) - (B139+1)*B141 )) -> -3.701029409 | R171: 29.71730673 | S171: =2*PI()*R171/B56 -> 0.004233998753 | T171: 1.792671866e-05 | U171: 0.000468490244 | V171: -20.96694964 | W171: -5.366213412e-05 | X171: 17.51606977 | Y171: -0.001821395122 | Z171: -3.452286436
A172: LShelf B2 | B172: =B138^2*(B139*( (B139+1) - (B139-1)*B141 - 2*SQRT(B139)*B143 )) -> 1.846368596 | R172: 30.31165286 | S172: =2*PI()*R172/B56 -> 0.004318678728 | T172: 1.865095697e-05 | U172: 0.0004874097107 | V172: -20.61979775 | W172: -5.583007795e-05 | X172: 17.30903625 | Y172: -0.001896773213 | Z172: -3.312226697
A173: LShelf A0 | B173: =(B139+1) + (B139-1)*B141 + 2*SQRT(B139)*B143 -> 1.47500765 | R173: 30.91788592 | S173: =2*PI()*R173/B56 -> 0.004405052303 | T173: 1.940445441e-05 | U173: 0.0005070929023 | V173: -20.27263701 | W173: -5.808560619e-05 | X173: 17.09321656 | Y173: -0.001975347236 | Z173: -3.180946787
A174: LShelf A1 | B174: =-2*((B139-1)+(B139+1)*B141) -> -2.874129705 | R174: 31.53624364 | S174: =2*PI()*R174/B56 -> 0.004493153349 | T174: 2.018839305e-05 | U174: 0.000527570622 | V174: -19.92547707 | W174: -6.043225719e-05 | X174: 16.86879792 | Y174: -0.002057259087 | Z174: -3.05826927
A175: LShelf A2 | B175: =(B139+1) +(B139-1)*B141 - 2*SQRT(B139)*B143 -> 1.437918918 | R175: 32.16696851 | S175: =2*PI()*R175/B56 -> 0.004583016416 | T175: 2.10040027e-05 | U175: 0.0005488749133 | V175: -19.57832884 | W175: -6.287371229e-05 | X175: 16.63600382 | Y175: -0.00214265749 | Z175: -2.943981674
R176: 32.81030788 | S176: =2*PI()*R176/B56 -> 0.004674676744 | T176: 2.185256287e-05 | U176: 0.0005710391097 | V176: -19.23120459 | W176: -6.54138015e-05 | X176: 16.39509091 | Y176: -0.002231698376 | Z176: -2.83783975
R177: 33.46651404 | S177: =2*PI()*R177/B56 -> 0.004768170279 | T177: 2.273540474e-05 | U177: 0.0005940978863 | V177: -18.88411808 | W177: -6.805650959e-05 | X177: 16.1463455 | Y177: -0.002324545278 | Z177: -2.739571087
A178: Notch B0 | B178: 1 | R178: 34.13584432 | S178: =2*PI()*R178/B56 -> 0.004863533685 | T178: 2.365391328e-05 | U178: 0.0006180873139 | V178: -18.53708471 | W178: -7.080598231e-05 | X178: 15.89007985 | Y178: -0.002421369752 | Z178: -2.648878957
A179: Notch B1 | B179: =-2*B141 -> -1.980601568 | R179: 34.81856121 | S179: =2*PI()*R179/B56 -> 0.004960804358 | T179: 2.460952941e-05 | U179: 0.0006430449144 | V179: -18.19012167 | W179: -7.366653287e-05 | X179: 15.62662836 | Y179: -0.002522351826 | Z179: -2.565446279
A180: Notch B2 | B180: =1 -> 1 | R180: 35.51493243 | S180: =2*PI()*R180/B56 -> 0.005060020446 | T180: 2.560375228e-05 | U180: 0.0006690097198 | V180: =10*LOG10(($G$121+$G$122+$G$123)^2 + ( $G$121*$G$123*$T180 - ($G$122*($G$121+$G$123) + 4*$G$121*$G$123) )*$T180 ) - 10*LOG10( (1+$G$124+$G$125)^2 + ( 1*$G$125*$T180 - ($G$124*(1+$G$125) + 4*1*$G$125) )*$T180) -> -17.84324809 | W180: =10*LOG10(($G$126+$G$127+$G$128)^2 + ( $G$126*$G$128*$T180 - ($G$127*($G$126+$G$128) + 4*$G$126*$G$128) )*$T180 ) - 10*LOG10( (1+$G$129+$G$130)^2 + ( 1*$G$130*$T180 - ($G$129*(1+$G$130) + 4*1*$G$130) )*$T180) -> -7.664264877e-05 | X180: =10*LOG10(($G$131+$G$132+$G$133)^2 + ( $G$131*$G$133*$T180 - ($G$132*($G$131+$G$133) + 4*$G$131*$G$133) )*$T180 ) - 10*LOG10( (1+$G$134+$G$135)^2 + ( 1*$G$135*$T180 - ($G$134*(1+$G$135) + 4*1*$G$135) )*$T180) -> 15.35634381 | Y180: =10*LOG10(($G$136+$G$137+$G$138)^2 + ( $G$136*$G$138*$T180 - ($G$137*($G$136+$G$138) + 4*$G$136*$G$138) )*$T180 ) - 10*LOG10( (1+$G$139+$G$140)^2 + ( 1*$G$140*$T180 - ($G$139*(1+$G$140) + 4*1*$G$140) )*$T180) -> -0.002627680484 | Z180: -2.488939592
A181: Notch A0 | B181: =1+B143 -> 1.010875331 | R181: 36.22523108 | S181: =2*PI()*R181/B56 -> 0.005161220854 | T181: =4*(SIN(S181/2))^2 -> 2.663814158e-05 | U181: =10*LOG10(($G$116+$G$117+$G$118)^2 + ( $G$116*$G$118*T181 - ($G$117*($G$116+$G$118) + 4*$G$116*$G$118) )*T181 ) - 10*LOG10( (1+$G$119+$G$120)^2 + ( 1*$G$120*T181 - ($G$119*(1+$G$120) + 4*1*$G$120) )*T181) -> 0.0006960223318 | V181: -17.49648526 | W181: -7.973899875e-05 | X181: 15.07959359 | Y181: -0.002737554169 | Z181: -2.419012941
A182: Notch A1 | B182: =-2*B141 -> -1.980601568 | R182: 36.9497357 | S182: =2*PI()*R182/B56 -> 0.005264445272 | T182: 2.771432001e-05 | U182: 0.0007241249852 | V182: -17.1498568 | W182: -8.29604402e-05 | X182: 14.79675623 | Y182: -0.00285218134 | Z182: -2.355311582
A183: Notch A2 | B183: =1-B143 -> 0.9891246688 | R183: 37.68873042 | S183: =2*PI()*R183/B56 -> 0.005369734177 | T183: 2.883397585e-05 | U183: 0.0007533616132 | V183: -16.80338887 | W183: -8.631202672e-05 | X183: 14.50821815 | Y183: -0.002971781043 | Z183: -2.297475448
R184: 38.44250503 | S184: =2*PI()*R184/B56 -> 0.00547712886 | T184: 2.999886556e-05 | U184: 0.0007837779151 | V184: -16.45711042 | W184: -8.979901608e-05 | X184: 14.21437071 | Y184: -0.003096583544 | Z184: -2.24514231
R185: 39.21135513 | S185: =2*PI()*R185/B56 -> 0.005586671438 | T185: 3.121081658e-05 | U185: 0.0008154214272 | V185: -16.1110534 | W185: -9.342687845e-05 | X185: 13.91560763 | Y185: -0.003226830991 | Z185: -2.197950605
A186: Peaking B0 | B186: =1+(B143*B139) -> 1.007905357 | R186: 39.99558223 | S186: =2*PI()*R186/B56 -> 0.005698404866 | T186: 3.247173015e-05 | U186: 0.0008483415963 | V186: -15.76525307 | W186: -9.720130498e-05 | X186: 13.61232281 | Y186: -0.003362778128 | Z186: -2.155541896
A187: Peaking B1 | B187: =-2*B141 -> -1.980601568 | R187: 40.79549387 | S187: =2*PI()*R187/B56 -> 0.005812372964 | T187: 3.378358436e-05 | U187: 0.0008825898556 | V187: -15.41974822 | W187: -0.0001011282167 | X187: 13.30490848 | Y187: -0.003504693063 | Z187: -2.117562967
A188: Peaking B2 | B188: =1-(B143*B139) -> 0.9920946429 | R188: 41.61140375 | S188: =2*PI()*R188/B56 -> 0.005928620423 | T188: 3.514843717e-05 | U188: 0.0009182197046 | V188: -15.07458154 | W188: -0.000105213774 | X188: 12.99375384 | Y188: -0.003652858081 | Z188: -2.083667546
A189: Peaking A0 | B189: =1 + (B143/B139) -> 1.014961099 | R189: 42.44363183 | S189: =2*PI()*R189/B56 -> 0.006047192832 | T189: 3.65684297e-05 | U189: 0.0009552867914 | V189: -14.7297999 | W189: -0.0001094643859 | X189: 12.67924397 | Y189: -0.003807570532 | Z189: -2.053517676
A190: Peaking A1 | B190: =-2*B141 -> -1.980601568 | R190: 43.29250446 | S190: =2*PI()*R190/B56 -> 0.006168136688 | T190: 3.804578958e-05 | U190: 0.0009938489982 | V190: -14.3854547 | W190: -0.0001138867206 | X190: 12.36175913 | Y190: -0.00396914377 | Z190: -2.026784747
A191: Peaking A2 | B191: =1-(B143/B139) -> 0.9850389012 | R191: 44.15835455 | S191: =2*PI()*R191/B56 -> 0.006291499422 | T191: 3.958283441e-05 | U191: 0.001033966531 | V191: -14.04160225 | W191: -0.0001184877153 | X191: 12.04167445 | Y191: -0.004137908171 | Z191: -2.003150226
R192: 45.04152164 | S192: =2*PI()*R192/B56 -> 0.00641732941 | T192: 4.118197543e-05 | U192: 0.001075702011 | V192: -13.69830414 | W192: -0.0001232745879 | X192: 11.71935982 | Y192: -0.004314212223 | Z192: -1.982306104
R193: 45.94235208 | S193: =2*PI()*R193/B56 -> 0.006545675999 | T193: 4.28457213e-05 | U193: 0.001119120573 | V193: -13.35562764 | W193: -0.0001282548475 | X193: 11.3951801 | Y193: -0.004498423704 | Z193: -1.963955101
A194: Planet Analog 2nd order EQ filter | D194: Fc | E194: =D109 -> 978.348729 | R194: 46.86119912 | S194: =2*PI()*R194/B56 -> 0.006676589519 | T194: 4.457668201e-05 | U194: 0.001164289963 | V194: -13.01364617 | W194: -0.0001334363069 | X194: 11.06949558 | Y194: -0.004690930948 | Z194: -1.947810663
D195: g | E195: =D111+20 -> 14.45916 | G195: d | H195: =-COS(2*PI()*E194/B56) -> -0.9903007841 | R195: 47.7984231 | S195: =2*PI()*R195/B56 -> 0.006810121309 | T195: 4.6377573e-05 | U195: 0.001211280644 | V195: -12.67243968 | W195: -0.0001388270942 | X195: 10.74266258 | Y195: -0.004892144211 | Z195: -1.933596783
A196: PA EQ B0 | B196: =1 + (1+E202)*E197/2 -> 1.145268691 | D196: b | E196: =E194/D110 -> 153.1575815 | R196: 48.75439156 | S196: =2*PI()*R196/B56 -> 0.006946323735 | T196: 4.825121942e-05 | U196: 0.001260165903 | V196: -12.33209515 | W196: -0.000144435666 | X196: 10.41503423 | Y196: -0.005102497145 | Z196: -1.92104769
A197: PA EQ B1 | B197: =H195*(1-E202) -> -1.95922435 | D197: H | E197: =E195-1 -> 13.45916 | R197: 49.72947939 | S197: =2*PI()*R197/B56 -> 0.00708525021 | T197: 5.020056053e-05 | U197: 0.001311021965 | V197: -11.99270709 | W197: -0.0001502708207 | X197: 10.08696136 | Y197: -0.005322448394 | Z197: -1.909907424
A198: PA EQ B2 | B198: =-E202-(1+E202)*E197/2 -> 0.8331447178 | R198: 50.72406898 | S198: =2*PI()*R198/B56 -> 0.007226955214 | T198: 5.222865434e-05 | U198: 0.001363928105 | V198: -11.65437797 | W198: -0.0001563417117 | X198: 9.758793515 | Y198: -0.005552483312 | Z198: -1.899929349
A199: PA EQ A1 | B199: =B197 -> -1.95922435 | R199: 51.73855036 | S199: =2*PI()*R199/B56 -> 0.007371494318 | T199: 5.433868242e-05 | U199: 0.001418966776 | V199: -11.31721876 | W199: -0.0001626578627 | X199: 9.430879943 | Y199: -0.005793115835 | Z199: -1.890875626
A200: PA EQ A2 | B200: =-E202 -> 0.978413409 | D200: a1 g<1 | E200: =(TAN(PI()*E196/B56)-E195)/(TAN(PI()*E196/B56)+E195) -> -0.9984919132 | R200: 52.77332137 | S200: =2*PI()*R200/B56 -> 0.007518924205 | T200: 5.653395485e-05 | U200: 0.00147622373 | V200: -10.98134943 | W200: -0.0001692291817 | X200: 9.103570652 | Y200: -0.006044890492 | Z200: -1.882516672
D201: a2 g>=1 | E201: =(TAN(PI()*E196/B56)-1)/(TAN(PI()*E196/B56)+1) -> -0.978413409 | R201: 53.82878779 | S201: =2*PI()*R201/B56 -> 0.007669302689 | T201: 5.881791543e-05 | U201: 0.001535788149 | V201: -10.6468994 | W201: -0.0001760659771 | X201: 8.777217413 | Y201: -0.006308384606 | Z201: -1.874630654
D202: a | E202: =IF(E195<1, E200,E201) -> -0.978413409 | R202: 54.90536355 | S202: =2*PI()*R202/B56 -> 0.007822688742 | T202: 6.11941471e-05 | U202: 0.001597752785 | V202: -10.31400809 | W202: -0.0001831789738 | X202: 8.452174711 | Y202: -0.006584210667 | Z202: -1.867003017
R203: 56.00347082 | S203: =2*PI()*R203/B56 -> 0.007979142517 | T203: 6.366637752e-05 | U203: 0.001662214095 | V203: -9.982825308 | W203: -0.0001905793299 | X203: 8.128800587 | Y203: -0.006873018918 | Z203: -1.859426105
R204: 57.12354024 | S204: =2*PI()*R204/B56 -> 0.008138725368 | T204: 6.623848498e-05 | U204: 0.001729272393 | V204: -9.653511733 | W204: -0.0001982786543 | X204: 7.80745736 | Y204: -0.007175500171 | Z204: -1.85169888
R205: 58.26601104 | S205: =2*PI()*R205/B56 -> 0.008301499875 | T205: 6.89145044e-05 | U205: 0.001799031999 | V205: -9.326239278 | W205: -0.0002062890247 | X205: 7.488512159 | Y205: -0.007492388865 | Z205: -1.843626766
R206: 59.43133126 | S206: =2*PI()*R206/B56 -> 0.008467529873 | T206: 7.169863375e-05 | U206: 0.001871601398 | V206: -9.001191418 | W206: -0.0002146230069 | X206: 7.17233726 | Y206: -0.007824466409 | Z206: -1.835021646
R207: 60.61995789 | S207: =2*PI()*R207/B56 -> 0.00863688047 | T207: 7.459524054e-05 | U207: 0.001947093406 | V207: -8.678563442 | W207: -0.0002232936742 | X207: 6.859310171 | Y207: -0.008172564827 | Z207: -1.825702036
R208: 61.83235705 | S208: =2*PI()*R208/B56 -> 0.008809618079 | T208: 7.760886877e-05 | U208: 0.002025625337 | V208: -8.358562612 | W208: -0.000232314628 | X208: 6.549813435 | Y208: -0.008537570738 | Z208: -1.815493437
R209: 63.06900419 | S209: =2*PI()*R209/B56 -> 0.008985810441 | T209: 8.074424597e-05 | U209: 0.002107319184 | V209: -8.041408208 | W209: -0.0002417000192 | X209: 6.244234123 | Y209: -0.008920429718 | Z209: -1.804228895
R210: 64.33038427 | S210: =2*PI()*R210/B56 -> 0.00916552665 | T210: 8.400629067e-05 | U210: 0.002192301798 | V210: -7.727331443 | W210: -0.0002514645704 | X210: 5.942962988 | Y210: -0.009322151066 | Z210: -1.791749769
R211: 65.61699196 | S211: =2*PI()*R211/B56 -> 0.009348837183 | T211: 8.74001201e-05 | U211: 0.002280705083 | V211: -7.416575222 | W211: -0.0002616235988 | X211: 5.646393243 | Y211: -0.009743813047 | Z211: -1.77790671
R212: 66.9293318 | S212: =2*PI()*R212/B56 -> 0.009535813926 | T212: 9.093105819e-05 | U212: 0.002372666193 | V212: -7.109393719 | W212: -0.0002721930403 | X212: 5.354918971 | Y212: -0.01018656863 | Z212: -1.762560844
R213: 68.26791843 | S213: =2*PI()*R213/B56 -> 0.009726530205 | T213: 9.460464398e-05 | U213: 0.002468327737 | V213: -6.806051764 | W213: -0.0002831894748 | X213: 5.06893313 | Y213: -0.01065165182 | Z213: -1.745585148
R214: 69.6332768 | S214: =2*PI()*R214/B56 -> 0.009921060809 | T214: 9.842664025e-05 | U214: 0.00256783799 | V214: -6.506823996 | W214: -0.0002946301516 | X214: 4.788825183 | Y214: -0.01114038459 | Z214: -1.72686599
R215: 71.02594234 | S215: =2*PI()*R215/B56 -> 0.01011948203 | T215: 0.0001024030426 | U215: 0.00267135112 | V215: -6.211993784 | W215: -0.0003065330171 | X215: 4.514978351 | Y215: -0.01165418458 | Z215: -1.7063048
R216: 72.44646118 | S216: =2*PI()*R216/B56 -> 0.01032187167 | T216: 0.0001065400888 | U216: 0.002779027412 | V216: -5.921851891 | W216: -0.0003189167426 | X216: 4.247766529 | Y216: -0.01219457354 | Z216: -1.683819825
R217: 73.89539041 | S217: =2*PI()*R217/B56 -> 0.0105283091 | T217: 0.0001108442686 | U217: 0.002891033508 | V217: -5.636694855 | W217: -0.0003318007533 | X217: 3.987550906 | Y217: -0.01276318672 | Z217: -1.659347903
R218: 75.37329821 | S218: =2*PI()*R218/B56 -> 0.01073887528 | T218: 0.000115322334 | U218: 0.003007542656 | V218: -5.356823109 | W218: -0.0003452052594 | X218: 3.734676356 | Y218: -0.01336178318 | Z218: -1.632846199
R219: 76.88076418 | S219: =2*PI()*R219/B56 -> 0.01095365279 | T219: 0.0001199813097 | U219: 0.003128734964 | V219: -5.082538816 | W219: -0.0003591512875 | X219: 3.48946768 | Y219: -0.01399225734 | Z219: -1.604293809
R220: 78.41837946 | S220: =2*PI()*R220/B56 -> 0.01117272584 | T220: 0.0001248285042 | U220: 0.003254797667 | V220: -4.814143435 | W220: -0.0003736607133 | X220: 3.252225782 | Y220: -0.01465665169 | Z220: -1.573693168
R221: 79.98674705 | S221: =2*PI()*R221/B56 -> 0.01139618036 | T221: 0.0001298715212 | U221: 0.003385925402 | V221: -4.551935046 | W221: -0.0003887562962 | X221: 3.023223895 | Y221: -0.01535717103 | Z221: -1.541071153
R222: 81.58648199 | S222: =2*PI()*R222/B56 -> 0.01162410397 | T222: 0.0001351182716 | U222: 0.003522320492 | V222: -4.296205446 | W222: -0.0004044617152 | X222: 2.802703967 | Y222: -0.01609619823 | Z222: =U222+V222+W222+X222+Y222 -> -1.506479819
R223: 83.21821163 | S223: =2*PI()*R223/B56 -> 0.01185658605 | T223: 0.0001405769858 | U223: 0.003664193246 | V223: -4.047237078 | W223: -0.0004208016054 | X223: 2.590873316 | Y223: -0.01687631192 | Z223: -1.469996681
R224: 84.88257586 | S224: =2*PI()*R224/B56 -> 0.01209371777 | T224: 0.0001462562268 | U224: 0.003811762262 | V224: -3.805299818 | W224: -0.0004378015973 | X224: 2.387901683 | Y224: -0.01770030622 | Z224: -1.431724481
R225: 86.58022738 | S225: =2*PI()*R225/B56 -> 0.01233559212 | T225: 0.0001521649034 | U225: 0.003965254746 | V225: -3.570647715 | W225: -0.0004554883564 | X225: 2.19391877 | Y225: -0.01857121281 | Z225: -1.391790391
R226: 88.31183193 | S226: =2*PI()*R226/B56 -> 0.01258230396 | T226: 0.0001583122844 | U226: 0.004124906844 | V226: -3.343515723 | W226: -0.0004738896255 | X226: 2.009012381 | Y226: -0.01949232574 | Z226: -1.350344651
R227: 90.07806857 | S227: =2*PI()*R227/B56 -> 0.01283395004 | T227: 0.0001647080129 | U227: 0.004290963978 | V227: -3.124116526 | W227: -0.0004930342679 | X227: 1.833227212 | Y227: -0.0204672293 | Z227: -1.307558613
R228: 91.87962994 | S228: =2*PI()*R228/B56 -> 0.01309062904 | T228: 0.0001713621216 | U228: 0.004463681204 | V228: -2.912637533 | W228: -0.0005129523128 | X228: 1.666564371 | Y228: -0.02149982942 | Z228: -1.263622262
R229: 93.71722254 | S229: =2*PI()*R229/B56 -> 0.01335244163 | T229: 0.0001782850485 | U229: 0.004643323575 | V229: -2.709238122 | W229: -0.0005336750021 | X229: 1.508981625 | Y229: -0.02259438913 | Z229: -1.218741237
R230: 95.59156699 | S230: =2*PI()*R230/B56 -> 0.01361949046 | T230: 0.0001854876531 | U230: 0.004830166521 | V230: -2.514047227 | W230: -0.0005552348399 | X230: 1.360394388 | Y230: -0.02375556861 | Z230: -1.173133475
R231: 97.50339833 | S231: =2*PI()*R231/B56 -> 0.01389188027 | T231: 0.0001929812338 | U231: 0.005024496239 | V231: -2.327161322 | W231: -0.000577665643 | X231: 1.220677409 | Y231: -0.02498847064 | Z231: -1.127025553
R232: 99.4534663 | S232: =2*PI()*R232/B56 -> 0.01416971787 | T232: 0.0002007775452 | U232: 0.0052266101 | V232: -2.148642897 | W232: -0.0006010025941 | X232: 1.08966711 | Y232: -0.02629869227 | Z232: -1.080648872
R233: 101.4425356 | S233: =2*PI()*R233/B56 -> 0.01445311223 | T233: 0.0002088888168 | U233: 0.005436817068 | V233: -1.97851945 | W233: -0.000625282297 | X233: 0.9671644924 | Y233: -0.02769238357 | Z233: -1.034235806
R234: 103.4713863 | S234: =2*PI()*R234/B56 -> 0.01474217447 | T234: 0.0002173277722 | U234: 0.005655438133 | V234: -1.816783035 | W234: -0.0006505428336 | X234: 0.852938505 | Y234: -0.0291763148 | Z234: -0.9880159496
R235: 105.5408141 | S235: =2*PI()*R235/B56 -> 0.01503701796 | T235: 0.0002261076487 | U235: 0.005882806757 | V235: -1.663390401 | W235: -0.0006768238243 | X235: 0.7467297866 | Y235: -0.0307579532 | Z235: -0.9422125842
R236: 107.6516303 | S236: =2*PI()*R236/B56 -> 0.01533775832 | T236: 0.0002352422187 | U236: 0.006119269343 | V236: -1.518263682 | W236: -0.0007041664895 | X236: 0.6482546481 | Y236: -0.03244555115 | Z236: -0.8970394821
R237: 109.8046629 | S237: =2*PI()*R237/B56 -> 0.01564451349 | T237: 0.0002447458105 | U237: 0.006365185707 | V237: -1.381291652 | W237: -0.0007326137145 | X237: 0.5572091927 | Y237: -0.03424824765 | Z237: -0.8526981349
R238: 112.0007562 | S238: =2*PI()*R238/B56 -> 0.01595740376 | T238: 0.0002546333314 | U238: 0.006620929573 | V238: -1.252331472 | W238: -0.0007622101165 | X238: 0.4732734602 | Y238: -0.03617618533 | Z238: -0.8093754777
R239: 114.2407713 | S239: =2*PI()*R239/B56 -> 0.01627655183 | T239: 0.0002649202909 | U239: 0.006886889089 | V239: -1.131210892 | W239: -0.0007930021148 | X239: 0.3961154974 | Y239: -0.03824064592 | Z239: -0.7672421537
R240: 116.5255868 | S240: =2*PI()*R240/B56 -> 0.01660208287 | T240: 0.0002756228248 | U240: 0.007163467344 | V240: -1.017730829 | W240: -0.0008250380034 | X240: 0.3253952678 | Y240: -0.04045420752 | Z240: -0.7264513392
R241: 118.8560985 | S241: =2*PI()*R241/B56 -> 0.01693412453 | T241: 0.0002867577208 | U241: 0.007451082919 | V241: -0.9116682424 | W241: -0.0008583680266 | X241: 0.2607683281 | Y241: -0.04283092772 | Z241: -0.6871381272
R242: 121.2332205 | S242: =2*PI()*R242/B56 -> 0.01727280702 | T242: 0.0002983424447 | U242: 0.007750170442 | V242: -0.8127792303 | W242: -0.0008930444579 | X242: 0.2018892161 | Y242: -0.04538655762 | Z242: -0.6494194458
R243: 123.6578849 | S243: =2*PI()*R243/B56 -> 0.01761826316 | T243: 0.0003103951677 | U243: 0.008061181165 | V243: -0.7208022513 | W243: -0.0009291216821 | X243: 0.1484145104 | Y243: -0.04813879273 | Z243: -0.6133944741
R244: 126.1310426 | S244: =2*PI()*R244/B56 -> 0.01797062842 | T244: 0.000322934795 | U244: 0.008384583561 | V244: =10*LOG10(($G$121+$G$122+$G$123)^2 + ( $G$121*$G$123*$T244 - ($G$122*($G$121+$G$123) + 4*$G$121*$G$123) )*$T244 ) - 10*LOG10( (1+$G$124+$G$125)^2 + ( 1*$G$125*$T244 - ($G$124*(1+$G$125) + 4*1*$G$125) )*$T244) -> -0.6354614002 | W244: =10*LOG10(($G$126+$G$127+$G$128)^2 + ( $G$126*$G$128*$T244 - ($G$127*($G$126+$G$128) + 4*$G$126*$G$128) )*$T244 ) - 10*LOG10( (1+$G$129+$G$130)^2 + ( 1*$G$130*$T244 - ($G$129*(1+$G$130) + 4*1*$G$130) )*$T244) -> -0.0009666562798 | X244: =10*LOG10(($G$131+$G$132+$G$133)^2 + ( $G$131*$G$133*$T244 - ($G$132*($G$131+$G$133) + 4*$G$131*$G$133) )*$T244 ) - 10*LOG10( (1+$G$134+$G$135)^2 + ( 1*$G$135*$T244 - ($G$134*(1+$G$135) + 4*1*$G$135) )*$T244) -> 0.1000055355 | Y244: =10*LOG10(($G$136+$G$137+$G$138)^2 + ( $G$136*$G$138*$T244 - ($G$137*($G$136+$G$138) + 4*$G$136*$G$138) )*$T244 ) - 10*LOG10( (1+$G$139+$G$140)^2 + ( 1*$G$140*$T244 - ($G$139*(1+$G$140) + 4*1*$G$140) )*$T244) -> -0.0511075683 | Z244: -0.5791455056
R245: 128.6536634 | S245: =2*PI()*R245/B56 -> 0.01833004099 | T245: =4*(SIN(S245/2))^2 -> 0.0003359809954 | U245: =10*LOG10(($G$116+$G$117+$G$118)^2 + ( $G$116*$G$118*T245 - ($G$117*($G$116+$G$118) + 4*$G$116*$G$118) )*T245 ) - 10*LOG10( (1+$G$119+$G$120)^2 + ( 1*$G$120*T245 - ($G$119*(1+$G$120) + 4*1*$G$120) )*T245) -> 0.008720863933 | V245: -0.5564696563 | W245: -0.001005707117 | X245: 0.05633070318 | Y245: -0.05431540815 | Z245: -0.5467392045
R246: 131.2267367 | S246: =2*PI()*R246/B56 -> 0.01869664181 | T246: 0.0003495542322 | U246: 0.009070527043 | V246: -0.4835320383 | W246: -0.001046335437 | X246: 0.01706748963 | Y246: -0.05778783847 | Z246: -0.5162281956
R247: 133.8512714 | S247: =2*PI()*R247/B56 -> 0.01907057465 | T247: 0.0003636757952 | U247: 0.009434096765 | V247: -0.4163486072 | W247: -0.001088604955 | X247: -0.01809594017 | Y247: -0.06155388067 | Z247: -0.4876529362
R248: 136.5282969 | S248: =2*PI()*R248/B56 -> 0.01945198614 | T248: 0.000378367834 | U248: 0.00981211674 | V248: -0.3546172715 | W248: -0.001132581961 | X248: -0.04945944291 | Y248: -0.06564664089 | Z248: -0.4610438205
R249: 139.2588628 | S249: =2*PI()*R249/B56 -> 0.01984102586 | T249: 0.000393653393 | U249: 0.01020515107 | V249: -0.2980363587 | W249: -0.001178335421 | X249: -0.07730991754 | Y249: -0.07010401867 | Z249: -0.4364234792
R250: 142.04404 | S250: =2*PI()*R250/B56 -> 0.02023784638 | T250: 0.0004095564473 | U250: 0.01061378501 | V250: -0.2463069277 | W250: -0.001225937085 | X250: -0.1019206083 | Y250: -0.07496956265 | Z250: -0.4138092507
R251: 144.8849208 | S251: =2*PI()*R251/B56 -> 0.02064260331 | T251: 0.0004261019402 | U251: 0.01103862569 | V251: -0.1991348097 | W251: -0.001275461601 | X251: -0.1235506599 | Y251: -0.08029350933 | Z251: -0.3932158148
R252: 147.7826193 | S252: =2*PI()*R252/B56 -> 0.02105545537 | T252: 0.0004433158226 | U252: 0.01148030287 | V252: -0.1562323706 | W252: -0.001326986632 | X252: -0.1424448934 | Y252: -0.08613405092 | Z252: -0.3746579987
R253: 150.7382716 | S253: =2*PI()*R253/B56 -> 0.02147656448 | T253: 0.0004612250935 | U253: 0.01193946964 | V253: -0.1173199993 | W253: -0.001380592975 | X253: -0.1588337732 | Y253: -0.09255889136 | Z253: -0.3581537871
R254: 153.7530371 | S254: =2*PI()*R254/B56 -> 0.02190609577 | T254: 0.0004798578421 | U254: 0.01241680327 | V254: -0.08212732984 | W254: -0.001436364692 | X254: -0.1729335341 | Y254: -0.09964716784 | Z254: -0.3437275932
R255: 156.8280978 | S255: =2*PI()*R255/B56 -> 0.02234421769 | T255: 0.0004992432923 | U255: 0.01291300594 | V255: -0.05039421363 | W255: -0.001494389236 | X255: -0.1849464423 | Y255: -0.1074918387 | Z255: -0.3314138779
R256: 159.9646598 | S256: =2*PI()*R256/B56 -> 0.02279110204 | T256: 0.0005194118483 | U256: 0.01342880554 | V256: -0.02187145786 | W256: -0.001554757592 | X256: -0.1950611639 | Y256: -0.1162026708 | Z256: -0.3212612446
R257: 163.163953 | S257: =2*PI()*R257/B56 -> 0.02324692408 | T257: 0.0005403951419 | U257: 0.01396495654 | V257: 0.003678647451 | W257: -0.00161756442 | X257: -0.2034532178 | Y257: -0.1259100047 | Z257: -0.3133371829
R258: 166.427232 | S258: =2*PI()*R258/B56 -> 0.02371186256 | T258: 0.0005622260827 | U258: 0.01452224078 | V258: 0.02648199275 | W258: -0.001682908199 | X258: -0.2102854939 | Y258: -0.1367695346 | Z258: -0.3077337032
R259: 169.7557767 | S259: =2*PI()*R259/B56 -> 0.02418609981 | T259: 0.0005849389092 | U259: 0.01510146834 | V259: 0.04675247949 | W259: -0.001750891386 | X259: -0.2157088169 | Y259: -0.1489684287 | Z259: -0.3045741891
R260: 173.1508922 | S260: =2*PI()*R260/B56 -> 0.02466982181 | T260: 0.0006085692426 | U260: 0.01570347839 | V260: 0.06469199581 | W260: -0.001821620573 | X260: -0.2198625416 | Y260: -0.1627332315 | Z260: -0.3040219196
R261: 176.6139101 | S261: =2*PI()*R261/B56 -> 0.02516321825 | T261: 0.0006331541427 | U261: 0.01632914005 | V261: 0.08049051558 | W261: -0.001895206655 | X261: -0.2228751669 | Y261: -0.1783401643 | Z261: -0.3062908823
R262: 180.1461883 | S262: =2*PI()*R262/B56 -> 0.02566648261 | T262: 0.0006587321658 | U262: 0.01697935333 | V262: 0.09432630075 | W262: -0.001971765005 | X262: -0.2248649559 | Y262: -0.1961286839 | Z262: -0.3116597508
R263: 183.749112 | S263: =2*PI()*R263/B56 -> 0.02617981226 | T263: 0.0006853434253 | U263: 0.01765504993 | V263: 0.1063661881 | W263: -0.002051415652 | X263: -0.2259405551 | Y263: -0.2165195231 | Z263: -0.3204902558
R264: 187.4240943 | S264: =2*PI()*R264/B56 -> 0.02670340851 | T264: 0.0007130296544 | U264: 0.01835719421 | V264: 0.1167659432 | W264: -0.002134283468 | X264: -0.2262016044 | Y264: -0.2400389709 | Z264: -0.3332517213
R265: 191.1725761 | S265: =2*PI()*R265/B56 -> 0.02723747668 | T265: 0.0007418342715 | U265: 0.01908678405 | V265: 0.125670667 | W265: -0.00222049837 | X265: -0.2257393324 | Y265: -0.2673519572 | Z265: -0.3505543369
R266: 194.9960277 | S266: =2*PI()*R266/B56 -> 0.02778222621 | T266: 0.0007718024483 | U266: 0.01984485177 | V266: 0.1332152399 | W266: -0.002310195516 | X266: -0.2246371326 | Y266: -0.2993077415 | Z266: -0.373194978
R267: 198.8959482 | S267: =2*PI()*R267/B56 -> 0.02833787074 | T267: 0.0008029811806 | U267: 0.02063246503 | V267: 0.1395247941 | W267: -0.002403515517 | X267: -0.2229711172 | Y267: -0.3370039258 | Z267: -0.4022212994
R268: 202.8738672 | S268: =2*PI()*R268/B56 -> 0.02890462815 | T268: 0.0008354193617 | U268: 0.02145072769 | V268: 0.1447152019 | W268: -0.002500604664 | X268: -0.2208106463 | Y268: -0.3818775568 | Z268: -0.4390228783
R269: 206.9313445 | S269: =2*PI()*R269/B56 -> 0.02948272072 | T269: 0.0008691678591 | U269: 0.02230078074 | V269: 0.1488935723 | W269: -0.002601615147 | X269: -0.2182188309 | Y269: -0.43583701 | Z269: -0.485463103
R270: 211.0699714 | S270: =2*PI()*R270/B56 -> 0.03007237513 | T270: 0.0009042795942 | U270: 0.02318380313 | V270: 0.1521587492 | W270: -0.0027067053 | X270: -0.2152530087 | Y270: -0.5014564764 | Z270: -0.544073638
R271: 215.2913708 | S271: =2*PI()*R271/B56 -> 0.03067382263 | T271: 0.0009408096254 | U271: 0.02410101267 | V271: 0.1546018048 | W271: -0.002816039848 | X271: -0.2119651926 | Y271: -0.5822686159 | Z271: -0.6183470308
R272: 219.5971983 | S272: =2*PI()*R272/B56 -> 0.03128729908 | T272: 0.0009788152337 | U272: 0.02505366681 | V272: 0.1563065234 | W272: -0.002929790159 | X272: -0.2084024919 | Y272: -0.6832147119 | Z272: -0.7131868038
R273: 223.9891422 | S273: =2*PI()*R273/B56 -> 0.03191304507 | T273: 0.001018356013 | U273: 0.02604306347 | V273: 0.1573498727 | W273: -0.003048134519 | X273: -0.2046075069 | Y273: -0.8113538898 | Z273: -0.8356165951
R274: 228.4689251 | S274: =2*PI()*R274/B56 -> 0.03255130597 | T274: 0.001059493963 | U274: 0.02707054179 | V274: 0.1578024584 | W274: -0.003171258407 | X274: -0.2006186964 | Y274: -0.9770100659 | Z274: -0.9959270206
R275: 233.0383036 | S275: =2*PI()*R275/B56 -> 0.03320233209 | T275: 0.001102293587 | U275: 0.02813748287 | V275: 0.1577289618 | W275: -0.003299354783 | X275: -0.196470721 | Y275: -1.19568037 | Z275: -1.209584001
R276: 237.6990696 | S276: =2*PI()*R276/B56 -> 0.03386637873 | T276: 0.001146821991 | U276: 0.02924531043 | V276: 0.1571885572 | W276: -0.003432624394 | X276: -0.1921947618 | Y276: -1.491311015 | Z276: -1.500504533
... 223 more rows

Sheet Equalizer 48 kHz
B16: LPF | C16: HPF | D16: Hi Shelf | E16: Lo Shelf | F16: PeakingEQ
H17: Select Slider, then
H18: Page up/Down : Big Jump
H19: Up/Down arrows : Fine tune
H22: References :
H23: Cookbook | J23: http://www.musicdsp.org/files/Audio-EQ-Cookbook.txt
H24: Freq Response | J24: http://groups.google.com/group/comp.dsp/browse_frm/thread/8c0fa8d396aeb444/a1bc5b63ac56b686
H26: Usenet thread | J26: http://www.dsprelated.com/showmessage/50960/1.php
A34: F0 | B34: =10^(B48/333333)*20 -> 2000 | C34: =10^(C48/333333)*20 -> 99.99739687 | D34: =10^(D48/333333)*20 -> 10000.01599 | E34: =10^(E48/333333)*20 -> 49.99774228 | F34: =10^(F48/333333)*20 -> 274.9983791
A35: Q | B35: =B49/1000000*10+0.002 -> 0.81527 | C35: =C49/1000000*10+0.002 -> 0.78515 | D35: =D49/1000000*10+0.002 -> 1.05623 | E35: =E49/1000000*10+0.002 -> 0.81527 | F35: =F49/1000000*30+0.002 -> 30.002
A36: dBgain | B36: =(B50-500000)/500000*30 -> -29.99994 | C36: =(C50-500000)/500000*30 -> -29.99994 | D36: =(D50-500000)/500000*30 -> 14.4579 | E36: =(E50-500000)/500000*30 -> 19.9956 | F36: =(F50-500000)/500000*30 -> -29.99994
A37: IdBoffset | B37: =((B51-500000)/500000*20) -> 0 | C37: =((C51-500000)/500000*20) -> 0 | D37: =((D51-500000)/500000*20) -> 0 | E37: =((E51-500000)/500000*20) -> 0 | F37: =((F51-500000)/500000*20) -> 0
A48: S1 | B48: 666666 | C48: 232986 | D48: 899656 | E48: 132640 | F48: 379433 | I48: Master dB | J48: 500000
A49: S2 | B49: 81327 | C49: 78315 | D49: 105423 | E49: 81327 | F49: 1000000 | I49: Normal dB | J49: =(J48-500000)/500000*20 -> 0
A50: S3 | B50: 1 | C50: 1 | D50: 740965 | E50: 833260 | F50: 1 | J50: =10^(J49/20) -> 1
A51: S4 | B51: 500000 | C51: 500000 | D51: 500000 | E51: 500000 | F51: 500000 | J51: =J50 -> 1
B56: 48000 | C56: Hz
B59: LPF | C59: HPF | D59: Hi Shelf | E59: Lo Shelf | F59: Peaking EQ
A60: A | B60: =SQRT( 10^((B36)/20) ) -> 0.1778285552 | C60: =SQRT( 10^((C36)/20) ) -> 0.1778285552 | D60: =10^((D36)/40) -> 2.298515835 | E60: =10^((E36)/40) -> 3.161476806 | F60: =10^((F36)/40) -> 0.1778285552
A61: wo | B61: =2*PI()*B34/B56 -> 0.2617993878 | C61: =2*PI()*C34/B56 -> 0.01308962864 | D61: =2*PI()*D34/B56 -> 1.308999033 | E61: =2*PI()*E34/B56 -> 0.00654468916 | F61: =2*PI()*F34/B56 -> 0.03599720364
A62: cos(wo) | B62: =COS(B61) -> 0.9659258263 | C62: =COS(C61) -> 0.999914332 | D62: =COS(D61) -> 0.2588170228 | E62: =COS(E61) -> 0.9999785836 | F62: =COS(F61) -> 0.9993521706
A63: sin(wo) | B63: =SIN(B61) -> 0.2588190451 | C63: =SIN(C61) -> 0.01308925485 | D63: =SIN(D61) -> 0.9659263682 | E63: =SIN(E61) -> 0.006544642439 | F63: =SIN(F61) -> 0.03598942996
A64: Alpha | B64: =B63/(2*B35) -> 0.1587321042 | C64: =C63/(2*C35) -> 0.008335512228 | D64: =D63/(2*D35) -> 0.4572519092 | E64: =E63/(2*E35) -> 0.004013788339 | F64: =F63/(2*F35) -> 0.0005997838471
A65: Lingain | B65: =10^(B37/20) -> 1 | C65: =10^(C37/20) -> 1 | D65: =10^(D37/20) -> 1 | E65: =10^(E37/20) -> 1 | F65: =10^(F37/20) -> 1
K66: Coefficients
K67: B0 | L67: B1 | M67: B2 | N67: -A1 | O67: -A2
A68: B0 | B68: =B65*J51*(1 - B62)/2 -> 0.01703708686 | C68: =C65*J51*(1 + C62)/2 -> 0.999957166 | D68: =D65*J51*(D60*( (D60+1) + (D60-1)*D62 + 2*SQRT(D60)*D64 )) -> 11.5409859 | E68: =E65*J51*(E60*( (E60+1) - (E60-1)*E62 + 2*SQRT(E60)*E64 )) -> 6.368225194 | F68: =F65*$J$51*(1+(F64*F60)) -> 1.000106659 | J68: BQ0 | K68: =(B68/B71) -> 0.01470321466 | L68: =(B69/B71) -> 0.02940642931 | M68: =(B70/B71) -> 0.01470321466 | N68: =(-B72/B71) -> 1.667211641 | O68: =(-B73/B71) -> -0.7260244994
A69: B1 | B69: =B65*J51*(1 - B62) -> 0.03407417371 | C69: =C65*J51*-(1 + C62) -> -1.999914332 | D69: =D65*J51*(-2*D60*( (D60-1) + (D60+1)*D62 )) -> -9.893859736 | E69: =E65*J51*(2*E60*( (E60-1) - (E60+1)*E62 )) -> -12.6453437 | F69: =F65*$J$51*(-2*F62) -> -1.998704341 | J69: BQ1 | K69: =(C68/C71) -> 0.9916909143 | L69: =(C69/C71) -> -1.983381829 | M69: =(C70/C71) -> 0.9916909143 | N69: =(-C72/C71) -> 1.983296869 | O69: =(-C73/C71) -> -0.9834667883
A70: B2 | B70: =B65*J51*((1 - B62)/2) -> 0.01703708686 | C70: =C65*J51*(1 +C62)/2 -> 0.999957166 | D70: =D65*J51*(D60*( (D60+1) + (D60-1)*D62 - 2*SQRT(D60)*D64 )) -> 5.167357071 | E70: =E65*J51*(E60*( (E60+1) - (E60-1)*E62 - 2*SQRT(E60)*E64 )) -> 6.277974727 | F70: =F65*$J$51*(1-(F60*F64)) -> 0.9998933413 | J70: BQ2 | K70: =(D68/D71) -> 2.653768842 | L70: =(D69/D71) -> -2.275023721 | M70: =(D70/D71) -> 1.188197551 | N70: =(-D72/D71) -> -0.2045590282 | O70: =(-D73/D71) -> -0.362383644
A71: A0 | B71: =1+B64 -> 1.158732104 | C71: =1+C64 -> 1.008335512 | D71: =(D60+1) - (D60-1)*D62 + 2*SQRT(D60)*D64 -> 4.34890399 | E71: =(E60+1) + (E60-1)*E62 + 2*SQRT(E60)*E64 -> 6.337180788 | F71: =1 + (F64/F60) -> 1.003372821 | J71: BQ3 | K71: =(E68/E71) -> 1.004898772 | L71: =(E69/E71) -> -1.995421012 | M71: =(E70/E71) -> 0.9906573502 | N71: =(-E72/E71) -> 1.995481808 | O71: =(-E73/E71) -> -0.9954953261
A72: A1 | B72: =-2*B62 -> -1.931851653 | C72: =-2*C62 -> -1.999828664 | D72: =2*((D60-1)-(D60+1)*D62) -> 0.8896075737 | E72: =-2*((E60-1)+(E60+1)*E62) -> -12.64572898 | F72: =-2*F62 -> -1.998704341 | J72: BQ4 | K72: =(F68/F71) -> 0.9967448171 | L72: =(F69/F71) -> -1.99198573 | M72: =(F70/F71) -> 0.9965322167 | N72: =(-F72/F71) -> 1.99198573 | O72: =(-F73/F71) -> -0.9932770338
A73: A2 | B73: =1-B64 -> 0.8412678958 | C73: =1-C64 -> 0.9916644878 | D73: =(D60+1) - (D60-1)*D62 - 2*SQRT(D60)*D64 -> 1.575971675 | E73: =(E60+1) +(E60-1)*E62 - 2*SQRT(E60)*E64 -> 6.308633855 | F73: =1-(F64/F60) -> 0.9966271792
B109: Fo | C109: 563154 | D109: =10^(C109/333333)*20 -> 978.348729 | E109: =LOG(C109) -> 5.750627173
B110: Q | C110: 912551 | D110: =C110/1000000*7 -> 6.387857
B111: dBgain | C111: 361479 | D111: =(C111-500000)/500000*20 -> -5.54084
B112: Master dbgain | C112: 554218 | D112: =(C112-500000)/500000*20 -> 2.16872
C113: 538360 | U113: PRE-EQ | AE113: POST-EQ
U114: LPF | V114: HPF | W114: Hi Shelf | X114: Low Shelf | Y114: Peak EQ | Z114: Total
R115: FREQ | S115: w | T115: Phi | U115: CH1 Pre-EQ1 | V115: CH1 Pre-EQ2 | W115: CH1 Pre-EQ3 | X115: CH1 Pre-EQ4 | Y115: CH1 Pre-EQ5 | Z115: CH1 Pre-EQ | AE115: CH1 Post-EQ1 | AF115: CH1 Post-EQ2 | AG115: CH1 Post-EQ3 | AH115: CH1 Post-EQ4 | AI115: CH1 Post-EQ5 | AJ115: CH1 Post-EQ | AL115: CH1 Pre + Post
C116: pre1 | D116: B0 | E116: 1 | G116: =B68/B71 -> 0.01470321466 | R116: 10 | S116: =2*PI()*R116/B56 -> 0.001308996939 | T116: =4*(SIN(S116/2))^2 -> 1.713472742e-06 | U116: =10*LOG10(($G$116+$G$117+$G$118)^2 + ( $G$116*$G$118*T116 - ($G$117*($G$116+$G$118) + 4*$G$116*$G$118) )*T116 ) - 10*LOG10( (1+$G$119+$G$120)^2 + ( 1*$G$120*T116 - ($G$119*(1+$G$120) + 4*1*$G$120) )*T116) -> 5.318061111e-05 | V116: =10*LOG10(($G$121+$G$122+$G$123)^2 + ( $G$121*$G$123*$T116 - ($G$122*($G$121+$G$123) + 4*$G$121*$G$123) )*$T116 ) - 10*LOG10( (1+$G$124+$G$125)^2 + ( 1*$G$125*$T116 - ($G$124*(1+$G$125) + 4*1*$G$125) )*$T116) -> -39.9837886 | W116: =10*LOG10(($G$126+$G$127+$G$128)^2 + ( $G$126*$G$128*$T116 - ($G$127*($G$126+$G$128) + 4*$G$126*$G$128) )*$T116 ) - 10*LOG10( (1+$G$129+$G$130)^2 + ( 1*$G$130*$T116 - ($G$129*(1+$G$130) + 4*1*$G$130) )*$T116) -> -6.498062619e-06 | X116: =10*LOG10(($G$131+$G$132+$G$133)^2 + ( $G$131*$G$133*$T116 - ($G$132*($G$131+$G$133) + 4*$G$131*$G$133) )*$T116 ) - 10*LOG10( (1+$G$134+$G$135)^2 + ( 1*$G$135*$T116 - ($G$134*(1+$G$135) + 4*1*$G$135) )*$T116) -> 20.17654855 | Y116: =10*LOG10(($G$136+$G$137+$G$138)^2 + ( $G$136*$G$138*$T116 - ($G$137*($G$136+$G$138) + 4*$G$136*$G$138) )*$T116 ) - 10*LOG10( (1+$G$139+$G$140)^2 + ( 1*$G$140*$T116 - ($G$139*(1+$G$140) + 4*1*$G$140) )*$T116) -> -0.0002020372221 | Z116: =U116+V116+W116+X116+Y116 -> -19.80739541 | AE116: =10*LOG10(($G$141+$G$142+$G$143)^2 + ( $G$141*$G$143*$T116 - ($G$142*($G$141+$G$143) + 4*$G$141*$G$143) )*$T116 ) - 10*LOG10( (1+$G$144+$G$145)^2 + ( 1*$G$145*$T116 - ($G$144*(1+$G$145) + 4*1*$G$145) )*$T116) -> -1.513018152e-05 | AF116: =10*LOG10(($G$146+$G$147+$G$148)^2 + ( $G$146*$G$148*$T116 - ($G$147*($G$146+$G$148) + 4*$G$146*$G$148) )*$T116 ) - 10*LOG10( (1+$G$149+$G$150)^2 + ( 1*$G$150*$T116 - ($G$149*(1+$G$150) + 4*1*$G$150) )*$T116) -> 0.002319959006 | AG116: =10*LOG10(($G$151+$G$152+$G$153)^2 + ( $G$151*$G$153*$T116 - ($G$152*($G$151+$G$153) + 4*$G$151*$G$153) )*$T116 ) - 10*LOG10( (1+$G$154+$G$155)^2 + ( 1*$G$155*$T116 - ($G$154*(1+$G$155) + 4*1*$G$155) )*$T116) -> -3.964061855 | AH116: =10*LOG10(($G$156+$G$157+$G$158)^2 + ( $G$156*$G$158*$T116 - ($G$157*($G$156+$G$158) + 4*$G$156*$G$158) )*$T116 ) - 10*LOG10( (1+$G$159+$G$160)^2 + ( 1*$G$160*$T116 - ($G$159*(1+$G$160) + 4*1*$G$160) )*$T116) -> 0.05123833818 | AI116: =10*LOG10(($G$161+$G$162+$G$163)^2 + ( $G$161*$G$163*$T116 - ($G$162*($G$161+$G$163) + 4*$G$161*$G$163) )*$T116 ) - 10*LOG10( (1+$G$164+$G$165)^2 + ( 1*$G$165*$T116 - ($G$164*(1+$G$165) + 4*1*$G$165) )*$T116) -> 0.0002087023361 | AJ116: =AE116+AF116+AG116+AH116+AI116 -> -3.910309986 | AL116: =AJ116+Z116 -> -23.7177054
C117: LPF | D117: B1 | E117: 2 | G117: =B69/B71 -> 0.02940642931 | R117: 10.2 | S117: =2*PI()*R117/B56 -> 0.001335176878 | T117: =4*(SIN(S117/2))^2 -> 1.78269703e-06 | U117: =10*LOG10(($G$116+$G$117+$G$118)^2 + ( $G$116*$G$118*T117 - ($G$117*($G$116+$G$118) + 4*$G$116*$G$118) )*T117 ) - 10*LOG10( (1+$G$119+$G$120)^2 + ( 1*$G$120*T117 - ($G$119*(1+$G$120) + 4*1*$G$120) )*T117) -> 5.532901062e-05 | V117: -39.63915212 | W117: -6.760584235e-06 | X117: 20.18102935 | Y117: -0.000210221815 | Z117: -19.45828443 | AE117: -1.57415716e-05 | AF117: 0.002413679403 | AG117: -3.955654712 | AH117: 0.05124048008 | AI117: 0.0002171422136 | AJ117: -3.901799152 | AL117: -23.36008358
D118: B2 | E118: 3 | G118: =B70/B71 -> 0.01470321466 | R118: 10.404 | S118: =2*PI()*R118/B56 -> 0.001361880415 | T118: 1.854717979e-06 | U118: 5.756419746e-05 | V118: -39.29449162 | W118: -7.033711714e-06 | X118: 20.18544771 | Y118: -0.0002187389068 | Z118: -19.10921212 | AE118: -1.637767262e-05 | AF118: 0.002511185615 | AG118: -3.946933159 | AH118: 0.05124270853 | AI118: 0.000225923747 | AJ118: -3.892969718 | AL118: -23.00218184
D119: -A1 | E119: 4 | G119: =B72/B71 -> -1.667211641 | R119: 10.61208 | S119: =2*PI()*R119/B56 -> 0.001389118024 | T119: 1.929648573e-06 | U119: 5.988967717e-05 | V119: -38.94980625 | W119: -7.317873533e-06 | X119: 20.18978001 | Y119: -0.0002276020826 | Z119: -18.76020126 | AE119: -1.70394838e-05 | AF119: 0.002612630546 | AG119: -3.937886435 | AH119: 0.051245027 | AI119: 0.0002350607959 | AJ119: -3.883810756 | AL119: -22.64401202
D120: -A2 | E120: 5 | G120: =B73/B71 -> 0.7260244994 | R120: 10.8243216 | S120: =2*PI()*R120/B56 -> 0.001416900384 | T120: 2.007606363e-06 | U120: 6.230909688e-05 | V120: -38.60509512 | W120: -7.613515479e-06 | X120: 20.19399987 | Y120: -0.0002368254891 | Z120: -18.41127737 | AE120: -1.772804478e-05 | AF120: 0.002718173279 | AG120: -3.928503488 | AH120: 0.05124743914 | AI120: 0.0002445677843 | AJ120: -3.874311036 | AL120: -22.28558841
C121: pre2 | D121: B0 | E121: 6 | G121: =C68/C71 -> 0.9916909143 | R121: 11.04080803 | S121: =2*PI()*R121/B56 -> 0.001445238392 | T121: 2.088713646e-06 | U121: 6.482625099e-05 | V121: -38.26035733 | W121: -7.921101346e-06 | X121: 20.19807787 | Y121: -0.0002464238582 | Z121: -18.06246898 | AE121: -1.844443729e-05 | AF121: 0.002827979316 | AG121: -3.918772975 | AH121: 0.05124994874 | AI121: 0.0002544597239 | AJ121: -3.864459031 | AL121: -21.92692801
C122: HPF | D122: B1 | E122: 7 | G122: =C69/C71 -> -1.983381829 | R122: 11.26162419 | S122: =2*PI()*R122/B56 -> 0.00147414316 | T122: 2.173097662e-06 | U122: 6.744508712e-05 | V122: -37.91559196 | W122: -8.241113671e-06 | X122: 20.20198128 | Y122: -0.0002564125316 | Z122: -17.71380789 | AE122: -1.918978686e-05 | AF122: 0.002942220845 | AG122: -3.908683255 | AH122: 0.05125255973 | AI122: 0.0002647522385 | AJ122: -3.854242912 | AL122: -21.5680508
D123: B2 | E123: 8 | G123: =C70/C71 -> 0.9916909143 | R123: 11.48685668 | S123: =2*PI()*R123/B56 -> 0.001503626023 | T123: 2.260890791e-06 | U123: 7.016971233e-05 | V123: -37.57079805 | W123: -8.574054479e-06 | X123: 20.20567375 | Y123: -0.0002668074871 | Z123: -17.36532952 | AE123: -1.996526457e-05 | AF123: 0.003061077004 | AG123: -3.898222397 | AH123: 0.05125527621 | AI123: 0.0002754615891 | AJ123: -3.843650547 | AL123: -21.20898007
D124: -A1 | E124: 9 | G124: =C72/C71 -> -1.983296869 | R124: 11.71659381 | S124: =2*PI()*R124/B56 -> 0.001533698543 | T124: 2.352230761e-06 | U124: 7.300439952e-05 | V124: -37.22597463 | W124: -8.920446081e-06 | X124: 20.20911495 | Y124: -0.0002776253652 | Z124: -17.01707322 | AE124: -2.077208892e-05 | AF124: 0.003184734163 | AG124: -3.88737817 | AH124: 0.05125810243 | AI124: 0.0002866046998 | AJ124: -3.832669501 | AL124: -20.84974272
D125: -A2 | E125: 10 | G125: =C73/C71 -> 0.9834667883 | R125: 11.95092569 | S125: =2*PI()*R125/B56 -> 0.001564372514 | T125: 2.447260864e-06 | U125: 7.595359412e-05 | V125: -36.88112069 | W125: -9.280831887e-06 | X125: 20.21226029 | Y125: -0.0002888834975 | Z125: -16.66908261 | AE125: -2.161152775e-05 | AF125: 0.003313386219 | AG125: -3.876138054 | AH125: 0.05126104285 | AI125: 0.0002981991856 | AJ125: -3.821287038 | AL125: -20.49036965
C126: pre3 | D126: B0 | E126: 11 | G126: =D68/D71 -> 2.653768842 | R126: 12.1899442 | S126: =2*PI()*R126/B56 -> 0.001595659964 | T126: 2.546130182e-06 | U126: 7.902192108e-05 | V126: -36.53623521 | W126: -9.655777262e-06 | X126: 20.21506047 | Y126: -0.0003005999361 | Z126: -16.32140597 | AE126: -2.248490021e-05 | AF126: 0.003447234895 | AG126: -3.864489234 | AH126: 0.05126410206 | AI126: 0.0003102633804 | AJ126: -3.809490118 | AL126: -20.13089609
C127: Hi Shelf | D127: B1 | E127: 12 | G127: =D69/D71 -> -2.275023721 | R127: 12.43374308 | S127: =2*PI()*R127/B56 -> 0.001627573164 | T127: 2.648993818e-06 | U127: 8.221419211e-05 | V127: -36.19131712 | W127: -1.004587041e-05 | X127: 20.21746108 | Y127: -0.0003127934847 | Z127: -15.97409666 | AE127: -2.339357894e-05 | AF127: 0.003586490057 | AG127: -3.852418603 | AH127: 0.05126728487 | AI127: 0.0003228163673 | AJ127: -3.797265406 | AL127: -19.77136207
D128: B2 | E128: 13 | G128: =D70/D71 -> 1.188197551 | R128: 12.68241795 | S128: =2*PI()*R128/B56 -> 0.001660124627 | T128: 2.756013144e-06 | U128: 8.553541321e-05 | V128: -35.84636536 | W128: -1.04517233e-05 | X128: 20.21940223 | Y128: -0.0003254837302 | Z128: -15.62721354 | AE128: -2.433899208e-05 | AF128: 0.003731370047 | AG128: -3.839912771 | AH128: 0.05127059627 | AI128: 0.0003358780089 | AJ128: -3.784599266 | AL128: -19.4118128
D129: -A1 | E129: 14 | G129: =D72/D71 -> 0.2045590282 | R129: 12.9360663 | S129: =2*PI()*R129/B56 -> 0.00169332712 | T129: 2.867356049e-06 | U129: 8.899079248e-05 | V129: -35.50137883 | W129: -1.087397263e-05 | X129: 20.22081799 | Y129: -0.000338691077 | Z129: -15.28082142 | AE129: -2.532262568e-05 | AF129: 0.003882102018 | AG129: -3.826958061 | AH129: 0.05127404145 | AI129: 0.0003494689799 | AJ129: -3.771477771 | AL129: -19.05229919
D130: -A2 | E130: 15 | G130: =D73/D71 -> 0.362383644 | R130: 13.19478763 | S130: =2*PI()*R130/B56 -> 0.001727193662 | T130: 2.983197204e-06 | U130: 9.258574836e-05 | V130: -35.15635641 | W130: -1.13132808e-05 | X130: 20.22163599 | Y130: -0.0003524367818 | Z130: -14.93499158 | AE130: -2.634602599e-05 | AF130: 0.004038922292 | AG130: -3.813540521 | AH130: 0.05127762583 | AI130: 0.0003636108006 | AJ130: -3.757886708 | AL130: -18.69287829
C131: pre4 | D131: B0 | E131: 16 | G131: =E68/E71 -> 1.004898772 | R131: 13.45868338 | S131: =2*PI()*R131/B56 -> 0.001761737535 | T131: 3.10371834e-06 | U131: 9.632591802e-05 | V131: -34.81129694 | W131: -1.1770337e-05 | X131: 20.22177686 | Y131: -0.0003667429904 | Z131: -14.58980227 | AE131: -2.741080186e-05 | AF131: 0.004202076735 | AG131: -3.799645925 | AH131: 0.05128135503 | AI131: 0.0003783258717 | AJ131: -3.743811579 | AL131: -18.33361385
C132: Lo Shelf | D132: B1 | E132: 17 | G132: =E69/E71 -> -1.995421012 | R132: 13.72785705 | S132: =2*PI()*R132/B56 -> 0.001796972286 | T132: 3.229108527e-06 | U132: 0.0001002171662 | V132: -34.46619928 | W132: -1.224585824e-05 | X132: 20.2211537 | Y132: -0.0003816327763 | Z132: -14.24533923 | AE132: -2.851862735e-05 | AF132: 0.004371821133 | AG132: -3.785259785 | AH132: 0.0512852349 | AI132: 0.0003936375114 | AJ132: -3.72923761 | AL132: -17.97457684
D133: B2 | E133: 18 | G133: =E70/E71 -> 0.9906573502 | R133: 14.00241419 | S133: =2*PI()*R133/B56 -> 0.001832911732 | T133: 3.359564475e-06 | U133: 0.0001042655946 | V133: -34.12106222 | W133: -1.27405905e-05 | X133: 20.21967152 | Y133: -0.0003971301807 | Z133: -13.90169631 | AE133: -2.967124438e-05 | AF133: 0.004548421597 | AG133: -3.770367356 | AH133: 0.05128927152 | AI133: 0.0004095699926 | AJ133: -3.714149764 | AL133: -17.61584607
D134: -A1 | E134: 19 | G134: =E72/E71 -> -1.995481808 | R134: 14.28246248 | S134: =2*PI()*R134/B56 -> 0.001869569966 | T134: 3.49529084e-06 | U134: 0.0001084775511 | V134: -33.77588458 | W134: -1.325530992e-05 | X134: 20.21722663 | Y134: -0.0004132602549 | Z134: -13.55897599 | AE134: -3.087046544e-05 | AF134: 0.004732154981 | AG134: -3.754953646 | AH134: 0.05129347123 | AI134: 0.0004261485834 | AJ134: -3.698532742 | AL134: -17.25750873
D135: -A2 | E135: 20 | G135: =E73/E71 -> 0.9954953261 | R135: 14.56811173 | S135: =2*PI()*R135/B56 -> 0.001906961366 | T135: 3.636500548e-06 | U135: 0.0001128596397 | V135: -33.43066513 | W135: -1.379082397e-05 | X135: 20.21370608 | Y135: -0.000430049104 | Z135: -13.21729003 | AE135: -3.211817649e-05 | AF135: 0.004923309311 | AG135: -3.739003431 | AH135: 0.05129784063 | AI135: 0.000443399588 | AJ135: -3.682371 | AL135: -16.89966103
C136: pre5 | D136: B0 | E136: 21 | G136: =F68/F71 -> 0.9967448171 | R136: 14.85947396 | S136: =2*PI()*R136/B56 -> 0.001945100593 | T136: 3.783415123e-06 | U136: 0.0001174187314 | V136: -33.08540265 | W136: -1.434797274e-05 | X136: 20.208987 | Y136: -0.0004475239331 | Z136: -12.8767601 | AE136: -3.341633995e-05 | AF136: 0.005122184239 | AG136: -3.722501263 | AH136: 0.05130238655 | AI136: 0.00046135039 | AJ136: -3.665648758 | AL136: -16.54240886
C137: PeakEQ | D137: B1 | E137: 22 | G137: =F69/F71 -> -1.99198573 | R137: 15.15666344 | S137: =2*PI()*R137/B56 -> 0.001984002605 | T137: 3.936265044e-06 | U137: 0.0001221619744 | V137: -32.74009588 | W137: -1.492763028e-05 | X137: 20.20293602 | Y137: -0.0004657130956 | Z137: -12.53751834 | AE137: -3.476699779e-05 | AF137: 0.005329091509 | AG137: -3.705431487 | AH137: 0.05130711615 | AI137: 0.000480029497 | AJ137: -3.648350017 | AL137: -16.18586835
A138: Master A | B138: =SQRT( 10^((D112)/20) ) -> 1.13296893 | D138: B2 | E138: 23 | G138: =F70/F71 -> 0.9965322167 | R138: 15.45979671 | S138: =2*PI()*R138/B56 -> 0.002023682657 | T138: 4.095290098e-06 | U138: 0.0001270968053 | V138: -32.39474359 | W138: -1.553070594e-05 | X138: 20.19540863 | Y138: -0.0004846461437 | Z138: -12.19970804 | AE138: -3.617227478e-05 | AF138: 0.005544355446 | AG138: -3.687778256 | AH138: 0.05131203683 | AI138: 0.0004994665883 | AJ138: -3.63045857 | AL138: -15.83016661
A139: A | B139: =SQRT( 10^((D111)/20) ) -> 0.7269072493 | D139: -A1 | E139: 24 | G139: =F72/F71 -> -1.99198573 | R139: 15.76899264 | S139: =2*PI()*R139/B56 -> 0.00206415631 | T139: 4.260739759e-06 | U139: 0.0001322309611 | V139: -32.04934451 | W139: -1.61581458e-05 | X139: 20.18624857 | Y139: -0.0005043538812 | Z139: -11.86348422 | AE139: -3.76343819e-05 | AF139: 0.005768313463 | AG139: -3.669525549 | AH139: 0.05131715633 | AI139: 0.0005196925632 | AJ139: -3.611958021 | AL139: -15.47544225
A140: wo | B140: =2*PI()*D109/B56 -> 0.1280655491 | D140: -A2 | E140: 25 | G140: =F73/F71 -> 0.9932770338 | R140: 16.08437249 | S140: =2*PI()*R140/B56 -> 0.002105439436 | T140: 4.432873582e-06 | U140: 0.000137572491 | V140: -31.70389739 | W140: -1.681093419e-05 | X140: 20.17528725 | Y140: -0.0005248684189 | Z140: -11.52901425 | AE140: -3.915561976e-05 | AF140: 0.006001316587 | AG140: -3.650657187 | AH140: 0.05132248267 | AI140: 0.0005407395921 | AJ140: -3.592831804 | AL140: -15.12184605
A141: cos(wo) | B141: =COS(B140) -> 0.9918108092 | C141: post1 | D141: B0 | E141: 26 | G141: =B186/B189 -> 0.9936022448 | R141: 16.40605994 | S141: =2*PI()*R141/B56 -> 0.002147548225 | T141: 4.611961606e-06 | U141: 0.0001431297692 | V141: -31.35840097 | W141: -1.749009516e-05 | X141: 20.16234321 | Y141: -0.0005462232327 | Z141: -11.19647834 | AE141: -4.073838232e-05 | AF141: 0.006243730011 | AG141: -3.63115686 | AH141: 0.05132802421 | AI141: 0.00056264117 | AJ141: -3.573063203 | AL141: -14.76954155
A142: sin(wo) | B142: =SIN(B140) -> 0.1277157735 | D142: B1 | E142: 27 | G142: =B187/B189 -> -1.956712017 | R142: 16.73418114 | S142: =2*PI()*R142/B56 -> 0.002190499189 | T142: 4.79828478e-06 | U142: 0.0001489115078 | V142: -31.012854 | W142: -1.819669418e-05 | X142: 20.14722164 | Y142: -0.0005684532245 | Z142: -10.8660701 | AE142: -4.238516071e-05 | AF142: 0.006495933662 | AG142: -3.611008143 | AH142: 0.05133378965 | AI142: 0.000585432172 | AJ142: -3.552635373 | AL142: -14.41870547
A143: Alpha | B143: =B142/(2*D110) -> 0.0099967621 | D143: B2 | E143: 28 | G143: =B188/B189 -> 0.9792659662 | R143: 17.06886477 | S143: =2*PI()*R143/B56 -> 0.002234309173 | T143: 4.992135404e-06 | U143: 0.0001549267706 | V143: -30.66725524 | W143: -1.893183972e-05 | X143: 20.12971394 | Y143: -0.0005915947858 | Z143: -10.53799691 | AE143: -4.409854709e-05 | AF143: 0.006758322796 | AG143: -3.590194526 | AH143: 0.05133978804 | AI143: 0.0006091489111 | AJ143: -3.531531364 | AL143: -14.06952827
D144: -A1 | E144: 29 | G144: =B190/B189 -> -1.956712017 | R144: 17.41024206 | S144: =2*PI()*R144/B56 -> 0.002278995357 | T144: 5.193817587e-06 | U144: 0.0001611849872 | V144: -30.32160348 | W144: -1.969668508e-05 | X144: 20.1095974 | Y144: -0.0006156858648 | Z144: -10.21248028 | AE144: -4.58812389e-05 | AF144: 0.007031308613 | AG144: -3.568699435 | AH144: 0.05134602878 | AI144: 0.000633829199 | AJ144: -3.50973415 | AL144: -13.72221443
D145: -A2 | E145: 30 | G145: =B191/B189 -> 0.9728682109 | R145: 17.7584469 | S145: =2*PI()*R145/B56 -> 0.002324575264 | T145: 5.403647723e-06 | U145: 0.0001676959678 | V145: -29.97589752 | W145: -2.04924301e-05 | X145: 20.08663503 | Y145: -0.0006407660363 | Z145: -9.889756056 | AE145: -4.773604304e-05 | AF145: 0.007315318904 | AG145: -3.546506267 | AH145: 0.05135252167 | AI145: 0.0006595124091 | AJ145: -3.48722665 | AL145: -13.37698271
A146: LPF B0 | B146: =B138^2*(1 - B141)/2 -> 0.005255898813 | C146: post2 | D146: B0 | E146: 31 | G146: =B196 -> 1.133581938 | R146: 18.11361584 | S146: =2*PI()*R146/B56 -> 0.002371066769 | T146: 5.621954989e-06 | U146: 0.0001744699183 | V146: -29.63013619 | W146: -2.132032314e-05 | X146: 20.06057544 | Y146: -0.0006668765754 | Z146: -9.570074474 | AE146: -4.96658804e-05 | AF146: 0.007610798717 | AG146: -3.523598415 | AH146: 0.05135927691 | AI146: 0.0006862395422 | AJ146: -3.463991765 | AL146: -13.03406624
A147: LPF B1 | B147: =B138^2*(1 - B141) -> 0.01051179763 | C147: PA EQ | D147: B1 | E147: 32 | G147: =B197 -> -1.963934207 | R147: 18.47588816 | S147: =2*PI()*R147/B56 -> 0.002418488104 | T147: 5.84908186e-06 | U147: 0.0001815174568 | V147: -29.28431838 | W147: -2.218166296e-05 | X147: 20.03115305 | Y147: -0.000694060535 | Z147: -9.253700055 | AE147: -5.167379052e-05 | AF147: 0.007918211049 | AG147: -3.499959302 | AH147: 0.05136630508 | AI147: 0.0007140532958 | AJ147: -3.440012407 | AL147: -12.69371246
A148: LPF B2 | B148: =B138^2*((1 - B141)/2) -> 0.005255898813 | D148: B2 | E148: 33 | G148: =B198 -> 0.8465680955 | R148: 18.84540592 | S148: =2*PI()*R148/B56 -> 0.002466857866 | T148: 6.085384647e-06 | U148: 0.0001888496296 | V148: -28.938443 | W148: -2.307780081e-05 | X148: 19.99808829 | Y148: -0.0007223628263 | Z148: -8.940911296 | AE148: -5.376293637e-05 | AF148: 0.008238037574 | AG148: -3.475572419 | AH148: 0.05137361722 | AI148: 0.0007429981356 | AJ148: -3.415271529 | AL148: -12.35618283
A149: LPF A0 | B149: =1+B143 -> 1.009996762 | D149: -A1 | E149: 34 | G149: =B199 -> -1.963934207 | R149: 19.22231404 | S149: =2*PI()*R149/B56 -> 0.002516195024 | T149: 6.331234057e-06 | U149: 0.0001964779288 | V149: -28.59250903 | W149: -2.401014252e-05 | X149: 19.96108827 | Y149: -0.0007518303046 | Z149: -8.632000122 | AE149: -5.593660947e-05 | AF149: 0.008570779391 | AG149: -3.450421357 | AH149: 0.05138122481 | AI149: 0.0007731203707 | AJ149: -3.389752169 | AL149: -12.02175229
A150: LPF A1 | B150: =-2*B141 -> -1.983621618 | D150: -A2 | E150: 35 | G150: =B200 -> 0.9801500334 | R150: 19.60676032 | S150: =2*PI()*R150/B56 -> 0.002566518924 | T150: 6.587015773e-06 | U150: 0.0002044143102 | V150: -28.24651554 | W150: -2.498015072e-05 | X150: 19.91984754 | Y150: -0.0007825118581 | Z150: -8.327271075 | AE150: -5.81982351e-05 | AF150: 0.008916957811 | AG150: -3.424489845 | AH150: 0.05138913978 | AI150: 0.0008044682318 | AJ150: -3.363437477 | AL150: -11.69070855
A151: LPF A2 | B151: =1-B143 -> 0.9900032379 | C151: post3 | D151: B0 | E151: 36 | G151: 1.029078484 | R151: 19.99889553 | S151: =2*PI()*R151/B56 -> 0.002617849303 | T151: 6.853131058e-06 | U151: 0.0002126712121 | V151: -27.90046165 | W151: -2.598934712e-05 | X151: 19.87404921 | Y151: -0.0008144585025 | Z151: -8.02704021 | AE151: -6.055137776e-05 | AF151: 0.009277115163 | AG151: -3.397761797 | AH151: 0.05139737455 | AI151: 0.0008370919534 | AJ151: -3.336310767 | AL151: -11.36335098
D152: B1 | E152: 37 | G152: -1.081429482 | R152: 20.39887344 | S152: =2*PI()*R152/B56 -> 0.002670206289 | T152: 7.129997388e-06 | U152: 0.0002212615744 | V152: -27.55434658 | W152: -2.703931491e-05 | X152: 19.82336642 | Y152: -0.0008477234795 | Z152: -7.731633666 | AE152: -6.299974692e-05 | AF152: 0.009651815648 | AG152: -3.37022135 | AH152: 0.05140594205 | AI152: 0.0008710438589 | AJ152: -3.308355548 | AL152: -11.03998921
D153: B2 | E153: 38 | G153: 0.05741024017 | R153: 20.80685091 | S153: =2*PI()*R153/B56 -> 0.002723610415 | T153: 7.418049105e-06 | U153: 0.0002301988592 | V153: -27.20816969 | W153: -2.813170125e-05 | X153: 19.76746409 | Y153: -0.0008823623606 | Z153: -7.4413859 | AE153: -6.554720287e-05 | AF153: 0.01004164621 | AG153: -3.341852907 | AH153: 0.05141485573 | AI153: 0.0009063784504 | AJ153: -3.279555574 | AL153: -10.72094147
A154: HPF B0 | B154: =B138^2*(1 + B141)/2 -> 1.278362697 | D154: -A1 | E154: 39 | G154: -1.319993019 | R154: 21.22298792 | S154: =2*PI()*R154/B56 -> 0.002778082623 | T154: 7.717738096e-06 | U154: 0.0002394970716 | V154: -26.86193043 | W154: -2.926821984e-05 | X154: 19.70600107 | Y154: -0.0009184331566 | Z154: -7.156637561 | AE154: -6.819776297e-05 | AF154: 0.01044721747 | AG154: -3.31264119 | AH154: 0.05142412956 | AI154: 0.0009431525016 | AJ154: -3.249894888 | AL154: -10.40653245
A155: HPF B1 | B155: =B138^2*-(1 + B141) -> -2.556725393 | D155: -A2 | E155: 40 | G155: 0.3281793594 | R155: 21.64744768 | S155: =2*PI()*R155/B56 -> 0.002833644275 | T155: 8.029534506e-06 | U155: 0.0002491707816 | V155: -26.51562841 | W155: -3.04506536e-05 | X155: 19.63863269 | Y155: -0.0009559964325 | Z155: -6.877733 | AE155: -7.095560807e-05 | AF155: 0.01086916465 | AG155: -3.282571282 | AH155: 0.05143377812 | AI155: 0.000981425156 | AJ155: -3.219357869 | AL155: -10.09709087
A156: HPF B2 | B156: =B138^2*(1 + B141)/2 -> 1.278362697 | C156: post4 | D156: B0 | E156: 41 | G156: 0.8476543427 | R156: 22.08039664 | S156: =2*PI()*R156/B56 -> 0.002890317161 | T156: 8.353927475e-06 | U156: 0.0002592351469 | V156: -26.1692634 | W156: -3.168085749e-05 | X156: 19.56501355 | Y156: -0.0009951154287 | Z156: -6.605017417 | AE156: -7.382508915e-05 | AF156: 0.01130814858 | AG156: -3.25162868 | AH156: 0.05144381653 | AI156: 0.001021258028 | AJ156: -3.187929282 | AL156: -9.792946699
A157: HPF A0 | B157: =1+B143 -> 1.009996762 | D157: B1 | E157: 42 | G157: -1.398298264 | R157: 22.52200457 | S157: =2*PI()*R157/B56 -> 0.002948123504 | T157: 8.6914259e-06 | U157: 0.0002697059366 | V157: -25.82283537 | W157: -3.296076141e-05 | X157: 19.48480081 | Y157: -0.001035856188 | Z157: -6.338833679 | AE157: -7.681073443e-05 | AF157: 0.01176485673 | AG157: -3.219799349 | AH157: 0.05145426056 | AI157: 0.001062715312 | AJ157: -3.155594327 | AL157: -9.494428006
A158: HPF A1 | B158: =-2*B141 -> -1.983621618 | D158: B2 | E158: 43 | G158: 0.6428365707 | R158: 22.97244466 | S158: =2*PI()*R158/B56 -> 0.003007085974 | T158: 9.042559242e-06 | U158: 0.0002805995558 | V158: -25.47634449 | W158: -3.429237323e-05 | X158: 19.39765766 | Y158: -0.001078287692 | Z158: -6.079518811
A159: HPF A2 | B159: =1-B143 -> 0.9900032379 | D159: -A1 | E159: 44 | G159: -1.777497292 | R159: 23.43189355 | S159: =2*PI()*R159/B56 -> 0.003067227694 | T159: 9.407878349e-06 | U159: 0.0002919330711 | V159: -25.12979116 | W159: -3.567778192e-05 | X159: 19.30325715 | Y159: -0.001122481998 | Z159: -5.827400235
D160: -A2 | E160: 45 | G160: 0.8691482544 | R160: 23.90053142 | S160: =2*PI()*R160/B56 -> 0.003128572248 | T160: 9.787956324e-06 | U160: 0.0003037242372 | V160: -24.78317606 | W160: -3.711916086e-05 | X160: 19.20128616 | Y160: -0.001168514394 | Z160: -5.582791807
C161: post 5 | D161: B0 | E161: 46 | G161: 1.008439919 | R161: 24.37854205 | S161: =2*PI()*R161/B56 -> 0.003191143692 | T161: 1.018338942e-05 | U161: 0.0003159915249 | V161: -24.43650017 | W161: -3.861877122e-05 | X161: 19.09144952 | Y161: -0.001216463553 | Z161: -5.345989735
A162: HShelf B0 | B162: =B138^2*(B139*( (B139+1) + (B139-1)*B141 + 2*SQRT(B139)*B143 )) -> 1.374505213 | D162: B1 | E162: 47 | G162: -1.994599001 | R162: 24.86611289 | S162: =2*PI()*R162/B56 -> 0.003254966566 | T162: 1.059479799e-05 | U162: 0.0003287541496 | V162: -24.08976478 | W162: -4.017896553e-05 | X162: 18.97347415 | Y162: -0.0012664117 | Z162: -5.117268467
A163: HShelf B1 | B163: =B138^2*(-2*B139*( (B139-1) + (B139+1)*B141 )) -> -2.686635273 | D163: B2 | E163: 48 | G163: 0.9896845436 | R163: 25.36343515 | S163: =2*PI()*R163/B56 -> 0.003320065898 | T163: 1.102282744e-05 | U163: 0.0003420321013 | V163: -23.74297159 | W163: -4.180219137e-05 | X163: 18.84711315 | Y163: -0.001318444785 | Z163: -4.896876657
A164: HShelf B2 | B164: =B138^2*(B139*( (B139+1) + (B139-1)*B141 - 2*SQRT(B139)*B143 )) -> 1.342694468 | D164: -A1 | E164: 49 | G164: -1.994599001 | R164: 25.87070385 | S164: =2*PI()*R164/B56 -> 0.003386467216 | T164: 1.146814924e-05 | U164: 0.0003558461759 | V164: -23.39612269 | W164: -4.349099516e-05 | X164: 18.71214966 | Y164: -0.001372652673 | Z164: -4.685033327
A165: HShelf A0 | B165: =(B139+1) - (B139-1)*B141 + 2*SQRT(B139)*B143 -> 2.014809841 | D165: -A2 | E165: 50 | G165: 0.9981244625 | R165: 26.38811793 | S165: =2*PI()*R165/B56 -> 0.00345419656 | T165: 1.193146201e-05 | U165: 0.0003702180076 | V165: -23.04922064 | W165: -4.524802624e-05 | X165: 18.56840048 | Y165: -0.001429129338 | Z165: -4.481924322
A166: HShelf A1 | B166: =2*((B139-1)-(B139+1)*B141) -> -3.971716054 | R166: 26.91588029 | S166: =2*PI()*R166/B56 -> 0.003523280491 | T166: 1.241349258e-05 | U166: 0.0003851701023 | V166: -22.70226851 | W166: -4.707604095e-05 | X166: 18.4157192 | Y166: -0.001487973068 | Z166: -4.287699195
A167: HShelf A2 | B167: =(B139+1) - (B139-1)*B141 - 2*SQRT(B139)*B143 -> 1.980717341 | R167: 27.4541979 | S167: =2*PI()*R167/B56 -> 0.003593746101 | T167: 1.291499714e-05 | U167: 0.0004007258731 | V167: -22.35526994 | W167: -4.8977907e-05 | X167: 18.25399888 | Y167: -0.001549286686 | Z167: -4.102468602
R168: 28.00328185 | S168: =2*PI()*R168/B56 -> 0.003665621023 | T168: 1.343676244e-05 | U168: 0.0004169096764 | V168: -22.0082292 | W168: -5.095660794e-05 | X168: 18.08317411 | Y168: -0.001613177783 | Z168: -3.926302318
R169: 28.56334749 | S169: =2*PI()*R169/B56 -> 0.003738933443 | T169: 1.397960701e-05 | U169: 0.0004337468502 | V169: -21.66115125 | W169: -5.301524786e-05 | X169: 17.90322235 | Y169: -0.001679758962 | Z169: -3.759227925
A170: LShelf B0 | B170: =B138^2*(B139*( (B139+1) - (B139-1)*B141 + 2*SQRT(B139)*B143 )) -> 1.879961968 | R170: 29.13461444 | S170: =2*PI()*R170/B56 -> 0.003813712112 | T170: 1.454438245e-05 | U170: 0.0004512637531 | V170: -21.31404182 | W170: -5.515705626e-05 | X170: 17.71416463 | Y170: -0.0017491481 | Z170: -3.601230234
A171: LShelf B1 | B171: =B138^2*(2*B139*( (B139-1) - (B139+1)*B141 )) -> -3.705895701 | R171: 29.71730673 | S171: =2*PI()*R171/B56 -> 0.003889986355 | T171: 1.513197476e-05 | U171: 0.0004694878054 | V171: -20.96690749 | W171: -5.738539308e-05 | X171: 17.51606541 | Y171: -0.001821468619 | Z171: -3.45225145
A172: LShelf B2 | B172: =B138^2*(B139*( (B139+1) - (B139-1)*B141 - 2*SQRT(B139)*B143 )) -> 1.848151222 | R172: 30.31165286 | S172: =2*PI()*R172/B56 -> 0.003967786082 | T172: 1.574330573e-05 | U172: 0.0004884475321 | V172: -20.61975577 | W172: -5.970375404e-05 | X172: 17.3090318 | Y172: -0.001896849787 | Z172: -3.312192079
A173: LShelf A0 | B173: =(B139+1) + (B139-1)*B141 + 2*SQRT(B139)*B143 -> 1.473097157 | R173: 30.91788592 | S173: =2*PI()*R173/B56 -> 0.004047141803 | T173: 1.637933442e-05 | U173: 0.0005081726068 | V173: -20.27259519 | W173: -6.211577604e-05 | X173: 17.09321203 | Y173: -0.001975427021 | Z173: -3.180912531
A174: LShelf A1 | B174: =-2*((B139-1)+(B139+1)*B141) -> -2.879345051 | R174: 31.53624364 | S174: =2*PI()*R174/B56 -> 0.004128084639 | T174: 1.704105859e-05 | U174: 0.000528693898 | V174: -19.92543543 | W174: -6.462524293e-05 | X174: 16.86879333 | Y174: -0.00205734222 | Z174: -3.058235373
A175: LShelf A2 | B175: =(B139+1) +(B139-1)*B141 - 2*SQRT(B139)*B143 -> 1.439004657 | R175: 32.16696851 | S175: =2*PI()*R175/B56 -> 0.004210646332 | T175: 1.772951634e-05 | U175: 0.0005500435171 | V175: -19.57828739 | W175: -6.723609143e-05 | X175: 16.6359992 | Y175: -0.002142744119 | Z175: -2.943948131
R176: 32.81030788 | S176: =2*PI()*R176/B56 -> 0.004294859259 | T176: 1.84457877e-05 | U176: 0.0005722548682 | V176: -19.23116334 | W176: -6.995241727e-05 | X176: 16.39508627 | Y176: -0.002231788653 | Z176: -2.837806556
R177: 33.46651404 | S177: =2*PI()*R177/B56 -> 0.004380756444 | T177: 1.919099633e-05 | U177: 0.0005953626998 | V177: -18.88407704 | W177: -7.277848166e-05 | X177: 16.14634086 | Y177: -0.002324639363 | Z177: -2.739538237
A178: Notch B0 | B178: 1 | R178: 34.13584432 | S178: =2*PI()*R178/B56 -> 0.004468371573 | T178: 1.996631129e-05 | U178: 0.0006194031591 | V178: -18.53704389 | W178: -7.571871796e-05 | X178: 15.89007523 | Y178: -0.002421467813 | Z178: -2.648846446
A179: Notch B1 | B179: =-2*B141 -> -1.983621618 | R179: 34.81856121 | S179: =2*PI()*R179/B56 -> 0.004557739004 | T179: 2.077294887e-05 | U179: 0.0006444138476 | V179: -18.19008107 | W179: -7.877773863e-05 | X179: 15.62662378 | Y179: -0.002522454038 | Z179: -2.565414101
A180: Notch B2 | B180: =1 -> 1 | R180: 35.51493243 | S180: =2*PI()*R180/B56 -> 0.004648893784 | T180: 2.161217449e-05 | U180: 0.0006704338797 | V180: =10*LOG10(($G$121+$G$122+$G$123)^2 + ( $G$121*$G$123*$T180 - ($G$122*($G$121+$G$123) + 4*$G$121*$G$123) )*$T180 ) - 10*LOG10( (1+$G$124+$G$125)^2 + ( 1*$G$125*$T180 - ($G$124*(1+$G$125) + 4*1*$G$125) )*$T180) -> -17.84320773 | W180: =10*LOG10(($G$126+$G$127+$G$128)^2 + ( $G$126*$G$128*$T180 - ($G$127*($G$126+$G$128) + 4*$G$126*$G$128) )*$T180 ) - 10*LOG10( (1+$G$129+$G$130)^2 + ( 1*$G$130*$T180 - ($G$129*(1+$G$130) + 4*1*$G$130) )*$T180) -> -8.196034245e-05 | X180: =10*LOG10(($G$131+$G$132+$G$133)^2 + ( $G$131*$G$133*$T180 - ($G$132*($G$131+$G$133) + 4*$G$131*$G$133) )*$T180 ) - 10*LOG10( (1+$G$134+$G$135)^2 + ( 1*$G$135*$T180 - ($G$134*(1+$G$135) + 4*1*$G$135) )*$T180) -> 15.35633929 | Y180: =10*LOG10(($G$136+$G$137+$G$138)^2 + ( $G$136*$G$138*$T180 - ($G$137*($G$136+$G$138) + 4*$G$136*$G$138) )*$T180 ) - 10*LOG10( (1+$G$139+$G$140)^2 + ( 1*$G$140*$T180 - ($G$139*(1+$G$140) + 4*1*$G$140) )*$T180) -> -0.00262778703 | Z180: =U180+V180+W180+X180+Y180 -> -2.488907744
A181: Notch A0 | B181: =1+B143 -> 1.009996762 | R181: 36.22523108 | S181: =2*PI()*R181/B56 -> 0.00474187166 | T181: =4*(SIN(S181/2))^2 -> 2.248530471e-05 | U181: =10*LOG10(($G$116+$G$117+$G$118)^2 + ( $G$116*$G$118*T181 - ($G$117*($G$116+$G$118) + 4*$G$116*$G$118) )*T181 ) - 10*LOG10( (1+$G$119+$G$120)^2 + ( 1*$G$120*T181 - ($G$119*(1+$G$120) + 4*1*$G$120) )*T181) -> 0.0006975039432 | V181: -17.49644515 | W181: -8.527152207e-05 | X181: 15.07958916 | Y181: -0.002737665243 | Z181: -2.418981418
A182: Notch A1 | B182: =-2*B141 -> -1.983621618 | R182: 36.9497357 | S182: =2*PI()*R182/B56 -> 0.004836709093 | T182: 2.339370925e-05 | U182: 0.0007256663622 | V182: -17.14981695 | W182: -8.871647186e-05 | X182: 14.79675191 | Y182: -0.002852297142 | Z182: -2.355280381
A183: Notch A2 | B183: =1-B143 -> 0.9900032379 | R183: 37.68873042 | S183: =2*PI()*R183/B56 -> 0.004933443275 | T183: 2.433881318e-05 | U183: 0.0007549651626 | V183: -16.8033493 | W183: -9.230059598e-05 | X183: 14.50821397 | Y183: -0.002971901786 | Z183: -2.297444565
R184: 38.44250503 | S184: =2*PI()*R184/B56 -> 0.005032112141 | T184: 2.532209916e-05 | U184: 0.0007854461407 | V184: -16.45707113 | W184: -9.602951697e-05 | X184: 14.21436668 | Y184: -0.00309670945 | Z184: -2.245111745
R185: 39.21135513 | S185: =2*PI()*R185/B56 -> 0.005132754383 | T185: 2.634510972e-05 | U185: 0.000817156933 | V185: -16.11101442 | W185: -9.990908446e-05 | X185: 13.91560378 | Y185: -0.003226962292 | Z185: -2.197920357
A186: Peaking B0 | B186: =1+(B143*B139) -> 1.007266719 | R186: 39.99558223 | S186: =2*PI()*R186/B56 -> 0.005235409471 | T186: 2.740944972e-05 | U186: 0.0008501470907 | V186: -15.7652144 | W186: -0.0001039453844 | X186: 13.61231915 | Y186: -0.00336291507 | Z186: -2.155511965
A187: Peaking B1 | B187: =-2*B141 -> -1.983621618 | R187: 40.79549387 | S187: =2*PI()*R187/B56 -> 0.00534011766 | T187: 2.851678886e-05 | U187: 0.000884468156 | V187: -15.41970988 | W187: -0.0001081447487 | X187: 13.30490504 | Y187: -0.0035048359 | Z187: -2.117533355
A188: Peaking B2 | B188: =1-(B143*B139) -> 0.9927332812 | R188: 41.61140375 | S188: =2*PI()*R188/B56 -> 0.005446920014 | T188: 2.966886428e-05 | U188: 0.0009201737411 | V188: -15.07454355 | W188: -0.0001125137648 | X188: 12.99375064 | Y188: -0.003653007084 | Z188: -2.083638256
A189: Peaking A0 | B189: =1 + (B143/B139) -> 1.013752459 | R189: 42.44363183 | S189: =2*PI()*R189/B56 -> 0.005555858414 | T189: 3.086748332e-05 | U189: 0.0009573196115 | V189: -14.72976228 | W189: -0.0001170592866 | X189: 12.67924103 | Y189: -0.003807725983 | Z189: -2.053488712
A190: Peaking A1 | B190: =-2*B141 -> -1.983621618 | R190: 43.29250446 | S190: =2*PI()*R190/B56 -> 0.005666975582 | T190: 3.21145263e-05 | U190: 0.0009959637718 | V190: -14.38541746 | W190: -0.0001217884446 | X190: 12.36175648 | Y190: -0.003969305967 | Z190: -2.026756116
A191: Peaking A2 | B191: =1-(B143/B139) -> 0.9862475411 | R191: 44.15835455 | S191: =2*PI()*R191/B56 -> 0.005780315094 | T191: 3.341194955e-05 | U191: 0.001036166554 | V191: -14.04156542 | W191: -0.0001267086576 | X191: 12.0416721 | Y191: -0.004138077426 | Z191: -2.003121936
R192: 45.04152164 | S192: =2*PI()*R192/B56 -> 0.005895921396 | T192: 3.476178841e-05 | U192: 0.001077990713 | V192: -13.69826773 | W192: -0.0001318276438 | X192: 11.71935779 | Y192: -0.004314388865 | Z192: -1.982278164
R193: 45.94235208 | S193: =2*PI()*R193/B56 -> 0.006013839824 | T193: 3.616616042e-05 | U193: 0.00112150152 | V193: -13.35559168 | W193: -0.0001371534335 | X193: 11.39517842 | Y193: -0.004498608079 | Z193: -1.963927521
A194: Planet Analog 2nd order EQ filter | D194: Fc | E194: =D109 -> 978.348729 | R194: 46.86119912 | S194: =2*PI()*R194/B56 -> 0.00613411662 | T194: 3.762726872e-05 | U194: 0.001166766864 | V194: -13.01361067 | W194: -0.0001426943812 | X194: 11.06949426 | Y194: -0.00469112342 | Z194: -1.947783455
D195: g | E195: =D111+20 -> 14.45916 | G195: d | H195: =-COS(2*PI()*E194/B56) -> -0.9918108092 | R195: 47.7984231 | S195: =2*PI()*R195/B56 -> 0.006256798953 | T195: 3.914740542e-05 | U195: 0.001213857355 | V195: -12.67240466 | W195: -0.000148459179 | X195: 10.74266165 | Y195: -0.004892345162 | Z195: -1.933569963
A196: PA EQ B0 | B196: =1 + (1+E202)*E197/2 -> 1.133581938 | D196: b | E196: =E194/D110 -> 153.1575815 | R196: 48.75439156 | S196: =2*PI()*R196/B56 -> 0.006381934932 | T196: 4.072895523e-05 | U196: 0.001262846436 | V196: -12.33206065 | W196: -0.0001544568701 | X196: 10.41503369 | Y196: -0.005102706981 | Z196: -1.921021274
A197: PA EQ B1 | B197: =H195*(1-E202) -> -1.963934207 | D197: H | E197: =E195-1 -> 13.45916 | R197: 49.72947939 | S197: =2*PI()*R197/B56 -> 0.00650957363 | T197: 4.237439921e-05 | U197: 0.00131381049 | V197: -11.99267312 | W197: -0.000160696863 | X197: 10.08696124 | Y197: -0.005322667538 | Z197: -1.90988143
A198: PA EQ B2 | B198: =-E202-(1+E202)*E197/2 -> 0.8465680955 | R198: 50.72406898 | S198: =2*PI()*R198/B56 -> 0.006639765103 | T198: 4.408631865e-05 | U198: 0.001366828962 | V198: -11.65434456 | W198: -0.0001671889462 | X198: 9.758793834 | Y198: -0.005552712215 | Z198: -1.899903798
A199: PA EQ A1 | B199: =B197 -> -1.963934207 | R199: 51.73855036 | S199: =2*PI()*R199/B56 -> 0.006772560405 | T199: 4.586739912e-05 | U199: 0.001421984476 | V199: -11.31718594 | W199: -0.0001739433039 | X199: 9.430880716 | Y199: -0.005793354968 | Z199: -1.890850541
A200: PA EQ A2 | B200: =-E202 -> 0.9801500334 | D200: a1 g<1 | E200: =(TAN(PI()*E196/B56)-E195)/(TAN(PI()*E196/B56)+E195) -> -0.9986143689 | R200: 52.77332137 | S200: =2*PI()*R200/B56 -> 0.006908011613 | T200: 4.772043467e-05 | U200: 0.001479362963 | V200: -10.98131722 | W200: -0.0001809705313 | X200: 9.103571894 | Y200: -0.006045140356 | Z200: -1.882492078
D201: a2 g>=1 | E201: =(TAN(PI()*E196/B56)-1)/(TAN(PI()*E196/B56)+1) -> -0.9801500334 | R201: 53.82878779 | S201: =2*PI()*R201/B56 -> 0.007046171845 | T201: 4.964833226e-05 | U201: 0.001539053796 | V201: -10.64686784 | W201: -0.000188281652 | X201: 8.777219139 | Y201: -0.006308645727 | Z201: -1.874606578
D202: a | E202: =IF(E195<1, E200,E201) -> -0.9801500334 | R202: 54.90536355 | S202: =2*PI()*R202/B56 -> 0.007187095282 | T202: 5.165411625e-05 | U202: 0.001601149917 | V202: -10.3139772 | W202: -0.0001958881346 | X202: 8.452176934 | Y202: -0.006584483603 | Z202: -1.866979489
R203: 56.00347082 | S203: =2*PI()*R203/B56 -> 0.007330837188 | T203: 5.37409332e-05 | U203: 0.001665747988 | V203: -9.982795121 | W203: -0.0002038019112 | X203: 8.128803321 | Y203: -0.006873304258 | Z203: -1.859403158
R204: 57.12354024 | S204: =2*PI()*R204/B56 -> 0.007477453932 | T204: 5.591205678e-05 | U204: 0.001732948532 | V204: -9.653482279 | W204: -0.0002120353958 | X204: 7.807460615 | Y204: -0.007175798537 | Z204: -1.851676549
R205: 58.26601104 | S205: =2*PI()*R205/B56 -> 0.00762700301 | T205: 5.817089293e-05 | U205: 0.001802856088 | V205: -9.326210588 | W205: -0.0002206015039 | X205: 7.488515945 | Y205: -0.007492700916 | Z205: -1.843605089
R206: 59.43133126 | S206: =2*PI()*R206/B56 -> 0.00777954307 | T206: 6.052098515e-05 | U206: 0.001875579368 | V206: -9.001163523 | W206: -0.0002295136727 | X206: 7.172341586 | Y206: -0.007824792844 | Z206: -1.835000664
R207: 60.61995789 | S207: =2*PI()*R207/B56 -> 0.007935133932 | T207: 6.296602012e-05 | U207: 0.001951231422 | V207: -8.678536375 | W207: -0.0002387858823 | X207: 6.859315043 | Y207: -0.008172906386 | Z207: -1.825681793
R208: 61.83235705 | S208: =2*PI()*R208/B56 -> 0.00809383661 | T208: 6.550983344e-05 | U208: 0.002029929812 | V208: -8.358536405 | W208: -0.0002484326773 | X208: 6.549818857 | Y208: -0.008537928204 | Z208: -1.815473979
R209: 63.06900419 | S209: =2*PI()*R209/B56 -> 0.008255713343 | T209: 6.815641568e-05 | U209: 0.002111796782 | V209: -8.041382894 | W209: -0.0002584691901 | X209: 6.244240097 | Y209: -0.008920803923 | Z209: -1.804210273
R210: 64.33038427 | S210: =2*PI()*R210/B56 -> 0.008420827609 | T210: 7.090991861e-05 | U210: 0.00219695945 | V210: -7.727307054 | W210: -0.0002689111643 | X210: 5.942969512 | Y210: -0.009322542895 | Z210: -1.791732036
R211: 65.61699196 | S211: =2*PI()*R211/B56 -> 0.008589244162 | T211: 7.377466171e-05 | U211: 0.002285549994 | V211: -7.41655179 | W211: -0.0002797749792 | X211: 5.646400316 | Y211: -0.009744223437 | Z211: -1.777889922
R212: 66.9293318 | S212: =2*PI()*R212/B56 -> 0.008761029045 | T212: 7.675513897e-05 | U212: 0.002377705853 | V212: -7.109371275 | W212: -0.0002910776761 | X212: 5.354926585 | Y212: -0.01018699858 | Z212: -1.762545061
R213: 68.26791843 | S213: =2*PI()*R213/B56 -> 0.008936249626 | T213: 7.985602595e-05 | U213: 0.002473569932 | V213: -6.806030338 | W213: -0.0003028369845 | X213: 5.068941276 | Y213: -0.01065210239 | Z213: -1.745570432
R214: 69.6332768 | S214: =2*PI()*R214/B56 -> 0.009114974618 | T214: 8.308218707e-05 | U214: 0.002573290815 | V214: -6.506803618 | W214: -0.00031507135 | X214: 4.788833849 | Y214: -0.01114085691 | Z214: -1.726852406
R215: 71.02594234 | S215: =2*PI()*R215/B56 -> 0.009297274111 | T215: 8.643868324e-05 | U215: 0.002677022989 | V215: -6.211974481 | W215: -0.0003277999633 | X215: 4.514987522 | Y215: -0.01165467986 | Z215: -1.706292416
R216: 72.44646118 | S216: =2*PI()*R216/B56 -> 0.009483219593 | T216: 8.993077988e-05 | U216: 0.002784927072 | V216: -5.921833688 | W216: -0.0003410427904 | X216: 4.247776185 | Y216: -0.01219509306 | Z216: -1.683808712
R217: 73.89539041 | S217: =2*PI()*R217/B56 -> 0.009672883985 | T217: 9.356395506e-05 | U217: 0.00289717005 | V217: -5.636677774 | W217: -0.0003548206037 | X217: 3.987561024 | Y217: -0.01276373186 | Z217: -1.659338133
R218: 75.37329821 | S218: =2*PI()*R218/B56 -> 0.009866341664 | T218: 9.734390818e-05 | U218: 0.003013925529 | V218: -5.356807172 | W218: -0.0003691550147 | X218: 3.73468691 | Y218: -0.0133623554 | Z218: -1.632837846
R219: 76.88076418 | S219: =2*PI()*R219/B56 -> 0.0100636685 | T219: 0.0001012765689 | U219: 0.00313537399 | V219: -5.082524038 | W219: -0.0003840685077 | X219: 3.48947864 | Y219: -0.0139928582 | Z219: -1.604286951
R220: 78.41837946 | S220: =2*PI()*R220/B56 -> 0.01026494187 | T220: 0.0001053681063 | U220: 0.003261703053 | V220: -4.81412983 | W220: -0.0003995844753 | X220: 3.252237115 | Y220: -0.01465728288 | Z220: -1.573687879
R221: 79.98674705 | S221: =2*PI()*R221/B56 -> 0.01047024071 | T221: 0.0001096249389 | U221: 0.003393107755 | V221: -4.551922622 | W221: -0.000415727255 | X221: 3.023235565 | Y221: -0.01535783434 | Z221: -1.541067511
R222: 81.58648199 | S222: =2*PI()*R222/B56 -> 0.01067964552 | T222: 0.0001140537444 | U222: 0.003529790837 | V222: -4.296194209 | W222: -0.0004325221674 | X222: 2.802715935 | Y222: -0.01609689559 | Z222: -1.506477901
R223: 83.21821163 | S223: =2*PI()*R223/B56 -> 0.01089323843 | T223: 0.0001186614701 | U223: 0.003671963038 | V223: -4.047227027 | W223: -0.0004499955555 | X223: 2.590885541 | Y223: -0.0168770454 | Z223: -1.469996563
R224: 84.88257586 | S224: =2*PI()*R224/B56 -> 0.0111111032 | T224: 0.0001234553442 | U224: 0.003819843404 | V224: -3.805290948 | W224: -0.0004681748267 | X224: 2.387914121 | Y224: -0.01770107805 | Z224: -1.431726237
R225: 86.58022738 | S225: =2*PI()*R225/B56 -> 0.01133332526 | T225: 0.0001284428867 | U225: 0.003973659608 | V225: -3.570640016 | W225: -0.0004870884951 | X225: 2.193931377 | Y225: -0.01857202538 | Z225: -1.391794094
R226: 88.31183193 | S226: =2*PI()*R226/B56 -> 0.01155999177 | T226: 0.0001336319215 | U226: 0.004133648275 | V226: -3.343509179 | W226: -0.0005067662267 | X226: 2.009025108 | Y226: -0.01949318163 | Z226: -1.35035037
R227: 90.07806857 | S227: =2*PI()*R227/B56 -> 0.0117911916 | T227: 0.0001390305886 | U227: 0.004300055331 | V227: -3.124111115 | W227: -0.0005272388856 | X227: 1.833240014 | Y227: -0.02046813128 | Z227: -1.307566417
R228: 91.87962994 | S228: =2*PI()*R228/B56 -> 0.01202701543 | T228: 0.0001446473567 | U228: 0.004473136348 | V228: -2.912633229 | W228: -0.0005485385824 | X228: 1.6665772 | Y228: -0.02150078051 | Z228: -1.263632212
R229: 93.71722254 | S229: =2*PI()*R229/B56 -> 0.01226755574 | T229: 0.0001504910366 | U229: 0.00465315692 | V229: -2.709234893 | W229: -0.0005706987248 | X229: 1.508994433 | Y229: -0.02259539257 | Z229: -1.218753394
R230: 95.59156699 | S230: =2*PI()*R230/B56 -> 0.01251290686 | T230: 0.0001565707951 | U230: 0.004840393034 | V230: -2.514045034 | W230: -0.0005937540696 | X230: 1.360407129 | Y230: -0.0237566279 | Z230: -1.173147894
R231: 97.50339833 | S231: =2*PI()*R231/B56 -> 0.012763165 | T231: 0.0001628961694 | U231: 0.005035131466 | V231: -2.327160123 | W231: -0.0006177407774 | X231: 1.220690038 | Y231: -0.02498958961 | Z231: -1.127042284
R232: 99.4534663 | S232: =2*PI()*R232/B56 -> 0.0130184283 | T232: 0.0001694770817 | U232: 0.005237670187 | V232: -2.148642646 | W232: -0.0006426964694 | X232: 1.089679584 | Y232: -0.02629987504 | Z232: -1.080667963
R233: 101.4425356 | S233: =2*PI()*R233/B56 -> 0.01327879686 | T233: 0.0001763238552 | U233: 0.005448318785 | V233: -1.978520093 | W233: -0.0006686602859 | X233: 0.9671767688 | Y233: -0.02769363464 | Z233: -1.0342573
R234: 103.4713863 | S234: =2*PI()*R234/B56 -> 0.0135443728 | T234: 0.00018344723 | U234: 0.005667398892 | V234: -1.816784518 | W234: -0.0006956729482 | X234: 0.8529505457 | Y234: -0.02917763906 | Z234: -0.9880398857
R235: 105.5408141 | S235: =2*PI()*R235/B56 -> 0.01381526025 | T235: 0.0001908583802 | U235: 0.005895244641 | V235: -1.663392665 | W235: -0.0007237768219 | X235: 0.7467415554 | Y235: -0.03075935598 | Z235: -0.9422389979
R236: 107.6516303 | S236: =2*PI()*R236/B56 -> 0.01409156546 | T236: 0.0001985689312 | U236: 0.006132203125 | V236: -1.518266667 | W236: -0.0007530159838 | X236: 0.6482661119 | Y236: -0.03244703829 | Z236: -0.8970684063
R237: 109.8046629 | S237: =2*PI()*R237/B56 -> 0.01437339677 | T237: 0.0002065909779 | U237: 0.006378634878 | V237: -1.381295295 | W237: -0.0007834362905 | X237: 0.5572203215 | Y237: -0.03424982551 | Z237: -0.8527296003
R238: 112.0007562 | S238: =2*PI()*R238/B56 -> 0.0146608647 | T238: 0.0002149371039 | U238: 0.006634914368 | V238: -1.252335709 | W238: -0.0008150854507 | X238: 0.4732842271 | Y238: -0.0361778609 | Z238: -0.8094095134
R239: 114.2407713 | S239: =2*PI()*R239/B56 -> 0.014954082 | T239: 0.0002236204011 | U239: 0.006901430509 | V239: -1.131215658 | W239: -0.0008480130996 | X239: 0.3961258789 | Y239: -0.03824242686 | Z239: -0.7672787881
R240: 116.5255868 | S240: =2*PI()*R240/B56 -> 0.01525316364 | T240: 0.0002326544902 | U240: 0.00717858719 | V240: -1.017736059 | W240: -0.0008822708767 | X240: 0.3254052436 | Y240: -0.04045610227 | Z240: -0.726490601
R241: 118.8560985 | S241: =2*PI()*R241/B56 -> 0.01555822691 | T241: 0.000242053542 | U241: 0.007466803813 | V241: -0.9116738727 | W241: -0.0009179125069 | X241: 0.2607778811 | Y241: -0.04283294557 | Z241: -0.6871800459
R242: 121.2332205 | S242: =2*PI()*R242/B56 -> 0.01586939145 | T242: 0.0002518322998 | U242: 0.007766515859 | V242: -0.8127851984 | W242: -0.0009549938846 | X242: 0.2018983324 | Y242: -0.04538870883 | Z242: -0.6494640528
R243: 123.6578849 | S243: =2*PI()*R243/B56 -> 0.01618677928 | T243: 0.0002620061026 | U243: 0.008078175463 | V243: -0.7208084961 | W243: -0.0009935731613 | X243: 0.1484231788 | Y243: -0.04814108866 | Z243: -0.6134418036
R244: 126.1310426 | S244: =2*PI()*R244/B56 -> 0.01651051486 | T244: 0.0002725909087 | U244: 0.00840225201 | V244: =10*LOG10(($G$121+$G$122+$G$123)^2 + ( $G$121*$G$123*$T244 - ($G$122*($G$121+$G$123) + 4*$G$121*$G$123) )*$T244 ) - 10*LOG10( (1+$G$124+$G$125)^2 + ( 1*$G$125*$T244 - ($G$124*(1+$G$125) + 4*1*$G$125) )*$T244) -> -0.6354678629 | W244: =10*LOG10(($G$126+$G$127+$G$128)^2 + ( $G$126*$G$128*$T244 - ($G$127*($G$126+$G$128) + 4*$G$126*$G$128) )*$T244 ) - 10*LOG10( (1+$G$129+$G$130)^2 + ( 1*$G$130*$T244 - ($G$129*(1+$G$130) + 4*1*$G$130) )*$T244) -> -0.001033710836 | X244: =10*LOG10(($G$131+$G$132+$G$133)^2 + ( $G$131*$G$133*$T244 - ($G$132*($G$131+$G$133) + 4*$G$131*$G$133) )*$T244 ) - 10*LOG10( (1+$G$134+$G$135)^2 + ( 1*$G$135*$T244 - ($G$134*(1+$G$135) + 4*1*$G$135) )*$T244) -> 0.1000137478 | Y244: =10*LOG10(($G$136+$G$137+$G$138)^2 + ( $G$136*$G$138*$T244 - ($G$137*($G$136+$G$138) + 4*$G$136*$G$138) )*$T244 ) - 10*LOG10( (1+$G$139+$G$140)^2 + ( 1*$G$140*$T244 - ($G$139*(1+$G$140) + 4*1*$G$140) )*$T244) -> -0.05111002154 | Z244: =U244+V244+W244+X244+Y244 -> -0.5791955954
R245: 128.6536634 | S245: =2*PI()*R245/B56 -> 0.01684072516 | T245: =4*(SIN(S245/2))^2 -> 0.0002836033211 | U245: =10*LOG10(($G$116+$G$117+$G$118)^2 + ( $G$116*$G$118*T245 - ($G$117*($G$116+$G$118) + 4*$G$116*$G$118) )*T245 ) - 10*LOG10( (1+$G$119+$G$120)^2 + ( 1*$G$120*T245 - ($G$119*(1+$G$120) + 4*1*$G$120) )*T245) -> 0.008739232745 | V245: -0.5564762807 | W245: -0.001075469853 | X245: 0.05633845364 | Y245: -0.0543180327 | Z245: -0.5467920969
R246: 131.2267367 | S246: =2*PI()*R246/B56 -> 0.01717753966 | T246: 0.0002950606136 | U246: 0.009089623406 | V246: -0.4835387709 | W246: -0.001118915693 | X246: 0.01707477499 | Y246: -0.05779064995 | Z246: -0.5162839381
R247: 133.8512714 | S247: =2*PI()*R247/B56 -> 0.01752109046 | T247: 0.0003069807574 | U247: 0.009453948873 | V247: -0.4163553976 | W247: -0.001164116487 | X247: -0.01808912101 | Y247: -0.0615568965 | Z247: -0.4877115828
R248: 136.5282969 | S248: =2*PI()*R248/B56 -> 0.01787151227 | T248: 0.0003193824499 | U248: 0.009832753828 | V248: -0.3546240728 | W248: -0.001211143112 | X248: -0.04945308904 | Y248: -0.06564988061 | Z248: -0.4611054318
R249: 139.2588628 | S249: =2*PI()*R249/B56 -> 0.01822894251 | T249: 0.0003322851436 | U249: 0.01022660345 | V249: -0.2980431272 | W249: -0.001260069309 | X249: -0.0773040263 | Y249: -0.07010750421 | Z249: -0.4364881236
R250: 142.04404 | S250: =2*PI()*R250/B56 -> 0.01859352136 | T250: 0.0003457090766 | U250: 0.01063608409 | V250: -0.2463136233 | W250: -0.001310971796 | X250: -0.1019151755 | Y250: -0.07497331872 | Z250: -0.4138770052
R251: 144.8849208 | S251: =2*PI()*R251/B56 -> 0.01896539179 | T251: 0.0003596753047 | U251: 0.01106180405 | V251: -0.1991413957 | W251: -0.001363930387 | X251: -0.1235456798 | Y251: -0.08029756388 | Z251: -0.3932867657
R252: 147.7826193 | S252: =2*PI()*R252/B56 -> 0.01934469963 | T252: 0.0003742057338 | U252: 0.01150439424 | V252: -0.1562388137 | W252: -0.001419028119 | X252: -0.1424403593 | Y252: -0.08613843563 | Z252: -0.3747322425
R253: 150.7382716 | S253: =2*PI()*R253/B56 -> 0.01973159362 | T253: 0.000389323155 | U253: 0.01196450898 | V253: -0.1173262697 | W253: -0.001476351383 | X253: -0.1588296771 | Y253: -0.09256364227 | Z253: -0.3582314315
R254: 153.7530371 | S254: =2*PI()*R254/B56 -> 0.02012622549 | T254: 0.0004050512795 | U254: 0.0124428268 | V254: -0.0821334009 | W254: -0.001535990055 | X254: -0.1729298674 | Y254: -0.0996523261 | Z254: -0.3438087577
R255: 156.8280978 | S255: =2*PI()*R255/B56 -> 0.02052875 | T255: 0.0004214147765 | U255: 0.01294005115 | V255: -0.05040006189 | W255: -0.001598037641 | X255: -0.1849431957 | Y255: -0.1074974515 | Z255: -0.3314986955
R256: 159.9646598 | S256: =2*PI()*R256/B56 -> 0.020939325 | T256: 0.0004384393114 | U256: 0.01345691128 | V256: -0.02187706284 | W256: -0.001662591419 | X256: -0.1950583272 | Y256: -0.1162087925 | Z256: -0.3213498627
R257: 163.163953 | S257: =2*PI()*R257/B56 -> 0.0213581115 | T257: 0.0004561515863 | U257: 0.013994163 | V257: 0.003673303413 | W257: -0.001729752597 | X257: -0.2034507807 | Y257: -0.125916698 | Z257: -0.3134297649
R258: 166.427232 | S258: =2*PI()*R258/B56 -> 0.02178527373 | T258: 0.0004745793815 | U258: 0.01455258958 | V258: 0.02647692467 | W258: -0.001799626466 | X258: -0.2102834456 | Y258: -0.1367768726 | Z258: -0.3078304304
R259: 169.7557767 | S259: =2*PI()*R259/B56 -> 0.0222209792 | T259: 0.0004937515996 | U259: 0.01513300252 | V259: 0.04674769992 | W259: -0.001872322568 | X259: -0.2157071464 | Y259: -0.1489764964 | Z259: -0.3046752629
R260: 173.1508922 | S260: =2*PI()*R260/B56 -> 0.02266539879 | T260: 0.0005136983102 | U260: 0.0157362425 | V260: 0.06468751502 | W260: -0.001947954865 | X260: -0.2198612377 | Y260: -0.1627421289 | Z260: -0.304127564
R261: 176.6139101 | S261: =2*PI()*R261/B56 -> 0.02311870676 | T261: 0.0005344507976 | U261: 0.01636318015 | V261: 0.08048634174 | W261: -0.002026641919 | X261: -0.2228742184 | Y261: -0.1783500092 | Z261: -0.3064013476
R262: 180.1461883 | S262: =2*PI()*R262/B56 -> 0.0235810809 | T262: 0.0005560416093 | U262: 0.01701471704 | V262: 0.09432244011 | W262: -0.002108507078 | X262: -0.2248643514 | Y262: -0.1961396162 | Z262: -0.3117753175
R263: 183.749112 | S263: =2*PI()*R263/B56 -> 0.02405270252 | T263: 0.0005785046073 | U263: 0.01769178648 | V263: 0.1063626452 | W263: -0.002193678667 | X263: -0.2259402833 | Y263: -0.2165317099 | Z263: -0.3206112402
R264: 187.4240943 | S264: =2*PI()*R264/B56 -> 0.02453375657 | T264: 0.0006018750211 | U264: 0.01839535446 | V264: 0.116762721 | W264: -0.002282290188 | X264: -0.2262016543 | Y264: -0.2400526131 | Z264: -0.3333784822
R265: 191.1725761 | S265: =2*PI()*R265/B56 -> 0.0250244317 | T265: 0.000626189503 | U265: 0.01912642056 | V265: 0.1256677668 | W265: -0.002374480533 | X265: -0.225739693 | Y265: -0.2673672985 | Z265: -0.3506872846
R266: 194.9960277 | S266: =2*PI()*R266/B56 -> 0.02552492033 | T266: 0.0006514861854 | U266: 0.01988601878 | V266: 0.1332126621 | W266: -0.002470394197 | X266: -0.224637793 | Y266: -0.2993250793 | Z266: -0.3733345856
R267: 198.8959482 | S267: =2*PI()*R267/B56 -> 0.02603541874 | T267: 0.0006778047406 | U267: 0.02067521855 | V267: 0.1395225378 | W267: -0.002570181504 | X267: -0.2229720668 | Y267: -0.3370236261 | Z267: -0.4023681181
R268: 202.8738672 | S268: =2*PI()*R268/B56 -> 0.02655612711 | T268: 0.0007051864428 | U268: 0.02149512551 | V268: 0.1447132652 | W268: -0.002673998846 | X268: -0.2208118746 | Y268: -0.3819000748 | Z268: -0.4391775576
R269: 206.9313445 | S269: =2*PI()*R269/B56 -> 0.02708724966 | T269: 0.0007336742331 | U269: 0.02234688246 | V269: 0.1488919524 | W269: -0.002782008922 | X269: -0.2182203278 | Y269: -0.4358629164 | Z269: -0.4856264183
R270: 211.0699714 | S270: =2*PI()*R270/B56 -> 0.02762899465 | T270: 0.0007633127866 | U270: 0.02323167022 | V270: 0.1521574426 | W270: -0.002894380995 | X270: -0.2152547642 | Y270: -0.5014864946 | Z270: -0.5442465269
R271: 215.2913708 | S271: =2*PI()*R271/B56 -> 0.02818157454 | T271: 0.0007941485822 | U271: 0.02415070845 | V271: 0.1546008073 | W271: -0.003011291157 | X271: -0.211967197 | Y271: -0.5823036721 | Z271: -0.6185306446
R272: 219.5971983 | S272: =2*PI()*R272/B56 -> 0.02874520603 | T272: 0.0008262299757 | U272: 0.02510525651 | V272: 0.1563058302 | W272: -0.003132922603 | X272: -0.208404736 | Y272: -0.6832560051 | Z272: -0.713382577
R273: 223.9891422 | S273: =2*PI()*R273/B56 -> 0.02932011015 | T273: 0.0008596072754 | U273: 0.02609661424 | V273: 0.1573494785 | W273: -0.003259465916 | X273: -0.2046099814 | Y273: -0.8114029887 | Z273: -0.8358263433
R274: 228.4689251 | S274: =2*PI()*R274/B56 -> 0.02990651236 | T274: 0.0008943328209 | U274: 0.02712612275 | V274: 0.1578023575 | W274: -0.003391119366 | X274: -0.2006213925 | Y274: -0.9770690429 | Z274: -0.9961530745
R275: 233.0383036 | S275: =2*PI()*R275/B56 -> 0.03050464261 | T275: 0.000930461065 | U275: 0.02819516507 | V275: 0.1577291484 | W275: -0.00352808922 | X275: -0.1964736302 | Y275: -1.195751984 | Z275: -1.20982939
R276: 237.6990696 | S276: =2*PI()*R276/B56 -> 0.03111473546 | T276: 0.0009680486593 | U276: 0.02930516691 | V276: 0.1571890249 | W276: -0.003670590062 | X276: -0.1921978758 | Y276: -1.49139895 | Z276: -1.500773224
... 223 more rows

Sheet Equalizer 96 kHz
B16: LPF | C16: HPF | D16: Hi Shelf | E16: Lo Shelf | F16: PeakingEQ
H17: Select Slider, then
H18: Page up/Down : Big Jump
H19: Up/Down arrows : Fine tune
H22: References :
H23: Cookbook | J23: http://www.musicdsp.org/files/Audio-EQ-Cookbook.txt
H24: Freq Response | J24: http://groups.google.com/group/comp.dsp/browse_frm/thread/8c0fa8d396aeb444/a1bc5b63ac56b686
H26: Usenet thread | J26: http://www.dsprelated.com/showmessage/50960/1.php
A34: F0 | B34: =10^(B48/333333)*20 -> 2000 | C34: =10^(C48/333333)*20 -> 99.99739687 | D34: =10^(D48/333333)*20 -> 10000.01599 | E34: =10^(E48/333333)*20 -> 49.99774228 | F34: =10^(F48/333333)*20 -> 274.9983791
A35: Q | B35: =B49/1000000*10+0.002 -> 0.81527 | C35: =C49/1000000*10+0.002 -> 0.78515 | D35: =D49/1000000*10+0.002 -> 1.05623 | E35: =E49/1000000*10+0.002 -> 0.81527 | F35: =F49/1000000*30+0.002 -> 30.002
A36: dBgain | B36: =(B50-500000)/500000*30 -> -29.99994 | C36: =(C50-500000)/500000*30 -> -29.99994 | D36: =(D50-500000)/500000*30 -> 14.4579 | E36: =(E50-500000)/500000*30 -> 19.9956 | F36: =(F50-500000)/500000*30 -> -29.99994
A37: IdBoffset | B37: =((B51-500000)/500000*20) -> 0 | C37: =((C51-500000)/500000*20) -> 0 | D37: =((D51-500000)/500000*20) -> 0 | E37: =((E51-500000)/500000*20) -> 0 | F37: =((F51-500000)/500000*20) -> 0
A48: S1 | B48: 666666 | C48: 232986 | D48: 899656 | E48: 132640 | F48: 379433 | I48: Master dB | J48: 500000
A49: S2 | B49: 81327 | C49: 78315 | D49: 105423 | E49: 81327 | F49: 1000000 | I49: Normal dB | J49: =(J48-500000)/500000*20 -> 0
A50: S3 | B50: 1 | C50: 1 | D50: 740965 | E50: 833260 | F50: 1 | J50: =10^(J49/20) -> 1
A51: S4 | B51: 500000 | C51: 500000 | D51: 500000 | E51: 500000 | F51: 500000 | J51: =J50 -> 1
B56: 96000 | C56: Hz
B59: LPF | C59: HPF | D59: Hi Shelf | E59: Lo Shelf | F59: Peaking EQ
A60: A | B60: =SQRT( 10^((B36)/20) ) -> 0.1778285552 | C60: =SQRT( 10^((C36)/20) ) -> 0.1778285552 | D60: =10^((D36)/40) -> 2.298515835 | E60: =10^((E36)/40) -> 3.161476806 | F60: =10^((F36)/40) -> 0.1778285552
A61: wo | B61: =2*PI()*B34/B56 -> 0.1308996939 | C61: =2*PI()*C34/B56 -> 0.006544814321 | D61: =2*PI()*D34/B56 -> 0.6544995163 | E61: =2*PI()*E34/B56 -> 0.00327234458 | F61: =2*PI()*F34/B56 -> 0.01799860182
A62: cos(wo) | B62: =COS(B61) -> 0.9914448614 | C62: =COS(C61) -> 0.9999785828 | D62: =COS(D61) -> 0.793352703 | E62: =COS(E61) -> 0.9999946459 | F62: =COS(F61) -> 0.9998380295
A63: sin(wo) | B63: =SIN(B61) -> 0.1305261922 | C63: =SIN(C61) -> 0.006544767597 | D63: =SIN(D61) -> 0.6087622595 | E63: =SIN(E61) -> 0.00327233874 | F63: =SIN(F61) -> 0.01799763006
A64: Alpha | B64: =B63/(2*B35) -> 0.08005089861 | C64: =C63/(2*C35) -> 0.004167845378 | D64: =D63/(2*D35) -> 0.2881769404 | E64: =E63/(2*E35) -> 0.002006904915 | F64: =F63/(2*F35) -> 0.000299940505
A65: Lingain | B65: =10^(B37/20) -> 1 | C65: =10^(C37/20) -> 1 | D65: =10^(D37/20) -> 1 | E65: =10^(E37/20) -> 1 | F65: =10^(F37/20) -> 1
K66: Coefficients
K67: B0 | L67: B1 | M67: B2 | N67: -A1 | O67: -A2
A68: B0 | B68: =B65*J51*(1 - B62)/2 -> 0.004277569313 | C68: =C65*J51*(1 + C62)/2 -> 0.9999892914 | D68: =D65*J51*(D60*( (D60+1) + (D60-1)*D62 + 2*SQRT(D60)*D64 )) -> 11.95802577 | E68: =E65*J51*(E60*( (E60+1) - (E60-1)*E62 + 2*SQRT(E60)*E64 )) -> 6.345552937 | F68: =F65*$J$51*(1+(F64*F60)) -> 1.000053338 | J68: BQ0 | K68: =(B68/B71) -> 0.003960525674 | L68: =(B69/B71) -> 0.007921051348 | M68: =(B70/B71) -> 0.003960525674 | N68: =(-B72/B71) -> 1.835922479 | O68: =(-B73/B71) -> -0.8517645813
A69: B1 | B69: =B65*J51*(1 - B62) -> 0.008555138626 | C69: =C65*J51*-(1 + C62) -> -1.999978583 | D69: =D65*J51*(-2*D60*( (D60-1) + (D60+1)*D62 )) -> -17.99922832 | E69: =E65*J51*(2*E60*( (E60-1) - (E60+1)*E62 )) -> -12.64576634 | F69: =F65*$J$51*(-2*F62) -> -1.999676059 | J69: BQ1 | K69: =(C68/C71) -> 0.9958387893 | L69: =(C69/C71) -> -1.991677579 | M69: =(C70/C71) -> 0.9958387893 | N69: =(-C72/C71) -> 1.99165625 | O69: =(-C73/C71) -> -0.9916989069
A70: B2 | B70: =B65*J51*((1 - B62)/2) -> 0.004277569313 | C70: =C65*J51*(1 +C62)/2 -> 0.9999892914 | D70: =D65*J51*(D60*( (D60+1) + (D60-1)*D62 - 2*SQRT(D60)*D64 )) -> 7.941130884 | E70: =E65*J51*(E60*( (E60+1) - (E60-1)*E62 - 2*SQRT(E60)*E64 )) -> 6.300427462 | F70: =F65*$J$51*(1-(F60*F64)) -> 0.999946662 | J70: BQ2 | K70: =(D68/D71) -> 3.805698816 | L70: =(D69/D71) -> -5.72834038 | M70: =(D70/D71) -> 2.527302832 | N70: =(-D72/D71) -> 0.8391554924 | O70: =(-D73/D71) -> -0.4438167603
A71: A0 | B71: =1+B64 -> 1.080050899 | C71: =1+C64 -> 1.004167845 | D71: =(D60+1) - (D60-1)*D62 + 2*SQRT(D60)*D64 -> 3.142136661 | E71: =(E60+1) + (E60-1)*E62 + 2*SQRT(E60)*E64 -> 6.330078811 | F71: =1 + (F64/F60) -> 1.001686684 | J71: BQ3 | K71: =(E68/E71) -> 1.002444539 | L71: =(E69/E71) -> -1.997726524 | M71: =(E70/E71) -> 0.9953158009 | N71: =(-E72/E71) -> 1.997741741 | O71: =(-E73/E71) -> -0.997745124
A72: A1 | B72: =-2*B62 -> -1.982889723 | C72: =-2*C62 -> -1.999957166 | D72: =2*((D60-1)-(D60+1)*D62) -> -2.636741237 | E72: =-2*((E60-1)+(E60+1)*E62) -> -12.64586266 | F72: =-2*F62 -> -1.999676059 | J72: BQ4 | K72: =(F68/F71) -> 0.9983694047 | L72: =(F69/F71) -> -1.996308918 | M72: =(F70/F71) -> 0.9982629084 | N72: =(-F72/F71) -> 1.996308918 | O72: =(-F73/F71) -> -0.9966323131
A73: A2 | B73: =1-B64 -> 0.9199491014 | C73: =1-C64 -> 0.9958321546 | D73: =(D60+1) - (D60-1)*D62 - 2*SQRT(D60)*D64 -> 1.394532913 | E73: =(E60+1) +(E60-1)*E62 - 2*SQRT(E60)*E64 -> 6.315805268 | F73: =1-(F64/F60) -> 0.9983133164
B109: Fo | C109: 563154 | D109: =10^(C109/333333)*20 -> 978.348729 | E109: =LOG(C109) -> 5.750627173
B110: Q | C110: 912551 | D110: =C110/1000000*7 -> 6.387857
B111: dBgain | C111: 361479 | D111: =(C111-500000)/500000*20 -> -5.54084
B112: Master dbgain | C112: 554218 | D112: =(C112-500000)/500000*20 -> 2.16872
C113: 538360 | U113: PRE-EQ | AE113: POST-EQ
U114: LPF | V114: HPF | W114: Hi Shelf | X114: Low Shelf | Y114: Peak EQ | Z114: Total
R115: FREQ | S115: w | T115: Phi | U115: CH1 Pre-EQ1 | V115: CH1 Pre-EQ2 | W115: CH1 Pre-EQ3 | X115: CH1 Pre-EQ4 | Y115: CH1 Pre-EQ5 | Z115: CH1 Pre-EQ | AE115: CH1 Post-EQ1 | AF115: CH1 Post-EQ2 | AG115: CH1 Post-EQ3 | AH115: CH1 Post-EQ4 | AI115: CH1 Post-EQ5 | AJ115: CH1 Post-EQ | AL115: CH1 Pre + Post
C116: pre1 | D116: B0 | E116: 1 | G116: =B68/B71 -> 0.003960525674 | R116: 10 | S116: =2*PI()*R116/B56 -> 0.0006544984695 | T116: =4*(SIN(S116/2))^2 -> 4.283682313e-07 | U116: =10*LOG10(($G$116+$G$117+$G$118)^2 + ( $G$116*$G$118*T116 - ($G$117*($G$116+$G$118) + 4*$G$116*$G$118) )*T116 ) - 10*LOG10( (1+$G$119+$G$120)^2 + ( 1*$G$120*T116 - ($G$119*(1+$G$120) + 4*1*$G$120) )*T116) -> 5.364046262e-05 | V116: =10*LOG10(($G$121+$G$122+$G$123)^2 + ( $G$121*$G$123*$T116 - ($G$122*($G$121+$G$123) + 4*$G$121*$G$123) )*$T116 ) - 10*LOG10( (1+$G$124+$G$125)^2 + ( 1*$G$125*$T116 - ($G$124*(1+$G$125) + 4*1*$G$125) )*$T116) -> -39.9836041 | W116: =10*LOG10(($G$126+$G$127+$G$128)^2 + ( $G$126*$G$128*$T116 - ($G$127*($G$126+$G$128) + 4*$G$126*$G$128) )*$T116 ) - 10*LOG10( (1+$G$129+$G$130)^2 + ( 1*$G$130*$T116 - ($G$129*(1+$G$130) + 4*1*$G$130) )*$T116) -> -8.300849406e-06 | X116: =10*LOG10(($G$131+$G$132+$G$133)^2 + ( $G$131*$G$133*$T116 - ($G$132*($G$131+$G$133) + 4*$G$131*$G$133) )*$T116 ) - 10*LOG10( (1+$G$134+$G$135)^2 + ( 1*$G$135*$T116 - ($G$134*(1+$G$135) + 4*1*$G$135) )*$T116) -> 20.17654913 | Y116: =10*LOG10(($G$136+$G$137+$G$138)^2 + ( $G$136*$G$138*$T116 - ($G$137*($G$136+$G$138) + 4*$G$136*$G$138) )*$T116 ) - 10*LOG10( (1+$G$139+$G$140)^2 + ( 1*$G$140*$T116 - ($G$139*(1+$G$140) + 4*1*$G$140) )*$T116) -> -0.0002020699945 | Z116: =U116+V116+W116+X116+Y116 -> -19.8072117 | AE116: =10*LOG10(($G$141+$G$142+$G$143)^2 + ( $G$141*$G$143*$T116 - ($G$142*($G$141+$G$143) + 4*$G$141*$G$143) )*$T116 ) - 10*LOG10( (1+$G$144+$G$145)^2 + ( 1*$G$145*$T116 - ($G$144*(1+$G$145) + 4*1*$G$145) )*$T116) -> -1.516127187e-05 | AF116: =10*LOG10(($G$146+$G$147+$G$148)^2 + ( $G$146*$G$148*$T116 - ($G$147*($G$146+$G$148) + 4*$G$146*$G$148) )*$T116 ) - 10*LOG10( (1+$G$149+$G$150)^2 + ( 1*$G$150*$T116 - ($G$149*(1+$G$150) + 4*1*$G$150) )*$T116) -> 0.002315092408 | AG116: =10*LOG10(($G$151+$G$152+$G$153)^2 + ( $G$151*$G$153*$T116 - ($G$152*($G$151+$G$153) + 4*$G$151*$G$153) )*$T116 ) - 10*LOG10( (1+$G$154+$G$155)^2 + ( 1*$G$155*$T116 - ($G$154*(1+$G$155) + 4*1*$G$155) )*$T116) -> -4.12460407 | AH116: =10*LOG10(($G$156+$G$157+$G$158)^2 + ( $G$156*$G$158*$T116 - ($G$157*($G$156+$G$158) + 4*$G$156*$G$158) )*$T116 ) - 10*LOG10( (1+$G$159+$G$160)^2 + ( 1*$G$160*$T116 - ($G$159*(1+$G$160) + 4*1*$G$160) )*$T116) -> 0.05119857558 | AI116: =10*LOG10(($G$161+$G$162+$G$163)^2 + ( $G$161*$G$163*$T116 - ($G$162*($G$161+$G$163) + 4*$G$161*$G$163) )*$T116 ) - 10*LOG10( (1+$G$164+$G$165)^2 + ( 1*$G$165*$T116 - ($G$164*(1+$G$165) + 4*1*$G$165) )*$T116) -> 5.213856782e-05 | AJ116: =AE116+AF116+AG116+AH116+AI116 -> -4.071053425 | AL116: =AJ116+Z116 -> -23.87826513
C117: LPF | D117: B1 | E117: 2 | G117: =B69/B71 -> 0.007921051348 | R117: 10.2 | S117: =2*PI()*R117/B56 -> 0.0006675884389 | T117: =4*(SIN(S117/2))^2 -> 4.456743072e-07 | U117: =10*LOG10(($G$116+$G$117+$G$118)^2 + ( $G$116*$G$118*T117 - ($G$117*($G$116+$G$118) + 4*$G$116*$G$118) )*T117 ) - 10*LOG10( (1+$G$119+$G$120)^2 + ( 1*$G$120*T117 - ($G$119*(1+$G$120) + 4*1*$G$120) )*T117) -> 5.580743796e-05 | V117: -39.63896768 | W117: -8.636203432e-06 | X117: 20.18102993 | Y117: -0.0002102559169 | Z117: -19.45810084 | AE117: -1.577391842e-05 | AF117: 0.002408616283 | AG117: -4.122383913 | AH117: 0.05119911104 | AI117: 5.424548419e-05 | AJ117: -4.068737714 | AL117: -23.52683856
D118: B2 | E118: 3 | G118: =B70/B71 -> 0.003960525674 | R118: 10.404 | S118: =2*PI()*R118/B56 -> 0.0006809402077 | T118: 4.636795485e-07 | U118: 5.806195091e-05 | V118: -39.29430725 | W118: -8.985105739e-06 | X118: 20.18544828 | Y118: -0.0002187743923 | Z118: -19.10902867 | AE118: -1.64113267e-05 | AF118: 0.002505918039 | AG118: -4.1200758 | AH118: 0.05119966814 | AI118: 5.643756273e-05 | AJ118: -4.066330188 | AL118: -23.17535886
D119: -A1 | E119: 4 | G119: =B72/B71 -> -1.835922479 | R119: 10.61208 | S119: =2*PI()*R119/B56 -> 0.0006945590118 | T119: 4.824122015e-07 | U119: 6.040753732e-05 | V119: -38.94962194 | W119: -9.348103672e-06 | X119: 20.18978056 | Y119: -0.0002276390081 | Z119: -18.76001796 | AE119: -1.707449797e-05 | AF119: 0.002607150265 | AG119: -4.117676318 | AH119: 0.05120024774 | AI119: 5.871824752e-05 | AJ119: -4.063827276 | AL119: -22.82384523
D120: -A2 | E120: 5 | G120: =B73/B71 -> 0.8517645813 | R120: 10.8243216 | S120: =2*PI()*R120/B56 -> 0.0007084501921 | T120: 5.019016536e-07 | U120: 6.284787582e-05 | V120: -38.60491088 | W120: -9.725766692e-06 | X120: 20.19400041 | Y120: -0.0002368639132 | Z120: -18.41109422 | AE120: -1.776447404e-05 | AF120: 0.002712471706 | AG120: -4.115181928 | AH120: 0.05120085076 | AI120: 6.109112205e-05 | AJ120: -4.061225279 | AL120: -22.4723195
C121: pre2 | D121: B0 | E121: 6 | G121: =C68/C71 -> 0.9958387893 | R121: 11.04080803 | S121: =2*PI()*R121/B56 -> 0.0007226191959 | T121: 5.221784796e-07 | U121: 6.538679361e-05 | V121: -38.26017317 | W121: -1.011868727e-05 | X121: 20.19807839 | Y121: -0.0002464638421 | Z121: -18.06228598 | AE121: -1.848233885e-05 | AF121: 0.002822047521 | AG121: -4.112588959 | AH121: 0.05120147814 | AI121: 6.355991493e-05 | AJ121: -4.058520356 | AL121: -22.12080634
C122: HPF | D122: B1 | E122: 7 | G122: =C69/C71 -> -1.991677579 | R122: 11.26162419 | S122: =2*PI()*R122/B56 -> 0.0007370715798 | T122: 5.432744892e-07 | U122: 6.802827243e-05 | V122: -37.91540788 | W122: -1.052748181e-05 | X122: 20.20198177 | Y122: -0.0002564541389 | Z122: -17.71362506 | AE122: -1.922922024e-05 | AF122: 0.002936049537 | AG122: -4.109893607 | AH122: 0.05120213087 | AI122: 6.612850569e-05 | AJ122: -4.055708528 | AL122: -21.76933359
D123: B2 | E123: 8 | G123: =C70/C71 -> 0.9958387893 | R123: 11.48685668 | S123: =2*PI()*R123/B56 -> 0.0007518130114 | T123: 5.652227775e-07 | U123: 7.077645483e-05 | V123: -37.57061405 | W123: -1.095279161e-05 | X123: 20.2056742 | Y123: -0.0002668507841 | Z123: -17.36514688 | AE123: -2.000629172e-05 | AF123: 0.003054656517 | AG123: -4.107091928 | AH123: 0.05120280997 | AI123: 6.880093106e-05 | AJ123: -4.052785666 | AL123: -21.41793254
D124: -A1 | E124: 9 | G124: =C72/C71 -> -1.99165625 | R124: 11.71659381 | S124: =2*PI()*R124/B56 -> 0.0007668492716 | T124: 5.880577766e-07 | U124: 7.363565062e-05 | V124: -37.22579071 | W124: -1.139528388e-05 | X124: 20.20911537 | Y124: -0.0002776704209 | Z124: -17.01689077 | AE124: -2.081477427e-05 | AF124: 0.003178054442 | AG124: -4.104179831 | AH124: 0.0512035165 | AI124: 7.158139116e-05 | AJ124: -4.049747493 | AL124: -21.06663826
D125: -A2 | E125: 10 | G125: =C73/C71 -> 0.9916989069 | R125: 11.95092569 | S125: =2*PI()*R125/B56 -> 0.0007821862571 | T125: 6.118153096e-07 | U125: 7.661034367e-05 | V125: -36.88093686 | W125: -1.185565281e-05 | X125: 20.21226067 | Y125: -0.0002889303836 | Z125: -16.66890036 | AE125: -2.165593835e-05 | AF125: 0.003306436804 | AG125: -4.101153079 | AH125: 0.05120425158 | AI125: 7.447425628e-05 | AJ125: -4.046589573 | AL125: -20.71548993
C126: pre3 | D126: B0 | E126: 11 | G126: =D68/D71 -> 3.805698816 | R126: 12.1899442 | S126: =2*PI()*R126/B56 -> 0.0007978299822 | T126: 6.365326468e-07 | U126: 7.970519887e-05 | V126: -36.53605146 | W126: -1.233462059e-05 | X126: 20.2150608 | Y126: -0.0003006487275 | Z126: -16.32122394 | AE126: -2.253110583e-05 | AF126: 0.003440004903 | AG126: -4.098007283 | AH126: 0.05120501636 | AI126: 7.748407371e-05 | AJ126: -4.043307309 | AL126: -20.36453125
C127: Hi Shelf | D127: B1 | E127: 12 | G127: =D69/D71 -> -5.72834038 | R127: 12.43374308 | S127: =2*PI()*R127/B56 -> 0.0008137865819 | T127: 6.622485643e-07 | U127: 8.292506952e-05 | V127: -36.19113347 | W127: -1.283293862e-05 | X127: 20.21746136 | Y127: -0.0003128442592 | Z127: -15.97391486 | AE127: -2.344165215e-05 | AF127: 0.003578968169 | AG127: -4.094737892 | AH127: 0.05120581203 | AI127: 8.061557497e-05 | AJ127: -4.039895938 | AL127: -20.0138108
D128: B2 | E128: 13 | G128: =D70/D71 -> 2.527302832 | R128: 12.68241795 | S128: =2*PI()*R128/B56 -> 0.0008300623135 | T128: 6.890034047e-07 | U128: 8.627500487e-05 | V128: -35.84618181 | W128: -1.335138865e-05 | X128: 20.21940244 | Y128: -0.000325536569 | Z128: -15.62703199 | AE128: -2.438900842e-05 | AF128: 0.003723544485 | AG128: -4.091340195 | AH128: 0.05120663985 | AI128: 8.387368328e-05 | AJ128: -4.036350526 | AL128: -19.66338251
D129: -A1 | E129: 14 | G129: =D72/D71 -> -0.8391554924 | R129: 12.9360663 | S129: =2*PI()*R129/B56 -> 0.0008466635598 | T129: 7.168391406e-07 | U129: 8.976025802e-05 | V129: -35.50119539 | W129: -1.389078401e-05 | X129: 20.22081813 | Y129: -0.0003387460646 | Z129: -15.28064013 | AE129: -2.537466372e-05 | AF129: 0.003873960531 | AG129: -4.08780931 | AH129: 0.05120750111 | AI129: 8.726352135e-05 | AJ129: -4.03266596 | AL129: -19.31330609
D130: -A2 | E130: 15 | G130: =D73/D71 -> 0.4438167603 | R130: 13.19478763 | S130: =2*PI()*R130/B56 -> 0.000863596831 | T130: 7.457994401e-07 | U130: 9.33862942e-05 | V130: -35.15617307 | W130: -1.445197087e-05 | X130: 20.22163605 | Y130: -0.000352494006 | Z130: -14.93481058 | AE130: -2.640016749e-05 | AF130: 0.004030452138 | AG130: -4.084140186 | AH130: 0.05120839717 | AI130: 9.079041948e-05 | AJ130: -4.028836946 | AL130: -18.96364752
C131: pre4 | D131: B0 | E131: 16 | G131: =E68/E71 -> 1.002444539 | R131: 13.45868338 | S131: =2*PI()*R131/B56 -> 0.0008808687676 | T131: 7.759297355e-07 | U131: 9.715879933e-05 | V131: -34.81111371 | W131: -1.503582962e-05 | X131: 20.22177683 | Y131: -0.000366802543 | Z131: -14.58962156 | AE131: -2.746713191e-05 | AF131: 0.004193264654 | AG131: -4.080327589 | AH131: 0.05120932943 | AI131: 9.445992404e-05 | AJ131: -4.024858002 | AL131: -18.61447956
C132: Lo Shelf | D132: B1 | E132: 17 | G132: =E69/E71 -> -1.997726524 | R132: 13.72785705 | S132: =2*PI()*R132/B56 -> 0.0008984861429 | T132: 8.072772947e-07 | U132: 0.0001010836888 | V132: -34.46601616 | W132: -1.564327619e-05 | X132: 20.22115357 | Y132: -0.0003816947526 | Z132: -14.24515884 | AE132: -2.857723445e-05 | AF132: 0.004362653333 | AG132: -4.076366105 | AH132: 0.05121029936 | AI132: 9.827780618e-05 | AJ132: -4.020723451 | AL132: -18.26588229
D133: B2 | E133: 18 | G133: =E70/E71 -> 0.9953158009 | R133: 14.00241419 | S133: =2*PI()*R133/B56 -> 0.0009164558658 | T133: 8.398912952e-07 | U133: 0.000105167117 | V133: -34.12087923 | W133: -1.627526352e-05 | X133: 20.21967128 | Y133: -0.0003971946802 | Z133: -13.90151625 | AE133: -2.973222064e-05 | AF133: 0.004538883731 | AG133: -4.072250129 | AH133: 0.05121130847 | AI133: 0.0001022500711 | AJ133: -4.016427419 | AL133: -17.91794367
D134: -A1 | E134: 19 | G134: =E72/E71 -> -1.997741741 | R134: 14.28246248 | S134: =2*PI()*R134/B56 -> 0.0009347849831 | T134: 8.73822901e-07 | U134: 0.0001094154865 | V134: -33.77570171 | W134: -1.693278305e-05 | X134: 20.21722626 | Y134: -0.000413327381 | Z134: -13.55879629 | AE134: -3.093390669e-05 | AF134: 0.004722232125 | AG134: -4.067973865 | AH134: 0.05121235835 | AI134: 0.0001063829673 | AJ134: -4.011963825 | AL134: -17.57076012
D135: -A2 | E135: 20 | G135: =E73/E71 -> 0.997745124 | R135: 14.56811173 | S135: =2*PI()*R135/B56 -> 0.0009534806828 | T135: 9.091253435e-07 | U135: 0.0001138354588 | V135: -33.43048239 | W135: -1.761686628e-05 | X135: 20.21370557 | Y135: -0.0004301189646 | Z135: -13.21711073 | AE135: -3.218418244e-05 | AF135: 0.004912985939 | AG135: -4.063531313 | AH135: 0.05121345064 | AI135: 0.0001106829969 | AJ135: -4.007326378 | AL135: -17.2244371
C136: pre5 | D136: B0 | E136: 21 | G136: =F68/F71 -> 0.9983694047 | R136: 14.85947396 | S136: =2*PI()*R136/B56 -> 0.0009725502964 | T136: 9.458540045e-07 | U136: 0.0001184339638 | V136: -33.08522005 | W136: -1.832858638e-05 | X136: 20.20898634 | Y136: -0.0004475966406 | Z136: -12.8765812 | AE136: -3.348501436e-05 | AF136: 0.005111444201 | AG136: -4.058916272 | AH136: 0.05121458706 | AI136: 0.0001151569257 | AJ136: -4.002508569 | AL136: -16.87908977
C137: PeakEQ | D137: B1 | E137: 22 | G137: =F69/F71 -> -1.996308918 | R137: 15.15666344 | S137: =2*PI()*R137/B56 -> 0.0009920013024 | T137: 9.840665032e-07 | U137: 0.0001232182115 | V137: -32.73991343 | W137: -1.906905986e-05 | X137: 20.20293519 | Y137: -0.000465788767 | Z137: -12.53733987 | AE137: -3.48384486e-05 | AF137: 0.005317918003 | AG137: -4.054122329 | AH137: 0.0512157694 | AI137: 0.0001198117939 | AJ137: -3.997503668 | AL137: -16.53484354
A138: Master A | B138: =SQRT( 10^((D112)/20) ) -> 1.13296893 | D138: B2 | E138: 23 | G138: =F70/F71 -> 0.9982629084 | R138: 15.45979671 | S138: =2*PI()*R138/B56 -> 0.001011841328 | T138: 1.023822787e-06 | U138: 0.0001281957029 | V138: -32.39456128 | W138: -1.983944835e-05 | X138: 20.19540762 | Y138: -0.000484724901 | Z138: -12.19953004 | AE138: -3.624661434e-05 | AF138: 0.005532730996 | AG138: -4.049142856 | AH138: 0.0512169995 | AI138: 0.0001246549272 | AJ138: -3.992304717 | AL138: -16.19183475
A139: A | B139: =SQRT( 10^((D111)/20) ) -> 0.7269072493 | D139: -A1 | E139: 24 | G139: =F72/F71 -> -1.996308918 | R139: 15.76899264 | S139: =2*PI()*R139/B56 -> 0.001032078155 | T139: 1.065185223e-06 | U139: 0.0001333742417 | V139: -32.04916236 | W139: -2.064096041e-05 | X139: 20.18624735 | Y139: -0.0005044358513 | Z139: -11.86330672 | AE139: -3.771172707e-05 | AF139: 0.005756219889 | AG139: -4.043971003 | AH139: 0.0512182793 | AI139: 0.0001296939488 | AJ139: -3.986904522 | AL139: -15.85021124
A140: wo | B140: =2*PI()*D109/B56 -> 0.06403277457 | D140: -A2 | E140: 25 | G140: =F73/F71 -> 0.9966323131 | R140: 16.08437249 | S140: =2*PI()*R140/B56 -> 0.001052719718 | T140: 1.108218702e-06 | U140: 0.0001387619467 | V140: -31.7037154 | W140: -2.147485343e-05 | X140: 20.1752858 | Y140: -0.0005249537343 | Z140: -11.52883727 | AE140: -3.923609217e-05 | AF140: 0.005988734979 | AG140: -4.038599695 | AH140: 0.05121961081 | AI140: 0.0001349367913 | AJ140: -3.981295648 | AL140: -15.51013291
A141: cos(wo) | B141: =COS(B140) -> 0.9979506023 | C141: post1 | D141: B0 | E141: 26 | G141: =B186/B189 -> 0.9967727075 | R141: 16.40605994 | S141: =2*PI()*R141/B56 -> 0.001073774112 | T141: 1.152990734e-06 | U141: 0.0001443672643 | V141: -31.35821915 | W141: -2.234243557e-05 | X141: 20.16234152 | Y141: -0.0005463120313 | Z141: -11.19630191 | AE141: -4.082210852e-05 | AF141: 0.006230640697 | AG141: -4.033021622 | AH141: 0.05122099611 | AI141: 0.000140391709 | AJ141: -3.975470416 | AL141: -15.17177233
A142: sin(wo) | B142: =SIN(B140) -> 0.06398902572 | D142: B1 | E142: 27 | G142: =B187/B189 -> -1.982242856 | R142: 16.73418114 | S142: =2*PI()*R142/B56 -> 0.001095249595 | T142: 1.199571555e-06 | U142: 0.000150198982 | V142: -31.01267236 | W142: -2.324506787e-05 | X142: 20.14721969 | Y142: -0.00056854565 | Z142: -10.86589426 | AE142: -4.247227236e-05 | AF142: 0.006482316179 | AG142: -4.02722924 | AH142: 0.05122243738 | AI142: 0.0001460672918 | AJ142: -3.969420892 | AL142: -14.83531515
A143: Alpha | B143: =B142/(2*D110) -> 0.005008645757 | D143: B2 | E143: 28 | G143: =B188/B189 -> 0.9895408954 | R143: 17.06886477 | S143: =2*PI()*R143/B56 -> 0.001117154587 | T143: 1.24803424e-06 | U143: 0.0001562662417 | V143: -30.66707378 | W143: -2.418416635e-05 | X143: 20.12971169 | Y143: -0.000591690988 | Z143: -10.5378217 | AE143: -4.41891812e-05 | AF143: 0.006744155858 | AG143: -4.021214762 | AH143: 0.05122393687 | AI143: 0.000151972478 | AJ143: -3.963138886 | AL143: -14.50096058
D144: -A1 | E144: 29 | G144: =B190/B189 -> -1.982242856 | R144: 17.41024206 | S144: =2*PI()*R144/B56 -> 0.001139497678 | T144: 1.298454818e-06 | U144: 0.0001625785544 | V144: -30.32142221 | W144: -2.516120421e-05 | X144: 20.10959485 | Y144: -0.0006157859998 | Z144: -10.21230574 | AE144: -4.597553804e-05 | AF144: 0.00701657008 | AG144: -4.014970151 | AH144: 0.05122549695 | AI144: 0.0001581165692 | AJ144: -3.956615943 | AL144: -14.16892168
D145: -A2 | E145: 30 | G145: =B191/B189 -> 0.986313603 | R145: 17.7584469 | S145: =2*PI()*R145/B56 -> 0.001162287632 | T145: 1.350912387e-06 | U145: 0.0001691458151 | V145: -29.97571645 | W145: -2.61777142e-05 | X145: 20.08663213 | Y145: -0.0006408702668 | Z145: -9.889582219 | AE145: -4.783415555e-05 | AF145: 0.007299985745 | AG145: -4.008487118 | AH145: 0.05122712005 | AI145: 0.0001645092449 | AJ145: -3.949843338 | AL145: -13.83942556
A146: LPF B0 | B146: =B138^2*(1 - B141)/2 -> 0.001315322513 | C146: post2 | D146: B0 | E146: 31 | G146: =B196 -> 1.067122394 | R146: 18.11361584 | S146: =2*PI()*R146/B56 -> 0.001185533385 | T146: 1.405489241e-06 | U146: 0.0001759783179 | V146: -29.62995533 | W146: -2.723529098e-05 | X146: 20.06057219 | Y146: -0.0006669850712 | Z146: -9.569901384 | AE146: -4.976796065e-05 | AF146: 0.007594846975 | AG146: -4.001757119 | AH146: 0.05122880873 | AI146: 0.0001711605779 | AJ146: -3.942812071 | AL146: -13.51271345
A147: LPF B1 | B147: =B138^2*(1 - B141) -> 0.002630645025 | C147: PA EQ | D147: B1 | E147: 32 | G147: =B197 -> -1.985947413 | R147: 18.47588816 | S147: =2*PI()*R147/B56 -> 0.001209244052 | T147: 1.462271e-06 | U147: 0.0001830867722 | V147: -29.28413774 | W147: -2.833559363e-05 | X147: 20.0311494 | Y147: -0.0006941734728 | Z147: -9.253527754 | AE147: -5.177999914e-05 | AF147: 0.007901615806 | AG147: -3.994771344 | AH147: 0.05123056564 | AI147: 0.0001780810502 | AJ147: -3.935512861 | AL147: -13.18904062
A148: LPF B2 | B148: =B138^2*((1 - B141)/2) -> 0.001315322513 | D148: B2 | E148: 33 | G148: =B198 -> 0.922903374 | R148: 18.84540592 | S148: =2*PI()*R148/B56 -> 0.001233428933 | T148: 1.52134674e-06 | U148: 0.00019048232 | V148: -28.93826258 | W148: -2.948034824e-05 | X148: 19.99808423 | Y148: -0.0007224803905 | Z148: -8.940739828 | AE148: -5.387344051e-05 | AF148: 0.008220772911 | AG148: -3.987520717 | AH148: 0.05123239352 | AI148: 0.0001852815703 | AJ148: -3.927936142 | AL148: -12.86867597
A149: LPF A0 | B149: =1+B143 -> 1.005008646 | D149: -A1 | E149: 34 | G149: =B199 -> -1.985947413 | R149: 19.22231404 | S149: =2*PI()*R149/B56 -> 0.001258097512 | T149: 1.582809141e-06 | U149: 0.0001981765525 | V149: -28.59232886 | W149: -3.067135066e-05 | X149: 19.96108377 | Y149: -0.0007519526872 | Z149: -8.631829533 | AE149: -5.605158304e-05 | AF149: 0.008552818348 | AG149: -3.979995891 | AH149: 0.05123429525 | AI149: 0.0001927734901 | AJ149: -3.920072055 | AL149: -12.55190159
A150: LPF A1 | B150: =-2*B141 -> -1.995901205 | D150: -A2 | E150: 35 | G150: =B200 -> 0.9900257678 | R150: 19.60676032 | S150: =2*PI()*R150/B56 -> 0.001283259462 | T150: 1.646754621e-06 | U150: 0.0002061815286 | V150: -28.24633561 | W150: -3.191046928e-05 | X150: 19.91984257 | Y150: -0.0007826392597 | Z150: -8.327101411 | AE150: -5.831785909e-05 | AF150: 0.008898272346 | AG150: -3.972187243 | AH150: 0.05123627382 | AI150: 0.0002005686233 | AJ150: -3.911910446 | AL150: -12.23901186
A151: LPF A2 | B151: =1-B143 -> 0.9949913542 | C151: post3 | D151: B0 | E151: 36 | G151: 1.029078484 | R151: 19.99889553 | S151: =2*PI()*R151/B56 -> 0.001308924651 | T151: 1.713283498e-06 | U151: 0.0002145097939 | V151: -27.90028198 | W151: -3.319964797e-05 | X151: 19.87404374 | Y151: -0.000814591132 | Z151: -8.026871518 | AE151: -6.06758405e-05 | AF151: 0.009257676108 | AG151: -3.964084871 | AH151: 0.05123833232 | AI151: 0.0002086792643 | AJ151: -3.903440859 | AL151: -11.93031238
D152: B1 | E152: 37 | G152: -1.081429482 | R152: 20.39887344 | S152: =2*PI()*R152/B56 -> 0.001335103144 | T152: 1.782500141e-06 | U152: 0.0002231744002 | V152: -27.55416719 | W152: -3.454090912e-05 | X152: 19.82336042 | Y152: -0.0008478615549 | Z152: -7.731465994 | AE152: -6.312924437e-05 | AF152: 0.009631592665 | AG152: -3.95567859 | AH152: 0.05124047399 | AI152: 0.0002171182078 | AJ152: -3.894652534 | AL152: -11.62611853
D153: B2 | E153: 38 | G153: 0.05741024017 | R153: 20.80685091 | S153: =2*PI()*R153/B56 -> 0.001361805207 | T153: 1.854513136e-06 | U153: 0.0002321889254 | V153: -27.20799057 | W153: -3.593635684e-05 | X153: 19.76745753 | Y153: -0.0008825061091 | Z153: -7.441219297 | AE153: -6.568193898e-05 | AF153: 0.01002060775 | AG153: -3.946957928 | AH153: 0.05124270219 | AI153: 0.0002258987694 | AJ153: -3.885534401 | AL153: -11.3267537
A154: HPF B0 | B154: =B138^2*(1 + B141)/2 -> 1.282303273 | D154: -A1 | E154: 39 | G154: -1.319993019 | R154: 21.22298792 | S154: =2*PI()*R154/B56 -> 0.001389041311 | T154: 1.929435455e-06 | U154: 0.0002415674957 | V154: -26.86175161 | W154: -3.738818024e-05 | X154: 19.70599394 | Y154: -0.0009185828153 | Z154: -7.156472074 | AE154: -6.833794997e-05 | AF154: 0.0104253307 | AG154: -3.937912126 | AH154: 0.05124502041 | AI154: 0.0002350348071 | AJ154: -3.876075078 | AL154: -11.03254715
A155: HPF B1 | B155: =B138^2*-(1 + B141) -> -2.564606546 | D155: -A2 | E155: 40 | G155: 0.3281793594 | R155: 21.64744768 | S155: =2*PI()*R155/B56 -> 0.001416822138 | T155: 2.007384634e-06 | U155: 0.0002513248066 | V155: -26.5154499 | W155: -3.889865685e-05 | X155: 19.63862495 | Y155: -0.0009561522487 | Z155: -6.877568675 | AE155: -7.110146674e-05 | AF155: 0.01084639544 | AG155: -3.928530133 | AH155: 0.05124743228 | AI155: 0.0002445407432 | AJ155: -3.866262866 | AL155: -10.74383154
A156: HPF B2 | B156: =B138^2*(1 + B141)/2 -> 1.282303273 | C156: post4 | D156: B0 | E156: 41 | G156: 0.8476543427 | R156: 22.08039664 | S156: =2*PI()*R156/B56 -> 0.00144515858 | T156: 2.088482959e-06 | U156: 0.0002614761468 | V156: -26.16908521 | W156: -4.047015624e-05 | X156: 19.56500518 | Y156: -0.0009952776606 | Z156: -6.604854303 | AE156: -7.397684937e-05 | AF156: 0.01128446143 | AG156: -3.918800605 | AH156: 0.0512499416 | AI156: 0.0002544315878 | AJ156: -3.856085747 | AL156: -10.46094005
A157: HPF A0 | B157: =1+B143 -> 1.005008646 | D157: B1 | E157: 42 | G157: -1.398298264 | R157: 22.52200457 | S157: =2*PI()*R157/B56 -> 0.001474061752 | T157: 2.172857655e-06 | U157: 0.0002720374212 | V157: -25.82265752 | W157: -4.210514368e-05 | X157: 19.4847918 | Y157: -0.001036025105 | Z157: -6.338671819 | AE157: -7.69686353e-05 | AF157: 0.01174021472 | AG157: -3.908711904 | AH157: 0.0512525523 | AI157: 0.0002647229631 | AJ157: -3.845531383 | AL157: -10.1842032
A158: HPF A1 | B158: =-2*B141 -> -1.995901205 | D158: B2 | E158: 43 | G158: 0.6428365707 | R158: 22.97244466 | S158: =2*PI()*R158/B56 -> 0.001503542987 | T158: 2.260641088e-06 | U158: 0.0002830251764 | V158: -25.47616699 | W158: -4.380618405e-05 | X158: 19.39764798 | Y158: -0.001078463574 | Z158: -6.079358249
A159: HPF A2 | B159: =1-B143 -> 0.9949913542 | D159: -A1 | E159: 44 | G159: -1.777497292 | R159: 23.43189355 | S159: =2*PI()*R159/B56 -> 0.001533613847 | T159: 2.35197097e-06 | U159: 0.0002944566261 | V159: -25.12961403 | W159: -4.557594583e-05 | X159: 19.3032468 | Y159: -0.00112266514 | Z159: -5.827241012
D160: -A2 | E160: 45 | G160: 0.8691482544 | R160: 23.90053142 | S160: =2*PI()*R160/B56 -> 0.001564286124 | T160: 2.446990578e-06 | U160: 0.0003063496782 | V160: -24.78299931 | W160: -4.741720533e-05 | X160: 19.20127512 | Y160: -0.001168705101 | Z160: -5.582633962
C161: post 5 | D161: B0 | E161: 46 | G161: 1.008439919 | R161: 24.37854205 | S161: =2*PI()*R161/B56 -> 0.001595571846 | T161: 2.545848976e-06 | U161: 0.0003187229627 | V161: -24.43632382 | W161: -4.933285099e-05 | X161: 19.09143779 | Y161: -0.001216662144 | Z161: -5.345833303
A162: HShelf B0 | B162: =B138^2*(B139*( (B139+1) + (B139-1)*B141 + 2*SQRT(B139)*B143 )) -> 1.365004347 | D162: B1 | E162: 47 | G162: -1.994599001 | R162: 24.86611289 | S162: =2*PI()*R162/B56 -> 0.001627483283 | T162: 2.648701252e-06 | U162: 0.0003315958606 | V162: -24.08958886 | W162: -5.132588795e-05 | X162: 18.97346173 | Y162: -0.001266618509 | Z162: -5.117113479
A163: HShelf B1 | B163: =B138^2*(-2*B139*( (B139-1) + (B139+1)*B141 )) -> -2.706421717 | D163: B2 | E163: 48 | G163: 0.9896845436 | R163: 25.36343515 | S163: =2*PI()*R163/B56 -> 0.001660032949 | T163: 2.755708758e-06 | U163: 0.0003449885343 | V163: -23.74279611 | W163: -5.339944277e-05 | X163: 18.84710004 | Y163: -0.00131866016 | Z163: -4.896723142
A164: HShelf B2 | B164: =B138^2*(B139*( (B139+1) + (B139-1)*B141 - 2*SQRT(B139)*B143 )) -> 1.34906631 | D164: -A1 | E164: 49 | G164: -1.994599001 | R164: 25.87070385 | S164: =2*PI()*R164/B56 -> 0.001693233608 | T164: 2.867039366e-06 | U164: 0.0003589219587 | V164: -23.39594767 | W164: -5.55567683e-05 | X164: 18.71213587 | Y164: -0.001372876979 | Z164: -4.684881307
A165: HShelf A0 | B165: =(B139+1) - (B139-1)*B141 + 2*SQRT(B139)*B143 -> 2.007980952 | D165: -A2 | E165: 50 | G165: 0.9981244625 | R165: 26.38811793 | S165: =2*PI()*R165/B56 -> 0.00172709828 | T165: 2.982867727e-06 | U165: 0.0003734179545 | V165: -23.0490461 | W165: -5.780124878e-05 | X165: 18.56838603 | Y165: -0.001429362954 | Z165: -4.481773817
A166: HShelf A1 | B166: =2*((B139-1)-(B139+1)*B141) -> -3.99292176 | R166: 26.91588029 | S166: =2*PI()*R166/B56 -> 0.001761640246 | T166: 3.103375552e-06 | U166: 0.0003884992215 | V166: -22.70209447 | W166: -6.013640521e-05 | X166: 18.41570411 | Y166: -0.001488216391 | Z166: -4.287550219
A167: HShelf A2 | B167: =(B139+1) - (B139-1)*B141 - 2*SQRT(B139)*B143 -> 1.990899696 | R167: 27.4541979 | S167: =2*PI()*R167/B56 -> 0.00179687305 | T167: 3.228751891e-06 | U167: 0.0004041893745 | V167: -22.35509643 | W167: -6.256590081e-05 | X167: 18.25398318 | Y167: -0.001549540131 | Z167: -4.102321165
R168: 28.00328185 | S168: =2*PI()*R168/B56 -> 0.001832810511 | T168: 3.359193431e-06 | U168: 0.0004205129797 | V168: -22.00805624 | W168: -6.509354677e-05 | X168: 18.08315784 | Y168: -0.001613441783 | Z168: -3.926156425
R169: 28.56334749 | S169: =2*PI()*R169/B56 -> 0.001869466722 | T169: 3.494904806e-06 | U169: 0.0004374955931 | V169: -21.66097886 | W169: -6.772330829e-05 | X169: 17.90320555 | Y169: -0.00168003397 | Z169: -3.759083577
A170: LShelf B0 | B170: =B138^2*(B139*( (B139+1) - (B139-1)*B141 + 2*SQRT(B139)*B143 )) -> 1.873590125 | R170: 29.13461444 | S170: =2*PI()*R170/B56 -> 0.001906856056 | T170: 3.636098917e-06 | U170: 0.0004551638003 | V170: -21.31387004 | W170: -7.045931069e-05 | X170: 17.71414734 | Y170: -0.001749434589 | Z170: -3.601087426
A171: LShelf B1 | B171: =B138^2*(2*B139*( (B139-1) - (B139+1)*B141 )) -> -3.725682145 | R171: 29.71730673 | S171: =2*PI()*R171/B56 -> 0.001944993177 | T171: 3.782997267e-06 | U171: 0.0004735452578 | V171: -20.96673634 | W171: -7.330584601e-05 | X171: 17.51604769 | Y171: -0.001821767085 | Z171: -3.452110176
A172: LShelf B2 | B172: =B138^2*(B139*( (B139+1) - (B139-1)*B141 - 2*SQRT(B139)*B143 )) -> 1.857652089 | R172: 30.31165286 | S172: =2*PI()*R172/B56 -> 0.001983893041 | T172: 3.935830306e-06 | U172: 0.0004926687358 | V172: -20.61958528 | W172: -7.626737964e-05 | X172: 17.30901372 | Y172: -0.001897160747 | Z172: -3.312052327
A173: LShelf A0 | B173: =(B139+1) + (B139-1)*B141 + 2*SQRT(B139)*B143 -> 1.462914802 | R173: 30.91788592 | S173: =2*PI()*R173/B56 -> 0.002023570902 | T173: 4.094837797e-06 | U173: 0.0005125641634 | V173: -20.2724254 | W173: -7.934855737e-05 | X173: 17.09319365 | Y173: -0.001975751016 | Z173: -3.180774288
A174: LShelf A1 | B174: =-2*((B139-1)+(B139+1)*B141) -> -2.900550758 | R174: 31.53624364 | S174: =2*PI()*R174/B56 -> 0.00206404232 | T174: 4.260269185e-06 | U174: 0.0005332626746 | V174: -19.92526637 | W174: -8.255421267e-05 | X174: 16.86877472 | Y174: -0.002057679818 | Z174: -3.058098622
A175: LShelf A2 | B175: =(B139+1) +(B139-1)*B141 - 2*SQRT(B139)*B143 -> 1.445833546 | R175: 32.16696851 | S175: =2*PI()*R175/B56 -> 0.002105323166 | T175: 4.432383996e-06 | U175: 0.0005547966571 | V175: -19.5781191 | W175: -8.588937426e-05 | X175: 16.63598043 | Y175: -0.002143095912 | Z175: -2.943812854
R176: 32.81030788 | S176: =2*PI()*R176/B56 -> 0.002147429629 | T176: 4.611452241e-06 | U176: 0.000577199802 | V176: -19.23099584 | W176: -8.935927402e-05 | X176: 16.39506743 | Y176: -0.002232155262 | Z176: -2.837672734
R177: 33.46651404 | S177: =2*PI()*R177/B56 -> 0.002190378222 | T177: 4.797754837e-06 | U177: 0.0006005071567 | V177: -18.88391038 | W177: -9.296935518e-05 | X177: 16.14632202 | Y177: -0.002325021436 | Z177: -2.73940585
A178: Notch B0 | B178: 1 | R178: 34.13584432 | S178: =2*PI()*R178/B56 -> 0.002234185786 | T178: 4.991584052e-06 | U178: 0.0006247551791 | V178: -18.53687811 | W178: -9.672528086e-05 | X178: 15.89005647 | Y178: -0.00242186603 | Z178: -2.648715474
A179: Notch B1 | B179: =-2*B141 -> -1.995901205 | R179: 34.81856121 | S179: =2*PI()*R179/B56 -> 0.002278869502 | T179: 5.19324396e-06 | U179: 0.0006499817937 | V179: -18.18991621 | W179: -0.0001006329429 | X179: 15.6266052 | Y179: -0.002522869113 | Z179: -2.565284527
A180: Notch B2 | B180: =1 -> 1 | R180: 35.51493243 | S180: =2*PI()*R180/B56 -> 0.002324446892 | T180: 5.403050922e-06 | U180: 0.000676226451 | V180: =10*LOG10(($G$121+$G$122+$G$123)^2 + ( $G$121*$G$123*$T180 - ($G$122*($G$121+$G$123) + 4*$G$121*$G$123) )*$T180 ) - 10*LOG10( (1+$G$124+$G$125)^2 + ( 1*$G$125*$T180 - ($G$124*(1+$G$125) + 4*1*$G$125) )*$T180) -> -17.84304383 | W180: =10*LOG10(($G$126+$G$127+$G$128)^2 + ( $G$126*$G$128*$T180 - ($G$127*($G$126+$G$128) + 4*$G$126*$G$128) )*$T180 ) - 10*LOG10( (1+$G$129+$G$130)^2 + ( 1*$G$130*$T180 - ($G$129*(1+$G$130) + 4*1*$G$130) )*$T180) -> -0.0001046984713 | X180: =10*LOG10(($G$131+$G$132+$G$133)^2 + ( $G$131*$G$133*$T180 - ($G$132*($G$131+$G$133) + 4*$G$131*$G$133) )*$T180 ) - 10*LOG10( (1+$G$134+$G$135)^2 + ( 1*$G$135*$T180 - ($G$134*(1+$G$135) + 4*1*$G$135) )*$T180) -> 15.35632097 | Y180: =10*LOG10(($G$136+$G$137+$G$138)^2 + ( $G$136*$G$138*$T180 - ($G$137*($G$136+$G$138) + 4*$G$136*$G$138) )*$T180 ) - 10*LOG10( (1+$G$139+$G$140)^2 + ( 1*$G$140*$T180 - ($G$139*(1+$G$140) + 4*1*$G$140) )*$T180) -> -0.002628219708 | Z180: =U180+V180+W180+X180+Y180 -> -2.488779551
A181: Notch A0 | B181: =1+B143 -> 1.005008646 | R181: 36.22523108 | S181: =2*PI()*R181/B56 -> 0.00237093583 | T181: =4*(SIN(S181/2))^2 -> 5.621334077e-06 | U181: =10*LOG10(($G$116+$G$117+$G$118)^2 + ( $G$116*$G$118*T181 - ($G$117*($G$116+$G$118) + 4*$G$116*$G$118) )*T181 ) - 10*LOG10( (1+$G$119+$G$120)^2 + ( 1*$G$120*T181 - ($G$119*(1+$G$120) + 4*1*$G$120) )*T181) -> 0.0007035301881 | V181: -17.49628226 | W181: -0.0001089282436 | X181: 15.07957119 | Y181: -0.002738116306 | Z181: -2.41885459
A182: Notch A1 | B182: =-2*B141 -> -1.995901205 | R182: 36.9497357 | S182: =2*PI()*R182/B56 -> 0.002418354547 | T182: 5.848435863e-06 | U182: 0.0007319356926 | V182: -17.14965513 | W182: -0.0001133288948 | X182: 14.79673438 | Y182: -0.00285276741 | Z182: -2.355154907
A183: Notch A2 | B183: =1-B143 -> 0.9949913542 | R183: 37.68873042 | S183: =2*PI()*R183/B56 -> 0.002466721638 | T183: 6.084712552e-06 | U183: 0.0007614873684 | V183: -16.80318859 | W183: -0.0001179073283 | X183: 14.50819697 | Y183: -0.002972392117 | Z183: -2.297320437
R184: 38.44250503 | S184: =2*PI()*R184/B56 -> 0.00251605607 | T184: 6.330534809e-06 | U184: 0.0007922314045 | V184: -16.4569116 | W184: -0.000122670726 | X184: 14.2143503 | Y184: -0.003097220746 | Z184: -2.244988957
R185: 39.21135513 | S185: =2*PI()*R185/B56 -> 0.002566377192 | T185: 6.586288275e-06 | U185: 0.0008242158462 | V185: -16.11085611 | W185: -0.0001276265602 | X185: 13.91558811 | Y185: -0.003227495499 | Z185: -2.197798909
A186: Peaking B0 | B186: =1+(B143*B139) -> 1.003640821 | R186: 39.99558223 | S186: =2*PI()*R186/B56 -> 0.002617704736 | T186: 6.852374169e-06 | U186: 0.0008574906696 | V186: -15.76505738 | W186: -0.0001327826049 | X186: 13.61230428 | Y186: -0.003363471179 | Z186: -2.155391861
A187: Peaking B1 | B187: =-2*B141 -> -1.995901205 | R187: 40.79549387 | S187: =2*PI()*R187/B56 -> 0.00267005883 | T187: 7.129209921e-06 | U187: 0.0008921078586 | V187: -15.41955421 | W187: -0.0001381469481 | X187: 13.30489106 | Y187: -0.003505415954 | Z187: -2.117414605
A188: Peaking B2 | B188: =1-(B143*B139) -> 0.9963591791 | R188: 41.61140375 | S188: =2*PI()*R188/B56 -> 0.002723460007 | T188: 7.417229824e-06 | U188: 0.0009281214849 | V188: -15.0743893 | W188: -0.0001437280047 | X188: 12.99373764 | Y188: -0.003653612176 | Z188: -2.083520875
A189: Peaking A0 | B189: =1 + (B143/B139) -> 1.006890351 | R189: 42.44363183 | S189: =2*PI()*R189/B56 -> 0.002777929207 | T189: 7.716885716e-06 | U189: 0.0009655877918 | V189: -14.72960951 | W189: -0.0001495345294 | X189: 12.67922909 | Y189: -0.003808357263 | Z189: -2.05337272
A190: Peaking A1 | B190: =-2*B141 -> -1.995901205 | R190: 43.29250446 | S190: =2*PI()*R190/B56 -> 0.002833487791 | T190: 8.028647691e-06 | U190: 0.00100456528 | V190: -14.38526626 | W190: -0.0001555756306 | X190: 12.36174569 | Y190: -0.003969964641 | Z190: -2.026641541
A191: Peaking A2 | B191: =1-(B143/B139) -> 0.9931096495 | R191: 44.15835455 | S191: =2*PI()*R191/B56 -> 0.002890157547 | T191: 8.353004832e-06 | U191: 0.001045114799 | V191: -14.04141585 | W191: -0.0001618607845 | X191: 12.04166255 | Y191: -0.004138764764 | Z191: -2.00300881
R192: 45.04152164 | S192: =2*PI()*R192/B56 -> 0.002947960698 | T192: 8.690465983e-06 | U192: 0.00108729964 | V192: -13.69811987 | W192: -0.0001683998502 | X192: 11.71934955 | Y192: -0.004315106201 | Z192: -1.982166527
R193: 45.94235208 | S193: =2*PI()*R193/B56 -> 0.003006919912 | T193: 9.041560544e-06 | U193: 0.001131185632 | V193: -13.35544563 | W193: -0.0001752030851 | X193: 11.39517158 | Y193: -0.004499356818 | Z193: -1.963817421
A194: Planet Analog 2nd order EQ filter | D194: Fc | E194: =D109 -> 978.348729 | R194: 46.86119912 | S194: =2*PI()*R194/B56 -> 0.00306705831 | T194: 9.406839303e-06 | U194: 0.001176841244 | V194: -13.0134665 | W194: -0.0001822811609 | X194: 11.0694889 | Y194: -0.004691905039 | Z194: -1.947674947
D195: g | E195: =D111+20 -> 14.45916 | G195: d | H195: =-COS(2*PI()*E194/B56) -> -0.9979506023 | R195: 47.7984231 | S195: =2*PI()*R195/B56 -> 0.003128399476 | T195: 9.786875301e-06 | U195: 0.001224337691 | V195: -12.67226248 | W195: -0.0001896451804 | X195: 10.74265784 | Y195: -0.004893161219 | Z195: -1.933463108
A196: PA EQ B0 | B196: =1 + (1+E202)*E197/2 -> 1.067122394 | D196: b | E196: =E194/D110 -> 153.1575815 | R196: 48.75439156 | S196: =2*PI()*R196/B56 -> 0.003190967466 | T196: 1.018226473e-05 | U196: 0.001273749042 | V196: -12.33192054 | W196: -0.0001973066947 | X196: 10.41503151 | Y196: -0.005103559114 | Z196: -1.920916142
A197: PA EQ B1 | B197: =H195*(1-E202) -> -1.985947413 | D197: H | E197: =E195-1 -> 13.45916 | R197: 49.72947939 | S197: =2*PI()*R197/B56 -> 0.003254786815 | T197: 1.059362786e-05 | U197: 0.001325152332 | V197: -11.99253519 | W197: -0.0002052777218 | X197: 10.08696077 | Y197: -0.005323557476 | Z197: -1.9097781
A198: PA EQ B2 | B198: =-E202-(1+E202)*E197/2 -> 0.922903374 | R198: 50.72406898 | S198: =2*PI()*R198/B56 -> 0.003319882551 | T198: 1.102161003e-05 | U198: 0.001378627683 | V198: -11.65420891 | W198: -0.0002135707649 | X198: 9.758795133 | Y198: -0.005553641779 | Z198: -1.899802358
A199: PA EQ A1 | B199: =B197 -> -1.985947413 | R199: 51.73855036 | S199: =2*PI()*R199/B56 -> 0.003386280202 | T199: 1.146688265e-05 | U199: 0.001434258425 | V199: -11.31705267 | W199: -0.0002221988324 | X199: 9.430883854 | Y199: -0.005794326079 | Z199: -1.890751085
A200: PA EQ A2 | B200: =-E202 -> 0.9900257678 | D200: a1 g<1 | E200: =(TAN(PI()*E196/B56)-E195)/(TAN(PI()*E196/B56)+E195) -> -0.9993069618 | R200: 52.77332137 | S200: =2*PI()*R200/B56 -> 0.003454005806 | T200: 1.193014425e-05 | U200: 0.001492131221 | V200: -10.98118645 | W200: -0.000231175458 | X200: 9.103576936 | Y200: -0.006046155042 | Z200: -1.882394713
D201: a2 g>=1 | E201: =(TAN(PI()*E196/B56)-1)/(TAN(PI()*E196/B56)+1) -> -0.9900257678 | R201: 53.82878779 | S201: =2*PI()*R201/B56 -> 0.003523085923 | T201: 1.241212158e-05 | U201: 0.001552336203 | V201: -10.64673968 | W201: -0.0002405147222 | X201: 8.777226147 | Y201: -0.006309706131 | Z201: -1.874511418
D202: a | E202: =IF(E195<1, E200,E201) -> -0.9900257678 | R202: 54.90536355 | S202: =2*PI()*R202/B56 -> 0.003593547641 | T202: 1.291357075e-05 | U202: 0.001614967106 | V202: -10.31385177 | W202: -0.0002502312742 | X202: 8.452185962 | Y202: -0.006585591986 | Z202: -1.866886661
R203: 56.00347082 | S203: =2*PI()*R203/B56 -> 0.003665418594 | T203: 1.343527843e-05 | U203: 0.001680121414 | V203: -9.982672537 | W203: -0.0002603403549 | X203: 8.128814421 | Y203: -0.006874463012 | Z203: -1.859312798
R204: 57.12354024 | S204: =2*PI()*R204/B56 -> 0.003738726966 | T204: 1.397806304e-05 | U204: 0.001747900505 | V204: -9.65336267 | W204: -0.0002708578207 | X204: 7.807473833 | Y204: -0.007177010192 | Z204: -1.851588804
R205: 58.26601104 | S205: =2*PI()*R205/B56 -> 0.003813501505 | T205: 1.45427761e-05 | U205: 0.001818409803 | V205: -9.326094081 | W205: -0.0002818001687 | X205: 7.488531321 | Y205: -0.007493968149 | Z205: -1.843520118
R206: 59.43133126 | S206: =2*PI()*R206/B56 -> 0.003889771535 | T206: 1.513030352e-05 | U206: 0.001891758945 | V206: -9.001050247 | W206: -0.0002931845622 | X206: 7.172359153 | Y206: -0.00782611849 | Z206: -1.834918638
R207: 60.61995789 | S207: =2*PI()*R207/B56 -> 0.003967566966 | T207: 1.574156698e-05 | U207: 0.001968061941 | V207: -8.678426461 | W207: -0.0003050288577 | X207: 6.859334826 | Y207: -0.008174293447 | Z207: -1.825602895
R208: 61.83235705 | S208: =2*PI()*R208/B56 -> 0.004046918305 | T208: 1.637752542e-05 | U208: 0.002047437345 | V208: -8.358429984 | W208: -0.0003173516331 | X208: 6.549840873 | Y208: -0.008539379867 | Z208: -1.815398406
R209: 63.06900419 | S209: =2*PI()*R209/B56 -> 0.004127856671 | T209: 1.70391765e-05 | U209: 0.002130008439 | V209: -8.041280098 | W209: -0.0003301722163 | X209: 6.244264354 | Y209: -0.008922323566 | Z209: -1.804138232
R210: 64.33038427 | S210: =2*PI()*R210/B56 -> 0.004210413805 | T210: 1.772755822e-05 | U210: 0.002215903415 | V210: -7.727208016 | W210: -0.0003435107162 | X210: 5.942996007 | Y210: -0.009324134105 | Z210: -1.791663749
R211: 65.61699196 | S211: =2*PI()*R211/B56 -> 0.004294622081 | T211: 1.844375047e-05 | U211: 0.002305255569 | V211: -7.416456637 | W211: -0.0003573880538 | X211: 5.646429036 | Y211: -0.009745890026 | Z211: -1.777825624
R212: 66.9293318 | S212: =2*PI()*R212/B56 -> 0.004380514522 | T212: 1.91888768e-05 | U212: 0.0023982035 | V212: -7.109280136 | W212: -0.000371825995 | X212: 5.354957505 | Y212: -0.0101887446 | Z212: -1.762484999
R213: 68.26791843 | S213: =2*PI()*R213/B56 -> 0.004468124813 | T213: 1.996410613e-05 | U213: 0.002494891319 | V213: -6.805943335 | W213: -0.0003868471849 | X213: 5.068974358 | Y213: -0.01065393215 | Z213: -1.745514865
R214: 69.6332768 | S214: =2*PI()*R214/B56 -> 0.004557487309 | T214: 2.077065462e-05 | U214: 0.002595468861 | V214: -6.506720868 | W214: -0.0004024751829 | X214: 4.788869043 | Y214: -0.01114277501 | Z214: -1.726801606
R215: 71.02594234 | S215: =2*PI()*R215/B56 -> 0.004648637055 | T215: 2.160978756e-05 | U215: 0.002700091913 | V215: -6.211896095 | W215: -0.0004187345003 | X215: 4.515024763 | Y215: -0.01165669119 | Z215: -1.706246666
R216: 72.44646118 | S216: =2*PI()*R216/B56 -> 0.004741609796 | T216: 2.248282134e-05 | U216: 0.002808922443 | V216: -5.921759768 | W216: -0.000435650638 | X216: 4.247815394 | Y216: -0.01219720284 | Z216: -1.683768305
R217: 73.89539041 | S217: =2*PI()*R217/B56 -> 0.004836441992 | T217: 2.339112555e-05 | U217: 0.002922128841 | V217: -5.636608415 | W217: -0.000453250127 | X217: 3.98760211 | Y217: -0.01276594565 | Z217: -1.659303372
R218: 75.37329821 | S218: =2*PI()*R218/B56 -> 0.004933170832 | T218: 2.433612511e-05 | U218: 0.003039886169 | V218: -5.356742453 | W218: -0.0004715605696 | X218: 3.734729766 | Y218: -0.01336467917 | Z218: -1.63280904
R219: 76.88076418 | S219: =2*PI()*R219/B56 -> 0.005031834249 | T219: 2.531930249e-05 | U219: 0.003162376419 | V219: -5.082464028 | W219: -0.0004906106831 | X219: 3.489523145 | Y219: -0.01399529831 | Z219: -1.604264415
R220: 78.41837946 | S220: =2*PI()*R220/B56 -> 0.005132470934 | T220: 2.634220006e-05 | U220: 0.00328978878 | V220: -4.814074582 | W220: -0.0005104303441 | X220: 3.252283135 | Y220: -0.01465984614 | Z220: -1.573671934
R221: 79.98674705 | S221: =2*PI()*R221/B56 -> 0.005235120353 | T221: 2.740642251e-05 | U221: 0.003422319919 | V221: -4.551872173 | W221: -0.0005310506361 | X221: 3.023282954 | Y221: -0.01536052805 | Z221: -1.541058477
R222: 81.58648199 | S222: =2*PI()*R222/B56 -> 0.00533982276 | T222: 2.851363935e-05 | U222: 0.003560174268 | V222: -4.296148577 | W222: -0.0005525038977 | X222: 2.802764535 | Y222: -0.01609972759 | Z222: -1.506476099
R223: 83.21821163 | S223: =2*PI()*R223/B56 -> 0.005446619215 | T223: 2.966558753e-05 | U223: 0.003703564322 | V223: -4.047186213 | W223: -0.0005748237735 | X223: 2.590935184 | Y223: -0.01688002409 | Z223: -1.470002312
R224: 84.88257586 | S224: =2*PI()*R224/B56 -> 0.005555551599 | T224: 3.086407419e-05 | U224: 0.003852710948 | V224: -3.805254931 | W224: -0.0005980452665 | X224: 2.38796463 | Y224: -0.01770421247 | Z224: -1.431739847
R225: 86.58022738 | S225: =2*PI()*R225/B56 -> 0.005666662631 | T225: 3.211097945e-05 | U225: 0.004007843708 | V225: -3.570608753 | W225: -0.0006222047935 | X225: 2.193982568 | Y225: -0.01857532524 | Z225: -1.391815872
R226: 88.31183193 | S226: =2*PI()*R226/B56 -> 0.005779995884 | T226: 3.340825941e-05 | U226: 0.004169201191 | V226: -3.343482606 | W226: -0.0006473402415 | X226: 2.009076793 | Y226: -0.01949665741 | Z226: -1.35038061
R227: 90.07806857 | S227: =2*PI()*R227/B56 -> 0.005895595801 | T227: 3.475794918e-05 | U227: 0.004337031355 | V227: -3.124089146 | W227: -0.0006734910275 | X227: 1.833291999 | Y227: -0.02047179428 | Z227: -1.3076054
R228: 91.87962994 | S228: =2*PI()*R228/B56 -> 0.006013507717 | T228: 3.616216609e-05 | U228: 0.004511591885 | V228: -2.912615753 | W228: -0.0007006981602 | X228: 1.666629294 | Y228: -0.02150464292 | Z228: -1.263680209
R229: 93.71722254 | S229: =2*PI()*R229/B56 -> 0.006133777872 | T229: 3.762311302e-05 | U229: 0.00469315056 | V229: -2.70922178 | W229: -0.000729004304 | X229: 1.509046444 | Y229: -0.02259946756 | Z229: -1.218810657
R230: 95.59156699 | S230: =2*PI()*R230/B56 -> 0.006256453429 | T230: 3.914308183e-05 | U230: 0.00488198564 | V230: -2.514036131 | W230: -0.000758453846 | X230: 1.360458868 | Y230: -0.02376092975 | Z230: -1.17321466
R231: 97.50339833 | S231: =2*PI()*R231/B56 -> 0.006381582498 | T231: 4.072445697e-05 | U231: 0.005078386255 | V231: -2.327155256 | W231: -0.0007890929654 | X231: 1.220741322 | Y231: -0.02499413378 | Z231: -1.127118775
R232: 99.4534663 | S232: =2*PI()*R232/B56 -> 0.006509214148 | T232: 4.236971922e-05 | U232: 0.005282652814 | V232: -2.148641623 | W232: -0.000820969706 | X232: 1.089730236 | Y232: -0.02630467833 | Z232: -1.080754382
R233: 101.4425356 | S233: =2*PI()*R233/B56 -> 0.006639398431 | T233: 4.408144959e-05 | U233: 0.005495097435 | V233: -1.978522705 | W233: -0.0008541340513 | X233: 0.9672266215 | Y233: -0.0276987153 | Z233: -1.034353835
R234: 103.4713863 | S234: =2*PI()*R234/B56 -> 0.006772186399 | T234: 4.586233335e-05 | U234: 0.005716044371 | V234: -1.816790541 | W234: -0.0008886380026 | X234: 0.8529994411 | Y234: -0.02918301696 | Z234: -0.9881467104
R235: 105.5408141 | S235: =2*PI()*R235/B56 -> 0.006907630127 | T235: 4.771516425e-05 | U235: 0.005945830473 | V235: -1.663401861 | W235: -0.0009245356609 | X235: 0.7467893468 | Y235: -0.03076505278 | Z235: -0.9423562722
R236: 107.6516303 | S236: =2*PI()*R236/B56 -> 0.00704578273 | T236: 4.964284891e-05 | U236: 0.006184805645 | V236: -1.518278789 | W236: -0.000961883311 | X236: 0.6483126647 | Y236: -0.03245307764 | Z236: -0.8971962795
R237: 109.8046629 | S237: =2*PI()*R237/B56 -> 0.007186698384 | T237: 5.164841137e-05 | U237: 0.006433333338 | V237: -1.381310087 | W237: -0.00100073951 | X237: 0.5572655137 | Y237: -0.03425623331 | Z237: -0.8528682132
R238: 112.0007562 | S238: =2*PI()*R238/B56 -> 0.007330432352 | T238: 5.373499785e-05 | U238: 0.006691791039 | V238: -1.252352912 | W238: -0.001041165179 | X238: 0.4733279499 | Y238: -0.0361846655 | Z238: -0.8095590014
R239: 114.2407713 | S239: =2*PI()*R239/B56 -> 0.007477040999 | T239: 5.590588164e-05 | U239: 0.006960570786 | V239: -1.131235009 | W239: -0.001083223698 | X239: 0.3961680368 | Y239: -0.03824965941 | Z239: -0.7674392844
R240: 116.5255868 | S240: =2*PI()*R240/B56 -> 0.007626581819 | T240: 5.816446832e-05 | U240: 0.007240079704 | V240: -1.017757296 | W240: -0.001126981005 | X240: 0.3254457542 | Y240: -0.040463797 | Z240: -0.7266622398
R241: 118.8560985 | S241: =2*PI()*R241/B56 -> 0.007779113455 | T241: 6.051430099e-05 | U241: 0.007530740544 | V241: -0.911696736 | W241: -0.001172505701 | X241: 0.2608166749 | Y241: -0.04284114023 | Z241: -0.6873629665
R242: 121.2332205 | S242: =2*PI()*R242/B56 -> 0.007934695725 | T242: 6.295906592e-05 | U242: 0.007832992251 | V242: -0.8128094332 | W242: -0.001219869155 | X242: 0.2019353526 | Y242: -0.0453974451 | Z242: -0.6496584026
R243: 123.6578849 | S243: =2*PI()*R243/B56 -> 0.008093389639 | T243: 6.55025983e-05 | U243: 0.008147290545 | V243: -0.7208338548 | W243: -0.001269145616 | X243: 0.1484583805 | Y243: -0.04815041266 | Z243: -0.613647742
R244: 126.1310426 | S244: =2*PI()*R244/B56 -> 0.008255257432 | T244: 6.814888824e-05 | U244: 0.008474108517 | V244: =10*LOG10(($G$121+$G$122+$G$123)^2 + ( $G$121*$G$123*$T244 - ($G$122*($G$121+$G$123) + 4*$G$121*$G$123) )*$T244 ) - 10*LOG10( (1+$G$124+$G$125)^2 + ( 1*$G$125*$T244 - ($G$124*(1+$G$125) + 4*1*$G$125) )*$T244) -> -0.6354941066 | W244: =10*LOG10(($G$126+$G$127+$G$128)^2 + ( $G$126*$G$128*$T244 - ($G$127*($G$126+$G$128) + 4*$G$126*$G$128) )*$T244 ) - 10*LOG10( (1+$G$129+$G$130)^2 + ( 1*$G$130*$T244 - ($G$129*(1+$G$130) + 4*1*$G$130) )*$T244) -> -0.001320412329 | X244: =10*LOG10(($G$131+$G$132+$G$133)^2 + ( $G$131*$G$133*$T244 - ($G$132*($G$131+$G$133) + 4*$G$131*$G$133) )*$T244 ) - 10*LOG10( (1+$G$134+$G$135)^2 + ( 1*$G$135*$T244 - ($G$134*(1+$G$135) + 4*1*$G$135) )*$T244) -> 0.1000470972 | Y244: =10*LOG10(($G$136+$G$137+$G$138)^2 + ( $G$136*$G$138*$T244 - ($G$137*($G$136+$G$138) + 4*$G$136*$G$138) )*$T244 ) - 10*LOG10( (1+$G$139+$G$140)^2 + ( 1*$G$140*$T244 - ($G$139*(1+$G$140) + 4*1*$G$140) )*$T244) -> -0.05111998442 | Z244: =U244+V244+W244+X244+Y244 -> -0.5794132976
R245: 128.6536634 | S245: =2*PI()*R245/B56 -> 0.00842036258 | T245: =4*(SIN(S245/2))^2 -> 7.090208706e-05 | U245: =10*LOG10(($G$116+$G$117+$G$118)^2 + ( $G$116*$G$118*T245 - ($G$117*($G$116+$G$118) + 4*$G$116*$G$118) )*T245 ) - 10*LOG10( (1+$G$119+$G$120)^2 + ( 1*$G$120*T245 - ($G$119*(1+$G$120) + 4*1*$G$120) )*T245) -> 0.008813937244 | V245: -0.5565031808 | W245: -0.00137374966 | X245: 0.05636992776 | Y245: -0.05432869133 | Z245: -0.5470217568
R246: 131.2267367 | S246: =2*PI()*R246/B56 -> 0.008588769832 | T246: 7.376651377e-05 | U246: 0.009167286425 | V246: -0.4835661105 | W246: -0.001429241215 | X246: 0.01710436047 | Y246: -0.0578020677 | Z246: -0.5165257725
R247: 133.8512714 | S247: =2*PI()*R247/B56 -> 0.008760545229 | T247: 7.674666186e-05 | U247: 0.00953468503 | V247: -0.4163829724 | W247: -0.001486973973 | X247: -0.0180614286 | Y247: -0.06156914417 | Z247: -0.4879658341
R248: 136.5282969 | S248: =2*PI()*R248/B56 -> 0.008935756133 | T248: 7.984720637e-05 | U248: 0.009916681972 | V248: -0.3546516917 | W248: -0.001547038427 | X248: -0.04942728609 | Y248: -0.06566303751 | Z248: -0.4613723718
R249: 139.2588628 | S249: =2*PI()*R249/B56 -> 0.009114471256 | T249: 8.307301118e-05 | U249: 0.01031384679 | V249: -0.2980706131 | W249: -0.001609528719 | X249: -0.07728010196 | Y249: -0.07012165945 | Z249: -0.4367680564
R250: 142.04404 | S250: =2*PI()*R250/B56 -> 0.009296760681 | T250: 8.642913665e-05 | U250: 0.01072677035 | V250: -0.246340813 | W250: -0.001674542788 | X250: -0.1018931125 | Y250: -0.07498857268 | Z250: -0.4141702706
R251: 144.8849208 | S251: =2*PI()*R251/B56 -> 0.009482695895 | T251: 8.992084761e-05 | U251: 0.01115606558 | V251: -0.1991681403 | W251: -0.001742182526 | X251: -0.1235254554 | Y251: -0.08031403003 | Z251: -0.3935937427
R252: 147.7826193 | S252: =2*PI()*R252/B56 -> 0.009672349813 | T252: 9.355362153e-05 | U252: 0.0116023682 | V252: -0.1562649783 | W252: -0.001812553938 | X252: -0.1424219457 | Y252: -0.08615624261 | Z252: -0.3750533524
R253: 150.7382716 | S253: =2*PI()*R253/B56 -> 0.009865796809 | T253: 9.733315719e-05 | U253: 0.01206633748 | V253: -0.1173517329 | W253: -0.001885767301 | X253: -0.1588130426 | Y253: -0.09258293646 | Z253: -0.3585671418
R254: 153.7530371 | S254: =2*PI()*R254/B56 -> 0.01006311275 | T254: 0.0001012653836 | U254: 0.01254865702 | V254: -0.08215805479 | W254: -0.001961937344 | X254: -0.1729149766 | Y254: -0.0996732747 | Z254: -0.3441595864
R255: 156.8280978 | S255: =2*PI()*R255/B56 -> 0.010264375 | T255: 0.0001053564691 | U255: 0.01305003553 | V255: -0.0504238111 | W255: -0.002041183423 | X255: -0.1849300103 | Y255: -0.1075202461 | Z255: -0.3318652154
R256: 159.9646598 | S256: =2*PI()*R256/B56 -> 0.0104696625 | T256: 0.0001096128316 | U256: 0.01357120765 | V256: -0.02189982421 | W256: -0.002123629708 | X256: -0.1950468069 | Y256: -0.1162336538 | Z256: -0.3217327069
R257: 163.163953 | S257: =2*PI()*R257/B56 -> 0.01067905575 | T257: 0.0001140411479 | U257: 0.01411293476 | V257: 0.0036516016 | W257: -0.002209405376 | X257: -0.2034408829 | Y257: -0.125943881 | Z257: -0.313829633
R258: 166.427232 | S258: =2*PI()*R258/B56 -> 0.01089263686 | T258: 0.0001186483647 | U258: 0.01467600581 | V258: 0.02645634339 | W258: -0.002298644815 | X258: -0.2102751267 | Y258: -0.1368066735 | Z258: -0.3082480958
R259: 169.7557767 | S259: =2*PI()*R259/B56 -> 0.0111104896 | T259: 0.0001234417094 | U259: 0.0152612382 | V259: 0.04672829015 | W259: -0.002391487833 | X259: -0.2157003614 | Y259: -0.149009261 | Z259: -0.3051115819
R260: 173.1508922 | S260: =2*PI()*R260/B56 -> 0.01133269939 | T260: 0.000128428701 | U260: 0.01586947862 | V260: 0.06466931846 | W260: -0.002488079874 | X260: -0.2198559415 | Y260: -0.1627782629 | Z260: -0.3045834871
R261: 176.6139101 | S261: =2*PI()*R261/B56 -> 0.01155935338 | T261: 0.0001336171628 | U261: 0.0165016039 | V261: 0.08046939158 | W261: -0.002588572246 | X261: -0.222870365 | Y261: -0.1783899913 | Z261: -0.306877933
R262: 180.1461883 | S262: =2*PI()*R262/B56 -> 0.01179054045 | T262: 0.0001390152336 | U262: 0.01715852192 | V262: 0.09430676175 | W262: -0.00269312236 | X262: -0.2248618951 | Y262: -0.1961840145 | Z262: -0.3122737483
R263: 183.749112 | S263: =2*PI()*R263/B56 -> 0.01202635126 | T263: 0.0001446313814 | U263: 0.01784117252 | V263: 0.1063482569 | W263: -0.002801893971 | X263: -0.2259391786 | Y263: -0.2165812031 | Z263: -0.3211328462
R264: 187.4240943 | S264: =2*PI()*R264/B56 -> 0.01226687828 | T264: 0.0001504744159 | U264: 0.01855052833 | V264: 0.1167496347 | W264: -0.002915057433 | X264: -0.2262018558 | Y264: -0.2401080176 | Z264: -0.3339247678
R265: 191.1725761 | S265: =2*PI()*R265/B56 -> 0.01251221585 | T265: 0.000156553503 | U265: 0.01928759572 | V265: 0.1256559886 | W265: -0.003032789971 | X265: -0.225741156 | Y265: -0.2674296032 | Z265: -0.3512599648
R266: 194.9960277 | S266: =2*PI()*R266/B56 -> 0.01276246017 | T266: 0.0001628781787 | U266: 0.02005341567 | V266: 0.1332021929 | W266: -0.003155275949 | X266: -0.2246404735 | Y266: -0.299395492 | Z266: -0.3739356328
R267: 198.8959482 | S267: =2*PI()*R267/B56 -> 0.01301770937 | T267: 0.0001694583642 | U267: 0.02084906467 | V267: 0.1395133741 | W267: -0.003282707162 | X267: -0.2229759216 | Y267: -0.3371036341 | Z267: -0.4029998241
R268: 202.8738672 | S268: =2*PI()*R268/B56 -> 0.01327806356 | T268: 0.0001763043815 | U268: 0.02167565562 | V268: 0.1447053992 | W268: -0.003415283134 | X268: -0.2208168614 | Y268: -0.381991526 | Z268: -0.4398426158
R269: 206.9313445 | S269: =2*PI()*R269/B56 -> 0.01354362483 | T269: 0.0001834269696 | U269: 0.02253433868 | V269: 0.1488853728 | W269: -0.003553211426 | X269: -0.2182264051 | Y269: -0.435968129 | Z269: -0.486328034
R270: 211.0699714 | S270: =2*PI()*R270/B56 -> 0.01381449733 | T270: 0.0001908373014 | U270: 0.02342630214 | V270: 0.1521521351 | W270: -0.003696707962 | X270: -0.2152618917 | Y270: -0.5016084061 | Z270: -0.5449885685
R271: 215.2913708 | S271: =2*PI()*R271/B56 -> 0.01409078727 | T271: 0.0001985470008 | U271: 0.02435277328 | V271: 0.1545967548 | W271: -0.003845997364 | X271: -0.2119753356 | Y271: -0.5824460442 | Z271: -0.619317849
R272: 219.5971983 | S272: =2*PI()*R272/B56 -> 0.01437260302 | T272: 0.0002065681615 | U272: 0.02531501916 | V272: 0.1563030134 | W272: -0.0040013133 | X272: -0.2084138474 | Y272: -0.683423707 | Z272: -0.7142208351
R273: 223.9891422 | S273: =2*PI()*R273/B56 -> 0.01466005508 | T273: 0.0002149133658 | U273: 0.02631434743 | V273: 0.1573478761 | W273: -0.004162898849 | X273: -0.2046200286 | Y273: -0.811602391 | Z273: -0.836723095
R274: 228.4689251 | S274: =2*PI()*R274/B56 -> 0.01495325618 | T274: 0.000223595704 | U274: 0.02735210704 | V274: 0.1578019465 | W274: -0.004331006877 | X274: -0.2006323397 | Y274: -0.9773085619 | Z274: -0.997117855
R275: 233.0383036 | S275: =2*PI()*R275/B56 -> 0.0152523213 | T275: 0.0002326287953 | U275: 0.028429689 | V275: 0.1577299044 | W275: -0.004505900431 | X275: -0.1964854427 | Y275: -1.196042824 | Z275: -1.210874574
R276: 237.6990696 | S276: =2*PI()*R276/B56 -> 0.01555736773 | T276: 0.0002420268091 | U276: 0.02954852696 | V276: 0.1571909225 | W276: -0.004687853148 | X276: -0.1922105199 | Y276: -1.49175607 | Z276: -1.501914994
... 223 more rows

Sheet Equalizer 192 kHz
B16: LPF | C16: HPF | D16: Hi Shelf | E16: Lo Shelf | F16: PeakingEQ
H17: Select Slider, then
H18: Page up/Down : Big Jump
H19: Up/Down arrows : Fine tune
H22: References :
H23: Cookbook | J23: http://www.musicdsp.org/files/Audio-EQ-Cookbook.txt
H24: Freq Response | J24: http://groups.google.com/group/comp.dsp/browse_frm/thread/8c0fa8d396aeb444/a1bc5b63ac56b686
H26: Usenet thread | J26: http://www.dsprelated.com/showmessage/50960/1.php
A34: F0 | B34: =10^(B48/333333)*20 -> 2000 | C34: =10^(C48/333333)*20 -> 99.99739687 | D34: =10^(D48/333333)*20 -> 10000.01599 | E34: =10^(E48/333333)*20 -> 49.99774228 | F34: =10^(F48/333333)*20 -> 274.9983791
A35: Q | B35: =B49/1000000*10+0.002 -> 0.81527 | C35: =C49/1000000*10+0.002 -> 0.78515 | D35: =D49/1000000*10+0.002 -> 1.05623 | E35: =E49/1000000*10+0.002 -> 0.81527 | F35: =F49/1000000*30+0.002 -> 30.002
A36: dBgain | B36: =(B50-500000)/500000*30 -> -29.99994 | C36: =(C50-500000)/500000*30 -> -29.99994 | D36: =(D50-500000)/500000*30 -> 14.4579 | E36: =(E50-500000)/500000*30 -> 19.9956 | F36: =(F50-500000)/500000*30 -> -29.99994
A37: IdBoffset | B37: =((B51-500000)/500000*20) -> 0 | C37: =((C51-500000)/500000*20) -> 0 | D37: =((D51-500000)/500000*20) -> 0 | E37: =((E51-500000)/500000*20) -> 0 | F37: =((F51-500000)/500000*20) -> 0
A48: S1 | B48: 666666 | C48: 232986 | D48: 899656 | E48: 132640 | F48: 379433 | I48: Master dB | J48: 500000
A49: S2 | B49: 81327 | C49: 78315 | D49: 105423 | E49: 81327 | F49: 1000000 | I49: Normal dB | J49: =(J48-500000)/500000*20 -> 0
A50: S3 | B50: 1 | C50: 1 | D50: 740965 | E50: 833260 | F50: 1 | J50: =10^(J49/20) -> 1
A51: S4 | B51: 500000 | C51: 500000 | D51: 500000 | E51: 500000 | F51: 500000 | J51: =J50 -> 1
B56: 192000 | C56: Hz
B59: LPF | C59: HPF | D59: Hi Shelf | E59: Lo Shelf | F59: Peaking EQ
A60: A | B60: =SQRT( 10^((B36)/20) ) -> 0.1778285552 | C60: =SQRT( 10^((C36)/20) ) -> 0.1778285552 | D60: =10^((D36)/40) -> 2.298515835 | E60: =10^((E36)/40) -> 3.161476806 | F60: =10^((F36)/40) -> 0.1778285552
A61: wo | B61: =2*PI()*B34/B56 -> 0.06544984695 | C61: =2*PI()*C34/B56 -> 0.00327240716 | D61: =2*PI()*D34/B56 -> 0.3272497582 | E61: =2*PI()*E34/B56 -> 0.00163617229 | F61: =2*PI()*F34/B56 -> 0.008999300911
A62: cos(wo) | B62: =COS(B61) -> 0.9978589232 | C62: =COS(C61) -> 0.9999946457 | D62: =COS(D61) -> 0.9469299612 | E62: =COS(E61) -> 0.9999986615 | F62: =COS(F61) -> 0.9999595066
A63: sin(wo) | B63: =SIN(B61) -> 0.06540312923 | C63: =SIN(C61) -> 0.00327240132 | D63: =SIN(D61) -> 0.3214399609 | E63: =SIN(E61) -> 0.00163617156 | F63: =SIN(F61) -> 0.00899917944
A64: Alpha | B64: =B63/(2*B35) -> 0.04011133074 | C64: =C63/(2*C35) -> 0.002083933847 | D64: =D63/(2*D35) -> 0.1521638095 | E64: =E63/(2*E35) -> 0.001003453801 | F64: =F63/(2*F35) -> 0.0001499763256
A65: Lingain | B65: =10^(B37/20) -> 1 | C65: =10^(C37/20) -> 1 | D65: =10^(D37/20) -> 1 | E65: =10^(E37/20) -> 1 | F65: =10^(F37/20) -> 1
K66: Coefficients
K67: B0 | L67: B1 | M67: B2 | N67: -A1 | O67: -A2
A68: B0 | B68: =B65*J51*(1 - B62)/2 -> 0.001070538381 | C68: =C65*J51*(1 + C62)/2 -> 0.9999973228 | D68: =D65*J51*(D60*( (D60+1) + (D60-1)*D62 + 2*SQRT(D60)*D64 )) -> 11.46845886 | E68: =E65*J51*(E60*( (E60+1) - (E60-1)*E62 + 2*SQRT(E60)*E64 )) -> 6.334244143 | F68: =F65*$J$51*(1+(F64*F60)) -> 1.00002667 | J68: BQ0 | K68: =(B68/B71) -> 0.001029253647 | L68: =(B69/B71) -> 0.002058507294 | M68: =(B70/B71) -> 0.001029253647 | N68: =(-B72/B71) -> 1.918754067 | O68: =(-B73/B71) -> -0.9228710821
A69: B1 | B69: =B65*J51*(1 - B62) -> 0.002141076761 | C69: =C65*J51*-(1 + C62) -> -1.999994646 | D69: =D65*J51*(-2*D60*( (D60-1) + (D60+1)*D62 )) -> -20.32797891 | E69: =E65*J51*(2*E60*( (E60-1) - (E60+1)*E62 )) -> -12.645872 | F69: =F65*$J$51*(-2*F62) -> -1.999919013 | J69: BQ1 | K69: =(C68/C71) -> 0.9979177283 | L69: =(C69/C71) -> -1.995835457 | M69: =(C70/C71) -> 0.9979177283 | N69: =(-C72/C71) -> 1.995830113 | O69: =(-C73/C71) -> -0.9958407998
A70: B2 | B70: =B65*J51*((1 - B62)/2) -> 0.001070538381 | C70: =C65*J51*(1 +C62)/2 -> 0.9999973228 | D70: =D65*J51*(D60*( (D60+1) + (D60-1)*D62 - 2*SQRT(D60)*D64 )) -> 9.347449355 | E70: =E65*J51*(E60*( (E60+1) - (E60-1)*E62 - 2*SQRT(E60)*E64 )) -> 6.311681375 | F70: =F65*$J$51*(1-(F60*F64)) -> 0.9999733299 | J70: BQ2 | K70: =(D68/D71) -> 4.532451973 | L70: =(D69/D71) -> -8.03382471 | M70: =(D70/D71) -> 3.694207374 | N70: =(-D72/D71) -> 1.442475859 | O70: =(-D73/D71) -> -0.6353104963
A71: A0 | B71: =1+B64 -> 1.040111331 | C71: =1+C64 -> 1.002083934 | D71: =(D60+1) - (D60-1)*D62 + 2*SQRT(D60)*D64 -> 2.530299035 | E71: =(E60+1) + (E60-1)*E62 + 2*SQRT(E60)*E64 -> 6.32651911 | F71: =1 + (F64/F60) -> 1.000843376 | J71: BQ3 | K71: =(E68/E71) -> 1.001221056 | L71: =(E69/E71) -> -1.998867274 | M71: =(E70/E71) -> 0.9976546764 | N71: =(-E72/E71) -> 1.99887108 | O71: =(-E73/E71) -> -0.9988719261
A72: A1 | B72: =-2*B62 -> -1.995717846 | C72: =-2*C62 -> -1.999989291 | D72: =2*((D60-1)-(D60+1)*D62) -> -3.649895274 | E72: =-2*((E60-1)+(E60+1)*E62) -> -12.64589608 | F72: =-2*F62 -> -1.999919013 | J72: BQ4 | K72: =(F68/F71) -> 0.9991839823 | L72: =(F69/F71) -> -1.998233751 | M72: =(F70/F71) -> 0.9991306871 | N72: =(-F72/F71) -> 1.998233751 | O72: =(-F73/F71) -> -0.9983146695
A73: A2 | B73: =1-B64 -> 0.9598886693 | C73: =1-C64 -> 0.9979160662 | D73: =(D60+1) - (D60-1)*D62 - 2*SQRT(D60)*D64 -> 1.607525536 | E73: =(E60+1) +(E60-1)*E62 - 2*SQRT(E60)*E64 -> 6.319382329 | F73: =1-(F64/F60) -> 0.9991566241
B109: Fo | C109: 563154 | D109: =10^(C109/333333)*20 -> 978.348729 | E109: =LOG(C109) -> 5.750627173
B110: Q | C110: 912551 | D110: =C110/1000000*7 -> 6.387857
B111: dBgain | C111: 361479 | D111: =(C111-500000)/500000*20 -> -5.54084
B112: Master dbgain | C112: 554218 | D112: =(C112-500000)/500000*20 -> 2.16872
C113: 538360 | U113: PRE-EQ | AE113: POST-EQ
U114: LPF | V114: HPF | W114: Hi Shelf | X114: Low Shelf | Y114: Peak EQ | Z114: Total
R115: FREQ | S115: w | T115: Phi | U115: CH1 Pre-EQ1 | V115: CH1 Pre-EQ2 | W115: CH1 Pre-EQ3 | X115: CH1 Pre-EQ4 | Y115: CH1 Pre-EQ5 | Z115: CH1 Pre-EQ | AE115: CH1 Post-EQ1 | AF115: CH1 Post-EQ2 | AG115: CH1 Post-EQ3 | AH115: CH1 Post-EQ4 | AI115: CH1 Post-EQ5 | AJ115: CH1 Post-EQ | AL115: CH1 Pre + Post
C116: pre1 | D116: B0 | E116: 1 | G116: =B68/B71 -> 0.001029253647 | R116: 10 | S116: =2*PI()*R116/B56 -> 0.0003272492347 | T116: =4*(SIN(S116/2))^2 -> 1.070920607e-07 | U116: =10*LOG10(($G$116+$G$117+$G$118)^2 + ( $G$116*$G$118*T116 - ($G$117*($G$116+$G$118) + 4*$G$116*$G$118) )*T116 ) - 10*LOG10( (1+$G$119+$G$120)^2 + ( 1*$G$120*T116 - ($G$119*(1+$G$120) + 4*1*$G$120) )*T116) -> 5.375561126e-05 | V116: =10*LOG10(($G$121+$G$122+$G$123)^2 + ( $G$121*$G$123*$T116 - ($G$122*($G$121+$G$123) + 4*$G$121*$G$123) )*$T116 ) - 10*LOG10( (1+$G$124+$G$125)^2 + ( 1*$G$125*$T116 - ($G$124*(1+$G$125) + 4*1*$G$125) )*$T116) -> -39.98355798 | W116: =10*LOG10(($G$126+$G$127+$G$128)^2 + ( $G$126*$G$128*$T116 - ($G$127*($G$126+$G$128) + 4*$G$126*$G$128) )*$T116 ) - 10*LOG10( (1+$G$129+$G$130)^2 + ( 1*$G$130*$T116 - ($G$129*(1+$G$130) + 4*1*$G$130) )*$T116) -> -8.772582083e-06 | X116: =10*LOG10(($G$131+$G$132+$G$133)^2 + ( $G$131*$G$133*$T116 - ($G$132*($G$131+$G$133) + 4*$G$131*$G$133) )*$T116 ) - 10*LOG10( (1+$G$134+$G$135)^2 + ( 1*$G$135*$T116 - ($G$134*(1+$G$135) + 4*1*$G$135) )*$T116) -> 20.17654928 | Y116: =10*LOG10(($G$136+$G$137+$G$138)^2 + ( $G$136*$G$138*$T116 - ($G$137*($G$136+$G$138) + 4*$G$136*$G$138) )*$T116 ) - 10*LOG10( (1+$G$139+$G$140)^2 + ( 1*$G$140*$T116 - ($G$139*(1+$G$140) + 4*1*$G$140) )*$T116) -> -0.0002020781881 | Z116: =U116+V116+W116+X116+Y116 -> -19.8071658 | AE116: =10*LOG10(($G$141+$G$142+$G$143)^2 + ( $G$141*$G$143*$T116 - ($G$142*($G$141+$G$143) + 4*$G$141*$G$143) )*$T116 ) - 10*LOG10( (1+$G$144+$G$145)^2 + ( 1*$G$145*$T116 - ($G$144*(1+$G$145) + 4*1*$G$145) )*$T116) -> -1.516904585e-05 | AF116: =10*LOG10(($G$146+$G$147+$G$148)^2 + ( $G$146*$G$148*$T116 - ($G$147*($G$146+$G$148) + 4*$G$146*$G$148) )*$T116 ) - 10*LOG10( (1+$G$149+$G$150)^2 + ( 1*$G$150*$T116 - ($G$149*(1+$G$150) + 4*1*$G$150) )*$T116) -> 0.002313877507 | AG116: =10*LOG10(($G$151+$G$152+$G$153)^2 + ( $G$151*$G$153*$T116 - ($G$152*($G$151+$G$153) + 4*$G$151*$G$153) )*$T116 ) - 10*LOG10( (1+$G$154+$G$155)^2 + ( 1*$G$155*$T116 - ($G$154*(1+$G$155) + 4*1*$G$155) )*$T116) -> -4.166119874 | AH116: =10*LOG10(($G$156+$G$157+$G$158)^2 + ( $G$156*$G$158*$T116 - ($G$157*($G$156+$G$158) + 4*$G$156*$G$158) )*$T116 ) - 10*LOG10( (1+$G$159+$G$160)^2 + ( 1*$G$160*$T116 - ($G$159*(1+$G$160) + 4*1*$G$160) )*$T116) -> 0.05118863507 | AI116: =10*LOG10(($G$161+$G$162+$G$163)^2 + ( $G$161*$G$163*$T116 - ($G$162*($G$161+$G$163) + 4*$G$161*$G$163) )*$T116 ) - 10*LOG10( (1+$G$164+$G$165)^2 + ( 1*$G$165*$T116 - ($G$164*(1+$G$165) + 4*1*$G$165) )*$T116) -> 1.303233265e-05 | AJ116: =AE116+AF116+AG116+AH116+AI116 -> -4.112619498 | AL116: =AJ116+Z116 -> -23.91978529
C117: LPF | D117: B1 | E117: 2 | G117: =B69/B71 -> 0.002058507294 | R117: 10.2 | S117: =2*PI()*R117/B56 -> 0.0003337942194 | T117: =4*(SIN(S117/2))^2 -> 1.114185799e-07 | U117: =10*LOG10(($G$116+$G$117+$G$118)^2 + ( $G$116*$G$118*T117 - ($G$117*($G$116+$G$118) + 4*$G$116*$G$118) )*T117 ) - 10*LOG10( (1+$G$119+$G$120)^2 + ( 1*$G$120*T117 - ($G$119*(1+$G$120) + 4*1*$G$120) )*T117) -> 5.592723805e-05 | V117: -39.63892158 | W117: -9.126994053e-06 | X117: 20.18103007 | Y117: -0.0002102644429 | Z117: -19.45805497 | AE117: -1.578200662e-05 | AF117: 0.002407352322 | AG117: -4.165556981 | AH117: 0.05118876894 | AI117: 1.355887112e-05 | AJ117: -4.111963083 | AL117: -23.57001805
D118: B2 | E118: 3 | G118: =B70/B71 -> 0.001029253647 | R118: 10.404 | S118: =2*PI()*R118/B56 -> 0.0003404701038 | T118: 1.159198905e-07 | U118: 5.818659033e-05 | V118: -39.29426116 | W118: -9.495724241e-06 | X118: 20.18544842 | Y118: -0.0002187832641 | Z118: -19.10898283 | AE118: -1.641974185e-05 | AF118: 0.002504603038 | AG118: -4.164971458 | AH118: 0.05118890821 | AI118: 1.410668442e-05 | AJ118: -4.11128026 | AL118: -23.22026309
D119: -A1 | E119: 4 | G119: =B72/B71 -> -1.918754067 | R119: 10.61208 | S119: =2*PI()*R119/B56 -> 0.0003472795059 | T119: 1.20603054e-07 | U119: 6.053721152e-05 | V119: -38.94957587 | W119: -9.879351095e-06 | X119: 20.1897807 | Y119: -0.0002276482399 | Z119: -18.75997215 | AE119: -1.708325328e-05 | AF119: 0.002605782163 | AG119: -4.164362401 | AH119: 0.05118905311 | AI119: 1.467663228e-05 | AJ119: -4.110569972 | AL119: -22.87054213
D120: -A2 | E120: 5 | G120: =B73/B71 -> 0.9228710821 | R120: 10.8243216 | S120: =2*PI()*R120/B56 -> 0.000354225096 | T120: 1.254754173e-07 | U120: 6.298278816e-05 | V120: -38.60486482 | W120: -1.027847644e-05 | X120: 20.19400054 | Y120: -0.0002368735198 | Z120: -18.41104845 | AE120: -1.777358325e-05 | AF120: 0.002711048361 | AG120: -4.163728868 | AH120: 0.05118920387 | AI120: 1.526960914e-05 | AJ120: -4.10983112 | AL120: -22.52087957
C121: pre2 | D121: B0 | E121: 6 | G121: =C68/C71 -> 0.9979177283 | R121: 11.04080803 | S121: =2*PI()*R121/B56 -> 0.0003613095979 | T121: 1.305446241e-07 | U121: 6.552715565e-05 | V121: -38.26012713 | W121: -1.069372641e-05 | X121: 20.19807852 | Y121: -0.0002464738385 | Z121: -18.06224026 | AE121: -1.849181628e-05 | AF121: 0.002820566703 | AG121: -4.163069881 | AH121: 0.05118936071 | AI121: 1.588654565e-05 | AJ121: -4.109062559 | AL121: -22.17130282
C122: HPF | D122: B1 | E122: 7 | G122: =C69/C71 -> -1.995835457 | R122: 11.26162419 | S122: =2*PI()*R122/B56 -> 0.0003685357899 | T122: 1.358186269e-07 | U122: 6.817430428e-05 | V122: -37.91536186 | W122: -1.112575245e-05 | X122: 20.20198189 | Y122: -0.0002564645413 | Z122: -17.71357938 | AE122: -1.923908078e-05 | AF122: 0.002934508927 | AG122: -4.162384425 | AH122: 0.05118952389 | AI122: 1.652841009e-05 | AJ122: -4.108263102 | AL122: -21.82184248
D123: B2 | E123: 8 | G123: =C70/C71 -> 0.9979177283 | R123: 11.48685668 | S123: =2*PI()*R123/B56 -> 0.0003759065057 | T123: 1.413056994e-07 | U123: 7.092838548e-05 | V123: -37.57056805 | W123: -1.157523229e-05 | X123: 20.20567432 | Y123: -0.0002668616089 | Z123: -17.36510124 | AE123: -2.001655086e-05 | AF123: 0.003053053701 | AG123: -4.161671441 | AH123: 0.05118969366 | AI123: 1.71962098e-05 | AJ123: -4.107431514 | AL123: -21.47253275
D124: -A1 | E124: 9 | G124: =C72/C71 -> -1.995830113 | R124: 11.71659381 | S124: =2*PI()*R124/B56 -> 0.0003834246358 | T124: 1.470144496e-07 | U124: 7.379371831e-05 | V124: -37.22574473 | W124: -1.204287108e-05 | X124: 20.20911548 | Y124: -0.0002776816853 | Z124: -17.01684518 | AE124: -2.082544812e-05 | AF124: 0.003176386911 | AG124: -4.160929831 | AH124: 0.0511898703 | AI124: 1.789099291e-05 | AJ124: -4.106566508 | AL124: -21.12341169
D125: -A2 | E125: 10 | G125: =C73/C71 -> 0.9958407998 | R125: 11.95092569 | S125: =2*PI()*R125/B56 -> 0.0003910931285 | T125: 1.529538332e-07 | U125: 7.677479625e-05 | V125: -36.8808909 | W125: -1.252940242e-05 | X125: 20.21226077 | Y125: -0.0002889421057 | Z125: -16.66885483 | AE125: -2.166704367e-05 | AF125: 0.003304701946 | AG125: -4.160158453 | AH125: 0.05119005406 | AI125: 1.861384992e-05 | AJ125: -4.10566675 | AL125: -20.77452158
C126: pre3 | D126: B0 | E126: 11 | G126: =D68/D71 -> 4.532451973 | R126: 12.1899442 | S126: =2*PI()*R126/B56 -> 0.0003989149911 | T126: 1.59133168e-07 | U126: 7.987629422e-05 | V126: -36.53600553 | W126: -1.303558957e-05 | X126: 20.21506088 | Y126: -0.0003006609259 | Z126: -16.32117847 | AE126: -2.254266008e-05 | AF126: 0.003438200002 | AG126: -4.159356121 | AH126: 0.05119024526 | AI126: 1.936591537e-05 | AJ126: -4.104730853 | AL126: -20.42590932
C127: Hi Shelf | D127: B1 | E127: 12 | G127: =D69/D71 -> -8.03382471 | R127: 12.43374308 | S127: =2*PI()*R127/B56 -> 0.0004068932909 | T127: 1.655621479e-07 | U127: 8.310307591e-05 | V127: -36.19108756 | W127: -1.356222663e-05 | X127: 20.21746143 | Y127: -0.0003128569534 | Z127: -15.97386945 | AE127: -2.345367347e-05 | AF127: 0.003577090398 | AG127: -4.158521601 | AH127: 0.05119044417 | AI127: 2.014836972e-05 | AJ127: -4.103757372 | AL127: -20.07762682
D128: B2 | E128: 13 | G128: =D70/D71 -> 3.694207374 | R128: 12.68241795 | S128: =2*PI()*R128/B56 -> 0.0004150311567 | T128: 1.722508586e-07 | U128: 8.64602014e-05 | V128: -35.84613593 | W128: -1.411013976e-05 | X128: 20.21940249 | Y128: -0.0003255497793 | Z128: -15.62698663 | AE128: -2.440151571e-05 | AF128: 0.003721590905 | AG128: -4.157653612 | AH128: 0.05119065113 | AI128: 2.096244112e-05 | AJ128: -4.102744809 | AL128: -19.72973144
D129: -A1 | E129: 14 | G129: =D72/D71 -> -1.442475859 | R129: 12.9360663 | S129: =2*PI()*R129/B56 -> 0.0004233317799 | T129: 1.792097932e-07 | U129: 8.995293506e-05 | V129: -35.50114952 | W129: -1.468018852e-05 | X129: 20.22081817 | Y129: -0.000338759812 | Z129: -15.28059485 | AE129: -2.538767665e-05 | AF129: 0.003871928084 | AG129: -4.156750821 | AH129: 0.05119086644 | AI129: 2.180940739e-05 | AJ129: -4.101691604 | AL129: -19.38228645
D130: -A2 | E130: 15 | G130: =D73/D71 -> 0.6353104963 | R130: 13.19478763 | S130: =2*PI()*R130/B56 -> 0.0004317984155 | T130: 1.864498687e-07 | U130: 9.358675388e-05 | V130: -35.15612723 | W130: -1.527326717e-05 | X130: 20.22163607 | Y130: -0.0003525083127 | Z130: -14.93476536 | AE130: -2.641370648e-05 | AF130: 0.004028337641 | AG130: -4.155811843 | AH130: 0.05119109045 | AI130: 2.269059801e-05 | AJ130: -4.100596138 | AL130: -19.0353615
C131: pre4 | D131: B0 | E131: 16 | G131: =E68/E71 -> 1.001221056 | R131: 13.45868338 | S131: =2*PI()*R131/B56 -> 0.0004404343838 | T131: 1.939824433e-07 | U131: 9.736735588e-05 | V131: -34.81106791 | W131: -1.589030612e-05 | X131: 20.22177683 | Y131: -0.0003668174318 | Z131: -14.58957642 | AE131: -2.748121823e-05 | AF131: 0.004191064798 | AG131: -4.154835241 | AH131: 0.05119132352 | AI131: 2.360739621e-05 | AJ131: -4.099456727 | AL131: -18.68903315
C132: Lo Shelf | D132: B1 | E132: 17 | G132: =E69/E71 -> -1.998867274 | R132: 13.72785705 | S132: =2*PI()*R132/B56 -> 0.0004492430715 | T132: 2.018193339e-07 | U132: 0.0001013006693 | V132: -34.46597038 | W132: -1.653227336e-05 | X132: 20.22115354 | Y132: -0.0003817102474 | Z132: -14.24511378 | AE132: -2.859189028e-05 | AF132: 0.004360364675 | AG132: -4.15381952 | AH132: 0.05119156599 | AI132: 2.456124114e-05 | AJ132: -4.09827162 | AL132: -18.3433854
D133: B2 | E133: 18 | G133: =E70/E71 -> 0.9976546764 | R133: 14.00241419 | S133: =2*PI()*R133/B56 -> 0.0004582279329 | T133: 2.099728348e-07 | U133: 0.0001053928615 | V133: -34.12083348 | W133: -1.720017598e-05 | X133: 20.21967122 | Y133: -0.0003972108057 | Z133: -13.90147128 | AE133: -2.974746897e-05 | AF133: 0.00453650269 | AG133: -4.152763127 | AH133: 0.05119181827 | AI133: 2.555363017e-05 | AJ133: -4.097039 | AL133: -17.99851028
D134: -A1 | E134: 19 | G134: =E72/E71 -> -1.99887108 | R134: 14.28246248 | S134: =2*PI()*R134/B56 -> 0.0004673924916 | T134: 2.184557372e-07 | U134: 0.000109650349 | V134: -33.775656 | W134: -1.789506176e-05 | X134: 20.21722617 | Y134: -0.0004133441633 | Z134: -13.55875141 | AE134: -3.094977151e-05 | AF134: 0.004719754974 | AG134: -4.151664448 | AH134: 0.05119208073 | AI134: 2.65861212e-05 | AJ134: -4.095756976 | AL134: -17.65450839
D135: -A2 | E135: 20 | G135: =E73/E71 -> 0.9988719261 | R135: 14.56811173 | S135: =2*PI()*R135/B56 -> 0.0004767403414 | T135: 2.272813488e-07 | U135: 0.0001140798074 | V135: -33.43043671 | W135: -1.861802082e-05 | X135: 20.21370544 | Y135: -0.0004301364305 | Z135: -13.21706594 | AE135: -3.220068869e-05 | AF135: 0.004910408803 | AG135: -4.150521807 | AH135: 0.05119235381 | AI135: 2.766033515e-05 | AJ135: -4.094423585 | AL135: -17.31148953
C136: pre5 | D136: B0 | E136: 21 | G136: =F68/F71 -> 0.9991839823 | R136: 14.85947396 | S136: =2*PI()*R136/B56 -> 0.0004862751482 | T136: 2.364635151e-07 | U136: 0.0001186881816 | V136: -33.0851744 | W136: -1.937018731e-05 | X136: 20.20898617 | Y136: -0.0004476148182 | Z136: -12.87653652 | AE136: -3.350218797e-05 | AF136: 0.005108763047 | AG136: -4.149333463 | AH136: 0.05119263791 | AI136: 2.877795845e-05 | AJ136: -4.093036786 | AL136: -16.96957331
C137: PeakEQ | D137: B1 | E137: 22 | G137: =F69/F71 -> -1.998233751 | R137: 15.15666344 | S137: =2*PI()*R137/B56 -> 0.0004960006512 | T137: 2.460166409e-07 | U137: 0.0001234826971 | V137: -32.73986781 | W137: -2.01527412e-05 | X137: 20.20293499 | Y137: -0.0004658076856 | Z137: -12.53729531 | AE137: -3.485631659e-05 | AF137: 0.005315128638 | AG137: -4.148097607 | AH137: 0.05119293349 | AI137: 2.994074575e-05 | AJ137: -4.09159446 | AL137: -16.62888977
A138: Master A | B138: =SQRT( 10^((D112)/20) ) -> 1.13296893 | D138: B2 | E138: 23 | G138: =F70/F71 -> 0.9991306871 | R138: 15.45979671 | S138: =2*PI()*R138/B56 -> 0.0005059206642 | T138: 2.55955713e-07 | U138: 0.0001284708708 | V138: -32.39451571 | W138: -2.096691013e-05 | X138: 20.19540736 | Y138: -0.0004847445911 | Z138: -12.19948559 | AE138: -3.62652048e-05 | AF138: 0.005529829057 | AG138: -4.14681236 | AH138: 0.05119324101 | AI138: 3.115052268e-05 | AJ138: -4.090094404 | AL138: -16.28957999
A139: A | B139: =SQRT( 10^((D111)/20) ) -> 0.7269072493 | D139: -A1 | E139: 24 | G139: =F72/F71 -> -1.998233751 | R139: 15.76899264 | S139: =2*PI()*R139/B56 -> 0.0005160390775 | T139: 2.662963236e-07 | U139: 0.0001336605232 | V139: -32.04911682 | W139: -2.181397133e-05 | X139: 20.18624704 | Y139: -0.0005044563447 | Z139: -11.86326239 | AE139: -3.773106921e-05 | AF139: 0.005753200837 | AG139: -4.14547577 | AH139: 0.05119356095 | AI139: 3.240918868e-05 | AJ139: -4.08853433 | AL139: -15.95179672
A140: wo | B140: =2*PI()*D109/B56 -> 0.03201638729 | D140: -A2 | E140: 25 | G140: =F73/F71 -> 0.9983146695 | R140: 16.08437249 | S140: =2*PI()*R140/B56 -> 0.000526359859 | T140: 2.770546948e-07 | U140: 0.0001390597906 | V140: -31.70366991 | W140: -2.269525364e-05 | X140: 20.17528544 | Y140: -0.0005249750639 | Z140: -11.52879307 | AE140: -3.925621643e-05 | AF140: 0.005985594093 | AG140: -4.144085811 | AH140: 0.05119389383 | AI140: 3.371872007e-05 | AJ140: -4.08691186 | AL140: -15.61570493
A141: cos(wo) | B141: =COS(B140) -> 0.9994875193 | C141: post1 | D141: B0 | E141: 26 | G141: =B186/B189 -> 0.9983799862 | R141: 16.40605994 | S141: =2*PI()*R141/B56 -> 0.0005368870562 | T141: 2.882477042e-07 | U141: 0.0001446771375 | V141: -31.3581737 | W141: -2.361213959e-05 | X141: 20.1623411 | Y141: -0.0005463342318 | Z141: -11.19625786 | AE141: -4.084304653e-05 | AF141: 0.006227373066 | AG141: -4.142640378 | AH141: 0.05119424015 | AI141: 3.508117302e-05 | AJ141: -4.085224526 | AL141: -15.28148239
A142: sin(wo) | B142: =SIN(B140) -> 0.03201091784 | D142: B1 | E142: 27 | G142: =B187/B189 -> -1.992108357 | R142: 16.73418114 | S142: =2*PI()*R142/B56 -> 0.0005476247973 | T142: 2.998929112e-07 | U142: 0.00015052137 | V142: -31.01262695 | W142: -2.456606753e-05 | X142: 20.1472192 | Y142: -0.0005685687572 | Z142: -10.86585036 | AE142: -4.249405706e-05 | AF142: 0.006478916695 | AG142: -4.141137284 | AH142: 0.05119460046 | AI142: 3.649868696e-05 | AJ142: -4.083469763 | AL142: -14.94932012
A143: Alpha | B143: =B142/(2*D110) -> 0.002505606954 | D143: B2 | E143: 28 | G143: =B188/B189 -> 0.9947498115 | R143: 17.06886477 | S143: =2*PI()*R143/B56 -> 0.0005585772933 | T143: 3.120085845e-07 | U143: 0.0001566016499 | V143: -30.66702842 | W143: -2.555853396e-05 | X143: 20.12971113 | Y143: -0.0005917150395 | Z143: -10.53777796 | AE143: -4.421184686e-05 | AF143: 0.006740619207 | AG143: -4.139574262 | AH143: 0.05119497532 | AI143: 3.79734878e-05 | AJ143: -4.081644906 | AL143: -14.61942286
D144: -A1 | E144: 29 | G144: =B190/B189 -> -1.992108357 | R144: 17.41024206 | S144: =2*PI()*R144/B56 -> 0.0005697488391 | T144: 3.246137309e-07 | U144: 0.0001629275085 | V144: -30.3213769 | W144: -2.659109581e-05 | X144: 20.10959421 | Y144: -0.0006158110345 | Z144: -10.21226216 | AE144: -4.599912031e-05 | AF144: 0.007012890735 | AG144: -4.137948954 | AH144: 0.05119536534 | AI144: 3.950789155e-05 | AJ144: -4.079747189 | AL144: -14.29200935
D145: -A2 | E145: 30 | G145: =B191/B189 -> 0.9931297977 | R145: 17.7584469 | S145: =2*PI()*R145/B56 -> 0.0005811438159 | T145: 3.377281253e-07 | U145: 0.0001695088619 | V145: -29.97567118 | W145: -2.766537291e-05 | X145: 20.08663141 | Y145: -0.0006408963255 | Z145: -9.889538825 | AE145: -4.785869154e-05 | AF145: 0.007296157957 | AG145: -4.136258913 | AH145: 0.0511957711 | AI145: 4.110430788e-05 | AJ145: -4.077773738 | AL145: -13.96731256
A146: LPF B0 | B146: =B138^2*(1 - B141)/2 -> 0.0003289149095 | C146: post2 | D146: B0 | E146: 31 | G146: =B196 -> 1.033644882 | R146: 18.11361584 | S146: =2*PI()*R146/B56 -> 0.0005927666923 | T146: 3.513723412e-07 | U146: 0.0001763560262 | V146: -29.62991012 | W146: -2.878305056e-05 | X146: 20.06057138 | Y146: -0.0006670121962 | Z146: -9.569858179 | AE146: -4.979348896e-05 | AF146: 0.007590864763 | AG146: -4.134501601 | AH146: 0.05119619327 | AI146: 4.276524395e-05 | AJ146: -4.075721572 | AL146: -13.64557975
A147: LPF B1 | B147: =B138^2*(1 - B141) -> 0.0006578298189 | C147: PA EQ | D147: B1 | E147: 32 | G147: =B197 -> -1.993978049 | R147: 18.47588816 | S147: =2*PI()*R147/B56 -> 0.0006046220261 | T147: 3.655677833e-07 | U147: 0.0001834797341 | V147: -29.28409258 | W147: -2.994588209e-05 | X147: 20.03114849 | Y147: -0.0006942017083 | Z147: -9.25348475 | AE147: -5.180655994e-05 | AF147: 0.007897472949 | AG147: -4.132674382 | AH147: 0.05119663248 | AI147: 4.449330842e-05 | AJ147: -4.07358759 | AL147: -13.32707234
A148: LPF B2 | B148: =B138^2*((1 - B141)/2) -> 0.0003289149095 | D148: B2 | E148: 33 | G148: =B198 -> 0.9613555663 | R148: 18.84540592 | S148: =2*PI()*R148/B56 -> 0.0006167144666 | T148: 3.803367213e-07 | U148: 0.0001908911512 | V148: -28.93821748 | W148: -3.115569172e-05 | X148: 19.99808322 | Y148: -0.0007225097826 | Z148: -8.940697035 | AE148: -5.39010756e-05 | AF148: 0.008216462939 | AG148: -4.13077452 | AH148: 0.05119708945 | AI148: 4.629121545e-05 | AJ148: -4.071368577 | AL148: -13.01206561
A149: LPF A0 | B149: =1+B143 -> 1.002505607 | D149: -A1 | E149: 34 | G149: =B199 -> -1.993978049 | R149: 19.22231404 | S149: =2*PI()*R149/B56 -> 0.000629048756 | T149: 3.957023243e-07 | U149: 0.0001986018935 | V149: -28.59228381 | W149: -3.241437732e-05 | X149: 19.96108265 | Y149: -0.000751983284 | Z149: -8.631786962 | AE149: -5.608033592e-05 | AF149: 0.008548334531 | AG149: -4.128799175 | AH149: 0.05119756487 | AI149: 4.816178905e-05 | AJ149: -4.069061194 | AL149: -12.70084816
A150: LPF A1 | B150: =-2*B141 -> -1.998975039 | D150: -A2 | E150: 35 | G150: =B200 -> 0.9950004485 | R150: 19.60676032 | S150: =2*PI()*R150/B56 -> 0.0006416297311 | T150: 4.116886977e-07 | U150: 0.0002066240459 | V150: -28.24629063 | W150: -3.372391347e-05 | X150: 19.91984133 | Y150: -0.0007826711113 | Z150: -8.327059075 | AE150: -5.834777502e-05 | AF150: 0.008893607682 | AG150: -4.126745401 | AH150: 0.0511980595 | AI150: 5.010796751e-05 | AJ150: -4.066661974 | AL150: -12.39372105
A151: LPF A2 | B151: =1-B143 -> 0.997494393 | C151: post3 | D151: B0 | E151: 36 | G151: 1.029078484 | R151: 19.99889553 | S151: =2*PI()*R151/B56 -> 0.0006544623257 | T151: 4.283209205e-07 | U151: 0.0002149701808 | V151: -27.90023706 | W151: -3.508635448e-05 | X151: 19.87404237 | Y151: -0.0008146242907 | Z151: -8.026829428 | AE151: -6.070696659e-05 | AF151: 0.009252823317 | AG151: -4.124610142 | AH151: 0.05119857411 | AI151: 5.213280805e-05 | AJ151: -4.064167318 | AL151: -12.09099675
D152: B1 | E152: 37 | G152: -1.081429482 | R152: 20.39887344 | S152: =2*PI()*R152/B56 -> 0.0006675515722 | T152: 4.45625085e-07 | U152: 0.0002236533779 | V152: -27.55412234 | W152: -3.65038377e-05 | X152: 19.82335892 | Y152: -0.000847896075 | Z152: -7.731424163 | AE152: -6.316162964e-05 | AF152: 0.009626544173 | AG152: -4.122390225 | AH152: 0.05119910952 | AI152: 5.423949162e-05 | AJ152: -4.061573494 | AL152: -11.79299766
D153: B2 | E153: 38 | G153: 0.05741024017 | R153: 20.80685091 | S153: =2*PI()*R153/B56 -> 0.0006809026036 | T153: 4.636283377e-07 | U153: 0.0002326872443 | V153: -27.2079458 | W153: -3.797858678e-05 | X153: 19.76745589 | Y153: -0.0008825420475 | Z153: -7.441177736 | AE153: -6.571563441e-05 | AF153: 0.01001535568 | AG153: -4.120082362 | AH153: 0.05119966655 | AI153: 5.643132793e-05 | AJ153: -4.058876624 | AL153: -11.50005436
A154: HPF B0 | B154: =B138^2*(1 + B141)/2 -> 1.283289681 | D154: -A1 | E154: 39 | G154: -1.319993019 | R154: 21.22298792 | S154: =2*PI()*R154/B56 -> 0.0006945206557 | T154: 4.823589218e-07 | U154: 0.0002420859364 | V154: -26.8617069 | W154: -3.951291524e-05 | X154: 19.70599216 | Y154: -0.0009186202313 | Z154: -7.156430795 | AE154: -6.837300863e-05 | AF154: 0.01041986686 | AG154: -4.11768314 | AH154: 0.05120024609 | AI154: 5.87117607e-05 | AJ154: -4.056072688 | AL154: -11.21250348
A155: HPF B1 | B155: =B138^2*-(1 + B141) -> -2.566579361 | D155: -A2 | E155: 40 | G155: 0.3281793594 | R155: 21.64744768 | S155: =2*PI()*R155/B56 -> 0.0007084110688 | T155: 5.018462215e-07 | U155: 0.0002518641812 | V155: -26.51540527 | W155: -4.110923003e-05 | X155: 19.63862301 | Y155: -0.0009561912042 | Z155: -6.877527691 | AE155: -7.113794391e-05 | AF155: 0.01084071131 | AG155: -4.115189019 | AH155: 0.05120084904 | AI155: 6.108437301e-05 | AJ155: -4.053157513 | AL155: -10.9306852
A156: HPF B2 | B156: =B138^2*(1 + B141)/2 -> 1.283289681 | C156: post4 | D156: B0 | E156: 41 | G156: 0.8476543427 | R156: 22.08039664 | S156: =2*PI()*R156/B56 -> 0.0007225792902 | T156: 5.221208079e-07 | U156: 0.0002620373001 | V156: -26.16904067 | W156: -4.277003536e-05 | X156: 19.56500309 | Y156: -0.00099531822 | Z156: -6.604813625 | AE156: -7.401480246e-05 | AF156: 0.01127854814 | AG156: -4.112596331 | AH156: 0.05120147636 | AI156: 6.355289306e-05 | AJ156: -4.050126768 | AL156: -10.65494039
A157: HPF A0 | B157: =1+B143 -> 1.002505607 | D157: B1 | E157: 42 | G157: -1.398298264 | R157: 22.52200457 | S157: =2*PI()*R157/B56 -> 0.000737030876 | T157: 5.432144876e-07 | U157: 0.000272621232 | V157: -25.82261306 | W157: -4.449793661e-05 | X157: 19.48478954 | Y157: -0.001036067336 | Z157: -6.33863146 | AE157: -7.700812416e-05 | AF157: 0.01173406305 | AG157: -4.10990127 | AH157: 0.05120212901 | AI157: 6.612119998e-05 | AJ157: -4.046975965 | AL157: -10.38560742
A158: HPF A1 | B158: =-2*B141 -> -1.998975039 | D158: B2 | E158: 43 | G158: 0.6428365707 | R158: 22.97244466 | S158: =2*PI()*R158/B56 -> 0.0007517714935 | T158: 5.651603519e-07 | U158: 0.0002836325591 | V158: -25.47612261 | W158: -4.629564439e-05 | X158: 19.39764557 | Y158: -0.001078507546 | Z158: -6.079318218
A159: HPF A2 | B159: =1-B143 -> 0.997494393 | D159: -A1 | E159: 44 | G159: -1.777497292 | R159: 23.43189355 | S159: =2*PI()*R159/B56 -> 0.0007668069234 | T159: 5.87992829e-07 | U159: 0.0002950885318 | V159: -25.12956974 | W159: -4.816597884e-05 | X159: 19.30324421 | Y159: -0.001122710927 | Z159: -5.827201321
D160: -A2 | E160: 45 | G160: 0.8691482544 | R160: 23.90053142 | S160: =2*PI()*R160/B56 -> 0.0007821430619 | T160: 6.117477381e-07 | U160: 0.0003070070964 | V160: -24.78295513 | W160: -5.011187401e-05 | X160: 19.20127236 | Y160: -0.001168752779 | Z160: -5.58259462
C161: post 5 | D161: B0 | E161: 46 | G161: 1.008439919 | R161: 24.37854205 | S161: =2*PI()*R161/B56 -> 0.0007977859231 | T161: 6.364623454e-07 | U161: 0.0003194069227 | V161: -24.43627973 | W161: -5.213638249e-05 | X161: 19.09143486 | Y161: -0.001216711794 | Z161: -5.345794319
A162: HShelf B0 | B162: =B138^2*(B139*( (B139+1) + (B139-1)*B141 + 2*SQRT(B139)*B143 )) -> 1.360630251 | D162: B1 | E162: 47 | G162: -1.994599001 | R162: 24.86611289 | S162: =2*PI()*R162/B56 -> 0.0008137416416 | T162: 6.621754227e-07 | U162: 0.0003323074332 | V162: -24.08954487 | W162: -5.424268018e-05 | X162: 18.97345862 | Y162: -0.001266670213 | Z162: -5.117074861
A163: HShelf B1 | B163: =B138^2*(-2*B139*( (B139-1) + (B139+1)*B141 )) -> -2.711374673 | D163: B2 | E163: 48 | G163: 0.9896845436 | R163: 25.36343515 | S163: =2*PI()*R163/B56 -> 0.0008300164744 | T163: 6.889273082e-07 | U163: 0.0003457288334 | V163: -23.74275223 | W163: -5.64340713e-05 | X163: 18.84709676 | Y163: -0.001318714006 | Z163: -4.896684897
A164: HShelf B2 | B164: =B138^2*(B139*( (B139+1) + (B139-1)*B141 - 2*SQRT(B139)*B143 )) -> 1.352657147 | D164: -A1 | E164: 49 | G164: -1.994599001 | R164: 25.87070385 | S164: =2*PI()*R164/B56 -> 0.0008466168039 | T164: 7.167599698e-07 | U164: 0.0003596921432 | V164: -23.39590391 | W164: -5.871399353e-05 | X164: 18.71213242 | Y164: -0.001372933057 | Z164: -4.684843441
A165: HShelf A0 | B165: =(B139+1) - (B139-1)*B141 + 2*SQRT(B139)*B143 -> 2.004132549 | D165: -A2 | E165: 50 | G165: 0.9981244625 | R165: 26.38811793 | S165: =2*PI()*R165/B56 -> 0.00086354914 | T165: 7.457170708e-07 | U165: 0.0003742192299 | V165: -23.04900246 | W165: -6.108602346e-05 | X165: 18.56838242 | Y165: -0.00142942136 | Z165: -4.481736335
A166: HShelf A1 | B166: =2*((B139-1)-(B139+1)*B141) -> -3.998229987 | R166: 26.91588029 | S166: =2*PI()*R166/B56 -> 0.0008808201228 | T166: 7.758440385e-07 | U166: 0.0003893328418 | V166: -22.70205096 | W166: -6.355388211e-05 | X166: 18.41570034 | Y166: -0.001488277223 | Z166: -4.287513125
A167: HShelf A2 | B167: =(B139+1) - (B139-1)*B141 - 2*SQRT(B139)*B143 -> 1.995587542 | R167: 27.4541979 | S167: =2*PI()*R167/B56 -> 0.0008984365252 | T167: 8.071881356e-07 | U167: 0.0004050566443 | V167: -22.35505305 | W167: -6.612144088e-05 | X167: 18.25397926 | Y167: -0.001549603494 | Z167: -4.102284462
R168: 28.00328185 | S168: =2*PI()*R168/B56 -> 0.0009164052557 | T168: 8.39798534e-07 | U168: 0.000421415256 | V168: -22.008013 | W168: -6.879272754e-05 | X168: 18.08315377 | Y168: -0.001613507785 | Z168: -3.926120115
R169: 28.56334749 | S169: =2*PI()*R169/B56 -> 0.0009347333608 | T169: 8.737263923e-07 | U169: 0.0004384342877 | V169: -21.66093577 | W169: -7.157193257e-05 | X169: 17.90320135 | Y169: -0.001680102725 | Z169: -3.759047659
A170: LShelf B0 | B170: =B138^2*(B139*( (B139+1) - (B139-1)*B141 + 2*SQRT(B139)*B143 )) -> 1.869999289 | R170: 29.13461444 | S170: =2*PI()*R170/B56 -> 0.0009534280281 | T170: 9.090249358e-07 | U170: 0.0004561403817 | V170: -21.31382709 | W170: -7.446341574e-05 | X170: 17.71414302 | Y170: -0.001749506214 | Z170: -3.601051901
A171: LShelf B1 | B171: =B138^2*(2*B139*( (B139-1) - (B139+1)*B141 )) -> -3.7306351 | R171: 29.71730673 | S171: =2*PI()*R171/B56 -> 0.0009724965886 | T171: 9.457495404e-07 | U171: 0.0004745612535 | V171: -20.96669355 | W171: -7.747171293e-05 | X171: 17.51604327 | Y171: -0.001821841704 | Z171: -3.452075041
A172: LShelf B2 | B172: =B138^2*(B139*( (B139+1) - (B139-1)*B141 - 2*SQRT(B139)*B143 )) -> 1.862026185 | R172: 30.31165286 | S172: =2*PI()*R172/B56 -> 0.0009919465204 | T172: 9.839578187e-07 | U172: 0.000493725735 | V172: -20.61954266 | W172: -8.060154329e-05 | X172: 17.3090092 | Y172: -0.00189723849 | Z172: -3.31201758
A173: LShelf A0 | B173: =(B139+1) + (B139-1)*B141 + 2*SQRT(B139)*B143 -> 1.458226957 | R173: 30.91788592 | S173: =2*PI()*R173/B56 -> 0.001011785451 | T173: 1.023709711e-06 | U173: 0.000513663819 | V173: -20.27238296 | W173: -8.385781658e-05 | X173: 17.09318906 | Y173: -0.001975832018 | Z173: -3.180739926
A174: LShelf A1 | B174: =-2*((B139-1)+(B139+1)*B141) -> -2.905858984 | R174: 31.53624364 | S174: =2*PI()*R174/B56 -> 0.00103202116 | T174: 1.06506758e-06 | U174: 0.0005344067063 | V174: -19.92522411 | W174: -8.724564092e-05 | X174: 16.86877007 | Y174: -0.002057764221 | Z174: -3.058064641
A175: LShelf A2 | B175: =(B139+1) +(B139-1)*B141 - 2*SQRT(B139)*B143 -> 1.44968195 | R175: 32.16696851 | S175: =2*PI()*R175/B56 -> 0.001052661583 | T175: 1.108096306e-06 | U175: 0.0005559868533 | V175: -19.57807702 | W175: -9.077033077e-05 | X175: 16.63597574 | Y175: -0.002143183863 | Z175: -2.94377925
R176: 32.81030788 | S176: =2*PI()*R176/B56 -> 0.001073714815 | T176: 1.152863393e-06 | U176: 0.0005784380234 | V176: -19.23095397 | W176: -9.443741528e-05 | X176: 16.39506271 | Y176: -0.002232246917 | Z176: -2.837639502
R177: 33.46651404 | S177: =2*PI()*R177/B56 -> 0.001095189111 | T177: 1.199439069e-06 | U177: 0.0006017953388 | V177: -18.88386872 | W177: -9.825264697e-05 | X177: 16.14631731 | Y177: -0.002325116958 | Z177: -2.739372986
A178: Notch B0 | B178: 1 | R178: 34.13584432 | S178: =2*PI()*R178/B56 -> 0.001117092893 | T178: 1.247896402e-06 | U178: 0.0006260953349 | V178: -18.53683666 | W178: -0.0001022220107 | X178: 15.89005178 | Y178: -0.002421965588 | Z178: -2.648682974
A179: Notch B1 | B179: =-2*B141 -> -1.998975039 | R179: 34.81856121 | S179: =2*PI()*R179/B56 -> 0.001139434751 | T179: 1.298311411e-06 | U179: 0.0006513760174 | V179: -18.18987499 | W179: -0.0001063517332 | X179: 15.62660055 | Y179: -0.002522972885 | Z179: -2.565252386
A180: Notch B2 | B180: =1 -> 1 | R180: 35.51493243 | S180: =2*PI()*R180/B56 -> 0.001162223446 | T180: 1.350763187e-06 | U180: 0.0006776769207 | V180: =10*LOG10(($G$121+$G$122+$G$123)^2 + ( $G$121*$G$123*$T180 - ($G$122*($G$121+$G$123) + 4*$G$121*$G$123) )*$T180 ) - 10*LOG10( (1+$G$124+$G$125)^2 + ( 1*$G$125*$T180 - ($G$124*(1+$G$125) + 4*1*$G$125) )*$T180) -> -17.84300286 | W180: =10*LOG10(($G$126+$G$127+$G$128)^2 + ( $G$126*$G$128*$T180 - ($G$127*($G$126+$G$128) + 4*$G$126*$G$128) )*$T180 ) - 10*LOG10( (1+$G$129+$G$130)^2 + ( 1*$G$130*$T180 - ($G$129*(1+$G$130) + 4*1*$G$130) )*$T180) -> -0.0001106482927 | X180: =10*LOG10(($G$131+$G$132+$G$133)^2 + ( $G$131*$G$133*$T180 - ($G$132*($G$131+$G$133) + 4*$G$131*$G$133) )*$T180 ) - 10*LOG10( (1+$G$134+$G$135)^2 + ( 1*$G$135*$T180 - ($G$134*(1+$G$135) + 4*1*$G$135) )*$T180) -> 15.35631639 | Y180: =10*LOG10(($G$136+$G$137+$G$138)^2 + ( $G$136*$G$138*$T180 - ($G$137*($G$136+$G$138) + 4*$G$136*$G$138) )*$T180 ) - 10*LOG10( (1+$G$139+$G$140)^2 + ( 1*$G$140*$T180 - ($G$139*(1+$G$140) + 4*1*$G$140) )*$T180) -> -0.002628327881 | Z180: =U180+V180+W180+X180+Y180 -> -2.488747765
A181: Notch A0 | B181: =1+B143 -> 1.002505607 | R181: 36.22523108 | S181: =2*PI()*R181/B56 -> 0.001185467915 | T181: =4*(SIN(S181/2))^2 -> 1.405334013e-06 | U181: =10*LOG10(($G$116+$G$117+$G$118)^2 + ( $G$116*$G$118*T181 - ($G$117*($G$116+$G$118) + 4*$G$116*$G$118) )*T181 ) - 10*LOG10( (1+$G$119+$G$120)^2 + ( 1*$G$120*T181 - ($G$119*(1+$G$120) + 4*1*$G$120) )*T181) -> 0.0007050391696 | V181: -17.49624154 | W181: -0.0001151184289 | X181: 15.0795667 | Y181: -0.002738229076 | Z181: -2.418823157
A182: Notch A1 | B182: =-2*B141 -> -1.998975039 | R182: 36.9497357 | S182: =2*PI()*R182/B56 -> 0.001209177273 | T182: 1.4621095e-06 | U182: 0.0007335055425 | V182: -17.14961467 | W182: -0.0001197691542 | X182: 14.79673 | Y182: -0.002852884981 | Z182: -2.355123822
A183: Notch A2 | B183: =1-B143 -> 0.997494393 | R183: 37.68873042 | S183: =2*PI()*R183/B56 -> 0.001233360819 | T183: 1.521178716e-06 | U183: 0.000763120538 | V183: -16.80314842 | W183: -0.0001246077639 | X183: 14.50819272 | Y183: -0.002972514705 | Z183: -2.2972897
R184: 38.44250503 | S184: =2*PI()*R184/B56 -> 0.001258028035 | T184: 1.582634328e-06 | U184: 0.0007939304435 | V184: -16.45687171 | W184: -0.0001296418481 | X184: 14.21434621 | Y184: -0.003097348575 | Z184: -2.244958568
R185: 39.21135513 | S185: =2*PI()*R185/B56 -> 0.001283188596 | T185: 1.646572747e-06 | U185: 0.0008259834066 | V185: -16.11081653 | W185: -0.0001348793036 | X185: 13.91558419 | Y185: -0.003227628806 | Z185: -2.197768867
A186: Peaking B0 | B186: =1+(B143*B139) -> 1.001821344 | R186: 39.99558223 | S186: =2*PI()*R186/B56 -> 0.001308852368 | T186: 1.713094276e-06 | U186: 0.0008593295099 | V186: -15.76501812 | W186: -0.0001403283461 | X186: 13.61230056 | Y186: -0.003363610212 | Z186: -2.155362169
A187: Peaking B1 | B187: =-2*B141 -> -1.998975039 | R187: 40.79549387 | S187: =2*PI()*R187/B56 -> 0.001335029415 | T187: 1.782303275e-06 | U187: 0.0008940208477 | V187: -15.41951529 | W187: -0.0001459975232 | X187: 13.30488757 | Y187: -0.003505560973 | Z187: -2.117385264
A188: Peaking B2 | B188: =1-(B143*B139) -> 0.9981786561 | R188: 41.61140375 | S188: =2*PI()*R188/B56 -> 0.001361730003 | T188: 1.854308316e-06 | U188: 0.0009301116069 | V188: -15.07435074 | W188: -0.0001518957278 | X188: 12.99373439 | Y188: -0.003653763455 | Z188: -2.08349189
A189: Peaking A0 | B189: =1 + (B143/B139) -> 1.003446942 | R189: 42.44363183 | S189: =2*PI()*R189/B56 -> 0.001388964603 | T189: 1.92922236e-06 | U189: 0.0009676581503 | V189: -14.72957132 | W189: -0.000158032212 | X189: 12.67922611 | Y189: -0.003808515088 | Z189: -2.053344098
A190: Peaking A1 | B190: =-2*B141 -> -1.998975039 | R190: 43.29250446 | S190: =2*PI()*R190/B56 -> 0.001416743896 | T190: 2.00716293e-06 | U190: 0.001006719103 | V190: -14.38522845 | W190: -0.0001644166016 | X190: 12.36174299 | Y190: -0.003970129315 | Z190: -2.026613287
A191: Peaking A2 | B191: =1-(B143/B139) -> 0.9965530582 | R191: 44.15835455 | S191: =2*PI()*R191/B56 -> 0.001445078773 | T191: 2.088252298e-06 | U191: 0.001047355444 | V191: -14.04137845 | W191: -0.0001710589114 | X191: 12.04166016 | Y191: -0.004138936604 | Z191: -2.002980935
R192: 45.04152164 | S192: =2*PI()*R192/B56 -> 0.001473980349 | T192: 2.172617676e-06 | U192: 0.001089630599 | V192: -13.69808291 | W192: -0.0001779695606 | X192: 11.71934749 | Y192: -0.004315285542 | Z192: -1.982139041
R193: 45.94235208 | S193: =2*PI()*R193/B56 -> 0.001503459956 | T193: 2.260391413e-06 | U193: 0.001133610535 | V193: -13.35540911 | W193: -0.0001851593891 | X193: 11.39516987 | Y193: -0.004499544009 | Z193: -1.963790336
A194: Planet Analog 2nd order EQ filter | D194: Fc | E194: =D109 -> 978.348729 | R194: 46.86119912 | S194: =2*PI()*R194/B56 -> 0.001533529155 | T194: 2.351711208e-06 | U194: 0.001179363869 | V194: -13.01343046 | W194: -0.0001926396751 | X194: 11.06948756 | Y194: -0.004692100452 | Z194: -1.947648278
D195: g | E195: =D111+20 -> 14.45916 | G195: d | H195: =-COS(2*PI()*E194/B56) -> -0.9994875193 | R195: 47.7984231 | S195: =2*PI()*R195/B56 -> 0.001564199738 | T195: 2.446720322e-06 | U195: 0.001226961966 | V195: -12.67222693 | W195: -0.000200422152 | X195: 10.74265689 | Y195: -0.004893365241 | Z195: -1.933436871
A196: PA EQ B0 | B196: =1 + (1+E202)*E197/2 -> 1.033644882 | D196: b | E196: =E194/D110 -> 153.1575815 | R196: 48.75439156 | S196: =2*PI()*R196/B56 -> 0.001595483733 | T196: 2.545567802e-06 | U196: 0.001276479051 | V196: -12.33188551 | W196: -0.0002085190272 | X196: 10.41503097 | Y196: -0.005103772156 | Z196: -1.920890355
A197: PA EQ B1 | B197: =H195*(1-E202) -> -1.993978049 | D197: H | E197: =E195-1 -> 13.45916 | R197: 49.72947939 | S197: =2*PI()*R197/B56 -> 0.001627393408 | T197: 2.648408718e-06 | U197: 0.001327992324 | V197: -11.9925007 | W197: -0.0002169430015 | X197: 10.08696065 | Y197: -0.005323779969 | Z197: -1.909752783
A198: PA EQ B2 | B198: =-E202-(1+E202)*E197/2 -> 0.9613555663 | R198: 50.72406898 | S198: =2*PI()*R198/B56 -> 0.001659941276 | T198: 2.755404406e-06 | U198: 0.001381582076 | V198: -11.65417499 | W198: -0.0002257072882 | X198: 9.758795458 | Y198: -0.005553874178 | Z198: -1.899777534
A199: PA EQ A1 | B199: =B197 -> -1.993978049 | R199: 51.73855036 | S199: =2*PI()*R199/B56 -> 0.001693140101 | T199: 2.866722718e-06 | U199: 0.001437331812 | V199: -11.31701936 | W199: -0.0002348256348 | X199: 9.430884639 | Y199: -0.005794568866 | Z199: -1.890726779
A200: PA EQ A2 | B200: =-E202 -> 0.9950004485 | D200: a1 g<1 | E200: =(TAN(PI()*E196/B56)-E195)/(TAN(PI()*E196/B56)+E195) -> -0.999653423 | R200: 52.77332137 | S200: =2*PI()*R200/B56 -> 0.001727002903 | T200: 2.982538287e-06 | U200: 0.00149532838 | V200: -10.98115376 | W200: -0.0002443123437 | X200: 9.103578197 | Y200: -0.006046408724 | Z200: -1.882370952
D201: a2 g>=1 | E201: =(TAN(PI()*E196/B56)-1)/(TAN(PI()*E196/B56)+1) -> -0.9950004485 | R201: 53.82878779 | S201: =2*PI()*R201/B56 -> 0.001761542961 | T201: 3.103032802e-06 | U201: 0.001555662102 | V201: -10.64670764 | W201: -0.0002541822954 | X201: 8.777227899 | Y201: -0.006309971242 | Z201: -1.874488233
D202: a | E202: =IF(E195<1, E200,E201) -> -0.9950004485 | R202: 54.90536355 | S202: =2*PI()*R202/B56 -> 0.001796773821 | T202: 3.228395294e-06 | U202: 0.001618426911 | V202: -10.31382041 | W202: -0.0002644509711 | X202: 8.45218822 | Y202: -0.006585869093 | Z202: -1.866864082
R203: 56.00347082 | S203: =2*PI()*R203/B56 -> 0.001832709297 | T203: 3.358822427e-06 | U203: 0.001683720497 | V203: -9.982641891 | W203: -0.0002751344775 | X203: 8.128817196 | Y203: -0.006874752712 | Z203: -1.859290862
R204: 57.12354024 | S204: =2*PI()*R204/B56 -> 0.001869363483 | T204: 3.494518814e-06 | U204: 0.001751644451 | V204: -9.653332768 | W204: -0.0002862495718 | X204: 7.807477138 | Y204: -0.007177313118 | Z204: -1.851567548
R205: 58.26601104 | S205: =2*PI()*R205/B56 -> 0.001906750753 | T205: 3.635697331e-06 | U205: 0.001822304421 | V205: -9.326064954 | W205: -0.000297813688 | X205: 7.488535165 | Y205: -0.00749428497 | Z205: -1.843499583
R206: 59.43133126 | S206: =2*PI()*R206/B56 -> 0.001944885768 | T206: 3.782579457e-06 | U206: 0.001895810274 | V206: -9.001021928 | W206: -0.0003098449642 | X206: 7.172363545 | Y206: -0.007826449915 | Z206: -1.834898868
R207: 60.61995789 | S207: =2*PI()*R207/B56 -> 0.001983783483 | T207: 3.935395617e-06 | U207: 0.001972276259 | V207: -8.678398982 | W207: -0.0003223622713 | X207: 6.859339772 | Y207: -0.008174640227 | Z207: -1.825583937
R208: 61.83235705 | S208: =2*PI()*R208/B56 -> 0.002023459153 | T208: 4.094385545e-06 | U208: 0.002051821182 | V208: -8.358403379 | W208: -0.0003353852421 | X208: 6.549846377 | Y208: -0.008539742798 | Z208: -1.815380309
R209: 63.06900419 | S209: =2*PI()*R209/B56 -> 0.002063928336 | T209: 4.259798663e-06 | U209: 0.002134568581 | V209: -8.0412544 | W209: -0.0003489343027 | X209: 6.244270418 | Y209: -0.008922703492 | Z209: -1.804121051
R210: 64.33038427 | S210: =2*PI()*R210/B56 -> 0.002105206902 | T210: 4.431894465e-06 | U210: 0.00222064692 | V210: -7.727183256 | W210: -0.0003630307038 | X210: 5.943002631 | Y210: -0.009324531924 | Z210: -1.791647541
R211: 65.61699196 | S211: =2*PI()*R211/B56 -> 0.00214731104 | T211: 4.610942933e-06 | U211: 0.002310189773 | V211: -7.41643285 | W211: -0.0003776965547 | X211: 5.646436216 | Y211: -0.009746306691 | Z211: -1.777810447
R212: 66.9293318 | S212: =2*PI()*R212/B56 -> 0.002190257261 | T212: 4.797224953e-06 | U212: 0.00240333603 | V212: -7.109257352 | W212: -0.0003929548572 | X212: 5.354965235 | Y212: -0.01018918113 | Z212: -1.762470917
R213: 68.26791843 | S213: =2*PI()*R213/B56 -> 0.002234062406 | T213: 4.99103276e-06 | U213: 0.002500230102 | V213: -6.805921585 | W213: -0.0004088295426 | X213: 5.068982629 | Y213: -0.01065438961 | Z213: -1.745501945
R214: 69.6332768 | S214: =2*PI()*R214/B56 -> 0.002278743655 | T214: 5.192670396e-06 | U214: 0.00260102214 | V214: -6.50670018 | W214: -0.0004253455084 | X214: 4.788877842 | Y214: -0.01114325456 | Z214: -1.726789917
R215: 71.02594234 | S215: =2*PI()*R215/B56 -> 0.002324318528 | T215: 5.402454186e-06 | U215: 0.002705868256 | V215: -6.211876499 | W215: -0.0004425286574 | X215: 4.515034073 | Y215: -0.01165719404 | Z215: -1.706236281
R216: 72.44646118 | S216: =2*PI()*R216/B56 -> 0.002370804898 | T216: 5.620713233e-06 | U216: 0.002814930756 | V216: -5.921741289 | W216: -0.000460405939 | X216: 4.247825197 | Y216: -0.01219773031 | Z216: -1.683759297
R217: 73.89539041 | S217: =2*PI()*R217/B56 -> 0.002418220996 | T217: 5.847789937e-06 | U217: 0.00292837838 | V217: -5.636591075 | W217: -0.0004790053905 | X217: 3.987612381 | Y217: -0.01276649913 | Z217: -1.65929582
R218: 75.37329821 | S218: =2*PI()*R218/B56 -> 0.002466585416 | T218: 6.08404053e-06 | U218: 0.003046386555 | V218: -5.356726273 | W218: -0.0004983561817 | X218: 3.73474048 | Y218: -0.01336526014 | Z218: -1.632803023
R219: 76.88076418 | S219: =2*PI()*R219/B56 -> 0.002515917124 | T219: 6.329835638e-06 | U219: 0.003169137651 | V219: -5.082449025 | W219: -0.0005184886601 | X219: 3.489534271 | Y219: -0.01399590837 | Z219: -1.604260013
R220: 78.41837946 | S220: =2*PI()*R220/B56 -> 0.002566235467 | T220: 6.585560858e-06 | U220: 0.003296821251 | V220: -4.81406077 | W220: -0.0005394343991 | X220: 3.25229464 | Y220: -0.01466048699 | Z220: -1.573669229
R221: 79.98674705 | S221: =2*PI()*R221/B56 -> 0.002617560176 | T221: 6.851617364e-06 | U221: 0.00342963443 | V221: -4.551859561 | W221: -0.0005612262467 | X221: 3.023294802 | Y221: -0.01536120151 | Z221: -1.541057552
R222: 81.58648199 | S222: =2*PI()*R222/B56 -> 0.00266991138 | T222: 7.128422541e-06 | U222: 0.003567782042 | V222: -4.29613717 | W222: -0.0005838983776 | X222: 2.802776685 | Y222: -0.01610043562 | Z222: -1.506477036
R223: 83.21821163 | S223: =2*PI()*R223/B56 -> 0.002723309607 | T223: 7.416410634e-06 | U223: 0.003711477021 | V223: -4.047176009 | W223: -0.0006074863464 | X223: 2.590947595 | Y223: -0.0168807688 | Z223: -1.470005192
R224: 84.88257586 | S224: =2*PI()*R224/B56 -> 0.0027777758 | T224: 7.716033431e-06 | U224: 0.003860940692 | V224: -3.805245927 | W224: -0.0006320271433 | X224: 2.387977258 | Y224: -0.01770499611 | Z224: -1.431744752
R225: 86.58022738 | S225: =2*PI()*R225/B56 -> 0.002833331316 | T225: 8.027760973e-06 | U225: 0.004016403089 | V225: -3.570600938 | W225: -0.0006575592523 | X225: 2.193995366 | Y225: -0.01857615025 | Z225: -1.391822878
R226: 88.31183193 | S226: =2*PI()*R226/B56 -> 0.002889997942 | T226: 8.352082291e-06 | U226: 0.004178103291 | V226: -3.343475963 | W226: -0.000684122711 | X226: 2.009089714 | Y226: -0.0194975264 | Z226: -1.350389795
R227: 90.07806857 | S227: =2*PI()*R227/B56 -> 0.002947797901 | T227: 8.689506171e-06 | U227: 0.004346289767 | V227: -3.124083654 | W227: -0.0007117591739 | X227: 1.833304996 | Y227: -0.02047271008 | Z227: -1.307616837
R228: 91.87962994 | S228: =2*PI()*R228/B56 -> 0.003006753859 | T228: 9.040561956e-06 | U228: 0.004521220728 | V228: -2.912611385 | W228: -0.0007405119772 | X228: 1.666642318 | Y228: -0.02150560857 | Z228: -1.263693967
R229: 93.71722254 | S229: =2*PI()*R229/B56 -> 0.003066888936 | T229: 9.405800372e-06 | U229: 0.004703164504 | V229: -2.709218502 | W229: -0.0007704262067 | X229: 1.509059447 | Y229: -0.02260048636 | Z229: -1.218826803
R230: 95.59156699 | S230: =2*PI()*R230/B56 -> 0.003128226715 | T230: 9.785794398e-06 | U230: 0.00489239992 | V230: -2.514033905 | W230: -0.0008015487688 | X230: 1.360471803 | Y230: -0.02376200528 | Z230: -1.173233256
R231: 97.50339833 | S231: =2*PI()*R231/B56 -> 0.003190791249 | T231: 1.018114016e-05 | U231: 0.005089216696 | V231: -2.32715404 | W231: -0.0008339284633 | X231: 1.220754143 | Y231: -0.02499526989 | Z231: -1.127139878
R232: 99.4534663 | S232: =2*PI()*R232/B56 -> 0.003254607074 | T232: 1.059245786e-05 | U232: 0.005293915854 | V232: -2.148641367 | W232: -0.0008676160603 | X232: 1.089742899 | Y232: -0.02630587922 | Z232: -1.080778047
R233: 101.4425356 | S233: =2*PI()*R233/B56 -> 0.003319699215 | T233: 1.102039276e-05 | U233: 0.005506810141 | V233: -1.978523358 | W233: -0.0009026643795 | X233: 0.967239085 | Y233: -0.02769998554 | Z233: -1.034380113
R234: 103.4713863 | S234: =2*PI()*R234/B56 -> 0.0033860932 | T234: 1.14656162e-05 | U234: 0.005728224469 | V234: -1.816792047 | W234: -0.0009391283729 | X234: 0.8530116653 | Y234: -0.02918436151 | Z234: -0.9881756467
R235: 105.5408141 | S235: =2*PI()*R235/B56 -> 0.003453815064 | T235: 1.192882664e-05 | U235: 0.005958496366 | V235: -1.66340416 | W235: -0.0009770652108 | X235: 0.746801295 | Y235: -0.03076647706 | Z235: -0.9423879109
R236: 107.6516303 | S236: =2*PI()*R236/B56 -> 0.003522891365 | T236: 1.241075073e-05 | U236: 0.006197976444 | V236: -1.518281819 | W236: -0.001016534371 | X236: 0.6483243033 | Y236: -0.03245458758 | Z236: -0.8972306615
R237: 109.8046629 | S237: =2*PI()*R237/B56 -> 0.003593349192 | T237: 1.291214452e-05 | U237: 0.00644702888 | V237: -1.381313785 | W237: -0.001057597734 | X237: 0.5572768121 | Y237: -0.03425783536 | Z237: -0.8529053776
R238: 112.0007562 | S238: =2*PI()*R238/B56 -> 0.003665216176 | T238: 1.343379458e-05 | U238: 0.006706031916 | V238: -1.252357212 | W238: -0.001100319674 | X238: 0.473338881 | Y238: -0.03618636676 | Z238: -0.8095989859
R239: 114.2407713 | S239: =2*PI()*R239/B56 -> 0.0037385205 | T239: 1.397651925e-05 | U239: 0.006975378376 | V239: -1.131239847 | W239: -0.001144767168 | X239: 0.3961785767 | Y239: -0.03825146766 | Z239: -0.7674821264
R240: 116.5255868 | S240: =2*PI()*R240/B56 -> 0.00381329091 | T240: 1.454116994e-05 | U240: 0.007255476191 | V240: -1.017762605 | W240: -0.001191009893 | X240: 0.3254558822 | Y240: -0.04046572081 | Z240: -0.7267079772
R241: 118.8560985 | S241: =2*PI()*R241/B56 -> 0.003889556728 | T241: 1.512863247e-05 | U241: 0.007546748951 | V241: -0.9117024518 | W241: -0.001239120341 | X241: 0.2608263738 | Y241: -0.04284318904 | Z241: -0.6874116384
R242: 121.2332205 | S242: =2*PI()*R242/B56 -> 0.003967347862 | T242: 1.573982842e-05 | U242: 0.007849636468 | V242: -0.8128154919 | W242: -0.001289173927 | X242: 0.2019446081 | Y242: -0.04539962932 | Z242: -0.6497100506
R243: 123.6578849 | S243: =2*PI()*R243/B56 -> 0.00404669482 | T243: 1.637571662e-05 | U243: 0.008164595358 | V243: -0.7208401944 | W243: -0.00134124911 | X243: 0.1484671813 | Y243: -0.04815274382 | Z243: -0.6137024107
R244: 126.1310426 | S244: =2*PI()*R244/B56 -> 0.004127628716 | T244: 1.703729463e-05 | U244: 0.008492099639 | V244: =10*LOG10(($G$121+$G$122+$G$123)^2 + ( $G$121*$G$123*$T244 - ($G$122*($G$121+$G$123) + 4*$G$121*$G$123) )*$T244 ) - 10*LOG10( (1+$G$124+$G$125)^2 + ( 1*$G$125*$T244 - ($G$124*(1+$G$125) + 4*1*$G$125) )*$T244) -> -0.6355006675 | W244: =10*LOG10(($G$126+$G$127+$G$128)^2 + ( $G$126*$G$128*$T244 - ($G$127*($G$126+$G$128) + 4*$G$126*$G$128) )*$T244 ) - 10*LOG10( (1+$G$129+$G$130)^2 + ( 1*$G$130*$T244 - ($G$129*(1+$G$130) + 4*1*$G$130) )*$T244) -> -0.001395427517 | X244: =10*LOG10(($G$131+$G$132+$G$133)^2 + ( $G$131*$G$133*$T244 - ($G$132*($G$131+$G$133) + 4*$G$131*$G$133) )*$T244 ) - 10*LOG10( (1+$G$134+$G$135)^2 + ( 1*$G$135*$T244 - ($G$134*(1+$G$135) + 4*1*$G$135) )*$T244) -> 0.100055435 | Y244: =10*LOG10(($G$136+$G$137+$G$138)^2 + ( $G$136*$G$138*$T244 - ($G$137*($G$136+$G$138) + 4*$G$136*$G$138) )*$T244 ) - 10*LOG10( (1+$G$139+$G$140)^2 + ( 1*$G$140*$T244 - ($G$139*(1+$G$140) + 4*1*$G$140) )*$T244) -> -0.05112247532 | Z244: =U244+V244+W244+X244+Y244 -> -0.5794710356
R245: 128.6536634 | S245: =2*PI()*R245/B56 -> 0.00421018129 | T245: =4*(SIN(S245/2))^2 -> 1.772560031e-05 | U245: =10*LOG10(($G$116+$G$117+$G$118)^2 + ( $G$116*$G$118*T245 - ($G$117*($G$116+$G$118) + 4*$G$116*$G$118) )*T245 ) - 10*LOG10( (1+$G$119+$G$120)^2 + ( 1*$G$120*T245 - ($G$119*(1+$G$120) + 4*1*$G$120) )*T245) -> 0.008832641347 | V245: -0.5565099058 | W245: -0.001451794067 | X245: 0.05637779675 | Y245: -0.05433135618 | Z245: -0.5470826179
R246: 131.2267367 | S246: =2*PI()*R246/B56 -> 0.004294384916 | T246: 1.844171347e-05 | U246: 0.009186731173 | V246: -0.4835729453 | W246: -0.001510437106 | X246: 0.01711175731 | Y246: -0.05780492234 | Z246: -0.5165898163
R247: 133.8512714 | S247: =2*PI()*R247/B56 -> 0.004380272614 | T247: 1.91867575e-05 | U247: 0.00955489911 | V247: -0.416389866 | W247: -0.001571448545 | X247: -0.01805450502 | Y247: -0.06157220631 | Z247: -0.4880331268
R248: 136.5282969 | S248: =2*PI()*R248/B56 -> 0.004467878067 | T248: 1.996190121e-05 | U248: 0.009937695126 | V248: -0.3546585964 | W248: -0.001634924003 | X248: -0.04942083486 | Y248: -0.06566632698 | Z248: -0.4614429872
R249: 139.2588628 | S249: =2*PI()*R249/B56 -> 0.004557235628 | T249: 2.076836063e-05 | U249: 0.01033568985 | V249: -0.2980774846 | W249: -0.001700962957 | X249: -0.07727412038 | Y249: -0.07012519853 | Z249: -0.4368420766
R250: 142.04404 | S250: =2*PI()*R250/B56 -> 0.004648380341 | T250: 2.160740088e-05 | U250: 0.01074947529 | V250: -0.2463476105 | W250: -0.001769668896 | X250: -0.1018875963 | Y250: -0.07499238647 | Z250: -0.4142477869
R251: 144.8849208 | S251: =2*PI()*R251/B56 -> 0.004741347947 | T251: 2.248033824e-05 | U251: 0.01117966551 | V251: -0.1991748266 | W251: -0.001841149486 | X251: -0.1235203988 | Y251: -0.08031814689 | Z251: -0.3936748562
R252: 147.7826193 | S252: =2*PI()*R252/B56 -> 0.004836174906 | T252: 2.338854214e-05 | U252: 0.01162689745 | V252: -0.1562715196 | W252: -0.001915516735 | X252: -0.1424173418 | Y252: -0.08616069471 | Z252: -0.3751381754
R253: 150.7382716 | S253: =2*PI()*R253/B56 -> 0.004932898404 | T253: 2.433343733e-05 | U253: 0.01209183161 | V253: -0.1173580988 | W253: -0.001992887166 | X253: -0.1588088835 | Y253: -0.09258776042 | Z253: -0.3586557983
R254: 153.7530371 | S254: =2*PI()*R254/B56 -> 0.005031556373 | T254: 2.531650612e-05 | U254: 0.01257515286 | V254: -0.08216421839 | W254: -0.002073382006 | X254: -0.1729112534 | Y254: -0.09967851229 | Z254: -0.3442522132
R255: 156.8280978 | S255: =2*PI()*R255/B56 -> 0.0051321875 | T255: 2.633929072e-05 | U255: 0.01307757122 | V255: -0.05042974855 | W255: -0.002157127369 | X255: -0.1849267135 | Y255: -0.1075259453 | Z255: -0.3319619635
R256: 159.9646598 | S256: =2*PI()*R256/B56 -> 0.00523483125 | T256: 2.740339564e-05 | U256: 0.01359982268 | V256: -0.02190551472 | W256: -0.002244254455 | X256: -0.1950439263 | Y256: -0.1162398696 | Z256: -0.3218337424
R257: 163.163953 | S257: =2*PI()*R257/B56 -> 0.005339527875 | T257: 2.851049019e-05 | U257: 0.01414267002 | V257: 0.003646175957 | W257: -0.002334899753 | X257: -0.203438408 | Y257: -0.1259506774 | Z257: -0.3139351391
R258: 166.427232 | S258: =2*PI()*R258/B56 -> 0.005446318432 | T258: 2.966231115e-05 | U258: 0.0147069036 | V258: 0.02645119786 | W258: -0.002429205258 | X258: -0.2102730464 | Y258: -0.1368141244 | Z258: -0.3083582746
R259: 169.7557767 | S259: =2*PI()*R259/B56 -> 0.005555244801 | T259: 3.086066544e-05 | U259: 0.0152933423 | V259: 0.04672343748 | W259: -0.002527318687 | X259: -0.2156986647 | Y259: -0.1490174529 | Z259: -0.3052266565
R260: 173.1508922 | S260: =2*PI()*R260/B56 -> 0.005666349697 | T260: 3.210743298e-05 | U260: 0.01590283431 | V260: 0.06466476908 | W260: -0.002629393716 | X260: -0.2198546169 | Y260: -0.1627872973 | Z260: -0.3047037045
R261: 176.6139101 | S261: =2*PI()*R261/B56 -> 0.005779676691 | T261: 3.340456966e-05 | U261: 0.016536258 | V261: 0.08046515378 | W261: -0.002735590211 | X261: -0.2228694012 | Y261: -0.1783999878 | Z261: -0.3070035673
R262: 180.1461883 | S262: =2*PI()*R262/B56 -> 0.005895270225 | T262: 3.475411037e-05 | U262: 0.01719452285 | V262: 0.09430284188 | W262: -0.002846074485 | X262: -0.2248612806 | Y262: -0.1961951151 | Z262: -0.3124051055
R263: 183.749112 | S263: =2*PI()*R263/B56 -> 0.006013175629 | T263: 3.61581722e-05 | U263: 0.01787857031 | V263: 0.1063446595 | W263: -0.002961019552 | X263: -0.2259389019 | Y263: -0.2165935776 | Z263: -0.3212702693
R264: 187.4240943 | S264: =2*PI()*R264/B56 -> 0.006133439142 | T264: 3.761895778e-05 | U264: 0.01858937467 | V264: 0.1167463628 | W264: -0.003080605401 | X264: -0.2262019057 | Y264: -0.2401218701 | Z264: -0.3340686437
R265: 191.1725761 | S265: =2*PI()*R265/B56 -> 0.006256107925 | T265: 3.913875871e-05 | U265: 0.01932794401 | V265: 0.1256530437 | W265: -0.003205019269 | X265: -0.2257415213 | Y265: -0.2674451809 | Z265: -0.3514107337
R266: 194.9960277 | S266: =2*PI()*R266/B56 -> 0.006381230083 | T266: 4.07199592e-05 | U266: 0.02009532104 | V266: 0.1331995753 | W266: -0.003334455943 | X266: -0.2246411432 | Y266: -0.2994130969 | Z266: -0.3740937997
R267: 198.8959482 | S267: =2*PI()*R267/B56 -> 0.006508854685 | T267: 4.236503974e-05 | U267: 0.02089258402 | V267: 0.1395110828 | W267: -0.003469118051 | X267: -0.2229768848 | Y267: -0.3371236382 | Z267: -0.4031659743
R268: 202.8738672 | S268: =2*PI()*R268/B56 -> 0.006639031779 | T268: 4.407658106e-05 | U268: 0.02172084765 | V268: 0.1447034323 | W268: -0.003609216387 | X268: -0.2208181076 | Y268: -0.3820143912 | Z268: -0.4400174353
R269: 206.9313445 | S269: =2*PI()*R269/B56 -> 0.006771812414 | T269: 4.585726813e-05 | U269: 0.02258126394 | V269: 0.1488837275 | W269: -0.003754970234 | X269: -0.218227924 | Y269: -0.4359944349 | Z269: -0.4865123376
R270: 211.0699714 | S270: =2*PI()*R270/B56 -> 0.006907248663 | T270: 4.77098944e-05 | U270: 0.02347502304 | V270: 0.1521508079 | W270: -0.003906607706 | X270: -0.2152636732 | Y270: -0.5016388871 | Z270: -0.5451833371
R271: 215.2913708 | S271: =2*PI()*R271/B56 -> 0.007045393636 | T271: 4.963736616e-05 | U271: 0.02440335413 | V271: 0.1545957413 | W271: -0.004064366102 | X271: -0.2119773698 | Y271: -0.5824816409 | Z271: -0.6195242813
R272: 219.5971983 | S272: =2*PI()*R272/B56 -> 0.007186301509 | T272: 5.164270712e-05 | U272: 0.02536752619 | V272: 0.1563023088 | W272: -0.004228492276 | X272: -0.2084161248 | Y272: -0.6834656369 | Z272: -0.7144404189
R273: 223.9891422 | S273: =2*PI()*R273/B56 -> 0.007330027539 | T273: 5.372906315e-05 | U273: 0.02636884881 | V273: 0.157347475 | W273: -0.004399243016 | X273: -0.20462254 | Y273: -0.8116522467 | Z273: -0.8369577058
R274: 228.4689251 | S274: =2*PI()*R274/B56 -> 0.007476628089 | T274: 5.589970719e-05 | U274: 0.02740867292 | V274: 0.1578018433 | W274: -0.00457688545 | X274: -0.2006350761 | Y274: -0.9773684476 | Z274: -0.9973698929
R275: 233.0383036 | S275: =2*PI()*R275/B56 -> 0.007626160651 | T275: 5.815804441e-05 | U275: 0.02848839149 | V275: 0.1577300929 | W275: -0.004761697452 | X275: -0.1964883954 | Y275: -1.196115541 | Z275: -1.211147149
R276: 237.6990696 | S276: =2*PI()*R276/B56 -> 0.007778683864 | T276: 6.050761756e-05 | U276: 0.02960944016 | V276: 0.1571913965 | W276: -0.004953968079 | X276: -0.1922136806 | Y276: -1.491845358 | Z276: -1.50221217
... 223 more rows

Sheet Direct Params
C1: 807389
C2: 651716
C3: 928760 | H3: Fs | I3: 48000 | J3: Hz
C4: 659631
C5: 939315 | AE5: POST-EQ
R7: FREQ | S7: w | T7: Phi | U7: CH1 | AE7: CH1 Post-EQ1 | AF7: CH1 Post-EQ2 | AG7: CH1 Post-EQ3 | AH7: CH1 Post-EQ4 | AI7: CH1 Post-EQ5 | AJ7: CH1 Post-EQ | AL7: CH1 Pre + Post
C8: CH1 | D8: B0 | E8: 1 | G8: =C1/1000000 -> 0.807389 | R8: 10 | S8: =2*PI()*R8/I3 -> 0.001308996939 | T8: =4*SIN(S8/2)^2 -> 1.713472742e-06 | U8: =10*LOG10(($G$8+$G$9+$G$10)^2 + ( $G$8*$G$10*T8 - ($G$9*($G$8+$G$10) + 4*$G$8*$G$10) )*T8 ) - 10*LOG10( (1+$G$11+$G$12)^2 + ( 1*$G$12*T8 - ($G$11*(1+$G$12) + 4*1*$G$12) )*T8) -> 0.0004818587203 | AE8: =10*LOG10((#REF!+#REF!+#REF!)^2 + (#REF! *#REF!*$T8 - (#REF!*(#REF!+#REF!) + 4*#REF!*#REF!) )*$T8 ) - 10*LOG10( (1+#REF!+#REF!)^2 + ( 1*#REF!*$T8 - (#REF!*(1+#REF!) + 4*1*#REF!) )*$T8) ->  | AF8: =10*LOG10((#REF!+#REF!+#REF!)^2 + (#REF! *#REF!*$T8 - (#REF!*(#REF!+#REF!) + 4*#REF!*#REF!) )*$T8 ) - 10*LOG10( (1+#REF!+#REF!)^2 + ( 1*#REF!*$T8 - (#REF!*(1+#REF!) + 4*1*#REF!) )*$T8) ->  | AG8: =10*LOG10((#REF!+#REF!+#REF!)^2 + (#REF! *#REF!*$T8 - (#REF!*(#REF!+#REF!) + 4*#REF!*#REF!) )*$T8 ) - 10*LOG10( (1+#REF!+#REF!)^2 + ( 1*#REF!*$T8 - (#REF!*(1+#REF!) + 4*1*#REF!) )*$T8) ->  | AH8: =10*LOG10((#REF!+#REF!+#REF!)^2 + (#REF! *#REF!*$T8 - (#REF!*(#REF!+#REF!) + 4*#REF!*#REF!) )*$T8 ) - 10*LOG10( (1+#REF!+#REF!)^2 + ( 1*#REF!*$T8 - (#REF!*(1+#REF!) + 4*1*#REF!) )*$T8) ->  | AI8: =10*LOG10((#REF!+#REF!+#REF!)^2 + (#REF! *#REF!*$T8 - (#REF!*(#REF!+#REF!) + 4*#REF!*#REF!) )*$T8 ) - 10*LOG10( (1+#REF!+#REF!)^2 + ( 1*#REF!*$T8 - (#REF!*(1+#REF!) + 4*1*#REF!) )*$T8) ->  | AJ8: =AE8+AF8+AG8+AH8+AI8 ->  | AL8: =AJ8+Z8 -> 
D9: B1 | E9: 2 | G9: =C2/1000000*-3 +0.1 -> -1.855148 | R9: 20 | S9: =2*PI()*R9/I3 -> 0.002617993878 | T9: =4*SIN(S9/2)^2 -> 6.853888031e-06 | U9: =10*LOG10(($G$8+$G$9+$G$10)^2 + ( $G$8*$G$10*T9 - ($G$9*($G$8+$G$10) + 4*$G$8*$G$10) )*T9 ) - 10*LOG10( (1+$G$11+$G$12)^2 + ( 1*$G$12*T9 - ($G$11*(1+$G$12) + 4*1*$G$12) )*T9) -> 0.00160041001 | AE9: =10*LOG10((#REF!+#REF!+#REF!)^2 + (#REF! *#REF!*$T9 - (#REF!*(#REF!+#REF!) + 4*#REF!*#REF!) )*$T9 ) - 10*LOG10( (1+#REF!+#REF!)^2 + ( 1*#REF!*$T9 - (#REF!*(1+#REF!) + 4*1*#REF!) )*$T9) ->  | AF9: =10*LOG10((#REF!+#REF!+#REF!)^2 + (#REF! *#REF!*$T9 - (#REF!*(#REF!+#REF!) + 4*#REF!*#REF!) )*$T9 ) - 10*LOG10( (1+#REF!+#REF!)^2 + ( 1*#REF!*$T9 - (#REF!*(1+#REF!) + 4*1*#REF!) )*$T9) ->  | AG9: =10*LOG10((#REF!+#REF!+#REF!)^2 + (#REF! *#REF!*$T9 - (#REF!*(#REF!+#REF!) + 4*#REF!*#REF!) )*$T9 ) - 10*LOG10( (1+#REF!+#REF!)^2 + ( 1*#REF!*$T9 - (#REF!*(1+#REF!) + 4*1*#REF!) )*$T9) ->  | AH9: =10*LOG10((#REF!+#REF!+#REF!)^2 + (#REF! *#REF!*$T9 - (#REF!*(#REF!+#REF!) + 4*#REF!*#REF!) )*$T9 ) - 10*LOG10( (1+#REF!+#REF!)^2 + ( 1*#REF!*$T9 - (#REF!*(1+#REF!) + 4*1*#REF!) )*$T9) ->  | AI9: =10*LOG10((#REF!+#REF!+#REF!)^2 + (#REF! *#REF!*$T9 - (#REF!*(#REF!+#REF!) + 4*#REF!*#REF!) )*$T9 ) - 10*LOG10( (1+#REF!+#REF!)^2 + ( 1*#REF!*$T9 - (#REF!*(1+#REF!) + 4*1*#REF!) )*$T9) ->  | AJ9: =AE9+AF9+AG9+AH9+AI9 ->  | AL9: =AJ9+Z9 -> 
D10: B2 | E10: 3 | G10: =C3*1.15/1000000-0.1 -> 0.968074 | R10: 24 | S10: =2*PI()*R10/I3 -> 0.003141592654 | T10: =4*SIN(S10/2)^2 -> 9.869596284e-06 | U10: =10*LOG10(($G$8+$G$9+$G$10)^2 + ( $G$8*$G$10*T10 - ($G$9*($G$8+$G$10) + 4*$G$8*$G$10) )*T10 ) - 10*LOG10( (1+$G$11+$G$12)^2 + ( 1*$G$12*T10 - ($G$11*(1+$G$12) + 4*1*$G$12) )*T10) -> 0.002256616745 | AE10: =10*LOG10((#REF!+#REF!+#REF!)^2 + (#REF! *#REF!*$T10 - (#REF!*(#REF!+#REF!) + 4*#REF!*#REF!) )*$T10 ) - 10*LOG10( (1+#REF!+#REF!)^2 + ( 1*#REF!*$T10 - (#REF!*(1+#REF!) + 4*1*#REF!) )*$T10) ->  | AF10: =10*LOG10((#REF!+#REF!+#REF!)^2 + (#REF! *#REF!*$T10 - (#REF!*(#REF!+#REF!) + 4*#REF!*#REF!) )*$T10 ) - 10*LOG10( (1+#REF!+#REF!)^2 + ( 1*#REF!*$T10 - (#REF!*(1+#REF!) + 4*1*#REF!) )*$T10) ->  | AG10: =10*LOG10((#REF!+#REF!+#REF!)^2 + (#REF! *#REF!*$T10 - (#REF!*(#REF!+#REF!) + 4*#REF!*#REF!) )*$T10 ) - 10*LOG10( (1+#REF!+#REF!)^2 + ( 1*#REF!*$T10 - (#REF!*(1+#REF!) + 4*1*#REF!) )*$T10) ->  | AH10: =10*LOG10((#REF!+#REF!+#REF!)^2 + (#REF! *#REF!*$T10 - (#REF!*(#REF!+#REF!) + 4*#REF!*#REF!) )*$T10 ) - 10*LOG10( (1+#REF!+#REF!)^2 + ( 1*#REF!*$T10 - (#REF!*(1+#REF!) + 4*1*#REF!) )*$T10) ->  | AI10: =10*LOG10((#REF!+#REF!+#REF!)^2 + (#REF! *#REF!*$T10 - (#REF!*(#REF!+#REF!) + 4*#REF!*#REF!) )*$T10 ) - 10*LOG10( (1+#REF!+#REF!)^2 + ( 1*#REF!*$T10 - (#REF!*(1+#REF!) + 4*1*#REF!) )*$T10) ->  | AJ10: =AE10+AF10+AG10+AH10+AI10 -> 
D11: -A1 | E11: 4 | G11: =C4/1000000*-1-1.2 -> -1.859631 | R11: 28 | S11: =2*PI()*R11/I3 -> 0.003665191429 | T11: 1.343361317e-05 | U11: 0.003032124244 | AE11: =10*LOG10((#REF!+#REF!+#REF!)^2 + (#REF! *#REF!*$T11 - (#REF!*(#REF!+#REF!) + 4*#REF!*#REF!) )*$T11 ) - 10*LOG10( (1+#REF!+#REF!)^2 + ( 1*#REF!*$T11 - (#REF!*(1+#REF!) + 4*1*#REF!) )*$T11) ->  | AF11: =10*LOG10((#REF!+#REF!+#REF!)^2 + (#REF! *#REF!*$T11 - (#REF!*(#REF!+#REF!) + 4*#REF!*#REF!) )*$T11 ) - 10*LOG10( (1+#REF!+#REF!)^2 + ( 1*#REF!*$T11 - (#REF!*(1+#REF!) + 4*1*#REF!) )*$T11) ->  | AG11: =10*LOG10((#REF!+#REF!+#REF!)^2 + (#REF! *#REF!*$T11 - (#REF!*(#REF!+#REF!) + 4*#REF!*#REF!) )*$T11 ) - 10*LOG10( (1+#REF!+#REF!)^2 + ( 1*#REF!*$T11 - (#REF!*(1+#REF!) + 4*1*#REF!) )*$T11) ->  | AH11: =10*LOG10((#REF!+#REF!+#REF!)^2 + (#REF! *#REF!*$T11 - (#REF!*(#REF!+#REF!) + 4*#REF!*#REF!) )*$T11 ) - 10*LOG10( (1+#REF!+#REF!)^2 + ( 1*#REF!*$T11 - (#REF!*(1+#REF!) + 4*1*#REF!) )*$T11) ->  | AI11: =10*LOG10((#REF!+#REF!+#REF!)^2 + (#REF! *#REF!*$T11 - (#REF!*(#REF!+#REF!) + 4*#REF!*#REF!) )*$T11 ) - 10*LOG10( (1+#REF!+#REF!)^2 + ( 1*#REF!*$T11 - (#REF!*(1+#REF!) + 4*1*#REF!) )*$T11) -> 
D12: -A2 | E12: 5 | G12: =C5/1000000 -> 0.939315 | R12: 34 | S12: =2*PI()*R12/I3 -> 0.004450589593 | T12: 1.980771503e-05 | U12: 0.004419063793 | AE12: =10*LOG10((#REF!+#REF!+#REF!)^2 + (#REF! *#REF!*$T12 - (#REF!*(#REF!+#REF!) + 4*#REF!*#REF!) )*$T12 ) - 10*LOG10( (1+#REF!+#REF!)^2 + ( 1*#REF!*$T12 - (#REF!*(1+#REF!) + 4*1*#REF!) )*$T12) ->  | AF12: =10*LOG10((#REF!+#REF!+#REF!)^2 + (#REF! *#REF!*$T12 - (#REF!*(#REF!+#REF!) + 4*#REF!*#REF!) )*$T12 ) - 10*LOG10( (1+#REF!+#REF!)^2 + ( 1*#REF!*$T12 - (#REF!*(1+#REF!) + 4*1*#REF!) )*$T12) ->  | AG12: =10*LOG10((#REF!+#REF!+#REF!)^2 + (#REF! *#REF!*$T12 - (#REF!*(#REF!+#REF!) + 4*#REF!*#REF!) )*$T12 ) - 10*LOG10( (1+#REF!+#REF!)^2 + ( 1*#REF!*$T12 - (#REF!*(1+#REF!) + 4*1*#REF!) )*$T12) ->  | AH12: =10*LOG10((#REF!+#REF!+#REF!)^2 + (#REF! *#REF!*$T12 - (#REF!*(#REF!+#REF!) + 4*#REF!*#REF!) )*$T12 ) - 10*LOG10( (1+#REF!+#REF!)^2 + ( 1*#REF!*$T12 - (#REF!*(1+#REF!) + 4*1*#REF!) )*$T12) ->  | AI12: =10*LOG10((#REF!+#REF!+#REF!)^2 + (#REF! *#REF!*$T12 - (#REF!*(#REF!+#REF!) + 4*#REF!*#REF!) )*$T12 ) - 10*LOG10( (1+#REF!+#REF!)^2 + ( 1*#REF!*$T12 - (#REF!*(1+#REF!) + 4*1*#REF!) )*$T12) -> 
R13: 40 | S13: =2*PI()*R13/I3 -> 0.005235987756 | T13: 2.741550515e-05 | U13: 0.006074399986 | AE13: =10*LOG10((#REF!+#REF!+#REF!)^2 + (#REF! *#REF!*$T13 - (#REF!*(#REF!+#REF!) + 4*#REF!*#REF!) )*$T13 ) - 10*LOG10( (1+#REF!+#REF!)^2 + ( 1*#REF!*$T13 - (#REF!*(1+#REF!) + 4*1*#REF!) )*$T13) ->  | AF13: =10*LOG10((#REF!+#REF!+#REF!)^2 + (#REF! *#REF!*$T13 - (#REF!*(#REF!+#REF!) + 4*#REF!*#REF!) )*$T13 ) - 10*LOG10( (1+#REF!+#REF!)^2 + ( 1*#REF!*$T13 - (#REF!*(1+#REF!) + 4*1*#REF!) )*$T13) ->  | AG13: =10*LOG10((#REF!+#REF!+#REF!)^2 + (#REF! *#REF!*$T13 - (#REF!*(#REF!+#REF!) + 4*#REF!*#REF!) )*$T13 ) - 10*LOG10( (1+#REF!+#REF!)^2 + ( 1*#REF!*$T13 - (#REF!*(1+#REF!) + 4*1*#REF!) )*$T13) ->  | AH13: =10*LOG10((#REF!+#REF!+#REF!)^2 + (#REF! *#REF!*$T13 - (#REF!*(#REF!+#REF!) + 4*#REF!*#REF!) )*$T13 ) - 10*LOG10( (1+#REF!+#REF!)^2 + ( 1*#REF!*$T13 - (#REF!*(1+#REF!) + 4*1*#REF!) )*$T13) ->  | AI13: =10*LOG10((#REF!+#REF!+#REF!)^2 + (#REF! *#REF!*$T13 - (#REF!*(#REF!+#REF!) + 4*#REF!*#REF!) )*$T13 ) - 10*LOG10( (1+#REF!+#REF!)^2 + ( 1*#REF!*$T13 - (#REF!*(1+#REF!) + 4*1*#REF!) )*$T13) -> 
R14: 48 | S14: =2*PI()*R14/I3 -> 0.006283185307 | T14: 3.947828773e-05 | U14: 0.008698980774 | AE14: =10*LOG10((#REF!+#REF!+#REF!)^2 + (#REF! *#REF!*$T14 - (#REF!*(#REF!+#REF!) + 4*#REF!*#REF!) )*$T14 ) - 10*LOG10( (1+#REF!+#REF!)^2 + ( 1*#REF!*$T14 - (#REF!*(1+#REF!) + 4*1*#REF!) )*$T14) ->  | AF14: =10*LOG10((#REF!+#REF!+#REF!)^2 + (#REF! *#REF!*$T14 - (#REF!*(#REF!+#REF!) + 4*#REF!*#REF!) )*$T14 ) - 10*LOG10( (1+#REF!+#REF!)^2 + ( 1*#REF!*$T14 - (#REF!*(1+#REF!) + 4*1*#REF!) )*$T14) ->  | AG14: =10*LOG10((#REF!+#REF!+#REF!)^2 + (#REF! *#REF!*$T14 - (#REF!*(#REF!+#REF!) + 4*#REF!*#REF!) )*$T14 ) - 10*LOG10( (1+#REF!+#REF!)^2 + ( 1*#REF!*$T14 - (#REF!*(1+#REF!) + 4*1*#REF!) )*$T14) ->  | AH14: =10*LOG10((#REF!+#REF!+#REF!)^2 + (#REF! *#REF!*$T14 - (#REF!*(#REF!+#REF!) + 4*#REF!*#REF!) )*$T14 ) - 10*LOG10( (1+#REF!+#REF!)^2 + ( 1*#REF!*$T14 - (#REF!*(1+#REF!) + 4*1*#REF!) )*$T14) ->  | AI14: =10*LOG10((#REF!+#REF!+#REF!)^2 + (#REF! *#REF!*$T14 - (#REF!*(#REF!+#REF!) + 4*#REF!*#REF!) )*$T14 ) - 10*LOG10( (1+#REF!+#REF!)^2 + ( 1*#REF!*$T14 - (#REF!*(1+#REF!) + 4*1*#REF!) )*$T14) -> 
R15: 57 | S15: =2*PI()*R15/I3 -> 0.007461282552 | T15: 5.567047906e-05 | U15: 0.01222184748 | AE15: =10*LOG10((#REF!+#REF!+#REF!)^2 + (#REF! *#REF!*$T15 - (#REF!*(#REF!+#REF!) + 4*#REF!*#REF!) )*$T15 ) - 10*LOG10( (1+#REF!+#REF!)^2 + ( 1*#REF!*$T15 - (#REF!*(1+#REF!) + 4*1*#REF!) )*$T15) ->  | AF15: =10*LOG10((#REF!+#REF!+#REF!)^2 + (#REF! *#REF!*$T15 - (#REF!*(#REF!+#REF!) + 4*#REF!*#REF!) )*$T15 ) - 10*LOG10( (1+#REF!+#REF!)^2 + ( 1*#REF!*$T15 - (#REF!*(1+#REF!) + 4*1*#REF!) )*$T15) ->  | AG15: =10*LOG10((#REF!+#REF!+#REF!)^2 + (#REF! *#REF!*$T15 - (#REF!*(#REF!+#REF!) + 4*#REF!*#REF!) )*$T15 ) - 10*LOG10( (1+#REF!+#REF!)^2 + ( 1*#REF!*$T15 - (#REF!*(1+#REF!) + 4*1*#REF!) )*$T15) ->  | AH15: =10*LOG10((#REF!+#REF!+#REF!)^2 + (#REF! *#REF!*$T15 - (#REF!*(#REF!+#REF!) + 4*#REF!*#REF!) )*$T15 ) - 10*LOG10( (1+#REF!+#REF!)^2 + ( 1*#REF!*$T15 - (#REF!*(1+#REF!) + 4*1*#REF!) )*$T15) ->  | AI15: =10*LOG10((#REF!+#REF!+#REF!)^2 + (#REF! *#REF!*$T15 - (#REF!*(#REF!+#REF!) + 4*#REF!*#REF!) )*$T15 ) - 10*LOG10( (1+#REF!+#REF!)^2 + ( 1*#REF!*$T15 - (#REF!*(1+#REF!) + 4*1*#REF!) )*$T15) -> 
R16: 67 | S16: =2*PI()*R16/I3 -> 0.008770279491 | T16: 7.691730933e-05 | U16: 0.01684412295 | AE16: =10*LOG10((#REF!+#REF!+#REF!)^2 + (#REF! *#REF!*$T16 - (#REF!*(#REF!+#REF!) + 4*#REF!*#REF!) )*$T16 ) - 10*LOG10( (1+#REF!+#REF!)^2 + ( 1*#REF!*$T16 - (#REF!*(1+#REF!) + 4*1*#REF!) )*$T16) ->  | AF16: =10*LOG10((#REF!+#REF!+#REF!)^2 + (#REF! *#REF!*$T16 - (#REF!*(#REF!+#REF!) + 4*#REF!*#REF!) )*$T16 ) - 10*LOG10( (1+#REF!+#REF!)^2 + ( 1*#REF!*$T16 - (#REF!*(1+#REF!) + 4*1*#REF!) )*$T16) ->  | AG16: =10*LOG10((#REF!+#REF!+#REF!)^2 + (#REF! *#REF!*$T16 - (#REF!*(#REF!+#REF!) + 4*#REF!*#REF!) )*$T16 ) - 10*LOG10( (1+#REF!+#REF!)^2 + ( 1*#REF!*$T16 - (#REF!*(1+#REF!) + 4*1*#REF!) )*$T16) ->  | AH16: =10*LOG10((#REF!+#REF!+#REF!)^2 + (#REF! *#REF!*$T16 - (#REF!*(#REF!+#REF!) + 4*#REF!*#REF!) )*$T16 ) - 10*LOG10( (1+#REF!+#REF!)^2 + ( 1*#REF!*$T16 - (#REF!*(1+#REF!) + 4*1*#REF!) )*$T16) ->  | AI16: =10*LOG10((#REF!+#REF!+#REF!)^2 + (#REF! *#REF!*$T16 - (#REF!*(#REF!+#REF!) + 4*#REF!*#REF!) )*$T16 ) - 10*LOG10( (1+#REF!+#REF!)^2 + ( 1*#REF!*$T16 - (#REF!*(1+#REF!) + 4*1*#REF!) )*$T16) -> 
R17: 80 | S17: =2*PI()*R17/I3 -> 0.01047197551 | T17: 0.000109661269 | U17: 0.02396693205 | AE17: =10*LOG10((#REF!+#REF!+#REF!)^2 + (#REF! *#REF!*$T17 - (#REF!*(#REF!+#REF!) + 4*#REF!*#REF!) )*$T17 ) - 10*LOG10( (1+#REF!+#REF!)^2 + ( 1*#REF!*$T17 - (#REF!*(1+#REF!) + 4*1*#REF!) )*$T17) ->  | AF17: =10*LOG10((#REF!+#REF!+#REF!)^2 + (#REF! *#REF!*$T17 - (#REF!*(#REF!+#REF!) + 4*#REF!*#REF!) )*$T17 ) - 10*LOG10( (1+#REF!+#REF!)^2 + ( 1*#REF!*$T17 - (#REF!*(1+#REF!) + 4*1*#REF!) )*$T17) ->  | AG17: =10*LOG10((#REF!+#REF!+#REF!)^2 + (#REF! *#REF!*$T17 - (#REF!*(#REF!+#REF!) + 4*#REF!*#REF!) )*$T17 ) - 10*LOG10( (1+#REF!+#REF!)^2 + ( 1*#REF!*$T17 - (#REF!*(1+#REF!) + 4*1*#REF!) )*$T17) ->  | AH17: =10*LOG10((#REF!+#REF!+#REF!)^2 + (#REF! *#REF!*$T17 - (#REF!*(#REF!+#REF!) + 4*#REF!*#REF!) )*$T17 ) - 10*LOG10( (1+#REF!+#REF!)^2 + ( 1*#REF!*$T17 - (#REF!*(1+#REF!) + 4*1*#REF!) )*$T17) ->  | AI17: =10*LOG10((#REF!+#REF!+#REF!)^2 + (#REF! *#REF!*$T17 - (#REF!*(#REF!+#REF!) + 4*#REF!*#REF!) )*$T17 ) - 10*LOG10( (1+#REF!+#REF!)^2 + ( 1*#REF!*$T17 - (#REF!*(1+#REF!) + 4*1*#REF!) )*$T17) -> 
R18: 95 | S18: =2*PI()*R18/I3 -> 0.01243547092 | T18: 0.0001546389442 | U18: 0.03374960472 | AE18: =10*LOG10((#REF!+#REF!+#REF!)^2 + (#REF! *#REF!*$T18 - (#REF!*(#REF!+#REF!) + 4*#REF!*#REF!) )*$T18 ) - 10*LOG10( (1+#REF!+#REF!)^2 + ( 1*#REF!*$T18 - (#REF!*(1+#REF!) + 4*1*#REF!) )*$T18) ->  | AF18: =10*LOG10((#REF!+#REF!+#REF!)^2 + (#REF! *#REF!*$T18 - (#REF!*(#REF!+#REF!) + 4*#REF!*#REF!) )*$T18 ) - 10*LOG10( (1+#REF!+#REF!)^2 + ( 1*#REF!*$T18 - (#REF!*(1+#REF!) + 4*1*#REF!) )*$T18) ->  | AG18: =10*LOG10((#REF!+#REF!+#REF!)^2 + (#REF! *#REF!*$T18 - (#REF!*(#REF!+#REF!) + 4*#REF!*#REF!) )*$T18 ) - 10*LOG10( (1+#REF!+#REF!)^2 + ( 1*#REF!*$T18 - (#REF!*(1+#REF!) + 4*1*#REF!) )*$T18) ->  | AH18: =10*LOG10((#REF!+#REF!+#REF!)^2 + (#REF! *#REF!*$T18 - (#REF!*(#REF!+#REF!) + 4*#REF!*#REF!) )*$T18 ) - 10*LOG10( (1+#REF!+#REF!)^2 + ( 1*#REF!*$T18 - (#REF!*(1+#REF!) + 4*1*#REF!) )*$T18) ->  | AI18: =10*LOG10((#REF!+#REF!+#REF!)^2 + (#REF! *#REF!*$T18 - (#REF!*(#REF!+#REF!) + 4*#REF!*#REF!) )*$T18 ) - 10*LOG10( (1+#REF!+#REF!)^2 + ( 1*#REF!*$T18 - (#REF!*(1+#REF!) + 4*1*#REF!) )*$T18) -> 
R19: 114 | S19: =2*PI()*R19/I3 -> 0.0149225651 | T19: 0.000222678817 | U19: 0.04854538537 | AE19: =10*LOG10((#REF!+#REF!+#REF!)^2 + (#REF! *#REF!*$T19 - (#REF!*(#REF!+#REF!) + 4*#REF!*#REF!) )*$T19 ) - 10*LOG10( (1+#REF!+#REF!)^2 + ( 1*#REF!*$T19 - (#REF!*(1+#REF!) + 4*1*#REF!) )*$T19) ->  | AF19: =10*LOG10((#REF!+#REF!+#REF!)^2 + (#REF! *#REF!*$T19 - (#REF!*(#REF!+#REF!) + 4*#REF!*#REF!) )*$T19 ) - 10*LOG10( (1+#REF!+#REF!)^2 + ( 1*#REF!*$T19 - (#REF!*(1+#REF!) + 4*1*#REF!) )*$T19) ->  | AG19: =10*LOG10((#REF!+#REF!+#REF!)^2 + (#REF! *#REF!*$T19 - (#REF!*(#REF!+#REF!) + 4*#REF!*#REF!) )*$T19 ) - 10*LOG10( (1+#REF!+#REF!)^2 + ( 1*#REF!*$T19 - (#REF!*(1+#REF!) + 4*1*#REF!) )*$T19) ->  | AH19: =10*LOG10((#REF!+#REF!+#REF!)^2 + (#REF! *#REF!*$T19 - (#REF!*(#REF!+#REF!) + 4*#REF!*#REF!) )*$T19 ) - 10*LOG10( (1+#REF!+#REF!)^2 + ( 1*#REF!*$T19 - (#REF!*(1+#REF!) + 4*1*#REF!) )*$T19) ->  | AI19: =10*LOG10((#REF!+#REF!+#REF!)^2 + (#REF! *#REF!*$T19 - (#REF!*(#REF!+#REF!) + 4*#REF!*#REF!) )*$T19 ) - 10*LOG10( (1+#REF!+#REF!)^2 + ( 1*#REF!*$T19 - (#REF!*(1+#REF!) + 4*1*#REF!) )*$T19) -> 
R20: 135 | S20: =2*PI()*R20/I3 -> 0.01767145868 | T20: 0.0003122723252 | U20: 0.06802282319 | AE20: =10*LOG10((#REF!+#REF!+#REF!)^2 + (#REF! *#REF!*$T20 - (#REF!*(#REF!+#REF!) + 4*#REF!*#REF!) )*$T20 ) - 10*LOG10( (1+#REF!+#REF!)^2 + ( 1*#REF!*$T20 - (#REF!*(1+#REF!) + 4*1*#REF!) )*$T20) ->  | AF20: =10*LOG10((#REF!+#REF!+#REF!)^2 + (#REF! *#REF!*$T20 - (#REF!*(#REF!+#REF!) + 4*#REF!*#REF!) )*$T20 ) - 10*LOG10( (1+#REF!+#REF!)^2 + ( 1*#REF!*$T20 - (#REF!*(1+#REF!) + 4*1*#REF!) )*$T20) ->  | AG20: =10*LOG10((#REF!+#REF!+#REF!)^2 + (#REF! *#REF!*$T20 - (#REF!*(#REF!+#REF!) + 4*#REF!*#REF!) )*$T20 ) - 10*LOG10( (1+#REF!+#REF!)^2 + ( 1*#REF!*$T20 - (#REF!*(1+#REF!) + 4*1*#REF!) )*$T20) ->  | AH20: =10*LOG10((#REF!+#REF!+#REF!)^2 + (#REF! *#REF!*$T20 - (#REF!*(#REF!+#REF!) + 4*#REF!*#REF!) )*$T20 ) - 10*LOG10( (1+#REF!+#REF!)^2 + ( 1*#REF!*$T20 - (#REF!*(1+#REF!) + 4*1*#REF!) )*$T20) ->  | AI20: =10*LOG10((#REF!+#REF!+#REF!)^2 + (#REF! *#REF!*$T20 - (#REF!*(#REF!+#REF!) + 4*#REF!*#REF!) )*$T20 ) - 10*LOG10( (1+#REF!+#REF!)^2 + ( 1*#REF!*$T20 - (#REF!*(1+#REF!) + 4*1*#REF!) )*$T20) -> 
R21: 160 | S21: =2*PI()*R21/I3 -> 0.02094395102 | T21: 0.0004386330503 | U21: 0.09548317972 | AE21: =10*LOG10((#REF!+#REF!+#REF!)^2 + (#REF! *#REF!*$T21 - (#REF!*(#REF!+#REF!) + 4*#REF!*#REF!) )*$T21 ) - 10*LOG10( (1+#REF!+#REF!)^2 + ( 1*#REF!*$T21 - (#REF!*(1+#REF!) + 4*1*#REF!) )*$T21) ->  | AF21: =10*LOG10((#REF!+#REF!+#REF!)^2 + (#REF! *#REF!*$T21 - (#REF!*(#REF!+#REF!) + 4*#REF!*#REF!) )*$T21 ) - 10*LOG10( (1+#REF!+#REF!)^2 + ( 1*#REF!*$T21 - (#REF!*(1+#REF!) + 4*1*#REF!) )*$T21) ->  | AG21: =10*LOG10((#REF!+#REF!+#REF!)^2 + (#REF! *#REF!*$T21 - (#REF!*(#REF!+#REF!) + 4*#REF!*#REF!) )*$T21 ) - 10*LOG10( (1+#REF!+#REF!)^2 + ( 1*#REF!*$T21 - (#REF!*(1+#REF!) + 4*1*#REF!) )*$T21) ->  | AH21: =10*LOG10((#REF!+#REF!+#REF!)^2 + (#REF! *#REF!*$T21 - (#REF!*(#REF!+#REF!) + 4*#REF!*#REF!) )*$T21 ) - 10*LOG10( (1+#REF!+#REF!)^2 + ( 1*#REF!*$T21 - (#REF!*(1+#REF!) + 4*1*#REF!) )*$T21) ->  | AI21: =10*LOG10((#REF!+#REF!+#REF!)^2 + (#REF! *#REF!*$T21 - (#REF!*(#REF!+#REF!) + 4*#REF!*#REF!) )*$T21 ) - 10*LOG10( (1+#REF!+#REF!)^2 + ( 1*#REF!*$T21 - (#REF!*(1+#REF!) + 4*1*#REF!) )*$T21) -> 
R22: 191 | S22: =2*PI()*R22/I3 -> 0.02500184153 | T22: 0.0006250595191 | U22: 0.1359754493 | AE22: =10*LOG10((#REF!+#REF!+#REF!)^2 + (#REF! *#REF!*$T22 - (#REF!*(#REF!+#REF!) + 4*#REF!*#REF!) )*$T22 ) - 10*LOG10( (1+#REF!+#REF!)^2 + ( 1*#REF!*$T22 - (#REF!*(1+#REF!) + 4*1*#REF!) )*$T22) ->  | AF22: =10*LOG10((#REF!+#REF!+#REF!)^2 + (#REF! *#REF!*$T22 - (#REF!*(#REF!+#REF!) + 4*#REF!*#REF!) )*$T22 ) - 10*LOG10( (1+#REF!+#REF!)^2 + ( 1*#REF!*$T22 - (#REF!*(1+#REF!) + 4*1*#REF!) )*$T22) ->  | AG22: =10*LOG10((#REF!+#REF!+#REF!)^2 + (#REF! *#REF!*$T22 - (#REF!*(#REF!+#REF!) + 4*#REF!*#REF!) )*$T22 ) - 10*LOG10( (1+#REF!+#REF!)^2 + ( 1*#REF!*$T22 - (#REF!*(1+#REF!) + 4*1*#REF!) )*$T22) ->  | AH22: =10*LOG10((#REF!+#REF!+#REF!)^2 + (#REF! *#REF!*$T22 - (#REF!*(#REF!+#REF!) + 4*#REF!*#REF!) )*$T22 ) - 10*LOG10( (1+#REF!+#REF!)^2 + ( 1*#REF!*$T22 - (#REF!*(1+#REF!) + 4*1*#REF!) )*$T22) ->  | AI22: =10*LOG10((#REF!+#REF!+#REF!)^2 + (#REF! *#REF!*$T22 - (#REF!*(#REF!+#REF!) + 4*#REF!*#REF!) )*$T22 ) - 10*LOG10( (1+#REF!+#REF!)^2 + ( 1*#REF!*$T22 - (#REF!*(1+#REF!) + 4*1*#REF!) )*$T22) -> 
R23: 227 | S23: =2*PI()*R23/I3 -> 0.02971423052 | T23: 0.0008828705324 | U23: 0.191931628 | AE23: =10*LOG10((#REF!+#REF!+#REF!)^2 + (#REF! *#REF!*$T23 - (#REF!*(#REF!+#REF!) + 4*#REF!*#REF!) )*$T23 ) - 10*LOG10( (1+#REF!+#REF!)^2 + ( 1*#REF!*$T23 - (#REF!*(1+#REF!) + 4*1*#REF!) )*$T23) ->  | AF23: =10*LOG10((#REF!+#REF!+#REF!)^2 + (#REF! *#REF!*$T23 - (#REF!*(#REF!+#REF!) + 4*#REF!*#REF!) )*$T23 ) - 10*LOG10( (1+#REF!+#REF!)^2 + ( 1*#REF!*$T23 - (#REF!*(1+#REF!) + 4*1*#REF!) )*$T23) ->  | AG23: =10*LOG10((#REF!+#REF!+#REF!)^2 + (#REF! *#REF!*$T23 - (#REF!*(#REF!+#REF!) + 4*#REF!*#REF!) )*$T23 ) - 10*LOG10( (1+#REF!+#REF!)^2 + ( 1*#REF!*$T23 - (#REF!*(1+#REF!) + 4*1*#REF!) )*$T23) ->  | AH23: =10*LOG10((#REF!+#REF!+#REF!)^2 + (#REF! *#REF!*$T23 - (#REF!*(#REF!+#REF!) + 4*#REF!*#REF!) )*$T23 ) - 10*LOG10( (1+#REF!+#REF!)^2 + ( 1*#REF!*$T23 - (#REF!*(1+#REF!) + 4*1*#REF!) )*$T23) ->  | AI23: =10*LOG10((#REF!+#REF!+#REF!)^2 + (#REF! *#REF!*$T23 - (#REF!*(#REF!+#REF!) + 4*#REF!*#REF!) )*$T23 ) - 10*LOG10( (1+#REF!+#REF!)^2 + ( 1*#REF!*$T23 - (#REF!*(1+#REF!) + 4*1*#REF!) )*$T23) -> 
R24: 270 | S24: =2*PI()*R24/I3 -> 0.03534291735 | T24: 0.001248991787 | U24: 0.2713170622 | AE24: =10*LOG10((#REF!+#REF!+#REF!)^2 + (#REF! *#REF!*$T24 - (#REF!*(#REF!+#REF!) + 4*#REF!*#REF!) )*$T24 ) - 10*LOG10( (1+#REF!+#REF!)^2 + ( 1*#REF!*$T24 - (#REF!*(1+#REF!) + 4*1*#REF!) )*$T24) ->  | AF24: =10*LOG10((#REF!+#REF!+#REF!)^2 + (#REF! *#REF!*$T24 - (#REF!*(#REF!+#REF!) + 4*#REF!*#REF!) )*$T24 ) - 10*LOG10( (1+#REF!+#REF!)^2 + ( 1*#REF!*$T24 - (#REF!*(1+#REF!) + 4*1*#REF!) )*$T24) ->  | AG24: =10*LOG10((#REF!+#REF!+#REF!)^2 + (#REF! *#REF!*$T24 - (#REF!*(#REF!+#REF!) + 4*#REF!*#REF!) )*$T24 ) - 10*LOG10( (1+#REF!+#REF!)^2 + ( 1*#REF!*$T24 - (#REF!*(1+#REF!) + 4*1*#REF!) )*$T24) ->  | AH24: =10*LOG10((#REF!+#REF!+#REF!)^2 + (#REF! *#REF!*$T24 - (#REF!*(#REF!+#REF!) + 4*#REF!*#REF!) )*$T24 ) - 10*LOG10( (1+#REF!+#REF!)^2 + ( 1*#REF!*$T24 - (#REF!*(1+#REF!) + 4*1*#REF!) )*$T24) ->  | AI24: =10*LOG10((#REF!+#REF!+#REF!)^2 + (#REF! *#REF!*$T24 - (#REF!*(#REF!+#REF!) + 4*#REF!*#REF!) )*$T24 ) - 10*LOG10( (1+#REF!+#REF!)^2 + ( 1*#REF!*$T24 - (#REF!*(1+#REF!) + 4*1*#REF!) )*$T24) -> 
R25: 320 | S25: =2*PI()*R25/I3 -> 0.04188790205 | T25: 0.001754339802 | U25: 0.3807468385 | AE25: =10*LOG10((#REF!+#REF!+#REF!)^2 + (#REF! *#REF!*$T25 - (#REF!*(#REF!+#REF!) + 4*#REF!*#REF!) )*$T25 ) - 10*LOG10( (1+#REF!+#REF!)^2 + ( 1*#REF!*$T25 - (#REF!*(1+#REF!) + 4*1*#REF!) )*$T25) ->  | AF25: =10*LOG10((#REF!+#REF!+#REF!)^2 + (#REF! *#REF!*$T25 - (#REF!*(#REF!+#REF!) + 4*#REF!*#REF!) )*$T25 ) - 10*LOG10( (1+#REF!+#REF!)^2 + ( 1*#REF!*$T25 - (#REF!*(1+#REF!) + 4*1*#REF!) )*$T25) ->  | AG25: =10*LOG10((#REF!+#REF!+#REF!)^2 + (#REF! *#REF!*$T25 - (#REF!*(#REF!+#REF!) + 4*#REF!*#REF!) )*$T25 ) - 10*LOG10( (1+#REF!+#REF!)^2 + ( 1*#REF!*$T25 - (#REF!*(1+#REF!) + 4*1*#REF!) )*$T25) ->  | AH25: =10*LOG10((#REF!+#REF!+#REF!)^2 + (#REF! *#REF!*$T25 - (#REF!*(#REF!+#REF!) + 4*#REF!*#REF!) )*$T25 ) - 10*LOG10( (1+#REF!+#REF!)^2 + ( 1*#REF!*$T25 - (#REF!*(1+#REF!) + 4*1*#REF!) )*$T25) ->  | AI25: =10*LOG10((#REF!+#REF!+#REF!)^2 + (#REF! *#REF!*$T25 - (#REF!*(#REF!+#REF!) + 4*#REF!*#REF!) )*$T25 ) - 10*LOG10( (1+#REF!+#REF!)^2 + ( 1*#REF!*$T25 - (#REF!*(1+#REF!) + 4*1*#REF!) )*$T25) -> 
R26: 383 | S26: =2*PI()*R26/I3 -> 0.05013458276 | T26: 0.002512949969 | U26: 0.5447298731 | AE26: =10*LOG10((#REF!+#REF!+#REF!)^2 + (#REF! *#REF!*$T26 - (#REF!*(#REF!+#REF!) + 4*#REF!*#REF!) )*$T26 ) - 10*LOG10( (1+#REF!+#REF!)^2 + ( 1*#REF!*$T26 - (#REF!*(1+#REF!) + 4*1*#REF!) )*$T26) ->  | AF26: =10*LOG10((#REF!+#REF!+#REF!)^2 + (#REF! *#REF!*$T26 - (#REF!*(#REF!+#REF!) + 4*#REF!*#REF!) )*$T26 ) - 10*LOG10( (1+#REF!+#REF!)^2 + ( 1*#REF!*$T26 - (#REF!*(1+#REF!) + 4*1*#REF!) )*$T26) ->  | AG26: =10*LOG10((#REF!+#REF!+#REF!)^2 + (#REF! *#REF!*$T26 - (#REF!*(#REF!+#REF!) + 4*#REF!*#REF!) )*$T26 ) - 10*LOG10( (1+#REF!+#REF!)^2 + ( 1*#REF!*$T26 - (#REF!*(1+#REF!) + 4*1*#REF!) )*$T26) ->  | AH26: =10*LOG10((#REF!+#REF!+#REF!)^2 + (#REF! *#REF!*$T26 - (#REF!*(#REF!+#REF!) + 4*#REF!*#REF!) )*$T26 ) - 10*LOG10( (1+#REF!+#REF!)^2 + ( 1*#REF!*$T26 - (#REF!*(1+#REF!) + 4*1*#REF!) )*$T26) ->  | AI26: =10*LOG10((#REF!+#REF!+#REF!)^2 + (#REF! *#REF!*$T26 - (#REF!*(#REF!+#REF!) + 4*#REF!*#REF!) )*$T26 ) - 10*LOG10( (1+#REF!+#REF!)^2 + ( 1*#REF!*$T26 - (#REF!*(1+#REF!) + 4*1*#REF!) )*$T26) -> 
R27: 456 | S27: =2*PI()*R27/I3 -> 0.05969026042 | T27: 0.003561869444 | U27: 0.7709625438 | AE27: =10*LOG10((#REF!+#REF!+#REF!)^2 + (#REF! *#REF!*$T27 - (#REF!*(#REF!+#REF!) + 4*#REF!*#REF!) )*$T27 ) - 10*LOG10( (1+#REF!+#REF!)^2 + ( 1*#REF!*$T27 - (#REF!*(1+#REF!) + 4*1*#REF!) )*$T27) ->  | AF27: =10*LOG10((#REF!+#REF!+#REF!)^2 + (#REF! *#REF!*$T27 - (#REF!*(#REF!+#REF!) + 4*#REF!*#REF!) )*$T27 ) - 10*LOG10( (1+#REF!+#REF!)^2 + ( 1*#REF!*$T27 - (#REF!*(1+#REF!) + 4*1*#REF!) )*$T27) ->  | AG27: =10*LOG10((#REF!+#REF!+#REF!)^2 + (#REF! *#REF!*$T27 - (#REF!*(#REF!+#REF!) + 4*#REF!*#REF!) )*$T27 ) - 10*LOG10( (1+#REF!+#REF!)^2 + ( 1*#REF!*$T27 - (#REF!*(1+#REF!) + 4*1*#REF!) )*$T27) ->  | AH27: =10*LOG10((#REF!+#REF!+#REF!)^2 + (#REF! *#REF!*$T27 - (#REF!*(#REF!+#REF!) + 4*#REF!*#REF!) )*$T27 ) - 10*LOG10( (1+#REF!+#REF!)^2 + ( 1*#REF!*$T27 - (#REF!*(1+#REF!) + 4*1*#REF!) )*$T27) ->  | AI27: =10*LOG10((#REF!+#REF!+#REF!)^2 + (#REF! *#REF!*$T27 - (#REF!*(#REF!+#REF!) + 4*#REF!*#REF!) )*$T27 ) - 10*LOG10( (1+#REF!+#REF!)^2 + ( 1*#REF!*$T27 - (#REF!*(1+#REF!) + 4*1*#REF!) )*$T27) -> 
R28: 542 | S28: =2*PI()*R28/I3 -> 0.07094763409 | T28: 0.005031455738 | U28: 1.087121099 | AE28: =10*LOG10((#REF!+#REF!+#REF!)^2 + (#REF! *#REF!*$T28 - (#REF!*(#REF!+#REF!) + 4*#REF!*#REF!) )*$T28 ) - 10*LOG10( (1+#REF!+#REF!)^2 + ( 1*#REF!*$T28 - (#REF!*(1+#REF!) + 4*1*#REF!) )*$T28) ->  | AF28: =10*LOG10((#REF!+#REF!+#REF!)^2 + (#REF! *#REF!*$T28 - (#REF!*(#REF!+#REF!) + 4*#REF!*#REF!) )*$T28 ) - 10*LOG10( (1+#REF!+#REF!)^2 + ( 1*#REF!*$T28 - (#REF!*(1+#REF!) + 4*1*#REF!) )*$T28) ->  | AG28: =10*LOG10((#REF!+#REF!+#REF!)^2 + (#REF! *#REF!*$T28 - (#REF!*(#REF!+#REF!) + 4*#REF!*#REF!) )*$T28 ) - 10*LOG10( (1+#REF!+#REF!)^2 + ( 1*#REF!*$T28 - (#REF!*(1+#REF!) + 4*1*#REF!) )*$T28) ->  | AH28: =10*LOG10((#REF!+#REF!+#REF!)^2 + (#REF! *#REF!*$T28 - (#REF!*(#REF!+#REF!) + 4*#REF!*#REF!) )*$T28 ) - 10*LOG10( (1+#REF!+#REF!)^2 + ( 1*#REF!*$T28 - (#REF!*(1+#REF!) + 4*1*#REF!) )*$T28) ->  | AI28: =10*LOG10((#REF!+#REF!+#REF!)^2 + (#REF! *#REF!*$T28 - (#REF!*(#REF!+#REF!) + 4*#REF!*#REF!) )*$T28 ) - 10*LOG10( (1+#REF!+#REF!)^2 + ( 1*#REF!*$T28 - (#REF!*(1+#REF!) + 4*1*#REF!) )*$T28) -> 
R29: 645 | S29: =2*PI()*R29/I3 -> 0.08443030257 | T29: 0.0071242424 | U29: 1.536224028 | AE29: =10*LOG10((#REF!+#REF!+#REF!)^2 + (#REF! *#REF!*$T29 - (#REF!*(#REF!+#REF!) + 4*#REF!*#REF!) )*$T29 ) - 10*LOG10( (1+#REF!+#REF!)^2 + ( 1*#REF!*$T29 - (#REF!*(1+#REF!) + 4*1*#REF!) )*$T29) ->  | AF29: =10*LOG10((#REF!+#REF!+#REF!)^2 + (#REF! *#REF!*$T29 - (#REF!*(#REF!+#REF!) + 4*#REF!*#REF!) )*$T29 ) - 10*LOG10( (1+#REF!+#REF!)^2 + ( 1*#REF!*$T29 - (#REF!*(1+#REF!) + 4*1*#REF!) )*$T29) ->  | AG29: =10*LOG10((#REF!+#REF!+#REF!)^2 + (#REF! *#REF!*$T29 - (#REF!*(#REF!+#REF!) + 4*#REF!*#REF!) )*$T29 ) - 10*LOG10( (1+#REF!+#REF!)^2 + ( 1*#REF!*$T29 - (#REF!*(1+#REF!) + 4*1*#REF!) )*$T29) ->  | AH29: =10*LOG10((#REF!+#REF!+#REF!)^2 + (#REF! *#REF!*$T29 - (#REF!*(#REF!+#REF!) + 4*#REF!*#REF!) )*$T29 ) - 10*LOG10( (1+#REF!+#REF!)^2 + ( 1*#REF!*$T29 - (#REF!*(1+#REF!) + 4*1*#REF!) )*$T29) ->  | AI29: =10*LOG10((#REF!+#REF!+#REF!)^2 + (#REF! *#REF!*$T29 - (#REF!*(#REF!+#REF!) + 4*#REF!*#REF!) )*$T29 ) - 10*LOG10( (1+#REF!+#REF!)^2 + ( 1*#REF!*$T29 - (#REF!*(1+#REF!) + 4*1*#REF!) )*$T29) -> 
R30: 767 | S30: =2*PI()*R30/I3 -> 0.1004000652 | T30: 0.01007170845 | U30: 2.167815515 | AE30: =10*LOG10((#REF!+#REF!+#REF!)^2 + (#REF! *#REF!*$T30 - (#REF!*(#REF!+#REF!) + 4*#REF!*#REF!) )*$T30 ) - 10*LOG10( (1+#REF!+#REF!)^2 + ( 1*#REF!*$T30 - (#REF!*(1+#REF!) + 4*1*#REF!) )*$T30) ->  | AF30: =10*LOG10((#REF!+#REF!+#REF!)^2 + (#REF! *#REF!*$T30 - (#REF!*(#REF!+#REF!) + 4*#REF!*#REF!) )*$T30 ) - 10*LOG10( (1+#REF!+#REF!)^2 + ( 1*#REF!*$T30 - (#REF!*(1+#REF!) + 4*1*#REF!) )*$T30) ->  | AG30: =10*LOG10((#REF!+#REF!+#REF!)^2 + (#REF! *#REF!*$T30 - (#REF!*(#REF!+#REF!) + 4*#REF!*#REF!) )*$T30 ) - 10*LOG10( (1+#REF!+#REF!)^2 + ( 1*#REF!*$T30 - (#REF!*(1+#REF!) + 4*1*#REF!) )*$T30) ->  | AH30: =10*LOG10((#REF!+#REF!+#REF!)^2 + (#REF! *#REF!*$T30 - (#REF!*(#REF!+#REF!) + 4*#REF!*#REF!) )*$T30 ) - 10*LOG10( (1+#REF!+#REF!)^2 + ( 1*#REF!*$T30 - (#REF!*(1+#REF!) + 4*1*#REF!) )*$T30) ->  | AI30: =10*LOG10((#REF!+#REF!+#REF!)^2 + (#REF! *#REF!*$T30 - (#REF!*(#REF!+#REF!) + 4*#REF!*#REF!) )*$T30 ) - 10*LOG10( (1+#REF!+#REF!)^2 + ( 1*#REF!*$T30 - (#REF!*(1+#REF!) + 4*1*#REF!) )*$T30) -> 
R31: 913 | S31: =2*PI()*R31/I3 -> 0.1195114205 | T31: 0.01426598744 | U31: 3.068325053 | AE31: =10*LOG10((#REF!+#REF!+#REF!)^2 + (#REF! *#REF!*$T31 - (#REF!*(#REF!+#REF!) + 4*#REF!*#REF!) )*$T31 ) - 10*LOG10( (1+#REF!+#REF!)^2 + ( 1*#REF!*$T31 - (#REF!*(1+#REF!) + 4*1*#REF!) )*$T31) ->  | AF31: =10*LOG10((#REF!+#REF!+#REF!)^2 + (#REF! *#REF!*$T31 - (#REF!*(#REF!+#REF!) + 4*#REF!*#REF!) )*$T31 ) - 10*LOG10( (1+#REF!+#REF!)^2 + ( 1*#REF!*$T31 - (#REF!*(1+#REF!) + 4*1*#REF!) )*$T31) ->  | AG31: =10*LOG10((#REF!+#REF!+#REF!)^2 + (#REF! *#REF!*$T31 - (#REF!*(#REF!+#REF!) + 4*#REF!*#REF!) )*$T31 ) - 10*LOG10( (1+#REF!+#REF!)^2 + ( 1*#REF!*$T31 - (#REF!*(1+#REF!) + 4*1*#REF!) )*$T31) ->  | AH31: =10*LOG10((#REF!+#REF!+#REF!)^2 + (#REF! *#REF!*$T31 - (#REF!*(#REF!+#REF!) + 4*#REF!*#REF!) )*$T31 ) - 10*LOG10( (1+#REF!+#REF!)^2 + ( 1*#REF!*$T31 - (#REF!*(1+#REF!) + 4*1*#REF!) )*$T31) ->  | AI31: =10*LOG10((#REF!+#REF!+#REF!)^2 + (#REF! *#REF!*$T31 - (#REF!*(#REF!+#REF!) + 4*#REF!*#REF!) )*$T31 ) - 10*LOG10( (1+#REF!+#REF!)^2 + ( 1*#REF!*$T31 - (#REF!*(1+#REF!) + 4*1*#REF!) )*$T31) -> 
R32: 1086 | S32: =2*PI()*R32/I3 -> 0.1421570676 | T32: 0.02017462238 | U32: 4.350109349 | AE32: =10*LOG10((#REF!+#REF!+#REF!)^2 + (#REF! *#REF!*$T32 - (#REF!*(#REF!+#REF!) + 4*#REF!*#REF!) )*$T32 ) - 10*LOG10( (1+#REF!+#REF!)^2 + ( 1*#REF!*$T32 - (#REF!*(1+#REF!) + 4*1*#REF!) )*$T32) ->  | AF32: =10*LOG10((#REF!+#REF!+#REF!)^2 + (#REF! *#REF!*$T32 - (#REF!*(#REF!+#REF!) + 4*#REF!*#REF!) )*$T32 ) - 10*LOG10( (1+#REF!+#REF!)^2 + ( 1*#REF!*$T32 - (#REF!*(1+#REF!) + 4*1*#REF!) )*$T32) ->  | AG32: =10*LOG10((#REF!+#REF!+#REF!)^2 + (#REF! *#REF!*$T32 - (#REF!*(#REF!+#REF!) + 4*#REF!*#REF!) )*$T32 ) - 10*LOG10( (1+#REF!+#REF!)^2 + ( 1*#REF!*$T32 - (#REF!*(1+#REF!) + 4*1*#REF!) )*$T32) ->  | AH32: =10*LOG10((#REF!+#REF!+#REF!)^2 + (#REF! *#REF!*$T32 - (#REF!*(#REF!+#REF!) + 4*#REF!*#REF!) )*$T32 ) - 10*LOG10( (1+#REF!+#REF!)^2 + ( 1*#REF!*$T32 - (#REF!*(1+#REF!) + 4*1*#REF!) )*$T32) ->  | AI32: =10*LOG10((#REF!+#REF!+#REF!)^2 + (#REF! *#REF!*$T32 - (#REF!*(#REF!+#REF!) + 4*#REF!*#REF!) )*$T32 ) - 10*LOG10( (1+#REF!+#REF!)^2 + ( 1*#REF!*$T32 - (#REF!*(1+#REF!) + 4*1*#REF!) )*$T32) -> 
R33: 1292 | S33: =2*PI()*R33/I3 -> 0.1691224045 | T33: 0.02853427796 | U33: 6.217018794 | AE33: =10*LOG10((#REF!+#REF!+#REF!)^2 + (#REF! *#REF!*$T33 - (#REF!*(#REF!+#REF!) + 4*#REF!*#REF!) )*$T33 ) - 10*LOG10( (1+#REF!+#REF!)^2 + ( 1*#REF!*$T33 - (#REF!*(1+#REF!) + 4*1*#REF!) )*$T33) ->  | AF33: =10*LOG10((#REF!+#REF!+#REF!)^2 + (#REF! *#REF!*$T33 - (#REF!*(#REF!+#REF!) + 4*#REF!*#REF!) )*$T33 ) - 10*LOG10( (1+#REF!+#REF!)^2 + ( 1*#REF!*$T33 - (#REF!*(1+#REF!) + 4*1*#REF!) )*$T33) ->  | AG33: =10*LOG10((#REF!+#REF!+#REF!)^2 + (#REF! *#REF!*$T33 - (#REF!*(#REF!+#REF!) + 4*#REF!*#REF!) )*$T33 ) - 10*LOG10( (1+#REF!+#REF!)^2 + ( 1*#REF!*$T33 - (#REF!*(1+#REF!) + 4*1*#REF!) )*$T33) ->  | AH33: =10*LOG10((#REF!+#REF!+#REF!)^2 + (#REF! *#REF!*$T33 - (#REF!*(#REF!+#REF!) + 4*#REF!*#REF!) )*$T33 ) - 10*LOG10( (1+#REF!+#REF!)^2 + ( 1*#REF!*$T33 - (#REF!*(1+#REF!) + 4*1*#REF!) )*$T33) ->  | AI33: =10*LOG10((#REF!+#REF!+#REF!)^2 + (#REF! *#REF!*$T33 - (#REF!*(#REF!+#REF!) + 4*#REF!*#REF!) )*$T33 ) - 10*LOG10( (1+#REF!+#REF!)^2 + ( 1*#REF!*$T33 - (#REF!*(1+#REF!) + 4*1*#REF!) )*$T33) -> 
R34: 1537 | S34: =2*PI()*R34/I3 -> 0.2011928295 | T34: 0.04034219597 | U34: 9.039865045 | AE34: =10*LOG10((#REF!+#REF!+#REF!)^2 + (#REF! *#REF!*$T34 - (#REF!*(#REF!+#REF!) + 4*#REF!*#REF!) )*$T34 ) - 10*LOG10( (1+#REF!+#REF!)^2 + ( 1*#REF!*$T34 - (#REF!*(1+#REF!) + 4*1*#REF!) )*$T34) ->  | AF34: =10*LOG10((#REF!+#REF!+#REF!)^2 + (#REF! *#REF!*$T34 - (#REF!*(#REF!+#REF!) + 4*#REF!*#REF!) )*$T34 ) - 10*LOG10( (1+#REF!+#REF!)^2 + ( 1*#REF!*$T34 - (#REF!*(1+#REF!) + 4*1*#REF!) )*$T34) ->  | AG34: =10*LOG10((#REF!+#REF!+#REF!)^2 + (#REF! *#REF!*$T34 - (#REF!*(#REF!+#REF!) + 4*#REF!*#REF!) )*$T34 ) - 10*LOG10( (1+#REF!+#REF!)^2 + ( 1*#REF!*$T34 - (#REF!*(1+#REF!) + 4*1*#REF!) )*$T34) ->  | AH34: =10*LOG10((#REF!+#REF!+#REF!)^2 + (#REF! *#REF!*$T34 - (#REF!*(#REF!+#REF!) + 4*#REF!*#REF!) )*$T34 ) - 10*LOG10( (1+#REF!+#REF!)^2 + ( 1*#REF!*$T34 - (#REF!*(1+#REF!) + 4*1*#REF!) )*$T34) ->  | AI34: =10*LOG10((#REF!+#REF!+#REF!)^2 + (#REF! *#REF!*$T34 - (#REF!*(#REF!+#REF!) + 4*#REF!*#REF!) )*$T34 ) - 10*LOG10( (1+#REF!+#REF!)^2 + ( 1*#REF!*$T34 - (#REF!*(1+#REF!) + 4*1*#REF!) )*$T34) -> 
R35: 1828 | S35: =2*PI()*R35/I3 -> 0.2392846404 | T35: 0.05698446171 | U35: 13.60264784 | AE35: =10*LOG10((#REF!+#REF!+#REF!)^2 + (#REF! *#REF!*$T35 - (#REF!*(#REF!+#REF!) + 4*#REF!*#REF!) )*$T35 ) - 10*LOG10( (1+#REF!+#REF!)^2 + ( 1*#REF!*$T35 - (#REF!*(1+#REF!) + 4*1*#REF!) )*$T35) ->  | AF35: =10*LOG10((#REF!+#REF!+#REF!)^2 + (#REF! *#REF!*$T35 - (#REF!*(#REF!+#REF!) + 4*#REF!*#REF!) )*$T35 ) - 10*LOG10( (1+#REF!+#REF!)^2 + ( 1*#REF!*$T35 - (#REF!*(1+#REF!) + 4*1*#REF!) )*$T35) ->  | AG35: =10*LOG10((#REF!+#REF!+#REF!)^2 + (#REF! *#REF!*$T35 - (#REF!*(#REF!+#REF!) + 4*#REF!*#REF!) )*$T35 ) - 10*LOG10( (1+#REF!+#REF!)^2 + ( 1*#REF!*$T35 - (#REF!*(1+#REF!) + 4*1*#REF!) )*$T35) ->  | AH35: =10*LOG10((#REF!+#REF!+#REF!)^2 + (#REF! *#REF!*$T35 - (#REF!*(#REF!+#REF!) + 4*#REF!*#REF!) )*$T35 ) - 10*LOG10( (1+#REF!+#REF!)^2 + ( 1*#REF!*$T35 - (#REF!*(1+#REF!) + 4*1*#REF!) )*$T35) ->  | AI35: =10*LOG10((#REF!+#REF!+#REF!)^2 + (#REF! *#REF!*$T35 - (#REF!*(#REF!+#REF!) + 4*#REF!*#REF!) )*$T35 ) - 10*LOG10( (1+#REF!+#REF!)^2 + ( 1*#REF!*$T35 - (#REF!*(1+#REF!) + 4*1*#REF!) )*$T35) -> 
R36: 2175 | S36: =2*PI()*R36/I3 -> 0.2847068342 | T36: 0.08051192569 | U36: 19.28875772 | AE36: =10*LOG10((#REF!+#REF!+#REF!)^2 + (#REF! *#REF!*$T36 - (#REF!*(#REF!+#REF!) + 4*#REF!*#REF!) )*$T36 ) - 10*LOG10( (1+#REF!+#REF!)^2 + ( 1*#REF!*$T36 - (#REF!*(1+#REF!) + 4*1*#REF!) )*$T36) ->  | AF36: =10*LOG10((#REF!+#REF!+#REF!)^2 + (#REF! *#REF!*$T36 - (#REF!*(#REF!+#REF!) + 4*#REF!*#REF!) )*$T36 ) - 10*LOG10( (1+#REF!+#REF!)^2 + ( 1*#REF!*$T36 - (#REF!*(1+#REF!) + 4*1*#REF!) )*$T36) ->  | AG36: =10*LOG10((#REF!+#REF!+#REF!)^2 + (#REF! *#REF!*$T36 - (#REF!*(#REF!+#REF!) + 4*#REF!*#REF!) )*$T36 ) - 10*LOG10( (1+#REF!+#REF!)^2 + ( 1*#REF!*$T36 - (#REF!*(1+#REF!) + 4*1*#REF!) )*$T36) ->  | AH36: =10*LOG10((#REF!+#REF!+#REF!)^2 + (#REF! *#REF!*$T36 - (#REF!*(#REF!+#REF!) + 4*#REF!*#REF!) )*$T36 ) - 10*LOG10( (1+#REF!+#REF!)^2 + ( 1*#REF!*$T36 - (#REF!*(1+#REF!) + 4*1*#REF!) )*$T36) ->  | AI36: =10*LOG10((#REF!+#REF!+#REF!)^2 + (#REF! *#REF!*$T36 - (#REF!*(#REF!+#REF!) + 4*#REF!*#REF!) )*$T36 ) - 10*LOG10( (1+#REF!+#REF!)^2 + ( 1*#REF!*$T36 - (#REF!*(1+#REF!) + 4*1*#REF!) )*$T36) -> 
R37: 2588 | S37: =2*PI()*R37/I3 -> 0.3387684078 | T37: 0.1136706589 | U37: 14.22943787 | AE37: =10*LOG10((#REF!+#REF!+#REF!)^2 + (#REF! *#REF!*$T37 - (#REF!*(#REF!+#REF!) + 4*#REF!*#REF!) )*$T37 ) - 10*LOG10( (1+#REF!+#REF!)^2 + ( 1*#REF!*$T37 - (#REF!*(1+#REF!) + 4*1*#REF!) )*$T37) ->  | AF37: =10*LOG10((#REF!+#REF!+#REF!)^2 + (#REF! *#REF!*$T37 - (#REF!*(#REF!+#REF!) + 4*#REF!*#REF!) )*$T37 ) - 10*LOG10( (1+#REF!+#REF!)^2 + ( 1*#REF!*$T37 - (#REF!*(1+#REF!) + 4*1*#REF!) )*$T37) ->  | AG37: =10*LOG10((#REF!+#REF!+#REF!)^2 + (#REF! *#REF!*$T37 - (#REF!*(#REF!+#REF!) + 4*#REF!*#REF!) )*$T37 ) - 10*LOG10( (1+#REF!+#REF!)^2 + ( 1*#REF!*$T37 - (#REF!*(1+#REF!) + 4*1*#REF!) )*$T37) ->  | AH37: =10*LOG10((#REF!+#REF!+#REF!)^2 + (#REF! *#REF!*$T37 - (#REF!*(#REF!+#REF!) + 4*#REF!*#REF!) )*$T37 ) - 10*LOG10( (1+#REF!+#REF!)^2 + ( 1*#REF!*$T37 - (#REF!*(1+#REF!) + 4*1*#REF!) )*$T37) ->  | AI37: =10*LOG10((#REF!+#REF!+#REF!)^2 + (#REF! *#REF!*$T37 - (#REF!*(#REF!+#REF!) + 4*#REF!*#REF!) )*$T37 ) - 10*LOG10( (1+#REF!+#REF!)^2 + ( 1*#REF!*$T37 - (#REF!*(1+#REF!) + 4*1*#REF!) )*$T37) -> 
R38: 3080 | S38: =2*PI()*R38/I3 -> 0.4031710572 | T38: 0.1603570054 | U38: 9.262502249 | AE38: =10*LOG10((#REF!+#REF!+#REF!)^2 + (#REF! *#REF!*$T38 - (#REF!*(#REF!+#REF!) + 4*#REF!*#REF!) )*$T38 ) - 10*LOG10( (1+#REF!+#REF!)^2 + ( 1*#REF!*$T38 - (#REF!*(1+#REF!) + 4*1*#REF!) )*$T38) ->  | AF38: =10*LOG10((#REF!+#REF!+#REF!)^2 + (#REF! *#REF!*$T38 - (#REF!*(#REF!+#REF!) + 4*#REF!*#REF!) )*$T38 ) - 10*LOG10( (1+#REF!+#REF!)^2 + ( 1*#REF!*$T38 - (#REF!*(1+#REF!) + 4*1*#REF!) )*$T38) ->  | AG38: =10*LOG10((#REF!+#REF!+#REF!)^2 + (#REF! *#REF!*$T38 - (#REF!*(#REF!+#REF!) + 4*#REF!*#REF!) )*$T38 ) - 10*LOG10( (1+#REF!+#REF!)^2 + ( 1*#REF!*$T38 - (#REF!*(1+#REF!) + 4*1*#REF!) )*$T38) ->  | AH38: =10*LOG10((#REF!+#REF!+#REF!)^2 + (#REF! *#REF!*$T38 - (#REF!*(#REF!+#REF!) + 4*#REF!*#REF!) )*$T38 ) - 10*LOG10( (1+#REF!+#REF!)^2 + ( 1*#REF!*$T38 - (#REF!*(1+#REF!) + 4*1*#REF!) )*$T38) ->  | AI38: =10*LOG10((#REF!+#REF!+#REF!)^2 + (#REF! *#REF!*$T38 - (#REF!*(#REF!+#REF!) + 4*#REF!*#REF!) )*$T38 ) - 10*LOG10( (1+#REF!+#REF!)^2 + ( 1*#REF!*$T38 - (#REF!*(1+#REF!) + 4*1*#REF!) )*$T38) -> 
R39: 3663 | S39: =2*PI()*R39/I3 -> 0.4794855788 | T39: 0.2255352911 | U39: 6.200985984 | AE39: =10*LOG10((#REF!+#REF!+#REF!)^2 + (#REF! *#REF!*$T39 - (#REF!*(#REF!+#REF!) + 4*#REF!*#REF!) )*$T39 ) - 10*LOG10( (1+#REF!+#REF!)^2 + ( 1*#REF!*$T39 - (#REF!*(1+#REF!) + 4*1*#REF!) )*$T39) ->  | AF39: =10*LOG10((#REF!+#REF!+#REF!)^2 + (#REF! *#REF!*$T39 - (#REF!*(#REF!+#REF!) + 4*#REF!*#REF!) )*$T39 ) - 10*LOG10( (1+#REF!+#REF!)^2 + ( 1*#REF!*$T39 - (#REF!*(1+#REF!) + 4*1*#REF!) )*$T39) ->  | AG39: =10*LOG10((#REF!+#REF!+#REF!)^2 + (#REF! *#REF!*$T39 - (#REF!*(#REF!+#REF!) + 4*#REF!*#REF!) )*$T39 ) - 10*LOG10( (1+#REF!+#REF!)^2 + ( 1*#REF!*$T39 - (#REF!*(1+#REF!) + 4*1*#REF!) )*$T39) ->  | AH39: =10*LOG10((#REF!+#REF!+#REF!)^2 + (#REF! *#REF!*$T39 - (#REF!*(#REF!+#REF!) + 4*#REF!*#REF!) )*$T39 ) - 10*LOG10( (1+#REF!+#REF!)^2 + ( 1*#REF!*$T39 - (#REF!*(1+#REF!) + 4*1*#REF!) )*$T39) ->  | AI39: =10*LOG10((#REF!+#REF!+#REF!)^2 + (#REF! *#REF!*$T39 - (#REF!*(#REF!+#REF!) + 4*#REF!*#REF!) )*$T39 ) - 10*LOG10( (1+#REF!+#REF!)^2 + ( 1*#REF!*$T39 - (#REF!*(1+#REF!) + 4*1*#REF!) )*$T39) -> 
R40: 4357 | S40: =2*PI()*R40/I3 -> 0.5703299663 | T40: 0.3165542621 | U40: 4.167166756 | AE40: =10*LOG10((#REF!+#REF!+#REF!)^2 + (#REF! *#REF!*$T40 - (#REF!*(#REF!+#REF!) + 4*#REF!*#REF!) )*$T40 ) - 10*LOG10( (1+#REF!+#REF!)^2 + ( 1*#REF!*$T40 - (#REF!*(1+#REF!) + 4*1*#REF!) )*$T40) ->  | AF40: =10*LOG10((#REF!+#REF!+#REF!)^2 + (#REF! *#REF!*$T40 - (#REF!*(#REF!+#REF!) + 4*#REF!*#REF!) )*$T40 ) - 10*LOG10( (1+#REF!+#REF!)^2 + ( 1*#REF!*$T40 - (#REF!*(1+#REF!) + 4*1*#REF!) )*$T40) ->  | AG40: =10*LOG10((#REF!+#REF!+#REF!)^2 + (#REF! *#REF!*$T40 - (#REF!*(#REF!+#REF!) + 4*#REF!*#REF!) )*$T40 ) - 10*LOG10( (1+#REF!+#REF!)^2 + ( 1*#REF!*$T40 - (#REF!*(1+#REF!) + 4*1*#REF!) )*$T40) ->  | AH40: =10*LOG10((#REF!+#REF!+#REF!)^2 + (#REF! *#REF!*$T40 - (#REF!*(#REF!+#REF!) + 4*#REF!*#REF!) )*$T40 ) - 10*LOG10( (1+#REF!+#REF!)^2 + ( 1*#REF!*$T40 - (#REF!*(1+#REF!) + 4*1*#REF!) )*$T40) ->  | AI40: =10*LOG10((#REF!+#REF!+#REF!)^2 + (#REF! *#REF!*$T40 - (#REF!*(#REF!+#REF!) + 4*#REF!*#REF!) )*$T40 ) - 10*LOG10( (1+#REF!+#REF!)^2 + ( 1*#REF!*$T40 - (#REF!*(1+#REF!) + 4*1*#REF!) )*$T40) -> 
R41: 5184 | S41: =2*PI()*R41/I3 -> 0.6785840132 | T41: 0.4430753969 | U41: 2.759426808 | AE41: =10*LOG10((#REF!+#REF!+#REF!)^2 + (#REF! *#REF!*$T41 - (#REF!*(#REF!+#REF!) + 4*#REF!*#REF!) )*$T41 ) - 10*LOG10( (1+#REF!+#REF!)^2 + ( 1*#REF!*$T41 - (#REF!*(1+#REF!) + 4*1*#REF!) )*$T41) ->  | AF41: =10*LOG10((#REF!+#REF!+#REF!)^2 + (#REF! *#REF!*$T41 - (#REF!*(#REF!+#REF!) + 4*#REF!*#REF!) )*$T41 ) - 10*LOG10( (1+#REF!+#REF!)^2 + ( 1*#REF!*$T41 - (#REF!*(1+#REF!) + 4*1*#REF!) )*$T41) ->  | AG41: =10*LOG10((#REF!+#REF!+#REF!)^2 + (#REF! *#REF!*$T41 - (#REF!*(#REF!+#REF!) + 4*#REF!*#REF!) )*$T41 ) - 10*LOG10( (1+#REF!+#REF!)^2 + ( 1*#REF!*$T41 - (#REF!*(1+#REF!) + 4*1*#REF!) )*$T41) ->  | AH41: =10*LOG10((#REF!+#REF!+#REF!)^2 + (#REF! *#REF!*$T41 - (#REF!*(#REF!+#REF!) + 4*#REF!*#REF!) )*$T41 ) - 10*LOG10( (1+#REF!+#REF!)^2 + ( 1*#REF!*$T41 - (#REF!*(1+#REF!) + 4*1*#REF!) )*$T41) ->  | AI41: =10*LOG10((#REF!+#REF!+#REF!)^2 + (#REF! *#REF!*$T41 - (#REF!*(#REF!+#REF!) + 4*#REF!*#REF!) )*$T41 ) - 10*LOG10( (1+#REF!+#REF!)^2 + ( 1*#REF!*$T41 - (#REF!*(1+#REF!) + 4*1*#REF!) )*$T41) -> 
R42: 6167 | S42: =2*PI()*R42/I3 -> 0.8072584123 | T42: 0.6170369279 | U42: 1.769626412 | AE42: =10*LOG10((#REF!+#REF!+#REF!)^2 + (#REF! *#REF!*$T42 - (#REF!*(#REF!+#REF!) + 4*#REF!*#REF!) )*$T42 ) - 10*LOG10( (1+#REF!+#REF!)^2 + ( 1*#REF!*$T42 - (#REF!*(1+#REF!) + 4*1*#REF!) )*$T42) ->  | AF42: =10*LOG10((#REF!+#REF!+#REF!)^2 + (#REF! *#REF!*$T42 - (#REF!*(#REF!+#REF!) + 4*#REF!*#REF!) )*$T42 ) - 10*LOG10( (1+#REF!+#REF!)^2 + ( 1*#REF!*$T42 - (#REF!*(1+#REF!) + 4*1*#REF!) )*$T42) ->  | AG42: =10*LOG10((#REF!+#REF!+#REF!)^2 + (#REF! *#REF!*$T42 - (#REF!*(#REF!+#REF!) + 4*#REF!*#REF!) )*$T42 ) - 10*LOG10( (1+#REF!+#REF!)^2 + ( 1*#REF!*$T42 - (#REF!*(1+#REF!) + 4*1*#REF!) )*$T42) ->  | AH42: =10*LOG10((#REF!+#REF!+#REF!)^2 + (#REF! *#REF!*$T42 - (#REF!*(#REF!+#REF!) + 4*#REF!*#REF!) )*$T42 ) - 10*LOG10( (1+#REF!+#REF!)^2 + ( 1*#REF!*$T42 - (#REF!*(1+#REF!) + 4*1*#REF!) )*$T42) ->  | AI42: =10*LOG10((#REF!+#REF!+#REF!)^2 + (#REF! *#REF!*$T42 - (#REF!*(#REF!+#REF!) + 4*#REF!*#REF!) )*$T42 ) - 10*LOG10( (1+#REF!+#REF!)^2 + ( 1*#REF!*$T42 - (#REF!*(1+#REF!) + 4*1*#REF!) )*$T42) -> 
R43: 7336 | S43: =2*PI()*R43/I3 -> 0.9602801544 | T43: 0.8534190732 | U43: 1.06827998 | AE43: =10*LOG10((#REF!+#REF!+#REF!)^2 + (#REF! *#REF!*$T43 - (#REF!*(#REF!+#REF!) + 4*#REF!*#REF!) )*$T43 ) - 10*LOG10( (1+#REF!+#REF!)^2 + ( 1*#REF!*$T43 - (#REF!*(1+#REF!) + 4*1*#REF!) )*$T43) ->  | AF43: =10*LOG10((#REF!+#REF!+#REF!)^2 + (#REF! *#REF!*$T43 - (#REF!*(#REF!+#REF!) + 4*#REF!*#REF!) )*$T43 ) - 10*LOG10( (1+#REF!+#REF!)^2 + ( 1*#REF!*$T43 - (#REF!*(1+#REF!) + 4*1*#REF!) )*$T43) ->  | AG43: =10*LOG10((#REF!+#REF!+#REF!)^2 + (#REF! *#REF!*$T43 - (#REF!*(#REF!+#REF!) + 4*#REF!*#REF!) )*$T43 ) - 10*LOG10( (1+#REF!+#REF!)^2 + ( 1*#REF!*$T43 - (#REF!*(1+#REF!) + 4*1*#REF!) )*$T43) ->  | AH43: =10*LOG10((#REF!+#REF!+#REF!)^2 + (#REF! *#REF!*$T43 - (#REF!*(#REF!+#REF!) + 4*#REF!*#REF!) )*$T43 ) - 10*LOG10( (1+#REF!+#REF!)^2 + ( 1*#REF!*$T43 - (#REF!*(1+#REF!) + 4*1*#REF!) )*$T43) ->  | AI43: =10*LOG10((#REF!+#REF!+#REF!)^2 + (#REF! *#REF!*$T43 - (#REF!*(#REF!+#REF!) + 4*#REF!*#REF!) )*$T43 ) - 10*LOG10( (1+#REF!+#REF!)^2 + ( 1*#REF!*$T43 - (#REF!*(1+#REF!) + 4*1*#REF!) )*$T43) -> 
R44: 8728 | S44: =2*PI()*R44/I3 -> 1.142492528 | T44: 1.169343171 | U44: 0.5703437244 | AE44: =10*LOG10((#REF!+#REF!+#REF!)^2 + (#REF! *#REF!*$T44 - (#REF!*(#REF!+#REF!) + 4*#REF!*#REF!) )*$T44 ) - 10*LOG10( (1+#REF!+#REF!)^2 + ( 1*#REF!*$T44 - (#REF!*(1+#REF!) + 4*1*#REF!) )*$T44) ->  | AF44: =10*LOG10((#REF!+#REF!+#REF!)^2 + (#REF! *#REF!*$T44 - (#REF!*(#REF!+#REF!) + 4*#REF!*#REF!) )*$T44 ) - 10*LOG10( (1+#REF!+#REF!)^2 + ( 1*#REF!*$T44 - (#REF!*(1+#REF!) + 4*1*#REF!) )*$T44) ->  | AG44: =10*LOG10((#REF!+#REF!+#REF!)^2 + (#REF! *#REF!*$T44 - (#REF!*(#REF!+#REF!) + 4*#REF!*#REF!) )*$T44 ) - 10*LOG10( (1+#REF!+#REF!)^2 + ( 1*#REF!*$T44 - (#REF!*(1+#REF!) + 4*1*#REF!) )*$T44) ->  | AH44: =10*LOG10((#REF!+#REF!+#REF!)^2 + (#REF! *#REF!*$T44 - (#REF!*(#REF!+#REF!) + 4*#REF!*#REF!) )*$T44 ) - 10*LOG10( (1+#REF!+#REF!)^2 + ( 1*#REF!*$T44 - (#REF!*(1+#REF!) + 4*1*#REF!) )*$T44) ->  | AI44: =10*LOG10((#REF!+#REF!+#REF!)^2 + (#REF! *#REF!*$T44 - (#REF!*(#REF!+#REF!) + 4*#REF!*#REF!) )*$T44 ) - 10*LOG10( (1+#REF!+#REF!)^2 + ( 1*#REF!*$T44 - (#REF!*(1+#REF!) + 4*1*#REF!) )*$T44) -> 
R45: 10384 | S45: =2*PI()*R45/I3 -> 1.359262421 | T45: 1.580080278 | U45: 0.2183712717 | AE45: =10*LOG10((#REF!+#REF!+#REF!)^2 + (#REF! *#REF!*$T45 - (#REF!*(#REF!+#REF!) + 4*#REF!*#REF!) )*$T45 ) - 10*LOG10( (1+#REF!+#REF!)^2 + ( 1*#REF!*$T45 - (#REF!*(1+#REF!) + 4*1*#REF!) )*$T45) ->  | AF45: =10*LOG10((#REF!+#REF!+#REF!)^2 + (#REF! *#REF!*$T45 - (#REF!*(#REF!+#REF!) + 4*#REF!*#REF!) )*$T45 ) - 10*LOG10( (1+#REF!+#REF!)^2 + ( 1*#REF!*$T45 - (#REF!*(1+#REF!) + 4*1*#REF!) )*$T45) ->  | AG45: =10*LOG10((#REF!+#REF!+#REF!)^2 + (#REF! *#REF!*$T45 - (#REF!*(#REF!+#REF!) + 4*#REF!*#REF!) )*$T45 ) - 10*LOG10( (1+#REF!+#REF!)^2 + ( 1*#REF!*$T45 - (#REF!*(1+#REF!) + 4*1*#REF!) )*$T45) ->  | AH45: =10*LOG10((#REF!+#REF!+#REF!)^2 + (#REF! *#REF!*$T45 - (#REF!*(#REF!+#REF!) + 4*#REF!*#REF!) )*$T45 ) - 10*LOG10( (1+#REF!+#REF!)^2 + ( 1*#REF!*$T45 - (#REF!*(1+#REF!) + 4*1*#REF!) )*$T45) ->  | AI45: =10*LOG10((#REF!+#REF!+#REF!)^2 + (#REF! *#REF!*$T45 - (#REF!*(#REF!+#REF!) + 4*#REF!*#REF!) )*$T45 ) - 10*LOG10( (1+#REF!+#REF!)^2 + ( 1*#REF!*$T45 - (#REF!*(1+#REF!) + 4*1*#REF!) )*$T45) -> 
R46: 12353 | S46: =2*PI()*R46/I3 -> 1.617003919 | T46: 2.092382301 | U46: -0.02835201642 | AE46: =10*LOG10((#REF!+#REF!+#REF!)^2 + (#REF! *#REF!*$T46 - (#REF!*(#REF!+#REF!) + 4*#REF!*#REF!) )*$T46 ) - 10*LOG10( (1+#REF!+#REF!)^2 + ( 1*#REF!*$T46 - (#REF!*(1+#REF!) + 4*1*#REF!) )*$T46) ->  | AF46: =10*LOG10((#REF!+#REF!+#REF!)^2 + (#REF! *#REF!*$T46 - (#REF!*(#REF!+#REF!) + 4*#REF!*#REF!) )*$T46 ) - 10*LOG10( (1+#REF!+#REF!)^2 + ( 1*#REF!*$T46 - (#REF!*(1+#REF!) + 4*1*#REF!) )*$T46) ->  | AG46: =10*LOG10((#REF!+#REF!+#REF!)^2 + (#REF! *#REF!*$T46 - (#REF!*(#REF!+#REF!) + 4*#REF!*#REF!) )*$T46 ) - 10*LOG10( (1+#REF!+#REF!)^2 + ( 1*#REF!*$T46 - (#REF!*(1+#REF!) + 4*1*#REF!) )*$T46) ->  | AH46: =10*LOG10((#REF!+#REF!+#REF!)^2 + (#REF! *#REF!*$T46 - (#REF!*(#REF!+#REF!) + 4*#REF!*#REF!) )*$T46 ) - 10*LOG10( (1+#REF!+#REF!)^2 + ( 1*#REF!*$T46 - (#REF!*(1+#REF!) + 4*1*#REF!) )*$T46) ->  | AI46: =10*LOG10((#REF!+#REF!+#REF!)^2 + (#REF! *#REF!*$T46 - (#REF!*(#REF!+#REF!) + 4*#REF!*#REF!) )*$T46 ) - 10*LOG10( (1+#REF!+#REF!)^2 + ( 1*#REF!*$T46 - (#REF!*(1+#REF!) + 4*1*#REF!) )*$T46) ->  | AJ46: =AE46+AF46+AG46+AH46+AI46 ->  | AL46: =AJ46+Z46 -> 
R47: 14696 | S47: =2*PI()*R47/I3 -> 1.923701902 | T47: 2.691251548 | U47: -0.1984290325 | AE47: =10*LOG10((#REF!+#REF!+#REF!)^2 + (#REF! *#REF!*$T47 - (#REF!*(#REF!+#REF!) + 4*#REF!*#REF!) )*$T47 ) - 10*LOG10( (1+#REF!+#REF!)^2 + ( 1*#REF!*$T47 - (#REF!*(1+#REF!) + 4*1*#REF!) )*$T47) ->  | AF47: =10*LOG10((#REF!+#REF!+#REF!)^2 + (#REF! *#REF!*$T47 - (#REF!*(#REF!+#REF!) + 4*#REF!*#REF!) )*$T47 ) - 10*LOG10( (1+#REF!+#REF!)^2 + ( 1*#REF!*$T47 - (#REF!*(1+#REF!) + 4*1*#REF!) )*$T47) ->  | AG47: =10*LOG10((#REF!+#REF!+#REF!)^2 + (#REF! *#REF!*$T47 - (#REF!*(#REF!+#REF!) + 4*#REF!*#REF!) )*$T47 ) - 10*LOG10( (1+#REF!+#REF!)^2 + ( 1*#REF!*$T47 - (#REF!*(1+#REF!) + 4*1*#REF!) )*$T47) ->  | AH47: =10*LOG10((#REF!+#REF!+#REF!)^2 + (#REF! *#REF!*$T47 - (#REF!*(#REF!+#REF!) + 4*#REF!*#REF!) )*$T47 ) - 10*LOG10( (1+#REF!+#REF!)^2 + ( 1*#REF!*$T47 - (#REF!*(1+#REF!) + 4*1*#REF!) )*$T47) ->  | AI47: =10*LOG10((#REF!+#REF!+#REF!)^2 + (#REF! *#REF!*$T47 - (#REF!*(#REF!+#REF!) + 4*#REF!*#REF!) )*$T47 ) - 10*LOG10( (1+#REF!+#REF!)^2 + ( 1*#REF!*$T47 - (#REF!*(1+#REF!) + 4*1*#REF!) )*$T47) ->  | AJ47: =AE47+AF47+AG47+AH47+AI47 ->  | AL47: =AJ47+Z47 -> 
R48: 17484 | S48: =2*PI()*R48/I3 -> 2.288650248 | T48: 3.315539441 | U48: -0.3106756693 | AE48: =10*LOG10((#REF!+#REF!+#REF!)^2 + (#REF! *#REF!*$T48 - (#REF!*(#REF!+#REF!) + 4*#REF!*#REF!) )*$T48 ) - 10*LOG10( (1+#REF!+#REF!)^2 + ( 1*#REF!*$T48 - (#REF!*(1+#REF!) + 4*1*#REF!) )*$T48) ->  | AF48: =10*LOG10((#REF!+#REF!+#REF!)^2 + (#REF! *#REF!*$T48 - (#REF!*(#REF!+#REF!) + 4*#REF!*#REF!) )*$T48 ) - 10*LOG10( (1+#REF!+#REF!)^2 + ( 1*#REF!*$T48 - (#REF!*(1+#REF!) + 4*1*#REF!) )*$T48) ->  | AG48: =10*LOG10((#REF!+#REF!+#REF!)^2 + (#REF! *#REF!*$T48 - (#REF!*(#REF!+#REF!) + 4*#REF!*#REF!) )*$T48 ) - 10*LOG10( (1+#REF!+#REF!)^2 + ( 1*#REF!*$T48 - (#REF!*(1+#REF!) + 4*1*#REF!) )*$T48) ->  | AH48: =10*LOG10((#REF!+#REF!+#REF!)^2 + (#REF! *#REF!*$T48 - (#REF!*(#REF!+#REF!) + 4*#REF!*#REF!) )*$T48 ) - 10*LOG10( (1+#REF!+#REF!)^2 + ( 1*#REF!*$T48 - (#REF!*(1+#REF!) + 4*1*#REF!) )*$T48) ->  | AI48: =10*LOG10((#REF!+#REF!+#REF!)^2 + (#REF! *#REF!*$T48 - (#REF!*(#REF!+#REF!) + 4*#REF!*#REF!) )*$T48 ) - 10*LOG10( (1+#REF!+#REF!)^2 + ( 1*#REF!*$T48 - (#REF!*(1+#REF!) + 4*1*#REF!) )*$T48) ->  | AJ48: =AE48+AF48+AG48+AH48+AI48 ->  | AL48: =AJ48+Z48 -> 
R49: 22000 | S49: =2*PI()*R49/I3 -> 2.879793266 | T49: 3.931851653 | U49: -0.3866936748 | AE49: =10*LOG10((#REF!+#REF!+#REF!)^2 + (#REF! *#REF!*$T49 - (#REF!*(#REF!+#REF!) + 4*#REF!*#REF!) )*$T49 ) - 10*LOG10( (1+#REF!+#REF!)^2 + ( 1*#REF!*$T49 - (#REF!*(1+#REF!) + 4*1*#REF!) )*$T49) ->  | AF49: =10*LOG10((#REF!+#REF!+#REF!)^2 + (#REF! *#REF!*$T49 - (#REF!*(#REF!+#REF!) + 4*#REF!*#REF!) )*$T49 ) - 10*LOG10( (1+#REF!+#REF!)^2 + ( 1*#REF!*$T49 - (#REF!*(1+#REF!) + 4*1*#REF!) )*$T49) ->  | AG49: =10*LOG10((#REF!+#REF!+#REF!)^2 + (#REF! *#REF!*$T49 - (#REF!*(#REF!+#REF!) + 4*#REF!*#REF!) )*$T49 ) - 10*LOG10( (1+#REF!+#REF!)^2 + ( 1*#REF!*$T49 - (#REF!*(1+#REF!) + 4*1*#REF!) )*$T49) ->  | AH49: =10*LOG10((#REF!+#REF!+#REF!)^2 + (#REF! *#REF!*$T49 - (#REF!*(#REF!+#REF!) + 4*#REF!*#REF!) )*$T49 ) - 10*LOG10( (1+#REF!+#REF!)^2 + ( 1*#REF!*$T49 - (#REF!*(1+#REF!) + 4*1*#REF!) )*$T49) ->  | AI49: =10*LOG10((#REF!+#REF!+#REF!)^2 + (#REF! *#REF!*$T49 - (#REF!*(#REF!+#REF!) + 4*#REF!*#REF!) )*$T49 ) - 10*LOG10( (1+#REF!+#REF!)^2 + ( 1*#REF!*$T49 - (#REF!*(1+#REF!) + 4*1*#REF!) )*$T49) ->  | AJ49: =AE49+AF49+AG49+AH49+AI49 ->  | AL49: =AJ49+Z49 -> 

Sheet EQ All Peaking
B16: 1 | C16: 2 | D16: 3 | E16: 4 | F16: 5
I17: Select Slider, then
I18: Page up/Down : Big Jump
I19: Up/Down arrows : Fine tune
I21: Dear R B-J,
I22: Thank you for your personal support !!
I24: Web Surf
I25: Feb 2006
I28: Many programs that plot R- BJ equalisers have a problem
I29: with High Q peaking filters. As you sweep the Fo, the
I30: max attenuation/boost varies. This is a problem with their plot
I31: method. You either need to plot 25 points per octave
I32: or you need to make sure that each Fo of each Notch
I33: is plotted.
A34: F0 | B34: =10^(B48/333333)*20 -> 100.0008507 | C34: =10^(C48/333333)*20 -> 299.9999427 | D34: =10^(D48/333333)*20 -> 1000.001599 | E34: =10^(E48/333333)*20 -> 5000.015995 | F34: =10^(F48/333333)*20 -> 10000.01599 | I34: Only 6 points per octave with a curve smoothening is
A35: Q | B35: =B49/1000000*10+0.002 -> 2.99646 | C35: =C49/1000000*10+0.002 -> 3.00294 | D35: =D49/1000000*10+0.002 -> 1.50135 | E35: =E49/1000000*10+0.002 -> 0.74539 | F35: =F49/1000000*30+0.002 -> 6.59843 | I35: sufficient for all other plots.
A36: dBgain | B36: =(B50-500000)/500000*30 -> -20.00052 | C36: =(C50-500000)/500000*30 -> -14.99922 | D36: =(D50-500000)/500000*30 -> 14.9955 | E36: =(E50-500000)/500000*20 -> 15.00164 | F36: =(F50-500000)/500000*30 -> -21.14448
A37: IdBoffset | B37: =((B51-500000)/500000*20) -> 0 | C37: =((C51-500000)/500000*20) -> 0 | D37: =((D51-500000)/500000*20) -> 0 | E37: =((E51-500000)/500000*20) -> 0 | F37: =((F51-500000)/500000*20) -> 4e-05
A48: S1 | B48: 232991 | C48: 392030 | D48: 566323 | E48: 799313 | F48: 899656 | I48: Master dB | J48: 500000
A49: S2 | B49: 299446 | C49: 300094 | D49: 149935 | E49: 74339 | F49: 219881 | I49: Normal dB | J49: =(J48-500000)/500000*20 -> 0
A50: S3 | B50: 166658 | C50: 250013 | D50: 749925 | E50: 875041 | F50: 147592 | J50: =10^(J49/20) -> 1
A51: S4 | B51: 500000 | C51: 500000 | D51: 500000 | E51: 500000 | F51: 500001 | J51: =J50 -> 1
A56: Fs | B56: 48000 | C56: Hz
B59: Peaking EQ | C59: Peaking EQ | D59: Peaking EQ | E59: Peaking EQ | F59: Peaking EQ
A60: A | B60: =SQRT( 10^((B36)/20) ) -> 0.3162183003 | C60: =SQRT( 10^((C36)/20) ) -> 0.4217154382 | D60: =10^((D36)/40) -> 2.370759503 | E60: =10^((E36)/40) -> 2.371597588 | F60: =10^((F36)/40) -> 0.2960656345
A61: wo | B61: =2*PI()*B34/B56 -> 0.01309008075 | C61: =2*PI()*C34/B56 -> 0.03926990067 | D61: =2*PI()*D34/B56 -> 0.1308999033 | E61: =2*PI()*E34/B56 -> 0.6545005632 | F61: =2*PI()*F34/B56 -> 1.308999033
A62: cos(wo) | B62: =COS(B61) -> 0.9999143261 | C62: =COS(C61) -> 0.9992290365 | D62: =COS(D61) -> 0.991444834 | E62: =COS(E61) -> 0.7933520657 | F62: =COS(F61) -> 0.2588170228
A63: sin(wo) | B63: =SIN(B61) -> 0.01308970692 | C63: =SIN(C61) -> 0.03925980826 | D63: =SIN(D61) -> 0.1305263998 | E63: =SIN(E61) -> 0.60876309 | F63: =SIN(F61) -> 0.9659263682
A64: Alpha | B64: =B63/(2*B35) -> 0.002184195171 | C64: =C63/(2*C35) -> 0.00653689522 | D64: =D63/(2*D35) -> 0.04346967722 | E64: =E63/(2*E35) -> 0.408352064 | F64: =F63/(2*F35) -> 0.07319365123
A65: Lingain | B65: =10^(B37/20) -> 1 | C65: =10^(C37/20) -> 1 | D65: =10^(D37/20) -> 1 | E65: =10^(E37/20) -> 1 | F65: =10^(F37/20) -> 1.000004605
K67: Coeff to Hex | M67: Quantised | O67: Padded | P67: reconvert | Q67: Text | R67: Little Endian
A68: B0 | B68: =B65*$J$51*(1+(B64*B60)) -> 1.000690682 | C68: =C65*$J$51*(1+(C64*C60)) -> 1.00275671 | D68: =D65*$J$51*(1+(D64*D60)) -> 1.10305615 | E68: =E65*$J$51*(1+(E64*E60)) -> 1.96844677 | F68: =F65*$J$51*(1+(F64*F60)) -> 1.02167483 | J68: B0 | K68: 0.9865370356 | L68: =K68/K71 -> 0.9769047094 | M68: =ROUND(L68*2^20,0) -> 1024359 | N68: =DEC2HEX(M68) -> FA167 | O68: =IF(LEN(N68)<>6, RIGHT("000000"&N68, 6), N68) -> 0FA167 | P68: =(IF(HEX2DEC(O68)>8388607, (HEX2DEC(O68)-16777215),HEX2DEC( O68)))/2^20 -> 0.9769048691 | Q68: =TEXT(O68,"######") -> 0FA167 | R68: =RIGHT(Q68,2)&" "&MID(Q68, 3,2)&" "&LEFT(Q68,2)&" " -> 67 A1 0F
A69: B1 | B69: =B65*$J$51*(-2*B62) -> -1.999828652 | C69: =C65*$J$51*(-2*C62) -> -1.998458073 | D69: =D65*$J$51*(-2*D62) -> -1.982889668 | E69: =E65*$J$51*(-2*E62) -> -1.586704131 | F69: =F65*$J$51*(-2*F62) -> -0.5176364293 | J69: B1 | K69: -1.967600788 | L69: =K69/K71 -> -1.948389575 | M69: =ROUND(L69*2^20,0) -> -2043035 | N69: =IF(M69<0,DEC2HEX(M69+16777215),DEC2HEX(M69)) -> E0D364 | O69: =IF(LEN(N69)<>6, RIGHT("000000"&N69, 6), N69) -> E0D364 | P69: =(IF(HEX2DEC(O69)>8388607, (HEX2DEC(O69)-16777215),HEX2DEC( O69)))/2^20 -> -1.948390007 | Q69: E0D364 | R69: 64 D3 E0
A70: B2 | B70: =B65*$J$51*(1-(B60*B64)) -> 0.9993093175 | C70: =C65*$J$51*(1-(C60*C64)) -> 0.9972432904 | D70: =D65*$J$51*(1-(D60*D64)) -> 0.8969438496 | E70: =E65*$J$51*(1-(E60*E64)) -> 0.03155322981 | F70: =F65*$J$51*(1-(F60*F64)) -> 0.9783343806 | J70: B2 | K70: 0.9859220145 | L70: =K70/K71 -> 0.9762956932 | M70: =ROUND(L70*2^20,0) -> 1023720 | N70: =IF(M70<0,DEC2HEX(M70+16777215),DEC2HEX(M70)) -> F9EE8 | O70: =IF(LEN(N70)<>6, RIGHT("000000"&N70, 6), N70) -> 0F9EE8 | P70: =(IF(HEX2DEC(O70)>8388607, (HEX2DEC(O70)-16777215),HEX2DEC( O70)))/2^20 -> 0.9762954712 | Q70: 0F9EE8 | R70: E8 9E 0F
A71: A0 | B71: =1 + (B64/B60) -> 1.006907238 | C71: =1 + (C64/C60) -> 1.015500725 | D71: =1 + (D64/D60) -> 1.01833576 | E71: =1 + (E64/E60) -> 1.172184382 | F71: =1 + (F64/F60) -> 1.24722103 | J71: A0 | K71: 1.009860047 | L71: 1
A72: A1 | B72: =-2*B62 -> -1.999828652 | C72: =-2*C62 -> -1.998458073 | D72: =-2*D62 -> -1.982889668 | E72: =-2*E62 -> -1.586704131 | F72: =-2*F62 -> -0.5176340455 | J72: A1 | K72: -1.995073903 | L72: =K72/K71 -> -1.975594449 | M72: =ROUND(L72*2^20,0)*-1 -> 2071561 | N72: =IF(M72<0,DEC2HEX(M72+16777215),DEC2HEX(M72)) -> 1F9C09 | O72: =IF(LEN(N72)<>6, RIGHT("000000"&N72, 6), N72) -> 1F9C09 | P72: =-(IF(HEX2DEC(O72)>8388607, (HEX2DEC(O72)-16777215),HEX2DEC( O72)))/2^20 -> -1.975594521 | Q72: 1F9C09 | R72: 09 9C 1F
A73: A2 | B73: =1-(B64/B60) -> 0.9930927617 | C73: =1-(C64/C60) -> 0.9844992746 | D73: =1-(D64/D60) -> 0.98166424 | E73: =1-(E64/E60) -> 0.8278156184 | F73: =1-(F64/F60) -> 0.7527789696 | J73: A2 | K73: 0.9901399531 | L73: =K73/K71 -> 0.9804724488 | M73: =ROUND(L73*2^20,0)*-1 -> -1028100 | N73: =IF(M73<0,DEC2HEX(M73+16777215),DEC2HEX(M73)) -> F04FFB | O73: =IF(LEN(N73)<>6, RIGHT("000000"&N73, 6), N73) -> F04FFB | P73: =-(IF(HEX2DEC(O73)>8388607, (HEX2DEC(O73)-16777215),HEX2DEC( O73)))/2^20 -> 0.9804725647 | Q73: F04FFB | R73: FB 4F F0
K75: String | L75: =R68&R69&R70&R72&R73 -> 67 A1 0F 64 D3 E0 E8 9E 0F 09 9C 1F FB 4F F0
L77: 67 A1 0F 64 D3 E0 E8 9E 0F 09 9C 1F FB 4F F0
B109: Fo | C109: 563154 | D109: =10^(C109/333333)*20 -> 978.348729 | E109: =LOG(C109) -> 5.750627173
B110: Q | C110: 912551 | D110: =C110/1000000*7 -> 6.387857
B111: dBgain | C111: 361479 | D111: =(C111-500000)/500000*20 -> -5.54084
B112: Master dbgain | C112: 554218 | D112: =(C112-500000)/500000*20 -> 2.16872
C113: 538360 | U113: PRE-EQ
U114: 1 | V114: 2 | W114: 3 | X114: 4 | Y114: 5 | Z114: Total
R115: FREQ | S115: w | T115: Phi | U115: 1 | V115: 2 | W115: 3 | X115: 4 | Y115: 5 | Z115: Total
C116: pre1 | D116: B0 | E116: 1 | G116: =B68/B71 -> 0.9938260888 | R116: 10 | S116: =2*PI()*R116/B56 -> 0.001308996939 | T116: =4*(SIN(S116/2))^2 -> 1.713472742e-06 | U116: =10*LOG10(($G$116+$G$117+$G$118)^2 + ( $G$116*$G$118*T116 - ($G$117*($G$116+$G$118) + 4*$G$116*$G$118) )*T116 ) - 10*LOG10( (1+$G$119+$G$120)^2 + ( 1*$G$120*T116 - ($G$119*(1+$G$120) + 4*1*$G$120) )*T116) -> -0.04858005444 | V116: =10*LOG10(($G$121+$G$122+$G$123)^2 + ( $G$121*$G$123*$T116 - ($G$122*($G$121+$G$123) + 4*$G$121*$G$123) )*$T116 ) - 10*LOG10( (1+$G$124+$G$125)^2 + ( 1*$G$125*$T116 - ($G$124*(1+$G$125) + 4*1*$G$125) )*$T116) -> -0.00291843544 | W116: =10*LOG10(($G$126+$G$127+$G$128)^2 + ( $G$126*$G$128*$T116 - ($G$127*($G$126+$G$128) + 4*$G$126*$G$128) )*$T116 ) - 10*LOG10( (1+$G$129+$G$130)^2 + ( 1*$G$130*$T116 - ($G$129*(1+$G$130) + 4*1*$G$130) )*$T116) -> 0.001045715208 | X116: =10*LOG10(($G$131+$G$132+$G$133)^2 + ( $G$131*$G$133*$T116 - ($G$132*($G$131+$G$133) + 4*$G$131*$G$133) )*$T116 ) - 10*LOG10( (1+$G$134+$G$135)^2 + ( 1*$G$135*$T116 - ($G$134*(1+$G$135) + 4*1*$G$135) )*$T116) -> 0.0001582689752 | Y116: =10*LOG10(($G$136+$G$137+$G$138)^2 + ( $G$136*$G$138*$T116 - ($G$137*($G$136+$G$138) + 4*$G$136*$G$138) )*$T116 ) - 10*LOG10( (1+$G$139+$G$140)^2 + ( 1*$G$140*$T116 - ($G$139*(1+$G$140) + 4*1*$G$140) )*$T116) -> 3.917845283e-05 | Z116: =U116+V116+W116+X116+Y116 -> -0.05025532725
C117: LPF | D117: B1 | E117: 2 | G117: =B69/B71 -> -1.986110116 | R117: 10.2 | S117: =2*PI()*R117/B56 -> 0.001335176878 | T117: 1.78269703e-06 | U117: -0.05057210479 | V117: -0.00303656911 | W117: 0.001087965243 | X117: 0.0001646629641 | Y117: 3.914526226e-05 | Z117: -0.05231690043
D118: B2 | E118: 3 | G118: =B70/B71 -> 0.9924541998 | R118: 10.404 | S118: =2*PI()*R118/B56 -> 0.001361880415 | T118: 1.854717979e-06 | U118: -0.05264708008 | V118: -0.003159494273 | W118: 0.001131922438 | X118: 0.0001713152636 | Y118: 3.91107308e-05 | Z118: -0.05446422592
D119: -A1 | E119: 4 | G119: =B72/B71 -> -1.986110116 | R119: 10.61208 | S119: =2*PI()*R119/B56 -> 0.001389118024 | T119: 1.929648573e-06 | U119: -0.05480853481 | V119: -0.003287406064 | W119: 0.001177655784 | X119: 0.0001782363092 | Y119: 3.907480425e-05 | Z119: -0.05670097397
D120: -A2 | E120: 5 | G120: =B73/B71 -> 0.9862802886 | R120: 10.8243216 | S120: =2*PI()*R120/B56 -> 0.001416900384 | T120: 2.007606363e-06 | U120: -0.05706018428 | V120: -0.003420507634 | W120: 0.001225237061 | X120: 0.0001854369574 | Y120: 3.903742627e-05 | Z120: -0.05903098047
C121: pre2 | D121: B0 | E121: 6 | G121: =C68/C71 -> 0.9874505104 | R121: 11.04080803 | S121: =2*PI()*R121/B56 -> 0.001445238392 | T121: 2.088713646e-06 | U121: -0.05940591252 | V121: -0.003559010478 | W121: 0.00127474095 | X121: 0.0001929285038 | Y121: 3.899853822e-05 | Z121: -0.061458255
C122: HPF | D122: B1 | E122: 7 | G122: =C69/C71 -> -1.967953368 | R122: 11.26162419 | S122: =2*PI()*R122/B56 -> 0.00147414316 | T122: 2.173097662e-06 | U122: -0.06184978071 | V122: -0.003703134789 | W122: 0.001326245151 | X122: 0.0002007226998 | Y122: 3.895807908e-05 | Z122: -0.06398698957
D123: B2 | E123: 8 | G123: =C70/C71 -> 0.9820212486 | R123: 11.48685668 | S123: =2*PI()*R123/B56 -> 0.001503626023 | T123: 2.260890791e-06 | U123: -0.06439603608 | V123: -0.003853109818 | W123: 0.001379830507 | X123: 0.0002088317717 | Y123: 3.891598538e-05 | Z123: -0.06662156763
D124: -A1 | E124: 9 | G124: =C72/C71 -> -1.967953368 | R124: 11.71659381 | S124: =2*PI()*R124/B56 -> 0.001533698543 | T124: 2.352230761e-06 | U124: -0.06704912124 | V124: -0.004009174255 | W124: 0.001435581127 | X124: 0.0002172684399 | Y124: 3.887219109e-05 | Z124: -0.06936657374
D125: -A2 | E125: 10 | G125: =C73/C71 -> 0.969471759 | R125: 11.95092569 | S125: =2*PI()*R125/B56 -> 0.001564372514 | T125: 2.447260864e-06 | U125: -0.06981368418 | V125: -0.004171576628 | W125: 0.001493584523 | X125: 0.0002260459383 | Y125: 3.88266275e-05 | Z125: -0.07222680372
C126: pre3 | D126: B0 | E126: 11 | G126: =D68/D71 -> 1.083194948 | R126: 12.1899442 | S126: =2*PI()*R126/B56 -> 0.001595659964 | T126: 2.546130182e-06 | U126: -0.07269458872 | V126: -0.004340575709 | W126: 0.001553931745 | X126: 0.0002351780356 | Y126: 3.877922314e-05 | Z126: -0.07520727542
C127: Hi Shelf | D127: B1 | E127: 12 | G127: =D69/D71 -> -1.947186523 | R127: 12.43374308 | S127: =2*PI()*R127/B56 -> 0.001627573164 | T127: 2.648993818e-06 | U127: -0.07569692566 | V127: -0.004516440954 | W127: 0.001616717522 | X127: 0.0002446790566 | Y127: 3.872990363e-05 | Z127: -0.07831324013
D128: B2 | E128: 13 | G128: =D70/D71 -> 0.8807938255 | R128: 12.68241795 | S128: =2*PI()*R128/B56 -> 0.001660124627 | T128: 2.756013144e-06 | U128: -0.07882602458 | V128: -0.004699452947 | W128: 0.001682040416 | X128: 0.0002545639046 | Y128: 3.86785916e-05 | Z128: -0.08155019461
D129: -A1 | E129: 14 | G129: =D72/D71 -> -1.947186523 | R129: 12.9360663 | S129: =2*PI()*R129/B56 -> 0.00169332712 | T129: 2.867356049e-06 | U129: -0.08208746629 | V129: -0.004889903871 | W129: 0.001750002974 | X129: 0.0002648480851 | Y129: 3.862520655e-05 | Z129: -0.0849238939
D130: -A2 | E130: 15 | G130: =D73/D71 -> 0.9639887732 | R130: 13.19478763 | S130: =2*PI()*R130/B56 -> 0.001727193662 | T130: 2.983197204e-06 | U130: -0.08548709611 | V130: -0.005088098001 | W130: 0.001820711889 | X130: 0.00027554773 | Y130: 3.856966474e-05 | Z130: -0.08844036483
C131: pre4 | D131: B0 | E131: 16 | G131: =E68/E71 -> 1.6792979 | R131: 13.45868338 | S131: =2*PI()*R131/B56 -> 0.001761737535 | T131: 3.10371834e-06 | U131: -0.08903103789 | V131: -0.005294352213 | W131: 0.00189427817 | X131: 0.0002866796226 | Y131: 3.851187902e-05 | Z131: -0.09210592043
C132: Lo Shelf | D132: B1 | E132: 17 | G132: =E69/E71 -> -1.35363016 | R132: 13.72785705 | S132: =2*PI()*R132/B56 -> 0.001796972286 | T132: 3.229108527e-06 | U132: -0.09272570893 | V132: -0.005508996523 | W132: 0.001970817312 | X132: 0.0002982612242 | Y132: 3.845175875e-05 | Z132: -0.09592717516
D133: B2 | E133: 18 | G133: =E70/E71 -> 0.02691831618 | R133: 14.00241419 | S133: =2*PI()*R133/B56 -> 0.001832911732 | T133: 3.359564475e-06 | U133: -0.09657783582 | V133: -0.00573237464 | W133: 0.002050449486 | X133: 0.0003103107014 | Y133: 3.83892096e-05 | Z133: -0.09991106106
D134: -A1 | E134: 19 | G134: =E72/E71 -> -1.35363016 | R134: 14.28246248 | S134: =2*PI()*R134/B56 -> 0.001869569966 | T134: 3.49529084e-06 | U134: -0.1005944713 | V134: -0.005964844555 | W134: 0.002133299719 | X134: 0.0003228469548 | Y134: 3.832413345e-05 | Z134: -0.104064845
D135: -A2 | E135: 20 | G135: =E73/E71 -> 0.706216216 | R135: 14.56811173 | S135: =2*PI()*R135/B56 -> 0.001906961366 | T135: 3.636500548e-06 | U135: -0.104783012 | V135: -0.006206779146 | W135: 0.002219498096 | X135: 0.0003358896482 | Y135: 3.82564282e-05 | Z135: -0.108396147
C136: pre5 | D136: B0 | E136: 21 | G136: =F68/F71 -> 0.8191610026 | R136: 14.85947396 | S136: =2*PI()*R136/B56 -> 0.001945100593 | T136: 3.783415123e-06 | U136: -0.1091512178 | V136: -0.00645856682 | W136: 0.002309179965 | X136: 0.0003494592397 | Y136: 3.818598765e-05 | Z136: -0.1129129594
C137: PeakEQ | D137: B1 | E137: 22 | G137: =F69/F71 -> -0.4150318321 | R137: 15.15666344 | S137: =2*PI()*R137/B56 -> 0.001984002605 | T137: 3.936265044e-06 | U137: -0.1137072317 | V137: -0.006720612174 | W137: 0.002402486148 | X137: 0.0003635770139 | Y137: 3.811270127e-05 | Z137: -0.117623668
A138: Master A | B138: =SQRT( 10^((D112)/20) ) -> 1.13296893 | D138: B2 | E138: 23 | G138: =F70/F71 -> 0.7844113888 | R138: 15.45979671 | S138: =2*PI()*R138/B56 -> 0.002023682657 | T138: 4.095290098e-06 | U138: -0.1184596017 | V138: -0.006993336692 | W138: 0.002499563163 | X138: 0.0003782651149 | Y138: 3.80364541e-05 | Z138: -0.1225370736
A139: A | B139: =SQRT( 10^((D111)/20) ) -> 0.7269072493 | D139: -A1 | E139: 24 | G139: =F72/F71 -> -0.4150299208 | R139: 15.76899264 | S139: =2*PI()*R139/B56 -> 0.00206415631 | T139: 4.260739759e-06 | U139: -0.1234173035 | V139: -0.007277179475 | W139: 0.002600563455 | X139: 0.0003935465813 | Y139: 3.795712652e-05 | Z139: -0.1276624159
A140: wo | B140: =2*PI()*D109/B56 -> 0.1280655491 | D140: -A2 | E140: 25 | G140: =F73/F71 -> 0.6035650067 | R140: 16.08437249 | S140: =2*PI()*R140/B56 -> 0.002105439436 | T140: 4.432873582e-06 | U140: -0.1285897656 | V140: -0.007572597998 | W140: 0.002705645638 | X140: 0.0004094453823 | Y140: 3.787459408e-05 | Z140: -0.133009398
A141: cos(wo) | B141: =COS(B140) -> 0.9918108092 | C141: post1 | D141: B0 | E141: 26 | G141: =B186/B189 -> 0.9936022448 | R141: 16.40605994 | S141: =2*PI()*R141/B56 -> 0.002147548225 | T141: 4.611961606e-06 | U141: -0.1339868946 | V141: -0.007880068909 | W141: 0.002814974742 | X141: 0.0004259864553 | Y141: 3.77887273e-05 | Z141: -0.1385882136
